Workbook

Sheet ProjectInformation
A1: CPN DATA
A2: INFORMATION ADDED BY DESIGNER
A3: Design Team | B3: IOWA DOT\CH2MHILL
A4: County | B4: LINN
A5: Project Number | B5: NHSX-100-1(77)--3H-57
A6: English or Metric | B6: ENGLISH
A7: Revised
A8: Project Path | B8: C:\Projects\PW\417811 - IA100 CORRIDOR IN LINN COUNTY\

Sheet Run1 Input
A2: STATION | C2: SELECT | D2: SELECT | E2: TOPSOIL | F2: TOP UNSUIT | G2: TOP UNSUIT | H2: TOP UNSUIT | I2: UNSUITABLE | J2: UNSUITABLE | K2: UNSUITABLE | M2: B & W | Q2: PAVE REMOVE | T2: RETAINING
B3: CLASS 10 | C3: LOAM | D3: SAND | E3: CLASS 10 | F3: TYPE A | G3: TYPE B | H3: TYPE C | I3: TYPE A | J3: TYPE B | K3: TYPE C | L3: ROCK | M3: ROCK | N3: BOULDERS | O3: WASTE | P3: SHALE | Q3: IN TEMPLATE | T3: WALL
B4: VOLUME | C4: VOLUME | D4: VOLUME | E4: VOLUME | F4: VOLUME | G4: VOLUME | H4: VOLUME | I4: VOLUME | J4: VOLUME | K4: VOLUME | L4: VOLUME | M4: VOLUME | N4: VOLUME | O4: VOLUME | P4: VOLUME | Q4: VOLUME | T4: GRAN. FILL
B5: COLUMN 1 | C5: COLUMN 2 | D5: COLUMN 3 | E5: COLUMN 4 | F5: COLUMN 5 | G5: COLUMN 6 | H5: COLUMN 7 | I5: COLUMN 8 | J5: COLUMN 9 | K5: COLUMN 10 | L5: COLUMN 11 | M5: COLUMN 12 | N5: COLUMN 13 | O5: COLUMN 14 | P5: COLUMN 15 | Q5: COLUMN 16 | R5: COLUMN 17 | S5: COLUMN 18 | T5: COLUMN 19
A6: 926+50.00/1 | B6: 0 | C6: 0 | D6: 0 | E6: 0 | F6: 0 | G6: 0 | H6: 0 | I6: 0 | J6: 0 | K6: 0 | L6: 0 | M6: 0 | N6: 0 | O6: 0 | P6: 0 | Q6: 0 | T6: 0
A7: 926+75.00/1 | B7: 53 | C7: 0 | D7: 0 | E7: 0 | F7: 0 | G7: 0 | H7: 262 | I7: 0 | J7: 0 | K7: 0 | L7: 0 | M7: 0 | N7: 0 | O7: 0 | P7: 0 | Q7: 0 | T7: 0
A8: 927+00.00/1 | B8: 54 | C8: 0 | D8: 0 | E8: 0 | F8: 0 | G8: 0 | H8: 263 | I8: 0 | J8: 0 | K8: 0 | L8: 0 | M8: 0 | N8: 0 | O8: 0 | P8: 0 | Q8: 0 | T8: 0
A9: 927+25.00/1 | B9: 54 | C9: 0 | D9: 0 | E9: 0 | F9: 0 | G9: 0 | H9: 262 | I9: 0 | J9: 0 | K9: 0 | L9: 0 | M9: 0 | N9: 0 | O9: 0 | P9: 0 | Q9: 0 | T9: 0
A10: 927+50.00/1 | B10: 52 | C10: 0 | D10: 0 | E10: 0 | F10: 0 | G10: 0 | H10: 257 | I10: 0 | J10: 0 | K10: 0 | L10: 0 | M10: 0 | N10: 0 | O10: 0 | P10: 0 | Q10: 0 | T10: 0
A11: 927+75.00/1 | B11: 52 | C11: 0 | D11: 0 | E11: 0 | F11: 0 | G11: 0 | H11: 254 | I11: 0 | J11: 0 | K11: 0 | L11: 0 | M11: 0 | N11: 0 | O11: 0 | P11: 0 | Q11: 0 | T11: 0
A12: 928+00.00/1 | B12: 44 | C12: 0 | D12: 0 | E12: 0 | F12: 0 | G12: 0 | H12: 254 | I12: 0 | J12: 0 | K12: 0 | L12: 0 | M12: 0 | N12: 0 | O12: 0 | P12: 0 | Q12: 0 | T12: 16
A13: 928+25.00/1 | B13: 37 | C13: 0 | D13: 0 | E13: 0 | F13: 0 | G13: 0 | H13: 248 | I13: 0 | J13: 0 | K13: 0 | L13: 0 | M13: 0 | N13: 0 | O13: 0 | P13: 0 | Q13: 0 | T13: 76
A14: 928+50.00/1 | B14: 45 | C14: 0 | D14: 0 | E14: 0 | F14: 0 | G14: 0 | H14: 241 | I14: 0 | J14: 0 | K14: 0 | L14: 0 | M14: 0 | N14: 0 | O14: 0 | P14: 0 | Q14: 0 | T14: 146
A15: 928+75.00/1 | B15: 68 | C15: 0 | D15: 0 | E15: 0 | F15: 0 | G15: 0 | H15: 243 | I15: 0 | J15: 0 | K15: 0 | L15: 0 | M15: 0 | N15: 0 | O15: 0 | P15: 0 | Q15: 0 | T15: 172
A16: 929+00.00/1 | B16: 90 | C16: 0 | D16: 0 | E16: 0 | F16: 0 | G16: 0 | H16: 248 | I16: 0 | J16: 0 | K16: 0 | L16: 0 | M16: 0 | N16: 0 | O16: 0 | P16: 0 | Q16: 0 | T16: 170
A17: 929+25.00/1 | B17: 95 | C17: 0 | D17: 0 | E17: 0 | F17: 0 | G17: 0 | H17: 252 | I17: 0 | J17: 0 | K17: 0 | L17: 0 | M17: 0 | N17: 0 | O17: 0 | P17: 0 | Q17: 0 | T17: 165
A18: 929+50.00/1 | B18: 119 | C18: 0 | D18: 0 | E18: 0 | F18: 0 | G18: 0 | H18: 255 | I18: 0 | J18: 0 | K18: 0 | L18: 0 | M18: 0 | N18: 0 | O18: 0 | P18: 0 | Q18: 0 | T18: 160
A19: 929+75.00/1 | B19: 143 | C19: 0 | D19: 0 | E19: 0 | F19: 0 | G19: 0 | H19: 257 | I19: 0 | J19: 0 | K19: 0 | L19: 0 | M19: 0 | N19: 0 | O19: 0 | P19: 0 | Q19: 0 | T19: 164
A20: 930+00.00/1 | B20: 139 | C20: 0 | D20: 0 | E20: 0 | F20: 0 | G20: 0 | H20: 258 | I20: 0 | J20: 0 | K20: 0 | L20: 0 | M20: 0 | N20: 0 | O20: 0 | P20: 0 | Q20: 0 | T20: 176
A21: 930+25.00/1 | B21: 163 | C21: 0 | D21: 0 | E21: 0 | F21: 0 | G21: 0 | H21: 260 | I21: 0 | J21: 0 | K21: 0 | L21: 0 | M21: 0 | N21: 0 | O21: 0 | P21: 0 | Q21: 0 | T21: 191
A22: 930+50.00/1 | B22: 203 | C22: 0 | D22: 0 | E22: 0 | F22: 0 | G22: 0 | H22: 263 | I22: 0 | J22: 0 | K22: 0 | L22: 0 | M22: 0 | N22: 0 | O22: 0 | P22: 0 | Q22: 0 | T22: 207
A23: 930+75.00/1 | B23: 213 | C23: 0 | D23: 0 | E23: 0 | F23: 0 | G23: 0 | H23: 263 | I23: 0 | J23: 0 | K23: 0 | L23: 0 | M23: 0 | N23: 0 | O23: 0 | P23: 0 | Q23: 0 | T23: 225
A24: 931+00.00/1 | B24: 201 | C24: 0 | D24: 0 | E24: 0 | F24: 0 | G24: 0 | H24: 262 | I24: 0 | J24: 0 | K24: 0 | L24: 0 | M24: 0 | N24: 0 | O24: 0 | P24: 0 | Q24: 0 | T24: 243
A25: 931+25.00/1 | B25: 201 | C25: 0 | D25: 0 | E25: 0 | F25: 0 | G25: 0 | H25: 265 | I25: 0 | J25: 0 | K25: 0 | L25: 0 | M25: 0 | N25: 0 | O25: 0 | P25: 0 | Q25: 0 | T25: 261
A26: 931+50.00/1 | B26: 204 | C26: 0 | D26: 0 | E26: 0 | F26: 0 | G26: 0 | H26: 272 | I26: 0 | J26: 0 | K26: 0 | L26: 0 | M26: 0 | N26: 0 | O26: 0 | P26: 0 | Q26: 0 | T26: 281
A27: 931+75.00/1 | B27: 182 | C27: 0 | D27: 0 | E27: 0 | F27: 0 | G27: 0 | H27: 277 | I27: 0 | J27: 0 | K27: 0 | L27: 0 | M27: 0 | N27: 0 | O27: 0 | P27: 0 | Q27: 0 | T27: 304
A28: 932+00.00/1 | B28: 138 | C28: 0 | D28: 0 | E28: 0 | F28: 0 | G28: 0 | H28: 279 | I28: 0 | J28: 0 | K28: 0 | L28: 0 | M28: 0 | N28: 0 | O28: 0 | P28: 0 | Q28: 0 | T28: 328
A29: 932+25.00/1 | B29: 97 | C29: 0 | D29: 0 | E29: 0 | F29: 0 | G29: 0 | H29: 280 | I29: 0 | J29: 0 | K29: 0 | L29: 0 | M29: 0 | N29: 0 | O29: 0 | P29: 0 | Q29: 0 | T29: 355
A30: 932+50.00/1 | B30: 76 | C30: 0 | D30: 0 | E30: 0 | F30: 0 | G30: 0 | H30: 282 | I30: 0 | J30: 0 | K30: 0 | L30: 0 | M30: 0 | N30: 0 | O30: 0 | P30: 0 | Q30: 0 | T30: 390
A31: 932+75.00/1 | B31: 57 | C31: 0 | D31: 0 | E31: 0 | F31: 0 | G31: 0 | H31: 280 | I31: 0 | J31: 0 | K31: 0 | L31: 0 | M31: 0 | N31: 0 | O31: 0 | P31: 0 | Q31: 0 | T31: 438
A32: 933+00.00/1 | B32: 35 | C32: 0 | D32: 0 | E32: 0 | F32: 0 | G32: 0 | H32: 273 | I32: 0 | J32: 0 | K32: 0 | L32: 0 | M32: 0 | N32: 0 | O32: 0 | P32: 0 | Q32: 0 | T32: 492
A33: 933+25.00/1 | B33: 17 | C33: 0 | D33: 0 | E33: 0 | F33: 0 | G33: 0 | H33: 267 | I33: 0 | J33: 0 | K33: 0 | L33: 0 | M33: 0 | N33: 0 | O33: 0 | P33: 0 | Q33: 0 | T33: 548
A34: 933+50.00/1 | B34: 5 | C34: 0 | D34: 0 | E34: 0 | F34: 0 | G34: 0 | H34: 260 | I34: 0 | J34: 0 | K34: 0 | L34: 0 | M34: 0 | N34: 0 | O34: 0 | P34: 0 | Q34: 0 | T34: 609
A35: 933+75.00/1 | B35: 0 | C35: 0 | D35: 0 | E35: 0 | F35: 0 | G35: 0 | H35: 247 | I35: 0 | J35: 0 | K35: 0 | L35: 0 | M35: 0 | N35: 0 | O35: 0 | P35: 0 | Q35: 0 | T35: 728
A36: 934+00.00/1 | B36: 0 | C36: 0 | D36: 0 | E36: 0 | F36: 0 | G36: 0 | H36: 241 | I36: 0 | J36: 0 | K36: 0 | L36: 0 | M36: 0 | N36: 0 | O36: 0 | P36: 0 | Q36: 0 | T36: 845
A37: 934+25.00/1 | B37: 0 | C37: 0 | D37: 0 | E37: 0 | F37: 0 | G37: 0 | H37: 244 | I37: 0 | J37: 0 | K37: 0 | L37: 0 | M37: 0 | N37: 0 | O37: 0 | P37: 0 | Q37: 0 | T37: 886
A38: 934+41.91/1 | B38: 0 | C38: 0 | D38: 0 | E38: 0 | F38: 0 | G38: 0 | H38: 167 | I38: 0 | J38: 0 | K38: 0 | L38: 0 | M38: 0 | N38: 0 | O38: 0 | P38: 0 | Q38: 0 | T38: 611
A39: 934+50.00/1 | B39: 0 | C39: 0 | D39: 0 | E39: 0 | F39: 0 | G39: 0 | H39: 81 | I39: 0 | J39: 0 | K39: 0 | L39: 0 | M39: 0 | N39: 0 | O39: 0 | P39: 0 | Q39: 0 | T39: 294
A40: 934+70.71/1 | B40: 0 | C40: 0 | D40: 0 | E40: 0 | F40: 0 | G40: 0 | H40: 208 | I40: 0 | J40: 0 | K40: 0 | L40: 0 | M40: 0 | N40: 0 | O40: 0 | P40: 0 | Q40: 0 | T40: 754
A41: 934+75.00/1 | B41: 0 | C41: 0 | D41: 0 | E41: 0 | F41: 0 | G41: 0 | H41: 44 | I41: 0 | J41: 0 | K41: 0 | L41: 0 | M41: 0 | N41: 0 | O41: 0 | P41: 0 | Q41: 0 | T41: 157
A42: 935+00.00/1 | B42: 0 | C42: 0 | D42: 0 | E42: 0 | F42: 0 | G42: 0 | H42: 257 | I42: 0 | J42: 0 | K42: 0 | L42: 0 | M42: 0 | N42: 0 | O42: 0 | P42: 0 | Q42: 0 | T42: 914
A43: 935+25.00/1 | B43: 0 | C43: 0 | D43: 0 | E43: 0 | F43: 0 | G43: 0 | H43: 260 | I43: 0 | J43: 0 | K43: 0 | L43: 0 | M43: 0 | N43: 0 | O43: 0 | P43: 0 | Q43: 0 | T43: 916
A44: 935+37.91/1 | B44: 0 | C44: 0 | D44: 0 | E44: 0 | F44: 0 | G44: 0 | H44: 135 | I44: 0 | J44: 0 | K44: 0 | L44: 0 | M44: 0 | N44: 0 | O44: 0 | P44: 0 | Q44: 0 | T44: 473
A45: 935+50.00/1 | B45: 0 | C45: 0 | D45: 0 | E45: 0 | F45: 0 | G45: 0 | H45: 127 | I45: 0 | J45: 0 | K45: 0 | L45: 0 | M45: 0 | N45: 0 | O45: 0 | P45: 0 | Q45: 0 | T45: 443
A46: 935+75.00/1 | B46: 0 | C46: 0 | D46: 0 | E46: 0 | F46: 0 | G46: 0 | H46: 266 | I46: 0 | J46: 0 | K46: 0 | L46: 0 | M46: 0 | N46: 0 | O46: 0 | P46: 0 | Q46: 0 | T46: 910
A47: 936+00.00/1 | B47: 0 | C47: 0 | D47: 0 | E47: 0 | F47: 0 | G47: 0 | H47: 268 | I47: 0 | J47: 0 | K47: 0 | L47: 0 | M47: 0 | N47: 0 | O47: 0 | P47: 0 | Q47: 0 | T47: 900
A48: 936+14.55/1 | B48: 0 | C48: 0 | D48: 0 | E48: 0 | F48: 0 | G48: 0 | H48: 155 | I48: 0 | J48: 0 | K48: 0 | L48: 0 | M48: 0 | N48: 0 | O48: 0 | P48: 0 | Q48: 0 | T48: 522
A49: 936+25.00/1 | B49: 0 | C49: 0 | D49: 0 | E49: 0 | F49: 0 | G49: 0 | H49: 109 | I49: 0 | J49: 0 | K49: 0 | L49: 0 | M49: 0 | N49: 0 | O49: 0 | P49: 0 | Q49: 0 | T49: 376
A50: 936+33.91/1 | B50: 0 | C50: 0 | D50: 0 | E50: 0 | F50: 0 | G50: 0 | H50: 91 | I50: 0 | J50: 0 | K50: 0 | L50: 0 | M50: 0 | N50: 0 | O50: 0 | P50: 0 | Q50: 0 | T50: 321
A51: 936+34.55/1 | B51: 0 | C51: 0 | D51: 0 | E51: 0 | F51: 0 | G51: 0 | H51: 7 | I51: 0 | J51: 0 | K51: 0 | L51: 0 | M51: 0 | N51: 0 | O51: 0 | P51: 0 | Q51: 0 | T51: 23
A52: 936+50.00/1 | B52: 0 | C52: 0 | D52: 0 | E52: 0 | F52: 0 | G52: 0 | H52: 154 | I52: 0 | J52: 0 | K52: 0 | L52: 0 | M52: 0 | N52: 0 | O52: 0 | P52: 0 | Q52: 0 | T52: 556
A53: 936+75.00/1 | B53: 0 | C53: 0 | D53: 0 | E53: 0 | F53: 0 | G53: 0 | H53: 237 | I53: 0 | J53: 0 | K53: 0 | L53: 0 | M53: 0 | N53: 0 | O53: 0 | P53: 0 | Q53: 0 | T53: 889
A54: 936+83.22/1 | B54: 0 | C54: 0 | D54: 0 | E54: 0 | F54: 0 | G54: 0 | H54: 75 | I54: 0 | J54: 0 | K54: 0 | L54: 0 | M54: 0 | N54: 0 | O54: 0 | P54: 0 | Q54: 0 | T54: 289
A55: 937+00.00/1 | B55: 0 | C55: 0 | D55: 0 | E55: 0 | F55: 0 | G55: 0 | H55: 147 | I55: 0 | J55: 0 | K55: 0 | L55: 0 | M55: 0 | N55: 0 | O55: 0 | P55: 0 | Q55: 0 | T55: 581
A56: 937+01.45/1 | B56: 0 | C56: 0 | D56: 0 | E56: 0 | F56: 0 | G56: 0 | H56: 12 | I56: 0 | J56: 0 | K56: 0 | L56: 0 | M56: 0 | N56: 0 | O56: 0 | P56: 0 | Q56: 0 | T56: 50
A57: 937+12.00/1 | B57: 0 | C57: 0 | D57: 0 | E57: 0 | F57: 0 | G57: 0 | H57: 88 | I57: 0 | J57: 0 | K57: 0 | L57: 0 | M57: 0 | N57: 0 | O57: 0 | P57: 0 | Q57: 0 | T57: 361
A58: 937+25.00/1 | B58: 1 | C58: 0 | D58: 0 | E58: 0 | F58: 0 | G58: 0 | H58: 105 | I58: 0 | J58: 0 | K58: 0 | L58: 0 | M58: 0 | N58: 0 | O58: 0 | P58: 0 | Q58: 0 | T58: 441
A59: 937+25.52/1 | B59: 0 | C59: 0 | D59: 0 | E59: 0 | F59: 0 | G59: 0 | H59: 4 | I59: 0 | J59: 0 | K59: 0 | L59: 0 | M59: 0 | N59: 0 | O59: 0 | P59: 0 | Q59: 0 | T59: 18
A60: 937+41.45/1 | B60: 3 | C60: 0 | D60: 0 | E60: 0 | F60: 0 | G60: 0 | H60: 123 | I60: 0 | J60: 0 | K60: 0 | L60: 0 | M60: 0 | N60: 0 | O60: 0 | P60: 0 | Q60: 0 | T60: 534
A61: 937+46.00/1 | B61: 1 | C61: 0 | D61: 0 | E61: 0 | F61: 0 | G61: 0 | H61: 34 | I61: 0 | J61: 0 | K61: 0 | L61: 0 | M61: 0 | N61: 0 | O61: 0 | P61: 0 | Q61: 0 | T61: 151
A62: 937+50.00/1 | B62: 2 | C62: 0 | D62: 0 | E62: 0 | F62: 0 | G62: 0 | H62: 29 | I62: 0 | J62: 0 | K62: 0 | L62: 0 | M62: 0 | N62: 0 | O62: 0 | P62: 0 | Q62: 0 | T62: 132
A63: 937+71.79/1 | B63: 15 | C63: 0 | D63: 0 | E63: 0 | F63: 0 | G63: 0 | H63: 150 | I63: 0 | J63: 0 | K63: 0 | L63: 0 | M63: 0 | N63: 0 | O63: 0 | P63: 0 | Q63: 0 | T63: 708
A64: 937+75.00/1 | B64: 3 | C64: 0 | D64: 0 | E64: 0 | F64: 0 | G64: 0 | H64: 21 | I64: 0 | J64: 0 | K64: 0 | L64: 0 | M64: 0 | N64: 0 | O64: 0 | P64: 0 | Q64: 0 | T64: 103
A65: 937+99.31/1 | B65: 30 | C65: 0 | D65: 0 | E65: 0 | F65: 0 | G65: 0 | H65: 146 | I65: 0 | J65: 0 | K65: 0 | L65: 0 | M65: 0 | N65: 0 | O65: 0 | P65: 0 | Q65: 0 | T65: 770
A66: 938+00.00/1 | B66: 1 | C66: 0 | D66: 0 | E66: 0 | F66: 0 | G66: 0 | H66: 4 | I66: 0 | J66: 0 | K66: 0 | L66: 0 | M66: 0 | N66: 0 | O66: 0 | P66: 0 | Q66: 0 | T66: 22
A67: 938+00.21/1 | B67: 0 | C67: 0 | D67: 0 | E67: 0 | F67: 0 | G67: 0 | H67: 1 | I67: 0 | J67: 0 | K67: 0 | L67: 0 | M67: 0 | N67: 0 | O67: 0 | P67: 0 | Q67: 0 | T67: 7
A68: 938+10.00/1 | B68: 16 | C68: 0 | D68: 0 | E68: 0 | F68: 0 | G68: 0 | H68: 54 | I68: 0 | J68: 0 | K68: 0 | L68: 0 | M68: 0 | N68: 0 | O68: 0 | P68: 0 | Q68: 0 | T68: 304
A69: 938+25.00/1 | B69: 28 | C69: 0 | D69: 0 | E69: 0 | F69: 0 | G69: 0 | H69: 78 | I69: 0 | J69: 0 | K69: 0 | L69: 0 | M69: 0 | N69: 0 | O69: 0 | P69: 0 | Q69: 0 | T69: 455
A70: 938+42.00/1 | B70: 31 | C70: 0 | D70: 0 | E70: 0 | F70: 0 | G70: 0 | H70: 79 | I70: 0 | J70: 0 | K70: 0 | L70: 0 | M70: 0 | N70: 0 | O70: 0 | P70: 0 | Q70: 0 | T70: 469
A71: 938+50.00/1 | B71: 13 | C71: 0 | D71: 0 | E71: 0 | F71: 0 | G71: 0 | H71: 33 | I71: 0 | J71: 0 | K71: 0 | L71: 0 | M71: 0 | N71: 0 | O71: 0 | P71: 0 | Q71: 0 | T71: 190
A72: 938+50.69/1 | B72: 1 | C72: 0 | D72: 0 | E72: 0 | F72: 0 | G72: 0 | H72: 3 | I72: 0 | J72: 0 | K72: 0 | L72: 0 | M72: 0 | N72: 0 | O72: 0 | P72: 0 | Q72: 0 | T72: 15
A73: 938+61.78/1 | B73: 10 | C73: 0 | D73: 0 | E73: 0 | F73: 0 | G73: 0 | H73: 42 | I73: 0 | J73: 0 | K73: 0 | L73: 0 | M73: 0 | N73: 0 | O73: 0 | P73: 0 | Q73: 0 | T73: 196
A74: 938+75.00/1 | B74: 10 | C74: 0 | D74: 0 | E74: 0 | F74: 0 | G74: 0 | H74: 63 | I74: 0 | J74: 0 | K74: 0 | L74: 0 | M74: 0 | N74: 0 | O74: 0 | P74: 0 | Q74: 0 | T74: 144
A75: 938+94.27/1 | B75: 42 | C75: 0 | D75: 0 | E75: 0 | F75: 0 | G75: 0 | H75: 123 | I75: 0 | J75: 0 | K75: 0 | L75: 0 | M75: 0 | N75: 0 | O75: 0 | P75: 0 | Q75: 0 | T75: 103
A76: 939+00.00/1 | B76: 21 | C76: 0 | D76: 0 | E76: 0 | F76: 0 | G76: 0 | H76: 41 | I76: 0 | J76: 0 | K76: 0 | L76: 0 | M76: 0 | N76: 0 | O76: 0 | P76: 0 | Q76: 0 | T76: 9
A77: 939+25.00/1 | B77: 131 | C77: 0 | D77: 0 | E77: 0 | F77: 0 | G77: 0 | H77: 189 | I77: 0 | J77: 0 | K77: 0 | L77: 0 | M77: 0 | N77: 0 | O77: 0 | P77: 0 | Q77: 0 | T77: 12
A78: 939+31.81/1 | B78: 35 | C78: 0 | D78: 0 | E78: 0 | F78: 0 | G78: 0 | H78: 44 | I78: 0 | J78: 0 | K78: 0 | L78: 0 | M78: 0 | N78: 0 | O78: 0 | P78: 0 | Q78: 0 | T78: 0
A79: 939+50.00/1 | B79: 85 | C79: 0 | D79: 0 | E79: 0 | F79: 0 | G79: 0 | H79: 107 | I79: 0 | J79: 0 | K79: 0 | L79: 0 | M79: 0 | N79: 0 | O79: 0 | P79: 0 | Q79: 0 | T79: 0
A80: 939+51.73/1 | B80: 10 | C80: 0 | D80: 0 | E80: 0 | F80: 0 | G80: 0 | H80: 11 | I80: 0 | J80: 0 | K80: 0 | L80: 0 | M80: 0 | N80: 0 | O80: 0 | P80: 0 | Q80: 0 | T80: 0
A81: 939+60.00/1 | B81: 60 | C81: 0 | D81: 0 | E81: 0 | F81: 0 | G81: 0 | H81: 53 | I81: 0 | J81: 0 | K81: 0 | L81: 0 | M81: 0 | N81: 0 | O81: 0 | P81: 0 | Q81: 0 | T81: 0
A82: 939+63.10/1 | B82: 30 | C82: 0 | D82: 0 | E82: 0 | F82: 0 | G82: 0 | H82: 21 | I82: 0 | J82: 0 | K82: 0 | L82: 0 | M82: 0 | N82: 0 | O82: 0 | P82: 0 | Q82: 0 | T82: 0
A83: 939+63.12/1 | B83: 0 | C83: 0 | D83: 0 | E83: 0 | F83: 0 | G83: 0 | H83: 0 | I83: 0 | J83: 0 | K83: 0 | L83: 0 | M83: 0 | N83: 0 | O83: 0 | P83: 0 | Q83: 0 | T83: 0
A84: 939+75.00/1 | B84: 165 | C84: 0 | D84: 0 | E84: 0 | F84: 0 | G84: 0 | H84: 83 | I84: 0 | J84: 0 | K84: 0 | L84: 0 | M84: 0 | N84: 0 | O84: 0 | P84: 0 | Q84: 0 | T84: 0
A85: 939+91.74/1 | B85: 289 | C85: 0 | D85: 0 | E85: 0 | F85: 0 | G85: 0 | H85: 125 | I85: 0 | J85: 0 | K85: 0 | L85: 0 | M85: 0 | N85: 0 | O85: 0 | P85: 0 | Q85: 0 | T85: 0
A86: 939+92.00/1 | B86: 4 | C86: 0 | D86: 0 | E86: 0 | F86: 0 | G86: 0 | H86: 2 | I86: 0 | J86: 0 | K86: 0 | L86: 0 | M86: 0 | N86: 0 | O86: 0 | P86: 0 | Q86: 0 | T86: 0
A87: 940+00.00/1 | B87: 134 | C87: 0 | D87: 0 | E87: 0 | F87: 0 | G87: 0 | H87: 63 | I87: 0 | J87: 0 | K87: 0 | L87: 0 | M87: 0 | N87: 0 | O87: 0 | P87: 0 | Q87: 0 | T87: 0
A88: 940+03.12/1 | B88: 49 | C88: 0 | D88: 0 | E88: 0 | F88: 0 | G88: 0 | H88: 25 | I88: 0 | J88: 0 | K88: 0 | L88: 0 | M88: 0 | N88: 0 | O88: 0 | P88: 0 | Q88: 0 | T88: 0
A89: 940+25.00/1 | B89: 174 | C89: 0 | D89: 0 | E89: 0 | F89: 0 | G89: 0 | H89: 183 | I89: 0 | J89: 0 | K89: 0 | L89: 0 | M89: 0 | N89: 0 | O89: 0 | P89: 0 | Q89: 0 | T89: 0
A90: 940+50.00/1 | B90: 4 | C90: 0 | D90: 0 | E90: 0 | F90: 0 | G90: 0 | H90: 227 | I90: 0 | J90: 0 | K90: 0 | L90: 0 | M90: 0 | N90: 0 | O90: 0 | P90: 0 | Q90: 0 | T90: 0
A91: 940+56.00/1 | B91: 0 | C91: 0 | D91: 0 | E91: 0 | F91: 0 | G91: 0 | H91: 58 | I91: 0 | J91: 0 | K91: 0 | L91: 0 | M91: 0 | N91: 0 | O91: 0 | P91: 0 | Q91: 0 | T91: 0
A92: 940+60.00/1 | B92: 0 | C92: 0 | D92: 0 | E92: 0 | F92: 0 | G92: 0 | H92: 40 | I92: 0 | J92: 0 | K92: 0 | L92: 0 | M92: 0 | N92: 0 | O92: 0 | P92: 0 | Q92: 0 | T92: 0
A93: 940+60.98/1 | B93: 0 | C93: 0 | D93: 0 | E93: 0 | F93: 0 | G93: 0 | H93: 10 | I93: 0 | J93: 0 | K93: 0 | L93: 0 | M93: 0 | N93: 0 | O93: 0 | P93: 0 | Q93: 0 | T93: 0
A94: 940+75.00/1 | B94: 0 | C94: 0 | D94: 0 | E94: 0 | F94: 0 | G94: 0 | H94: 145 | I94: 0 | J94: 0 | K94: 0 | L94: 0 | M94: 0 | N94: 0 | O94: 0 | P94: 0 | Q94: 0 | T94: 0
A95: 940+89.60/1 | B95: 0 | C95: 0 | D95: 0 | E95: 0 | F95: 0 | G95: 0 | H95: 157 | I95: 0 | J95: 0 | K95: 0 | L95: 0 | M95: 0 | N95: 0 | O95: 0 | P95: 0 | Q95: 0 | T95: 0
A96: 940+90.00/1 | B96: 0 | C96: 0 | D96: 0 | E96: 0 | F96: 0 | G96: 0 | H96: 4 | I96: 0 | J96: 0 | K96: 0 | L96: 0 | M96: 0 | N96: 0 | O96: 0 | P96: 0 | Q96: 0 | T96: 0
A97: 941+00.00/1 | B97: 0 | C97: 0 | D97: 0 | E97: 0 | F97: 0 | G97: 0 | H97: 109 | I97: 0 | J97: 0 | K97: 0 | L97: 0 | M97: 0 | N97: 0 | O97: 0 | P97: 0 | Q97: 0 | T97: 0
A98: 941+00.98/1 | B98: 0 | C98: 0 | D98: 0 | E98: 0 | F98: 0 | G98: 0 | H98: 11 | I98: 0 | J98: 0 | K98: 0 | L98: 0 | M98: 0 | N98: 0 | O98: 0 | P98: 0 | Q98: 0 | T98: 0
A99: 941+25.00/1 | B99: 0 | C99: 0 | D99: 0 | E99: 0 | F99: 0 | G99: 0 | H99: 265 | I99: 0 | J99: 0 | K99: 0 | L99: 0 | M99: 0 | N99: 0 | O99: 0 | P99: 0 | Q99: 0 | T99: 0
A100: 941+50.00/1 | B100: 0 | C100: 0 | D100: 0 | E100: 0 | F100: 0 | G100: 0 | H100: 281 | I100: 0 | J100: 0 | K100: 0 | L100: 0 | M100: 0 | N100: 0 | O100: 0 | P100: 0 | Q100: 0 | T100: 0
A101: 941+75.00/1 | B101: 0 | C101: 0 | D101: 0 | E101: 0 | F101: 0 | G101: 0 | H101: 281 | I101: 0 | J101: 0 | K101: 0 | L101: 0 | M101: 0 | N101: 0 | O101: 0 | P101: 0 | Q101: 0 | T101: 0
A102: 942+00.00/1 | B102: 0 | C102: 0 | D102: 0 | E102: 0 | F102: 0 | G102: 0 | H102: 275 | I102: 0 | J102: 0 | K102: 0 | L102: 0 | M102: 0 | N102: 0 | O102: 0 | P102: 0 | Q102: 0 | T102: 0
A103: 942+25.00/1 | B103: 0 | C103: 0 | D103: 0 | E103: 0 | F103: 0 | G103: 0 | H103: 267 | I103: 0 | J103: 0 | K103: 0 | L103: 0 | M103: 0 | N103: 0 | O103: 0 | P103: 0 | Q103: 0 | T103: 0
A104: 942+50.00/1 | B104: 0 | C104: 0 | D104: 0 | E104: 0 | F104: 0 | G104: 0 | H104: 262 | I104: 0 | J104: 0 | K104: 0 | L104: 0 | M104: 0 | N104: 0 | O104: 0 | P104: 0 | Q104: 0 | T104: 0
A105: 942+70.00/1 | B105: 0 | C105: 0 | D105: 0 | E105: 0 | F105: 0 | G105: 0 | H105: 207 | I105: 0 | J105: 0 | K105: 0 | L105: 0 | M105: 0 | N105: 0 | O105: 0 | P105: 0 | Q105: 0 | T105: 0
A106: 942+75.00/1 | B106: 0 | C106: 0 | D106: 0 | E106: 0 | F106: 0 | G106: 0 | H106: 52 | I106: 0 | J106: 0 | K106: 0 | L106: 0 | M106: 0 | N106: 0 | O106: 0 | P106: 0 | Q106: 0 | T106: 0
A107: 943+00.00/1 | B107: 0 | C107: 0 | D107: 0 | E107: 0 | F107: 0 | G107: 0 | H107: 256 | I107: 0 | J107: 0 | K107: 0 | L107: 0 | M107: 0 | N107: 0 | O107: 0 | P107: 0 | Q107: 0 | T107: 0
A108: 943+25.00/1 | B108: 0 | C108: 0 | D108: 0 | E108: 0 | F108: 0 | G108: 0 | H108: 248 | I108: 0 | J108: 0 | K108: 0 | L108: 0 | M108: 0 | N108: 0 | O108: 0 | P108: 0 | Q108: 0 | T108: 0
A109: 943+50.00/1 | B109: 0 | C109: 0 | D109: 0 | E109: 0 | F109: 0 | G109: 0 | H109: 242 | I109: 0 | J109: 0 | K109: 0 | L109: 0 | M109: 0 | N109: 0 | O109: 0 | P109: 0 | Q109: 0 | T109: 0
A110: 943+75.00/1 | B110: 10 | C110: 0 | D110: 0 | E110: 0 | F110: 0 | G110: 0 | H110: 248 | I110: 0 | J110: 0 | K110: 0 | L110: 0 | M110: 0 | N110: 0 | O110: 0 | P110: 0 | Q110: 0 | T110: 0
A111: 944+00.00/1 | B111: 33 | C111: 0 | D111: 0 | E111: 0 | F111: 0 | G111: 0 | H111: 255 | I111: 0 | J111: 0 | K111: 0 | L111: 0 | M111: 0 | N111: 0 | O111: 0 | P111: 0 | Q111: 0 | T111: 0
A112: 944+20.00/1 | B112: 43 | C112: 0 | D112: 0 | E112: 0 | F112: 0 | G112: 0 | H112: 205 | I112: 0 | J112: 0 | K112: 0 | L112: 0 | M112: 0 | N112: 0 | O112: 0 | P112: 0 | Q112: 0 | T112: 0
A113: 944+25.00/1 | B113: 12 | C113: 0 | D113: 0 | E113: 0 | F113: 0 | G113: 0 | H113: 52 | I113: 0 | J113: 0 | K113: 0 | L113: 0 | M113: 0 | N113: 0 | O113: 0 | P113: 0 | Q113: 0 | T113: 0
A114: 944+50.00/1 | B114: 54 | C114: 0 | D114: 0 | E114: 0 | F114: 0 | G114: 0 | H114: 256 | I114: 0 | J114: 0 | K114: 0 | L114: 0 | M114: 0 | N114: 0 | O114: 0 | P114: 0 | Q114: 0 | T114: 0
A115: 944+75.00/1 | B115: 45 | C115: 0 | D115: 0 | E115: 0 | F115: 0 | G115: 0 | H115: 254 | I115: 0 | J115: 0 | K115: 0 | L115: 0 | M115: 0 | N115: 0 | O115: 0 | P115: 0 | Q115: 0 | T115: 0
A116: 945+00.00/1 | B116: 34 | C116: 0 | D116: 0 | E116: 0 | F116: 0 | G116: 0 | H116: 253 | I116: 0 | J116: 0 | K116: 0 | L116: 0 | M116: 0 | N116: 0 | O116: 0 | P116: 0 | Q116: 0 | T116: 0
A117: 945+25.00/1 | B117: 25 | C117: 0 | D117: 0 | E117: 0 | F117: 0 | G117: 0 | H117: 253 | I117: 0 | J117: 0 | K117: 0 | L117: 0 | M117: 0 | N117: 0 | O117: 0 | P117: 0 | Q117: 0 | T117: 0
A118: 945+28.52/1 | B118: 3 | C118: 0 | D118: 0 | E118: 0 | F118: 0 | G118: 0 | H118: 36 | I118: 0 | J118: 0 | K118: 0 | L118: 0 | M118: 0 | N118: 0 | O118: 0 | P118: 0 | Q118: 0 | T118: 0
A119: 945+50.00/1 | B119: 19 | C119: 0 | D119: 0 | E119: 0 | F119: 0 | G119: 0 | H119: 217 | I119: 0 | J119: 0 | K119: 0 | L119: 0 | M119: 0 | N119: 0 | O119: 0 | P119: 0 | Q119: 0 | T119: 0
A120: 945+75.00/1 | B120: 19 | C120: 0 | D120: 0 | E120: 0 | F120: 0 | G120: 0 | H120: 252 | I120: 0 | J120: 0 | K120: 0 | L120: 0 | M120: 0 | N120: 0 | O120: 0 | P120: 0 | Q120: 0 | T120: 0
A121: 946+00.00/1 | B121: 16 | C121: 0 | D121: 0 | E121: 0 | F121: 0 | G121: 0 | H121: 251 | I121: 0 | J121: 0 | K121: 0 | L121: 0 | M121: 0 | N121: 0 | O121: 0 | P121: 0 | Q121: 0 | T121: 0
A122: 946+25.00/1 | B122: 12 | C122: 0 | D122: 0 | E122: 0 | F122: 0 | G122: 0 | H122: 250 | I122: 0 | J122: 0 | K122: 0 | L122: 0 | M122: 0 | N122: 0 | O122: 0 | P122: 0 | Q122: 0 | T122: 0
A123: 946+50.00/1 | B123: 8 | C123: 0 | D123: 0 | E123: 0 | F123: 0 | G123: 0 | H123: 248 | I123: 0 | J123: 0 | K123: 0 | L123: 0 | M123: 0 | N123: 0 | O123: 0 | P123: 0 | Q123: 0 | T123: 0
A124: 946+75.00/1 | B124: 5 | C124: 0 | D124: 0 | E124: 0 | F124: 0 | G124: 0 | H124: 247 | I124: 0 | J124: 0 | K124: 0 | L124: 0 | M124: 0 | N124: 0 | O124: 0 | P124: 0 | Q124: 0 | T124: 0
A125: 947+00.00/1 | B125: 3 | C125: 0 | D125: 0 | E125: 0 | F125: 0 | G125: 0 | H125: 245 | I125: 0 | J125: 0 | K125: 0 | L125: 0 | M125: 0 | N125: 0 | O125: 0 | P125: 0 | Q125: 0 | T125: 0
A126: 947+25.00/1 | B126: 2 | C126: 0 | D126: 0 | E126: 0 | F126: 0 | G126: 0 | H126: 245 | I126: 0 | J126: 0 | K126: 0 | L126: 0 | M126: 0 | N126: 0 | O126: 0 | P126: 0 | Q126: 0 | T126: 0
A127: 947+50.00/1 | B127: 3 | C127: 0 | D127: 0 | E127: 0 | F127: 0 | G127: 0 | H127: 245 | I127: 0 | J127: 0 | K127: 0 | L127: 0 | M127: 0 | N127: 0 | O127: 0 | P127: 0 | Q127: 0 | T127: 0
A128: 947+75.00/1 | B128: 2 | C128: 0 | D128: 0 | E128: 0 | F128: 0 | G128: 0 | H128: 243 | I128: 0 | J128: 0 | K128: 0 | L128: 0 | M128: 0 | N128: 0 | O128: 0 | P128: 0 | Q128: 0 | T128: 0
A129: 948+00.00/1 | B129: 0 | C129: 0 | D129: 0 | E129: 0 | F129: 0 | G129: 0 | H129: 238 | I129: 0 | J129: 0 | K129: 0 | L129: 0 | M129: 0 | N129: 0 | O129: 0 | P129: 0 | Q129: 0 | T129: 0
A130: 948+25.00/1 | B130: 1 | C130: 0 | D130: 0 | E130: 0 | F130: 0 | G130: 0 | H130: 232 | I130: 0 | J130: 0 | K130: 0 | L130: 0 | M130: 0 | N130: 0 | O130: 0 | P130: 0 | Q130: 0 | T130: 0
A131: 948+50.00/1 | B131: 67 | C131: 0 | D131: 0 | E131: 0 | F131: 0 | G131: 0 | H131: 228 | I131: 0 | J131: 0 | K131: 0 | L131: 0 | M131: 0 | N131: 0 | O131: 0 | P131: 0 | Q131: 0 | T131: 0
A132: 948+75.00/1 | B132: 289 | C132: 0 | D132: 0 | E132: 0 | F132: 0 | G132: 0 | H132: 219 | I132: 0 | J132: 0 | K132: 0 | L132: 0 | M132: 0 | N132: 0 | O132: 0 | P132: 0 | Q132: 0 | T132: 0
A133: 949+00.00/1 | B133: 632 | C133: 0 | D133: 0 | E133: 0 | F133: 0 | G133: 0 | H133: 216 | I133: 0 | J133: 0 | K133: 0 | L133: 0 | M133: 0 | N133: 0 | O133: 0 | P133: 0 | Q133: 0 | T133: 0
A134: 949+25.00/1 | B134: 959 | C134: 0 | D134: 0 | E134: 0 | F134: 0 | G134: 0 | H134: 216 | I134: 0 | J134: 0 | K134: 0 | L134: 0 | M134: 0 | N134: 0 | O134: 0 | P134: 0 | Q134: 0 | T134: 0
A135: 949+50.00/1 | B135: 1278 | C135: 0 | D135: 0 | E135: 0 | F135: 0 | G135: 0 | H135: 210 | I135: 0 | J135: 0 | K135: 0 | L135: 0 | M135: 0 | N135: 0 | O135: 0 | P135: 0 | Q135: 0 | T135: 0
A136: 949+75.00/1 | B136: 1613 | C136: 0 | D136: 0 | E136: 0 | F136: 0 | G136: 0 | H136: 204 | I136: 0 | J136: 0 | K136: 0 | L136: 0 | M136: 0 | N136: 0 | O136: 0 | P136: 0 | Q136: 0 | T136: 0
A137: 950+00.00/1 | B137: 1832 | C137: 0 | D137: 0 | E137: 0 | F137: 0 | G137: 0 | H137: 194 | I137: 0 | J137: 0 | K137: 0 | L137: 0 | M137: 0 | N137: 0 | O137: 0 | P137: 0 | Q137: 0 | T137: 0
A138: 950+25.00/1 | B138: 1852 | C138: 0 | D138: 0 | E138: 0 | F138: 0 | G138: 0 | H138: 182 | I138: 0 | J138: 0 | K138: 0 | L138: 0 | M138: 0 | N138: 0 | O138: 0 | P138: 0 | Q138: 0 | T138: 0
A139: 950+50.00/1 | B139: 1675 | C139: 0 | D139: 0 | E139: 0 | F139: 0 | G139: 0 | H139: 176 | I139: 0 | J139: 0 | K139: 0 | L139: 0 | M139: 0 | N139: 0 | O139: 0 | P139: 0 | Q139: 0 | T139: 0
A140: 950+75.00/1 | B140: 1358 | C140: 0 | D140: 0 | E140: 0 | F140: 0 | G140: 0 | H140: 175 | I140: 0 | J140: 0 | K140: 0 | L140: 0 | M140: 0 | N140: 0 | O140: 0 | P140: 0 | Q140: 0 | T140: 0
A141: 951+00.00/1 | B141: 974 | C141: 0 | D141: 0 | E141: 0 | F141: 0 | G141: 0 | H141: 181 | I141: 0 | J141: 0 | K141: 0 | L141: 0 | M141: 0 | N141: 0 | O141: 0 | P141: 0 | Q141: 0 | T141: 0
A142: 951+25.00/1 | B142: 563 | C142: 0 | D142: 0 | E142: 0 | F142: 0 | G142: 0 | H142: 192 | I142: 0 | J142: 0 | K142: 0 | L142: 0 | M142: 0 | N142: 0 | O142: 0 | P142: 0 | Q142: 0 | T142: 0
A143: 951+50.00/1 | B143: 193 | C143: 0 | D143: 0 | E143: 0 | F143: 0 | G143: 0 | H143: 202 | I143: 0 | J143: 0 | K143: 0 | L143: 0 | M143: 0 | N143: 0 | O143: 0 | P143: 0 | Q143: 0 | T143: 0
A144: 951+75.00/1 | B144: 16 | C144: 0 | D144: 0 | E144: 0 | F144: 0 | G144: 0 | H144: 195 | I144: 0 | J144: 0 | K144: 0 | L144: 0 | M144: 0 | N144: 0 | O144: 0 | P144: 0 | Q144: 0 | T144: 0
A145: 952+00.00/1 | B145: 17 | C145: 0 | D145: 0 | E145: 0 | F145: 0 | G145: 0 | H145: 202 | I145: 0 | J145: 0 | K145: 0 | L145: 0 | M145: 0 | N145: 0 | O145: 0 | P145: 0 | Q145: 0 | T145: 0
A146: 952+25.00/1 | B146: 22 | C146: 0 | D146: 0 | E146: 0 | F146: 0 | G146: 0 | H146: 217 | I146: 0 | J146: 0 | K146: 0 | L146: 0 | M146: 0 | N146: 0 | O146: 0 | P146: 0 | Q146: 0 | T146: 0
A147: 952+50.00/1 | B147: 8 | C147: 0 | D147: 0 | E147: 0 | F147: 0 | G147: 0 | H147: 215 | I147: 0 | J147: 0 | K147: 0 | L147: 0 | M147: 0 | N147: 0 | O147: 0 | P147: 0 | Q147: 0 | T147: 0
A148: 952+75.00/1 | B148: 4 | C148: 0 | D148: 0 | E148: 0 | F148: 0 | G148: 0 | H148: 217 | I148: 0 | J148: 0 | K148: 0 | L148: 0 | M148: 0 | N148: 0 | O148: 0 | P148: 0 | Q148: 0 | T148: 0
A149: 953+00.00/1 | B149: 2 | C149: 0 | D149: 0 | E149: 0 | F149: 0 | G149: 0 | H149: 220 | I149: 0 | J149: 0 | K149: 0 | L149: 0 | M149: 0 | N149: 0 | O149: 0 | P149: 0 | Q149: 0 | T149: 0
A150: 953+25.00/1 | B150: 3 | C150: 0 | D150: 0 | E150: 0 | F150: 0 | G150: 0 | H150: 224 | I150: 0 | J150: 0 | K150: 0 | L150: 0 | M150: 0 | N150: 0 | O150: 0 | P150: 0 | Q150: 0 | T150: 0
A151: 953+50.00/1 | B151: 5 | C151: 0 | D151: 0 | E151: 0 | F151: 0 | G151: 0 | H151: 227 | I151: 0 | J151: 0 | K151: 0 | L151: 0 | M151: 0 | N151: 0 | O151: 0 | P151: 0 | Q151: 0 | T151: 0
A152: 953+75.00/1 | B152: 7 | C152: 0 | D152: 0 | E152: 0 | F152: 0 | G152: 0 | H152: 230 | I152: 0 | J152: 0 | K152: 0 | L152: 0 | M152: 0 | N152: 0 | O152: 0 | P152: 0 | Q152: 0 | T152: 0
A153: 954+00.00/1 | B153: 7 | C153: 0 | D153: 0 | E153: 0 | F153: 0 | G153: 0 | H153: 230 | I153: 0 | J153: 0 | K153: 0 | L153: 0 | M153: 0 | N153: 0 | O153: 0 | P153: 0 | Q153: 0 | T153: 0
A154: 954+20.00/1 | B154: 6 | C154: 0 | D154: 0 | E154: 0 | F154: 0 | G154: 0 | H154: 183 | I154: 0 | J154: 0 | K154: 0 | L154: 0 | M154: 0 | N154: 0 | O154: 0 | P154: 0 | Q154: 0 | T154: 0
A155: 954+25.00/1 | B155: 1 | C155: 0 | D155: 0 | E155: 0 | F155: 0 | G155: 0 | H155: 45 | I155: 0 | J155: 0 | K155: 0 | L155: 0 | M155: 0 | N155: 0 | O155: 0 | P155: 0 | Q155: 0 | T155: 0
A156: 954+50.00/1 | B156: 16 | C156: 0 | D156: 0 | E156: 0 | F156: 0 | G156: 0 | H156: 234 | I156: 0 | J156: 0 | K156: 0 | L156: 0 | M156: 0 | N156: 0 | O156: 0 | P156: 0 | Q156: 0 | T156: 0
A157: 954+75.00/1 | B157: 30 | C157: 0 | D157: 0 | E157: 0 | F157: 0 | G157: 0 | H157: 245 | I157: 0 | J157: 0 | K157: 0 | L157: 0 | M157: 0 | N157: 0 | O157: 0 | P157: 0 | Q157: 0 | T157: 0
A158: 955+00.00/1 | B158: 34 | C158: 0 | D158: 0 | E158: 0 | F158: 0 | G158: 0 | H158: 248 | I158: 0 | J158: 0 | K158: 0 | L158: 0 | M158: 0 | N158: 0 | O158: 0 | P158: 0 | Q158: 0 | T158: 0
A159: 955+25.00/1 | B159: 35 | C159: 0 | D159: 0 | E159: 0 | F159: 0 | G159: 0 | H159: 247 | I159: 0 | J159: 0 | K159: 0 | L159: 0 | M159: 0 | N159: 0 | O159: 0 | P159: 0 | Q159: 0 | T159: 0
A160: 955+50.00/1 | B160: 35 | C160: 0 | D160: 0 | E160: 0 | F160: 0 | G160: 0 | H160: 246 | I160: 0 | J160: 0 | K160: 0 | L160: 0 | M160: 0 | N160: 0 | O160: 0 | P160: 0 | Q160: 0 | T160: 0
A161: 955+75.00/1 | B161: 34 | C161: 0 | D161: 0 | E161: 0 | F161: 0 | G161: 0 | H161: 245 | I161: 0 | J161: 0 | K161: 0 | L161: 0 | M161: 0 | N161: 0 | O161: 0 | P161: 0 | Q161: 0 | T161: 0
A162: 956+00.00/1 | B162: 32 | C162: 0 | D162: 0 | E162: 0 | F162: 0 | G162: 0 | H162: 244 | I162: 0 | J162: 0 | K162: 0 | L162: 0 | M162: 0 | N162: 0 | O162: 0 | P162: 0 | Q162: 0 | T162: 0
A163: 956+25.00/1 | B163: 31 | C163: 0 | D163: 0 | E163: 0 | F163: 0 | G163: 0 | H163: 243 | I163: 0 | J163: 0 | K163: 0 | L163: 0 | M163: 0 | N163: 0 | O163: 0 | P163: 0 | Q163: 0 | T163: 0
A164: 956+50.00/1 | B164: 27 | C164: 0 | D164: 0 | E164: 0 | F164: 0 | G164: 0 | H164: 240 | I164: 0 | J164: 0 | K164: 0 | L164: 0 | M164: 0 | N164: 0 | O164: 0 | P164: 0 | Q164: 0 | T164: 0
A165: 956+75.00/1 | B165: 18 | C165: 0 | D165: 0 | E165: 0 | F165: 0 | G165: 0 | H165: 231 | I165: 0 | J165: 0 | K165: 0 | L165: 0 | M165: 0 | N165: 0 | O165: 0 | P165: 0 | Q165: 0 | T165: 0
A166: 957+00.00/1 | B166: 7 | C166: 0 | D166: 0 | E166: 0 | F166: 0 | G166: 0 | H166: 220 | I166: 0 | J166: 0 | K166: 0 | L166: 0 | M166: 0 | N166: 0 | O166: 0 | P166: 0 | Q166: 0 | T166: 0
A167: 957+00.02/1 | B167: 0 | C167: 0 | D167: 0 | E167: 0 | F167: 0 | G167: 0 | H167: 0 | I167: 0 | J167: 0 | K167: 0 | L167: 0 | M167: 0 | N167: 0 | O167: 0 | P167: 0 | Q167: 0 | T167: 0
A168: 957+25.00/1 | B168: 2 | C168: 0 | D168: 0 | E168: 0 | F168: 0 | G168: 0 | H168: 228 | I168: 0 | J168: 0 | K168: 0 | L168: 0 | M168: 0 | N168: 0 | O168: 0 | P168: 0 | Q168: 0 | T168: 0
A169: 957+50.00/1 | B169: 3 | C169: 0 | D169: 0 | E169: 0 | F169: 0 | G169: 0 | H169: 238 | I169: 0 | J169: 0 | K169: 0 | L169: 0 | M169: 0 | N169: 0 | O169: 0 | P169: 0 | Q169: 0 | T169: 0
A170: 957+75.00/1 | B170: 1 | C170: 0 | D170: 0 | E170: 0 | F170: 0 | G170: 0 | H170: 236 | I170: 0 | J170: 0 | K170: 0 | L170: 0 | M170: 0 | N170: 0 | O170: 0 | P170: 0 | Q170: 0 | T170: 0
A171: 958+00.00/1 | B171: 1 | C171: 0 | D171: 0 | E171: 0 | F171: 0 | G171: 0 | H171: 234 | I171: 0 | J171: 0 | K171: 0 | L171: 0 | M171: 0 | N171: 0 | O171: 0 | P171: 0 | Q171: 0 | T171: 0
A172: 958+25.00/1 | B172: 3 | C172: 0 | D172: 0 | E172: 0 | F172: 0 | G172: 0 | H172: 232 | I172: 0 | J172: 0 | K172: 0 | L172: 0 | M172: 0 | N172: 0 | O172: 0 | P172: 0 | Q172: 0 | T172: 0
A173: 958+50.00/1 | B173: 6 | C173: 0 | D173: 0 | E173: 0 | F173: 0 | G173: 0 | H173: 230 | I173: 0 | J173: 0 | K173: 0 | L173: 0 | M173: 0 | N173: 0 | O173: 0 | P173: 0 | Q173: 0 | T173: 0
A174: 958+75.00/1 | B174: 10 | C174: 0 | D174: 0 | E174: 0 | F174: 0 | G174: 0 | H174: 229 | I174: 0 | J174: 0 | K174: 0 | L174: 0 | M174: 0 | N174: 0 | O174: 0 | P174: 0 | Q174: 0 | T174: 0
A175: 959+00.00/1 | B175: 13 | C175: 0 | D175: 0 | E175: 0 | F175: 0 | G175: 0 | H175: 227 | I175: 0 | J175: 0 | K175: 0 | L175: 0 | M175: 0 | N175: 0 | O175: 0 | P175: 0 | Q175: 0 | T175: 0
A176: 959+25.00/1 | B176: 16 | C176: 0 | D176: 0 | E176: 0 | F176: 0 | G176: 0 | H176: 225 | I176: 0 | J176: 0 | K176: 0 | L176: 0 | M176: 0 | N176: 0 | O176: 0 | P176: 0 | Q176: 0 | T176: 0
A177: 959+50.00/1 | B177: 18 | C177: 0 | D177: 0 | E177: 0 | F177: 0 | G177: 0 | H177: 221 | I177: 0 | J177: 0 | K177: 0 | L177: 0 | M177: 0 | N177: 0 | O177: 0 | P177: 0 | Q177: 0 | T177: 0
A178: 959+75.00/1 | B178: 30 | C178: 0 | D178: 0 | E178: 0 | F178: 0 | G178: 0 | H178: 219 | I178: 0 | J178: 0 | K178: 0 | L178: 0 | M178: 0 | N178: 0 | O178: 0 | P178: 0 | Q178: 0 | T178: 0
A179: 960+00.00/1 | B179: 61 | C179: 0 | D179: 0 | E179: 0 | F179: 0 | G179: 0 | H179: 219 | I179: 0 | J179: 0 | K179: 0 | L179: 0 | M179: 0 | N179: 0 | O179: 0 | P179: 0 | Q179: 0 | T179: 0
A180: 960+25.00/1 | B180: 101 | C180: 0 | D180: 0 | E180: 0 | F180: 0 | G180: 0 | H180: 218 | I180: 0 | J180: 0 | K180: 0 | L180: 0 | M180: 0 | N180: 0 | O180: 0 | P180: 0 | Q180: 0 | T180: 0
A181: 960+50.00/1 | B181: 150 | C181: 0 | D181: 0 | E181: 0 | F181: 0 | G181: 0 | H181: 217 | I181: 0 | J181: 0 | K181: 0 | L181: 1 | M181: 0 | N181: 0 | O181: 0 | P181: 0 | Q181: 0 | T181: 0
A182: 960+75.00/1 | B182: 276 | C182: 0 | D182: 0 | E182: 0 | F182: 0 | G182: 0 | H182: 216 | I182: 0 | J182: 0 | K182: 0 | L182: 6 | M182: 0 | N182: 0 | O182: 0 | P182: 0 | Q182: 0 | T182: 0
A183: 961+00.00/1 | B183: 425 | C183: 0 | D183: 0 | E183: 0 | F183: 0 | G183: 0 | H183: 214 | I183: 0 | J183: 0 | K183: 0 | L183: 20 | M183: 0 | N183: 0 | O183: 0 | P183: 0 | Q183: 0 | T183: 0
A184: 961+25.00/1 | B184: 523 | C184: 0 | D184: 0 | E184: 0 | F184: 0 | G184: 0 | H184: 213 | I184: 0 | J184: 0 | K184: 0 | L184: 47 | M184: 0 | N184: 0 | O184: 0 | P184: 0 | Q184: 0 | T184: 0
A185: 961+50.00/1 | B185: 611 | C185: 0 | D185: 0 | E185: 0 | F185: 0 | G185: 0 | H185: 214 | I185: 0 | J185: 0 | K185: 0 | L185: 84 | M185: 0 | N185: 0 | O185: 0 | P185: 0 | Q185: 0 | T185: 0
A186: 961+75.00/1 | B186: 697 | C186: 0 | D186: 0 | E186: 0 | F186: 0 | G186: 0 | H186: 216 | I186: 0 | J186: 0 | K186: 0 | L186: 123 | M186: 0 | N186: 0 | O186: 0 | P186: 0 | Q186: 0 | T186: 0
A187: 962+00.00/1 | B187: 782 | C187: 0 | D187: 0 | E187: 0 | F187: 0 | G187: 0 | H187: 218 | I187: 0 | J187: 0 | K187: 0 | L187: 175 | M187: 0 | N187: 0 | O187: 0 | P187: 0 | Q187: 0 | T187: 0
A188: 962+20.00/1 | B188: 678 | C188: 0 | D188: 0 | E188: 0 | F188: 0 | G188: 0 | H188: 175 | I188: 0 | J188: 0 | K188: 0 | L188: 193 | M188: 0 | N188: 0 | O188: 0 | P188: 0 | Q188: 0 | T188: 0
A189: 962+25.00/1 | B189: 166 | C189: 0 | D189: 0 | E189: 0 | F189: 0 | G189: 0 | H189: 44 | I189: 0 | J189: 0 | K189: 0 | L189: 69 | M189: 0 | N189: 0 | O189: 0 | P189: 0 | Q189: 0 | T189: 0
A190: 962+50.00/1 | B190: 827 | C190: 0 | D190: 0 | E190: 0 | F190: 0 | G190: 0 | H190: 154 | I190: 0 | J190: 0 | K190: 0 | L190: 537 | M190: 0 | N190: 0 | O190: 0 | P190: 0 | Q190: 0 | T190: 0
A191: 962+75.00/1 | B191: 901 | C191: 0 | D191: 0 | E191: 0 | F191: 0 | G191: 0 | H191: 88 | I191: 0 | J191: 0 | K191: 0 | L191: 691 | M191: 0 | N191: 0 | O191: 0 | P191: 0 | Q191: 0 | T191: 0
A192: 963+00.00/1 | B192: 952 | C192: 0 | D192: 0 | E192: 0 | F192: 0 | G192: 0 | H192: 83 | I192: 0 | J192: 0 | K192: 0 | L192: 712 | M192: 0 | N192: 0 | O192: 0 | P192: 0 | Q192: 0 | T192: 0
A193: 963+25.00/1 | B193: 1071 | C193: 0 | D193: 0 | E193: 0 | F193: 0 | G193: 0 | H193: 80 | I193: 0 | J193: 0 | K193: 0 | L193: 754 | M193: 0 | N193: 0 | O193: 0 | P193: 0 | Q193: 0 | T193: 0
A194: 963+50.00/1 | B194: 1167 | C194: 0 | D194: 0 | E194: 0 | F194: 0 | G194: 0 | H194: 80 | I194: 0 | J194: 0 | K194: 0 | L194: 838 | M194: 0 | N194: 0 | O194: 0 | P194: 0 | Q194: 0 | T194: 0
A195: 963+75.00/1 | B195: 1156 | C195: 0 | D195: 0 | E195: 0 | F195: 0 | G195: 0 | H195: 80 | I195: 0 | J195: 0 | K195: 0 | L195: 900 | M195: 0 | N195: 0 | O195: 0 | P195: 0 | Q195: 0 | T195: 0
A196: 964+00.00/1 | B196: 1149 | C196: 0 | D196: 0 | E196: 0 | F196: 0 | G196: 0 | H196: 81 | I196: 0 | J196: 0 | K196: 0 | L196: 941 | M196: 0 | N196: 0 | O196: 0 | P196: 0 | Q196: 0 | T196: 0
A197: 964+25.00/1 | B197: 1145 | C197: 0 | D197: 0 | E197: 0 | F197: 0 | G197: 0 | H197: 81 | I197: 0 | J197: 0 | K197: 0 | L197: 972 | M197: 0 | N197: 0 | O197: 0 | P197: 0 | Q197: 0 | T197: 0
A198: 964+50.00/1 | B198: 1106 | C198: 0 | D198: 0 | E198: 0 | F198: 0 | G198: 0 | H198: 81 | I198: 0 | J198: 0 | K198: 0 | L198: 1005 | M198: 0 | N198: 0 | O198: 0 | P198: 0 | Q198: 0 | T198: 0
A199: 964+75.00/1 | B199: 1044 | C199: 0 | D199: 0 | E199: 0 | F199: 0 | G199: 0 | H199: 80 | I199: 0 | J199: 0 | K199: 0 | L199: 1062 | M199: 0 | N199: 0 | O199: 0 | P199: 0 | Q199: 0 | T199: 0
A200: 965+00.00/1 | B200: 949 | C200: 0 | D200: 0 | E200: 0 | F200: 0 | G200: 0 | H200: 80 | I200: 0 | J200: 0 | K200: 0 | L200: 1172 | M200: 0 | N200: 0 | O200: 0 | P200: 0 | Q200: 0 | T200: 0
A201: 965+25.00/1 | B201: 832 | C201: 0 | D201: 0 | E201: 0 | F201: 0 | G201: 0 | H201: 80 | I201: 0 | J201: 0 | K201: 0 | L201: 1313 | M201: 0 | N201: 0 | O201: 0 | P201: 0 | Q201: 0 | T201: 0
... 570 more rows

Sheet Run2 Input
A2: STATION | B2: TOTAL | C2: TOTAL | D2: TOTAL | E2: TOTAL | F2: SUBGRADE | G2: TOPSOIL | H2: BEHIND | I2: ROCK | J2: EARTH | K2: GRANULAR | L2: HMA PAVED | M2: PCC PAVED | N2: PVD SHLDR | O2: ANY SHLDR | P2: PVD SHLDR | Q2: PAVED | R2: PVD MEDIAN | S2: EARTH | T2: GRANULAR
B3: CUT | C3: FILL | D3: CUT | E3: FILL | F3: TREATMENT | G3: REPLACEMENT | H3: CURB C/F | I3: UNDERCUT | J3: SHOULDER | K3: SHOULDER | L3: SHOULDER | M3: SHOULDER | N3: GRAN FILLET | O3: EARTH FILL | P3: SPEC FILL | Q3: MEDIAN | R3: FILL | S3: MEDIAN | T3: SUBBASE
B4: END AREA | C4: END AREA | D4: VOLUME | E4: VOLUME | F4: TOTAL VOL | G4: TOTAL VOL | H4: VOLUME | I4: VOLUME | J4: VOLUME | K4: VOLUME | L4: VOLUME | M4: VOLUME | N4: VOLUME | O4: VOLUME | P4: VOLUME | Q4: VOLUME | R4: VOLUME | S4: VOLUME | T4: VOLUME
B5: COLUMN 1 | C5: COLUMN 2 | D5: COLUMN 3 | E5: COLUMN 4 | F5: COLUMN 5 | G5: COLUMN 6 | H5: COLUMN 7 | I5: COLUMN 8 | J5: COLUMN 9 | K5: COLUMN 10 | L5: COLUMN 11 | M5: COLUMN 12 | N5: COLUMN 13 | O5: COLUMN 14 | P5: COLUMN 15 | Q5: COLUMN 16 | R5: COLUMN 17 | S5: COLUMN 18 | T5: COLUMN 19
A6: 926+50.00/1 | B6: 104 | C6: 3284 | D6: 0 | E6: 0 | F6: 0 | G6: 0 | H6: 0 | I6: 0 | J6: 0 | K6: 0 | L6: 0 | M6: 0 | N6: 0 | O6: 0 | P6: 0 | Q6: 0 | R6: 0 | S6: 0 | T6: 0
A7: 926+75.00/1 | B7: 104 | C7: 3397 | D7: 315 | E7: 3093 | F7: 0 | G7: 101 | H7: 0 | I7: 0 | J7: 0 | K7: 0 | L7: 0 | M7: 22 | N7: 0 | O7: 17 | P7: 0 | Q7: 0 | R7: 0 | S7: 0 | T7: 43
A8: 927+00.00/1 | B8: 107 | C8: 3493 | D8: 317 | E8: 3190 | F8: 0 | G8: 101 | H8: 0 | I8: 0 | J8: 0 | K8: 0 | L8: 0 | M8: 24 | N8: 0 | O8: 18 | P8: 0 | Q8: 0 | R8: 0 | S8: 0 | T8: 43
A9: 927+25.00/1 | B9: 102 | C9: 3585 | D9: 316 | E9: 3277 | F9: 0 | G9: 101 | H9: 0 | I9: 0 | J9: 0 | K9: 0 | L9: 0 | M9: 26 | N9: 0 | O9: 18 | P9: 0 | Q9: 0 | R9: 0 | S9: 0 | T9: 43
A10: 927+50.00/1 | B10: 100 | C10: 3606 | D10: 309 | E10: 3330 | F10: 0 | G10: 98 | H10: 0 | I10: 0 | J10: 0 | K10: 0 | L10: 0 | M10: 26 | N10: 0 | O10: 17 | P10: 0 | Q10: 0 | R10: 0 | S10: 0 | T10: 43
A11: 927+75.00/1 | B11: 101 | C11: 3732 | D11: 306 | E11: 3397 | F11: 0 | G11: 97 | H11: 0 | I11: 0 | J11: 0 | K11: 0 | L11: 0 | M11: 26 | N11: 0 | O11: 17 | P11: 0 | Q11: 0 | R11: 0 | S11: 0 | T11: 43
A12: 928+00.00/1 | B12: 79 | C12: 3860 | D12: 299 | E12: 3515 | F12: 0 | G12: 97 | H12: 0 | I12: 0 | J12: 0 | K12: 0 | L12: 0 | M12: 27 | N12: 0 | O12: 16 | P12: 0 | Q12: 0 | R12: 0 | S12: 0 | T12: 43
A13: 928+25.00/1 | B13: 82 | C13: 3649 | D13: 285 | E13: 3476 | F13: 0 | G13: 93 | H13: 0 | I13: 0 | J13: 0 | K13: 0 | L13: 0 | M13: 25 | N13: 0 | O13: 15 | P13: 4 | Q13: 0 | R13: 0 | S13: 0 | T13: 44
A14: 928+50.00/1 | B14: 104 | C14: 3680 | D14: 287 | E14: 3393 | F14: 0 | G14: 88 | H14: 0 | I14: 0 | J14: 0 | K14: 0 | L14: 0 | M14: 22 | N14: 0 | O14: 15 | P14: 7 | Q14: 0 | R14: 0 | S14: 0 | T14: 44
A15: 928+75.00/1 | B15: 144 | C15: 3784 | D15: 312 | E15: 3455 | F15: 0 | G15: 89 | H15: 0 | I15: 0 | J15: 0 | K15: 0 | L15: 0 | M15: 22 | N15: 0 | O15: 15 | P15: 7 | Q15: 0 | R15: 0 | S15: 0 | T15: 44
A16: 929+00.00/1 | B16: 161 | C16: 3890 | D16: 338 | E16: 3553 | F16: 0 | G16: 93 | H16: 0 | I16: 0 | J16: 0 | K16: 0 | L16: 0 | M16: 22 | N16: 0 | O16: 15 | P16: 7 | Q16: 0 | R16: 0 | S16: 0 | T16: 44
A17: 929+25.00/1 | B17: 159 | C17: 3960 | D17: 347 | E17: 3635 | F17: 0 | G17: 95 | H17: 0 | I17: 0 | J17: 0 | K17: 0 | L17: 0 | M17: 22 | N17: 0 | O17: 15 | P17: 7 | Q17: 0 | R17: 0 | S17: 0 | T17: 44
A18: 929+50.00/1 | B18: 217 | C18: 4114 | D18: 375 | E18: 3738 | F18: 0 | G18: 97 | H18: 0 | I18: 0 | J18: 0 | K18: 0 | L18: 0 | M18: 22 | N18: 0 | O18: 15 | P18: 7 | Q18: 0 | R18: 0 | S18: 0 | T18: 44
A19: 929+75.00/1 | B19: 215 | C19: 4135 | D19: 401 | E19: 3819 | F19: 0 | G19: 99 | H19: 0 | I19: 0 | J19: 0 | K19: 0 | L19: 0 | M19: 22 | N19: 0 | O19: 15 | P19: 7 | Q19: 0 | R19: 0 | S19: 0 | T19: 44
A20: 930+00.00/1 | B20: 219 | C20: 4172 | D20: 397 | E20: 3846 | F20: 0 | G20: 99 | H20: 0 | I20: 0 | J20: 0 | K20: 0 | L20: 0 | M20: 22 | N20: 0 | O20: 15 | P20: 7 | Q20: 0 | R20: 0 | S20: 0 | T20: 44
A21: 930+25.00/1 | B21: 284 | C21: 4219 | D21: 423 | E21: 3885 | F21: 0 | G21: 101 | H21: 0 | I21: 0 | J21: 0 | K21: 0 | L21: 0 | M21: 22 | N21: 0 | O21: 15 | P21: 7 | Q21: 0 | R21: 0 | S21: 0 | T21: 44
A22: 930+50.00/1 | B22: 314 | C22: 4280 | D22: 466 | E22: 3935 | F22: 0 | G22: 102 | H22: 0 | I22: 0 | J22: 0 | K22: 0 | L22: 0 | M22: 22 | N22: 0 | O22: 15 | P22: 7 | Q22: 0 | R22: 0 | S22: 0 | T22: 44
A23: 930+75.00/1 | B23: 306 | C23: 4346 | D23: 476 | E23: 3993 | F23: 0 | G23: 103 | H23: 0 | I23: 0 | J23: 0 | K23: 0 | L23: 0 | M23: 22 | N23: 0 | O23: 15 | P23: 7 | Q23: 0 | R23: 0 | S23: 0 | T23: 44
A24: 931+00.00/1 | B24: 285 | C24: 4399 | D24: 463 | E24: 4048 | F24: 0 | G24: 102 | H24: 0 | I24: 0 | J24: 0 | K24: 0 | L24: 0 | M24: 22 | N24: 0 | O24: 15 | P24: 7 | Q24: 0 | R24: 0 | S24: 0 | T24: 44
A25: 931+25.00/1 | B25: 308 | C25: 4475 | D25: 466 | E25: 4108 | F25: 0 | G25: 104 | H25: 0 | I25: 0 | J25: 0 | K25: 0 | L25: 0 | M25: 22 | N25: 0 | O25: 15 | P25: 7 | Q25: 0 | R25: 0 | S25: 0 | T25: 44
A26: 931+50.00/1 | B26: 301 | C26: 4589 | D26: 476 | E26: 4196 | F26: 0 | G26: 109 | H26: 0 | I26: 0 | J26: 0 | K26: 0 | L26: 0 | M26: 22 | N26: 0 | O26: 15 | P26: 7 | Q26: 0 | R26: 0 | S26: 0 | T26: 44
A27: 931+75.00/1 | B27: 261 | C27: 4699 | D27: 458 | E27: 4300 | F27: 0 | G27: 111 | H27: 0 | I27: 0 | J27: 0 | K27: 0 | L27: 0 | M27: 22 | N27: 0 | O27: 15 | P27: 7 | Q27: 0 | R27: 0 | S27: 0 | T27: 44
A28: 932+00.00/1 | B28: 200 | C28: 4852 | D28: 416 | E28: 4422 | F28: 0 | G28: 113 | H28: 0 | I28: 0 | J28: 0 | K28: 0 | L28: 0 | M28: 22 | N28: 0 | O28: 15 | P28: 7 | Q28: 0 | R28: 0 | S28: 0 | T28: 44
A29: 932+25.00/1 | B29: 152 | C29: 4988 | D29: 378 | E29: 4556 | F29: 0 | G29: 114 | H29: 0 | I29: 0 | J29: 0 | K29: 0 | L29: 0 | M29: 22 | N29: 0 | O29: 15 | P29: 7 | Q29: 0 | R29: 0 | S29: 0 | T29: 44
A30: 932+50.00/1 | B30: 130 | C30: 5146 | D30: 359 | E30: 4692 | F30: 0 | G30: 115 | H30: 0 | I30: 0 | J30: 0 | K30: 0 | L30: 0 | M30: 22 | N30: 0 | O30: 15 | P30: 7 | Q30: 0 | R30: 0 | S30: 0 | T30: 44
A31: 932+75.00/1 | B31: 94 | C31: 5229 | D31: 337 | E31: 4803 | F31: 0 | G31: 114 | H31: 0 | I31: 0 | J31: 0 | K31: 0 | L31: 0 | M31: 22 | N31: 0 | O31: 15 | P31: 7 | Q31: 0 | R31: 0 | S31: 0 | T31: 44
A32: 933+00.00/1 | B32: 63 | C32: 5350 | D32: 308 | E32: 4898 | F32: 0 | G32: 109 | H32: 0 | I32: 0 | J32: 0 | K32: 0 | L32: 0 | M32: 22 | N32: 0 | O32: 15 | P32: 7 | Q32: 0 | R32: 0 | S32: 0 | T32: 44
A33: 933+25.00/1 | B33: 37 | C33: 5352 | D33: 284 | E33: 4954 | F33: 0 | G33: 105 | H33: 0 | I33: 0 | J33: 0 | K33: 0 | L33: 0 | M33: 22 | N33: 0 | O33: 15 | P33: 7 | Q33: 0 | R33: 0 | S33: 0 | T33: 44
A34: 933+50.00/1 | B34: 7 | C34: 5288 | D34: 264 | E34: 4926 | F34: 0 | G34: 100 | H34: 0 | I34: 0 | J34: 0 | K34: 0 | L34: 0 | M34: 22 | N34: 0 | O34: 15 | P34: 7 | Q34: 0 | R34: 0 | S34: 0 | T34: 44
A35: 933+75.00/1 | B35: 4 | C35: 5077 | D35: 247 | E35: 4798 | F35: 0 | G35: 91 | H35: 0 | I35: 0 | J35: 0 | K35: 0 | L35: 0 | M35: 22 | N35: 0 | O35: 15 | P35: 7 | Q35: 0 | R35: 0 | S35: 0 | T35: 44
A36: 934+00.00/1 | B36: 9 | C36: 5097 | D36: 241 | E36: 4710 | F36: 0 | G36: 87 | H36: 0 | I36: 0 | J36: 0 | K36: 0 | L36: 0 | M36: 22 | N36: 0 | O36: 15 | P36: 7 | Q36: 0 | R36: 0 | S36: 0 | T36: 44
A37: 934+25.00/1 | B37: 17 | C37: 5123 | D37: 245 | E37: 4732 | F37: 0 | G37: 90 | H37: 0 | I37: 0 | J37: 0 | K37: 0 | L37: 0 | M37: 22 | N37: 0 | O37: 15 | P37: 7 | Q37: 0 | R37: 0 | S37: 0 | T37: 44
A38: 934+41.91/1 | B38: 15 | C38: 5159 | D38: 168 | E38: 3220 | F38: 0 | G38: 62 | H38: 0 | I38: 0 | J38: 0 | K38: 0 | L38: 0 | M38: 15 | N38: 0 | O38: 10 | P38: 5 | Q38: 0 | R38: 0 | S38: 0 | T38: 30
A39: 934+50.00/1 | B39: 14 | C39: 5188 | D39: 81 | E39: 1550 | F39: 0 | G39: 30 | H39: 0 | I39: 0 | J39: 0 | K39: 0 | L39: 0 | M39: 7 | N39: 0 | O39: 5 | P39: 2 | Q39: 0 | R39: 0 | S39: 0 | T39: 14
A40: 934+70.71/1 | B40: 16 | C40: 5248 | D40: 209 | E40: 4001 | F40: 0 | G40: 78 | H40: 0 | I40: 0 | J40: 0 | K40: 0 | L40: 0 | M40: 18 | N40: 0 | O40: 12 | P40: 6 | Q40: 0 | R40: 0 | S40: 0 | T40: 36
A41: 934+75.00/1 | B41: 16 | C41: 5264 | D41: 44 | E41: 836 | F41: 0 | G41: 16 | H41: 0 | I41: 0 | J41: 0 | K41: 0 | L41: 0 | M41: 4 | N41: 0 | O41: 3 | P41: 1 | Q41: 0 | R41: 0 | S41: 0 | T41: 7
A42: 935+00.00/1 | B42: 13 | C42: 5369 | D42: 257 | E42: 4923 | F42: 0 | G42: 97 | H42: 0 | I42: 0 | J42: 0 | K42: 0 | L42: 0 | M42: 22 | N42: 0 | O42: 15 | P42: 7 | Q42: 0 | R42: 0 | S42: 0 | T42: 44
A43: 935+25.00/1 | B43: 12 | C43: 5440 | D43: 260 | E43: 5004 | F43: 0 | G43: 100 | H43: 0 | I43: 0 | J43: 0 | K43: 0 | L43: 0 | M43: 22 | N43: 0 | O43: 15 | P43: 7 | Q43: 0 | R43: 0 | S43: 0 | T43: 44
A44: 935+37.91/1 | B44: 12 | C44: 5482 | D44: 135 | E44: 2611 | F44: 0 | G44: 52 | H44: 0 | I44: 0 | J44: 0 | K44: 0 | L44: 0 | M44: 11 | N44: 0 | O44: 8 | P44: 4 | Q44: 0 | R44: 0 | S44: 0 | T44: 23
A45: 935+50.00/1 | B45: 13 | C45: 5523 | D45: 127 | E45: 2464 | F45: 0 | G45: 49 | H45: 0 | I45: 0 | J45: 0 | K45: 0 | L45: 0 | M45: 10 | N45: 0 | O45: 7 | P45: 3 | Q45: 0 | R45: 0 | S45: 0 | T45: 21
A46: 935+75.00/1 | B46: 7 | C46: 5591 | D46: 266 | E46: 5146 | F46: 0 | G46: 102 | H46: 0 | I46: 0 | J46: 0 | K46: 0 | L46: 0 | M46: 22 | N46: 0 | O46: 17 | P46: 7 | Q46: 0 | R46: 0 | S46: 0 | T46: 44
A47: 936+00.00/1 | B47: 5 | C47: 5633 | D47: 268 | E47: 5196 | F47: 0 | G47: 102 | H47: 0 | I47: 0 | J47: 0 | K47: 0 | L47: 0 | M47: 22 | N47: 0 | O47: 14 | P47: 7 | Q47: 0 | R47: 0 | S47: 0 | T47: 50
A48: 936+14.55/1 | B48: 6 | C48: 5600 | D48: 155 | E48: 3027 | F48: 0 | G48: 57 | H48: 0 | I48: 0 | J48: 0 | K48: 0 | L48: 0 | M48: 15 | N48: 0 | O48: 8 | P48: 4 | Q48: 0 | R48: 0 | S48: 0 | T48: 31
A49: 936+25.00/1 | B49: 5 | C49: 5547 | D49: 109 | E49: 2157 | F49: 0 | G49: 39 | H49: 0 | I49: 0 | J49: 0 | K49: 0 | L49: 0 | M49: 13 | N49: 0 | O49: 7 | P49: 3 | Q49: 0 | R49: 0 | S49: 0 | T49: 21
A50: 936+33.91/1 | B50: 4 | C50: 5496 | D50: 91 | E50: 1822 | F50: 0 | G50: 32 | H50: 0 | I50: 0 | J50: 0 | K50: 0 | L50: 0 | M50: 11 | N50: 0 | O50: 6 | P50: 3 | Q50: 0 | R50: 0 | S50: 0 | T50: 18
A51: 936+34.55/1 | B51: 4 | C51: 5491 | D51: 7 | E51: 130 | F51: 0 | G51: 2 | H51: 0 | I51: 0 | J51: 0 | K51: 0 | L51: 0 | M51: 1 | N51: 0 | O51: 0 | P51: 0 | Q51: 0 | R51: 0 | S51: 0 | T51: 1
A52: 936+50.00/1 | B52: 5 | C52: 5383 | D52: 154 | E52: 3111 | F52: 0 | G52: 52 | H52: 0 | I52: 0 | J52: 0 | K52: 0 | L52: 0 | M52: 19 | N52: 0 | O52: 11 | P52: 4 | Q52: 0 | R52: 0 | S52: 0 | T52: 30
A53: 936+75.00/1 | B53: 8 | C53: 5108 | D53: 237 | E53: 4857 | F53: 0 | G53: 77 | H53: 0 | I53: 0 | J53: 0 | K53: 0 | L53: 0 | M53: 30 | N53: 0 | O53: 17 | P53: 7 | Q53: 0 | R53: 0 | S53: 0 | T53: 49
A54: 936+83.22/1 | B54: 13 | C54: 5011 | D54: 75 | E54: 1540 | F54: 0 | G54: 23 | H54: 0 | I54: 0 | J54: 0 | K54: 0 | L54: 0 | M54: 10 | N54: 0 | O54: 6 | P54: 2 | Q54: 0 | R54: 0 | S54: 0 | T54: 16
A55: 937+00.00/1 | B55: 16 | C55: 4670 | D55: 147 | E55: 3008 | F55: 0 | G55: 43 | H55: 0 | I55: 0 | J55: 0 | K55: 0 | L55: 0 | M55: 19 | N55: 0 | O55: 13 | P55: 5 | Q55: 0 | R55: 0 | S55: 0 | T55: 32
A56: 937+01.45/1 | B56: 16 | C56: 4633 | D56: 12 | E56: 250 | F56: 0 | G56: 4 | H56: 0 | I56: 0 | J56: 0 | K56: 0 | L56: 0 | M56: 2 | N56: 0 | O56: 1 | P56: 0 | Q56: 0 | R56: 0 | S56: 0 | T56: 3
A57: 937+12.00/1 | B57: 19 | C57: 3779 | D57: 88 | E57: 1643 | F57: 102 | G57: 27 | H57: 0 | I57: 0 | J57: 0 | K57: 0 | L57: 0 | M57: 11 | N57: 0 | O57: 5 | P57: 3 | Q57: 0 | R57: 0 | S57: 0 | T57: 21
A58: 937+25.00/1 | B58: 22 | C58: 3353 | D58: 106 | E58: 1717 | F58: 240 | G58: 37 | H58: 0 | I58: 0 | J58: 0 | K58: 0 | L58: 0 | M58: 13 | N58: 0 | O58: 5 | P58: 4 | Q58: 0 | R58: 0 | S58: 0 | T58: 22
A59: 937+25.52/1 | B59: 23 | C59: 3337 | D59: 4 | E59: 64 | F59: 9 | G59: 2 | H59: 0 | I59: 0 | J59: 0 | K59: 0 | L59: 0 | M59: 1 | N59: 0 | O59: 0 | P59: 0 | Q59: 0 | R59: 0 | S59: 0 | T59: 1
A60: 937+41.45/1 | B60: 37 | C60: 2816 | D60: 126 | E60: 1815 | F60: 277 | G60: 49 | H60: 0 | I60: 0 | J60: 0 | K60: 0 | L60: 0 | M60: 13 | N60: 0 | O60: 7 | P60: 5 | Q60: 0 | R60: 0 | S60: 0 | T60: 19
A61: 937+46.00/1 | B61: 40 | C61: 2681 | D61: 35 | E61: 463 | F61: 77 | G61: 15 | H61: 0 | I61: 0 | J61: 0 | K61: 0 | L61: 0 | M61: 3 | N61: 0 | O61: 1 | P61: 1 | Q61: 0 | R61: 0 | S61: 0 | T61: 5
A62: 937+50.00/1 | B62: 45 | C62: 2555 | D62: 31 | E62: 388 | F62: 65 | G62: 13 | H62: 0 | I62: 0 | J62: 0 | K62: 0 | L62: 0 | M62: 2 | N62: 0 | O62: 1 | P62: 1 | Q62: 0 | R62: 0 | S62: 0 | T62: 5
A63: 937+71.79/1 | B63: 54 | C63: 1868 | D63: 165 | E63: 1785 | F63: 356 | G63: 65 | H63: 0 | I63: 0 | J63: 0 | K63: 0 | L63: 0 | M63: 11 | N63: 0 | O63: 7 | P63: 6 | Q63: 0 | R63: 0 | S63: 0 | T63: 20
A64: 937+75.00/1 | B64: 55 | C64: 1769 | D64: 23 | E64: 216 | F64: 56 | G64: 9 | H64: 0 | I64: 0 | J64: 0 | K64: 0 | L64: 0 | M64: 2 | N64: 0 | O64: 1 | P64: 1 | Q64: 0 | R64: 0 | S64: 0 | T64: 3
A65: 937+99.31/1 | B65: 72 | C65: 1149 | D65: 176 | E65: 1313 | F65: 491 | G65: 60 | H65: 0 | I65: 0 | J65: 0 | K65: 0 | L65: 0 | M65: 15 | N65: 0 | O65: 7 | P65: 3 | Q65: 0 | R65: 0 | S65: 0 | T65: 22
A66: 938+00.00/1 | B66: 73 | C66: 1129 | D66: 5 | E66: 29 | F66: 15 | G66: 2 | H66: 0 | I66: 0 | J66: 0 | K66: 0 | L66: 0 | M66: 0 | N66: 0 | O66: 0 | P66: 0 | Q66: 0 | R66: 0 | S66: 0 | T66: 1
A67: 938+00.21/1 | B67: 73 | C67: 1123 | D67: 2 | E67: 9 | F67: 5 | G67: 0 | H67: 0 | I67: 0 | J67: 0 | K67: 0 | L67: 0 | M67: 0 | N67: 0 | O67: 0 | P67: 0 | Q67: 0 | R67: 0 | S67: 0 | T67: 0
A68: 938+10.00/1 | B68: 77 | C68: 921 | D68: 70 | E68: 371 | F68: 203 | G68: 23 | H68: 0 | I68: 0 | J68: 0 | K68: 0 | L68: 0 | M68: 4 | N68: 0 | O68: 1 | P68: 3 | Q68: 0 | R68: 0 | S68: 0 | T68: 8
A69: 938+25.00/1 | B69: 82 | C69: 774 | D69: 105 | E69: 471 | F69: 212 | G69: 35 | H69: 0 | I69: 0 | J69: 0 | K69: 0 | L69: 0 | M69: 9 | N69: 0 | O69: 0 | P69: 2 | Q69: 0 | R69: 0 | S69: 0 | T69: 10
A70: 938+42.00/1 | B70: 75 | C70: 560 | D70: 110 | E70: 420 | F70: 109 | G70: 40 | H70: 0 | I70: 0 | J70: 0 | K70: 0 | L70: 0 | M70: 12 | N70: 0 | O70: 0 | P70: 0 | Q70: 0 | R70: 0 | S70: 0 | T70: 6
A71: 938+50.00/1 | B71: 70 | C71: 470 | D71: 46 | E71: 153 | F71: 25 | G71: 19 | H71: 0 | I71: 0 | J71: 0 | K71: 0 | L71: 0 | M71: 5 | N71: 0 | O71: 0 | P71: 0 | Q71: 0 | R71: 0 | S71: 0 | T71: 1
A72: 938+50.69/1 | B72: 70 | C72: 467 | D72: 4 | E72: 12 | F72: 1 | G72: 2 | H72: 0 | I72: 0 | J72: 0 | K72: 0 | L72: 0 | M72: 0 | N72: 0 | O72: 0 | P72: 0 | Q72: 0 | R72: 0 | S72: 0 | T72: 0
A73: 938+61.78/1 | B73: 32 | C73: 436 | D73: 52 | E73: 185 | F73: 19 | G73: 26 | H73: 0 | I73: 0 | J73: 0 | K73: 0 | L73: 0 | M73: 4 | N73: 0 | O73: 0 | P73: 0 | Q73: 0 | R73: 0 | S73: 0 | T73: 0
A74: 938+75.00/1 | B74: 88 | C74: 382 | D74: 73 | E74: 200 | F74: 11 | G74: 38 | H74: 0 | I74: 0 | J74: 0 | K74: 0 | L74: 0 | M74: 0 | N74: 0 | O74: 0 | P74: 0 | Q74: 0 | R74: 0 | S74: 0 | T74: 0
A75: 938+94.27/1 | B75: 125 | C75: 553 | D75: 165 | E75: 334 | F75: 2 | G75: 74 | H75: 0 | I75: 0 | J75: 0 | K75: 0 | L75: 0 | M75: 0 | N75: 0 | O75: 0 | P75: 0 | Q75: 0 | R75: 0 | S75: 0 | T75: 0
A76: 939+00.00/1 | B76: 155 | C76: 602 | D76: 63 | E76: 123 | F76: 0 | G76: 24 | H76: 0 | I76: 0 | J76: 0 | K76: 0 | L76: 0 | M76: 0 | N76: 0 | O76: 0 | P76: 0 | Q76: 0 | R76: 0 | S76: 0 | T76: 0
A77: 939+25.00/1 | B77: 206 | C77: 650 | D77: 320 | E77: 580 | F77: 41 | G77: 93 | H77: 0 | I77: 0 | J77: 0 | K77: 0 | L77: 0 | M77: 0 | N77: 0 | O77: 0 | P77: 0 | Q77: 0 | R77: 0 | S77: 0 | T77: 0
A78: 939+31.81/1 | B78: 142 | C78: 663 | D78: 79 | E78: 166 | F78: 32 | G78: 24 | H78: 0 | I78: 0 | J78: 0 | K78: 0 | L78: 0 | M78: 0 | N78: 0 | O78: 0 | P78: 0 | Q78: 0 | R78: 0 | S78: 0 | T78: 0
A79: 939+50.00/1 | B79: 186 | C79: 755 | D79: 192 | E79: 478 | F79: 184 | G79: 70 | H79: 0 | I79: 0 | J79: 0 | K79: 0 | L79: 0 | M79: 0 | N79: 0 | O79: 0 | P79: 0 | Q79: 0 | R79: 0 | S79: 0 | T79: 0
A80: 939+51.73/1 | B80: 197 | C80: 768 | D80: 20 | E80: 49 | F80: 25 | G80: 7 | H80: 0 | I80: 0 | J80: 0 | K80: 0 | L80: 0 | M80: 0 | N80: 0 | O80: 0 | P80: 0 | Q80: 0 | R80: 0 | S80: 0 | T80: 0
A81: 939+60.00/1 | B81: 281 | C81: 829 | D81: 113 | E81: 245 | F81: 128 | G81: 35 | H81: 0 | I81: 0 | J81: 0 | K81: 0 | L81: 0 | M81: 0 | N81: 0 | O81: 0 | P81: 0 | Q81: 0 | R81: 0 | S81: 0 | T81: 0
A82: 939+63.10/1 | B82: 340 | C82: 846 | D82: 51 | E82: 96 | F82: 52 | G82: 14 | H82: 0 | I82: 0 | J82: 0 | K82: 0 | L82: 0 | M82: 0 | N82: 0 | O82: 0 | P82: 0 | Q82: 0 | R82: 0 | S82: 0 | T82: 0
A83: 939+63.12/1 | B83: 335 | C83: 846 | D83: 0 | E83: 1 | F83: 0 | G83: 0 | H83: 0 | I83: 0 | J83: 0 | K83: 0 | L83: 0 | M83: 0 | N83: 0 | O83: 0 | P83: 0 | Q83: 0 | R83: 0 | S83: 0 | T83: 0
A84: 939+75.00/1 | B84: 528 | C84: 835 | D84: 248 | E84: 370 | F84: 210 | G84: 52 | H84: 0 | I84: 0 | J84: 0 | K84: 0 | L84: 0 | M84: 2 | N84: 0 | O84: 0 | P84: 0 | Q84: 0 | R84: 0 | S84: 0 | T84: 2
A85: 939+91.74/1 | B85: 541 | C85: 778 | D85: 414 | E85: 500 | F85: 312 | G85: 71 | H85: 0 | I85: 0 | J85: 0 | K85: 0 | L85: 0 | M85: 10 | N85: 0 | O85: 1 | P85: 0 | Q85: 0 | R85: 0 | S85: 0 | T85: 8
A86: 939+92.00/1 | B86: 539 | C86: 791 | D86: 7 | E86: 8 | F86: 5 | G86: 1 | H86: 0 | I86: 0 | J86: 0 | K86: 0 | L86: 0 | M86: 0 | N86: 0 | O86: 0 | P86: 0 | Q86: 0 | R86: 0 | S86: 0 | T86: 0
A87: 940+00.00/1 | B87: 509 | C87: 772 | D87: 197 | E87: 232 | F87: 151 | G87: 33 | H87: 0 | I87: 0 | J87: 0 | K87: 0 | L87: 0 | M87: 5 | N87: 0 | O87: 1 | P87: 0 | Q87: 0 | R87: 0 | S87: 0 | T87: 6
A88: 940+03.12/1 | B88: 495 | C88: 774 | D88: 75 | E88: 89 | F88: 60 | G88: 13 | H88: 0 | I88: 0 | J88: 0 | K88: 0 | L88: 0 | M88: 2 | N88: 0 | O88: 1 | P88: 0 | Q88: 0 | R88: 0 | S88: 0 | T88: 3
A89: 940+25.00/1 | B89: 31 | C89: 1652 | D89: 357 | E89: 983 | F89: 334 | G89: 93 | H89: 0 | I89: 0 | J89: 0 | K89: 0 | L89: 0 | M89: 15 | N89: 0 | O89: 7 | P89: 0 | Q89: 0 | R89: 0 | S89: 0 | T89: 18
A90: 940+50.00/1 | B90: 1 | C90: 3056 | D90: 231 | E90: 2180 | F90: 319 | G90: 116 | H90: 0 | I90: 0 | J90: 0 | K90: 0 | L90: 0 | M90: 17 | N90: 0 | O90: 8 | P90: 0 | Q90: 0 | R90: 0 | S90: 0 | T90: 22
A91: 940+56.00/1 | B91: 1 | C91: 3346 | D91: 58 | E91: 711 | F91: 88 | G91: 30 | H91: 0 | I91: 0 | J91: 0 | K91: 0 | L91: 0 | M91: 4 | N91: 0 | O91: 2 | P91: 0 | Q91: 0 | R91: 0 | S91: 0 | T91: 5
A92: 940+60.00/1 | B92: 1 | C92: 3534 | D92: 40 | E92: 510 | F92: 61 | G92: 20 | H92: 0 | I92: 0 | J92: 0 | K92: 0 | L92: 0 | M92: 3 | N92: 0 | O92: 2 | P92: 0 | Q92: 0 | R92: 0 | S92: 0 | T92: 4
A93: 940+60.98/1 | B93: 1 | C93: 3584 | D93: 10 | E93: 129 | F93: 16 | G93: 5 | H93: 0 | I93: 0 | J93: 0 | K93: 0 | L93: 0 | M93: 1 | N93: 0 | O93: 0 | P93: 0 | Q93: 0 | R93: 0 | S93: 0 | T93: 1
A94: 940+75.00/1 | B94: 1 | C94: 4228 | D94: 145 | E94: 2028 | F94: 227 | G94: 69 | H94: 0 | I94: 0 | J94: 0 | K94: 0 | L94: 0 | M94: 15 | N94: 0 | O94: 8 | P94: 0 | Q94: 0 | R94: 0 | S94: 0 | T94: 15
A95: 940+89.60/1 | B95: 1 | C95: 4812 | D95: 157 | E95: 2444 | F95: 264 | G95: 67 | H95: 0 | I95: 0 | J95: 0 | K95: 0 | L95: 0 | M95: 19 | N95: 0 | O95: 10 | P95: 0 | Q95: 0 | R95: 0 | S95: 0 | T95: 21
A96: 940+90.00/1 | B96: 1 | C96: 4812 | D96: 4 | E96: 71 | F96: 8 | G96: 2 | H96: 0 | I96: 0 | J96: 0 | K96: 0 | L96: 0 | M96: 1 | N96: 0 | O96: 0 | P96: 0 | Q96: 0 | R96: 0 | S96: 0 | T96: 1
A97: 941+00.00/1 | B97: 1 | C97: 5089 | D97: 109 | E97: 1833 | F97: 188 | G97: 43 | H97: 0 | I97: 0 | J97: 0 | K97: 0 | L97: 0 | M97: 19 | N97: 0 | O97: 6 | P97: 0 | Q97: 0 | R97: 0 | S97: 0 | T97: 18
A98: 941+00.98/1 | B98: 1 | C98: 5587 | D98: 11 | E98: 194 | F98: 9 | G98: 4 | H98: 0 | I98: 0 | J98: 0 | K98: 0 | L98: 0 | M98: 1 | N98: 0 | O98: 1 | P98: 0 | Q98: 0 | R98: 0 | S98: 0 | T98: 2
A99: 941+25.00/1 | B99: 1 | C99: 5756 | D99: 265 | E99: 5045 | F99: 0 | G99: 102 | H99: 0 | I99: 0 | J99: 0 | K99: 0 | L99: 0 | M99: 37 | N99: 0 | O99: 16 | P99: 0 | Q99: 0 | R99: 0 | S99: 0 | T99: 45
A100: 941+50.00/1 | B100: 1 | C100: 5883 | D100: 281 | E100: 5389 | F100: 0 | G100: 110 | H100: 0 | I100: 0 | J100: 0 | K100: 0 | L100: 0 | M100: 39 | N100: 0 | O100: 17 | P100: 0 | Q100: 0 | R100: 0 | S100: 0 | T100: 47
A101: 941+75.00/1 | B101: 1 | C101: 5872 | D101: 281 | E101: 5442 | F101: 0 | G101: 109 | H101: 0 | I101: 0 | J101: 0 | K101: 0 | L101: 0 | M101: 40 | N101: 0 | O101: 16 | P101: 0 | Q101: 0 | R101: 0 | S101: 0 | T101: 48
A102: 942+00.00/1 | B102: 1 | C102: 5697 | D102: 275 | E102: 5356 | F102: 0 | G102: 105 | H102: 0 | I102: 0 | J102: 0 | K102: 0 | L102: 0 | M102: 35 | N102: 0 | O102: 21 | P102: 0 | Q102: 0 | R102: 0 | S102: 0 | T102: 46
A103: 942+25.00/1 | B103: 1 | C103: 5605 | D103: 267 | E103: 5232 | F103: 0 | G103: 104 | H103: 0 | I103: 0 | J103: 0 | K103: 0 | L103: 0 | M103: 30 | N103: 0 | O103: 18 | P103: 0 | Q103: 0 | R103: 0 | S103: 0 | T103: 47
A104: 942+50.00/1 | B104: 1 | C104: 5268 | D104: 262 | E104: 5034 | F104: 0 | G104: 103 | H104: 0 | I104: 0 | J104: 0 | K104: 0 | L104: 0 | M104: 33 | N104: 0 | O104: 11 | P104: 0 | Q104: 0 | R104: 0 | S104: 0 | T104: 47
A105: 942+70.00/1 | B105: 1 | C105: 5074 | D105: 207 | E105: 3830 | F105: 0 | G105: 81 | H105: 0 | I105: 0 | J105: 0 | K105: 0 | L105: 0 | M105: 27 | N105: 0 | O105: 11 | P105: 0 | Q105: 0 | R105: 0 | S105: 0 | T105: 34
A106: 942+75.00/1 | B106: 1 | C106: 4990 | D106: 52 | E106: 932 | F106: 0 | G106: 20 | H106: 0 | I106: 0 | J106: 0 | K106: 0 | L106: 0 | M106: 6 | N106: 0 | O106: 3 | P106: 0 | Q106: 0 | R106: 0 | S106: 0 | T106: 9
A107: 943+00.00/1 | B107: 1 | C107: 4612 | D107: 256 | E107: 4445 | F107: 0 | G107: 100 | H107: 0 | I107: 0 | J107: 0 | K107: 0 | L107: 0 | M107: 30 | N107: 0 | O107: 14 | P107: 0 | Q107: 0 | R107: 0 | S107: 0 | T107: 43
A108: 943+25.00/1 | B108: 1 | C108: 4247 | D108: 248 | E108: 4101 | F108: 0 | G108: 95 | H108: 0 | I108: 0 | J108: 0 | K108: 0 | L108: 0 | M108: 30 | N108: 0 | O108: 14 | P108: 0 | Q108: 0 | R108: 0 | S108: 0 | T108: 43
A109: 943+50.00/1 | B109: 2 | C109: 3923 | D109: 242 | E109: 3782 | F109: 0 | G109: 91 | H109: 0 | I109: 0 | J109: 0 | K109: 0 | L109: 0 | M109: 30 | N109: 0 | O109: 14 | P109: 0 | Q109: 0 | R109: 0 | S109: 0 | T109: 43
A110: 943+75.00/1 | B110: 43 | C110: 3673 | D110: 258 | E110: 3516 | F110: 0 | G110: 93 | H110: 0 | I110: 0 | J110: 0 | K110: 0 | L110: 0 | M110: 30 | N110: 0 | O110: 16 | P110: 0 | Q110: 0 | R110: 0 | S110: 0 | T110: 43
A111: 944+00.00/1 | B111: 80 | C111: 3481 | D111: 289 | E111: 3312 | F111: 0 | G111: 97 | H111: 0 | I111: 0 | J111: 0 | K111: 0 | L111: 0 | M111: 28 | N111: 0 | O111: 17 | P111: 0 | Q111: 0 | R111: 0 | S111: 0 | T111: 43
A112: 944+20.00/1 | B112: 98 | C112: 3453 | D112: 248 | E112: 2568 | F112: 0 | G112: 78 | H112: 0 | I112: 0 | J112: 0 | K112: 0 | L112: 0 | M112: 21 | N112: 0 | O112: 13 | P112: 0 | Q112: 0 | R112: 0 | S112: 0 | T112: 34
A113: 944+25.00/1 | B113: 96 | C113: 3472 | D113: 64 | E113: 641 | F113: 0 | G113: 20 | H113: 0 | I113: 0 | J113: 0 | K113: 0 | L113: 0 | M113: 5 | N113: 0 | O113: 3 | P113: 0 | Q113: 0 | R113: 0 | S113: 0 | T113: 9
A114: 944+50.00/1 | B114: 82 | C114: 3533 | D114: 310 | E114: 3243 | F114: 0 | G114: 98 | H114: 0 | I114: 0 | J114: 0 | K114: 0 | L114: 0 | M114: 26 | N114: 0 | O114: 17 | P114: 0 | Q114: 0 | R114: 0 | S114: 0 | T114: 43
A115: 944+75.00/1 | B115: 71 | C115: 3548 | D115: 299 | E115: 3278 | F115: 0 | G115: 96 | H115: 0 | I115: 0 | J115: 0 | K115: 0 | L115: 0 | M115: 26 | N115: 0 | O115: 17 | P115: 0 | Q115: 0 | R115: 0 | S115: 0 | T115: 43
A116: 945+00.00/1 | B116: 54 | C116: 3539 | D116: 287 | E116: 3281 | F116: 0 | G116: 95 | H116: 0 | I116: 0 | J116: 0 | K116: 0 | L116: 0 | M116: 26 | N116: 0 | O116: 16 | P116: 0 | Q116: 0 | R116: 0 | S116: 0 | T116: 44
A117: 945+25.00/1 | B117: 46 | C117: 3594 | D117: 278 | E117: 3303 | F117: 0 | G117: 95 | H117: 0 | I117: 0 | J117: 0 | K117: 0 | L117: 0 | M117: 26 | N117: 0 | O117: 16 | P117: 0 | Q117: 0 | R117: 0 | S117: 0 | T117: 44
A118: 945+28.52/1 | B118: 47 | C118: 3589 | D118: 39 | E118: 468 | F118: 0 | G118: 14 | H118: 0 | I118: 0 | J118: 0 | K118: 0 | L118: 0 | M118: 4 | N118: 0 | O118: 2 | P118: 0 | Q118: 0 | R118: 0 | S118: 0 | T118: 6
A119: 945+50.00/1 | B119: 44 | C119: 3586 | D119: 236 | E119: 2854 | F119: 0 | G119: 83 | H119: 0 | I119: 0 | J119: 0 | K119: 0 | L119: 0 | M119: 22 | N119: 0 | O119: 14 | P119: 0 | Q119: 0 | R119: 0 | S119: 0 | T119: 37
A120: 945+75.00/1 | B120: 38 | C120: 3581 | D120: 272 | E120: 3318 | F120: 0 | G120: 95 | H120: 0 | I120: 0 | J120: 0 | K120: 0 | L120: 0 | M120: 26 | N120: 0 | O120: 17 | P120: 0 | Q120: 0 | R120: 0 | S120: 0 | T120: 43
A121: 946+00.00/1 | B121: 33 | C121: 3599 | D121: 267 | E121: 3324 | F121: 0 | G121: 94 | H121: 0 | I121: 0 | J121: 0 | K121: 0 | L121: 0 | M121: 26 | N121: 0 | O121: 17 | P121: 0 | Q121: 0 | R121: 0 | S121: 0 | T121: 43
A122: 946+25.00/1 | B122: 26 | C122: 3673 | D122: 262 | E122: 3367 | F122: 0 | G122: 94 | H122: 0 | I122: 0 | J122: 0 | K122: 0 | L122: 0 | M122: 26 | N122: 0 | O122: 17 | P122: 0 | Q122: 0 | R122: 0 | S122: 0 | T122: 43
A123: 946+50.00/1 | B123: 22 | C123: 3715 | D123: 257 | E123: 3420 | F123: 0 | G123: 93 | H123: 0 | I123: 0 | J123: 0 | K123: 0 | L123: 0 | M123: 26 | N123: 0 | O123: 17 | P123: 0 | Q123: 0 | R123: 0 | S123: 0 | T123: 43
A124: 946+75.00/1 | B124: 15 | C124: 3743 | D124: 252 | E124: 3453 | F124: 0 | G124: 92 | H124: 0 | I124: 0 | J124: 0 | K124: 0 | L124: 0 | M124: 26 | N124: 0 | O124: 16 | P124: 0 | Q124: 0 | R124: 0 | S124: 0 | T124: 44
A125: 947+00.00/1 | B125: 11 | C125: 3664 | D125: 248 | E125: 3429 | F125: 0 | G125: 91 | H125: 0 | I125: 0 | J125: 0 | K125: 0 | L125: 0 | M125: 26 | N125: 0 | O125: 16 | P125: 0 | Q125: 0 | R125: 0 | S125: 0 | T125: 44
A126: 947+25.00/1 | B126: 12 | C126: 3502 | D126: 247 | E126: 3317 | F126: 0 | G126: 91 | H126: 0 | I126: 0 | J126: 0 | K126: 0 | L126: 0 | M126: 26 | N126: 0 | O126: 17 | P126: 0 | Q126: 0 | R126: 0 | S126: 0 | T126: 43
A127: 947+50.00/1 | B127: 18 | C127: 3074 | D127: 248 | E127: 3044 | F127: 0 | G127: 92 | H127: 0 | I127: 0 | J127: 0 | K127: 0 | L127: 0 | M127: 26 | N127: 0 | O127: 15 | P127: 0 | Q127: 0 | R127: 0 | S127: 0 | T127: 43
A128: 947+75.00/1 | B128: 9 | C128: 2646 | D128: 245 | E128: 2649 | F128: 0 | G128: 91 | H128: 0 | I128: 0 | J128: 0 | K128: 0 | L128: 0 | M128: 26 | N128: 0 | O128: 14 | P128: 0 | Q128: 0 | R128: 0 | S128: 0 | T128: 43
A129: 948+00.00/1 | B129: 6 | C129: 2085 | D129: 238 | E129: 2191 | F129: 0 | G129: 87 | H129: 0 | I129: 0 | J129: 0 | K129: 0 | L129: 0 | M129: 26 | N129: 0 | O129: 14 | P129: 0 | Q129: 0 | R129: 0 | S129: 0 | T129: 43
A130: 948+25.00/1 | B130: 16 | C130: 1497 | D130: 233 | E130: 1658 | F130: 0 | G130: 82 | H130: 0 | I130: 0 | J130: 0 | K130: 0 | L130: 0 | M130: 26 | N130: 0 | O130: 14 | P130: 0 | Q130: 0 | R130: 0 | S130: 0 | T130: 43
A131: 948+50.00/1 | B131: 199 | C131: 1071 | D131: 295 | E131: 1191 | F131: 0 | G131: 80 | H131: 3 | I131: 0 | J131: 0 | K131: 0 | L131: 0 | M131: 27 | N131: 0 | O131: 13 | P131: 0 | Q131: 0 | R131: 0 | S131: 0 | T131: 43
A132: 948+75.00/1 | B132: 596 | C132: 722 | D132: 509 | E132: 835 | F132: 0 | G132: 77 | H132: 5 | I132: 0 | J132: 0 | K132: 0 | L132: 0 | M132: 27 | N132: 0 | O132: 12 | P132: 0 | Q132: 0 | R132: 0 | S132: 0 | T132: 43
A133: 949+00.00/1 | B133: 1013 | C133: 545 | D133: 848 | E133: 592 | F133: 0 | G133: 74 | H133: 5 | I133: 0 | J133: 0 | K133: 0 | L133: 0 | M133: 27 | N133: 0 | O133: 13 | P133: 0 | Q133: 0 | R133: 0 | S133: 0 | T133: 43
A134: 949+25.00/1 | B134: 1328 | C134: 327 | D134: 1175 | E134: 411 | F134: 0 | G134: 74 | H134: 7 | I134: 0 | J134: 0 | K134: 0 | L134: 0 | M134: 25 | N134: 0 | O134: 12 | P134: 0 | Q134: 0 | R134: 0 | S134: 0 | T134: 43
A135: 949+50.00/1 | B135: 1739 | C135: 155 | D135: 1488 | E135: 233 | F135: 0 | G135: 71 | H135: 10 | I135: 0 | J135: 0 | K135: 0 | L135: 0 | M135: 24 | N135: 0 | O135: 10 | P135: 0 | Q135: 0 | R135: 0 | S135: 0 | T135: 44
A136: 949+75.00/1 | B136: 2094 | C136: 58 | D136: 1817 | E136: 109 | F136: 0 | G136: 67 | H136: 10 | I136: 0 | J136: 0 | K136: 0 | L136: 0 | M136: 24 | N136: 0 | O136: 10 | P136: 0 | Q136: 0 | R136: 0 | S136: 0 | T136: 44
A137: 950+00.00/1 | B137: 2235 | C137: 16 | D137: 2026 | E137: 44 | F137: 0 | G137: 60 | H137: 10 | I137: 0 | J137: 0 | K137: 0 | L137: 0 | M137: 24 | N137: 0 | O137: 10 | P137: 0 | Q137: 0 | R137: 0 | S137: 0 | T137: 44
A138: 950+25.00/1 | B138: 2143 | C138: 2 | D138: 2035 | E138: 19 | F138: 0 | G138: 52 | H138: 10 | I138: 0 | J138: 0 | K138: 0 | L138: 0 | M138: 24 | N138: 0 | O138: 10 | P138: 0 | Q138: 0 | R138: 0 | S138: 0 | T138: 44
A139: 950+50.00/1 | B139: 1852 | C139: 2 | D139: 1851 | E139: 12 | F139: 0 | G139: 48 | H139: 10 | I139: 0 | J139: 0 | K139: 0 | L139: 0 | M139: 24 | N139: 0 | O139: 10 | P139: 0 | Q139: 0 | R139: 0 | S139: 0 | T139: 44
A140: 950+75.00/1 | B140: 1455 | C140: 4 | D140: 1533 | E140: 13 | F140: 0 | G140: 48 | H140: 10 | I140: 0 | J140: 0 | K140: 0 | L140: 0 | M140: 24 | N140: 0 | O140: 10 | P140: 0 | Q140: 0 | R140: 0 | S140: 0 | T140: 44
A141: 951+00.00/1 | B141: 1015 | C141: 33 | D141: 1155 | E141: 27 | F141: 0 | G141: 52 | H141: 10 | I141: 0 | J141: 0 | K141: 0 | L141: 0 | M141: 24 | N141: 0 | O141: 10 | P141: 0 | Q141: 0 | R141: 0 | S141: 0 | T141: 44
A142: 951+25.00/1 | B142: 529 | C142: 150 | D142: 755 | E142: 95 | F142: 0 | G142: 59 | H142: 10 | I142: 0 | J142: 0 | K142: 0 | L142: 0 | M142: 24 | N142: 0 | O142: 10 | P142: 0 | Q142: 0 | R142: 0 | S142: 0 | T142: 44
A143: 951+50.00/1 | B143: 113 | C143: 444 | D143: 395 | E143: 285 | F143: 0 | G143: 65 | H143: 10 | I143: 0 | J143: 0 | K143: 0 | L143: 0 | M143: 24 | N143: 0 | O143: 10 | P143: 0 | Q143: 0 | R143: 0 | S143: 0 | T143: 44
A144: 951+75.00/1 | B144: 1 | C144: 905 | D144: 212 | E144: 632 | F144: 0 | G144: 59 | H144: 7 | I144: 0 | J144: 0 | K144: 0 | L144: 0 | M144: 23 | N144: 0 | O144: 13 | P144: 0 | Q144: 0 | R144: 0 | S144: 0 | T144: 44
A145: 952+00.00/1 | B145: 64 | C145: 1378 | D145: 219 | E145: 1062 | F145: 0 | G145: 63 | H145: 5 | I145: 0 | J145: 0 | K145: 0 | L145: 0 | M145: 23 | N145: 0 | O145: 14 | P145: 0 | Q145: 0 | R145: 0 | S145: 0 | T145: 43
A146: 952+25.00/1 | B146: 30 | C146: 1814 | D146: 239 | E146: 1483 | F146: 0 | G146: 75 | H146: 5 | I146: 0 | J146: 0 | K146: 0 | L146: 0 | M146: 23 | N146: 0 | O146: 12 | P146: 0 | Q146: 0 | R146: 0 | S146: 0 | T146: 43
A147: 952+50.00/1 | B147: 18 | C147: 2142 | D147: 223 | E147: 1836 | F147: 0 | G147: 73 | H147: 5 | I147: 0 | J147: 0 | K147: 0 | L147: 0 | M147: 23 | N147: 0 | O147: 12 | P147: 0 | Q147: 0 | R147: 0 | S147: 0 | T147: 43
A148: 952+75.00/1 | B148: 12 | C148: 2398 | D148: 221 | E148: 2107 | F148: 0 | G148: 75 | H148: 5 | I148: 0 | J148: 0 | K148: 0 | L148: 0 | M148: 23 | N148: 0 | O148: 12 | P148: 0 | Q148: 0 | R148: 0 | S148: 0 | T148: 43
A149: 953+00.00/1 | B149: 9 | C149: 2606 | D149: 222 | E149: 2322 | F149: 0 | G149: 77 | H149: 5 | I149: 0 | J149: 0 | K149: 0 | L149: 0 | M149: 23 | N149: 0 | O149: 12 | P149: 0 | Q149: 0 | R149: 0 | S149: 0 | T149: 43
A150: 953+25.00/1 | B150: 16 | C150: 2659 | D150: 226 | E150: 2443 | F150: 0 | G150: 79 | H150: 5 | I150: 0 | J150: 0 | K150: 0 | L150: 0 | M150: 23 | N150: 0 | O150: 12 | P150: 0 | Q150: 0 | R150: 0 | S150: 0 | T150: 43
A151: 953+50.00/1 | B151: 19 | C151: 2714 | D151: 232 | E151: 2493 | F151: 0 | G151: 81 | H151: 5 | I151: 0 | J151: 0 | K151: 0 | L151: 0 | M151: 23 | N151: 0 | O151: 12 | P151: 0 | Q151: 0 | R151: 0 | S151: 0 | T151: 43
A152: 953+75.00/1 | B152: 22 | C152: 2732 | D152: 236 | E152: 2526 | F152: 0 | G152: 83 | H152: 5 | I152: 0 | J152: 0 | K152: 0 | L152: 0 | M152: 23 | N152: 0 | O152: 12 | P152: 0 | Q152: 0 | R152: 0 | S152: 0 | T152: 43
A153: 954+00.00/1 | B153: 23 | C153: 2692 | D153: 238 | E153: 2516 | F153: 0 | G153: 84 | H153: 5 | I153: 0 | J153: 0 | K153: 0 | L153: 0 | M153: 23 | N153: 0 | O153: 12 | P153: 0 | Q153: 0 | R153: 0 | S153: 0 | T153: 43
A154: 954+20.00/1 | B154: 22 | C154: 2639 | D154: 189 | E154: 1978 | F154: 0 | G154: 66 | H154: 3 | I154: 0 | J154: 0 | K154: 0 | L154: 0 | M154: 18 | N154: 0 | O154: 10 | P154: 0 | Q154: 0 | R154: 0 | S154: 0 | T154: 35
A155: 954+25.00/1 | B155: 21 | C155: 2595 | D155: 47 | E155: 485 | F155: 0 | G155: 16 | H155: 0 | I155: 0 | J155: 0 | K155: 0 | L155: 0 | M155: 4 | N155: 0 | O155: 3 | P155: 0 | Q155: 0 | R155: 0 | S155: 0 | T155: 9
A156: 954+50.00/1 | B156: 59 | C156: 2533 | D156: 249 | E156: 2374 | F156: 0 | G156: 82 | H156: 0 | I156: 0 | J156: 0 | K156: 0 | L156: 0 | M156: 22 | N156: 0 | O156: 17 | P156: 0 | Q156: 0 | R156: 0 | S156: 0 | T156: 43
A157: 954+75.00/1 | B157: 76 | C157: 2496 | D157: 275 | E157: 2328 | F157: 0 | G157: 89 | H157: 0 | I157: 0 | J157: 0 | K157: 0 | L157: 0 | M157: 22 | N157: 0 | O157: 19 | P157: 0 | Q157: 0 | R157: 0 | S157: 0 | T157: 43
A158: 955+00.00/1 | B158: 75 | C158: 2440 | D158: 282 | E158: 2285 | F158: 0 | G158: 89 | H158: 0 | I158: 0 | J158: 0 | K158: 0 | L158: 0 | M158: 22 | N158: 0 | O158: 20 | P158: 0 | Q158: 0 | R158: 0 | S158: 0 | T158: 43
A159: 955+25.00/1 | B159: 78 | C159: 2388 | D159: 281 | E159: 2235 | F159: 0 | G159: 89 | H159: 0 | I159: 0 | J159: 0 | K159: 0 | L159: 0 | M159: 22 | N159: 0 | O159: 20 | P159: 0 | Q159: 0 | R159: 0 | S159: 0 | T159: 43
A160: 955+50.00/1 | B160: 78 | C160: 2358 | D160: 281 | E160: 2197 | F160: 0 | G160: 88 | H160: 0 | I160: 0 | J160: 0 | K160: 0 | L160: 0 | M160: 22 | N160: 0 | O160: 20 | P160: 0 | Q160: 0 | R160: 0 | S160: 0 | T160: 43
A161: 955+75.00/1 | B161: 76 | C161: 2311 | D161: 279 | E161: 2161 | F161: 0 | G161: 88 | H161: 0 | I161: 0 | J161: 0 | K161: 0 | L161: 0 | M161: 22 | N161: 0 | O161: 20 | P161: 0 | Q161: 0 | R161: 0 | S161: 0 | T161: 43
A162: 956+00.00/1 | B162: 73 | C162: 2249 | D162: 276 | E162: 2111 | F162: 0 | G162: 87 | H162: 0 | I162: 0 | J162: 0 | K162: 0 | L162: 0 | M162: 22 | N162: 0 | O162: 20 | P162: 0 | Q162: 0 | R162: 0 | S162: 0 | T162: 43
A163: 956+25.00/1 | B163: 72 | C163: 2191 | D163: 274 | E163: 2055 | F163: 0 | G163: 86 | H163: 0 | I163: 0 | J163: 0 | K163: 0 | L163: 0 | M163: 22 | N163: 0 | O163: 20 | P163: 0 | Q163: 0 | R163: 0 | S163: 0 | T163: 43
A164: 956+50.00/1 | B164: 60 | C164: 2138 | D164: 267 | E164: 2004 | F164: 0 | G164: 84 | H164: 0 | I164: 0 | J164: 0 | K164: 0 | L164: 0 | M164: 22 | N164: 0 | O164: 20 | P164: 0 | Q164: 0 | R164: 0 | S164: 0 | T164: 43
A165: 956+75.00/1 | B165: 34 | C165: 2116 | D165: 249 | E165: 1970 | F165: 0 | G165: 78 | H165: 0 | I165: 0 | J165: 0 | K165: 0 | L165: 0 | M165: 22 | N165: 0 | O165: 20 | P165: 0 | Q165: 0 | R165: 0 | S165: 0 | T165: 43
A166: 957+00.00/1 | B166: 10 | C166: 2101 | D166: 227 | E166: 1952 | F166: 0 | G166: 70 | H166: 0 | I166: 0 | J166: 0 | K166: 0 | L166: 0 | M166: 22 | N166: 0 | O166: 20 | P166: 0 | Q166: 0 | R166: 0 | S166: 0 | T166: 43
A167: 957+00.02/1 | B167: 10 | C167: 2101 | D167: 0 | E167: 2 | F167: 0 | G167: 0 | H167: 0 | I167: 0 | J167: 0 | K167: 0 | L167: 0 | M167: 0 | N167: 0 | O167: 0 | P167: 0 | Q167: 0 | R167: 0 | S167: 0 | T167: 0
A168: 957+25.00/1 | B168: 35 | C168: 2065 | D168: 230 | E168: 1927 | F168: 0 | G168: 76 | H168: 0 | I168: 0 | J168: 0 | K168: 0 | L168: 0 | M168: 22 | N168: 0 | O168: 20 | P168: 0 | Q168: 0 | R168: 0 | S168: 0 | T168: 43
A169: 957+50.00/1 | B169: 24 | C169: 1983 | D169: 241 | E169: 1874 | F169: 0 | G169: 83 | H169: 0 | I169: 0 | J169: 0 | K169: 0 | L169: 0 | M169: 22 | N169: 0 | O169: 20 | P169: 0 | Q169: 0 | R169: 0 | S169: 0 | T169: 43
A170: 957+75.00/1 | B170: 16 | C170: 1861 | D170: 237 | E170: 1780 | F170: 0 | G170: 81 | H170: 0 | I170: 0 | J170: 0 | K170: 0 | L170: 0 | M170: 22 | N170: 0 | O170: 20 | P170: 0 | Q170: 0 | R170: 0 | S170: 0 | T170: 43
A171: 958+00.00/1 | B171: 21 | C171: 1702 | D171: 235 | E171: 1650 | F171: 0 | G171: 80 | H171: 0 | I171: 0 | J171: 0 | K171: 0 | L171: 0 | M171: 22 | N171: 0 | O171: 20 | P171: 0 | Q171: 0 | R171: 0 | S171: 0 | T171: 43
A172: 958+25.00/1 | B172: 24 | C172: 1559 | D172: 235 | E172: 1509 | F172: 0 | G172: 79 | H172: 0 | I172: 0 | J172: 0 | K172: 0 | L172: 0 | M172: 22 | N172: 0 | O172: 20 | P172: 0 | Q172: 0 | R172: 0 | S172: 0 | T172: 43
A173: 958+50.00/1 | B173: 31 | C173: 1428 | D173: 236 | E173: 1383 | F173: 0 | G173: 78 | H173: 0 | I173: 0 | J173: 0 | K173: 0 | L173: 0 | M173: 22 | N173: 0 | O173: 20 | P173: 0 | Q173: 0 | R173: 0 | S173: 0 | T173: 43
A174: 958+75.00/1 | B174: 36 | C174: 1296 | D174: 239 | E174: 1261 | F174: 0 | G174: 76 | H174: 0 | I174: 0 | J174: 0 | K174: 0 | L174: 0 | M174: 22 | N174: 0 | O174: 20 | P174: 0 | Q174: 0 | R174: 0 | S174: 0 | T174: 43
A175: 959+00.00/1 | B175: 41 | C175: 1182 | D175: 240 | E175: 1147 | F175: 0 | G175: 75 | H175: 0 | I175: 0 | J175: 0 | K175: 0 | L175: 0 | M175: 22 | N175: 0 | O175: 20 | P175: 0 | Q175: 0 | R175: 0 | S175: 0 | T175: 43
A176: 959+25.00/1 | B176: 47 | C176: 1062 | D176: 241 | E176: 1039 | F176: 0 | G176: 74 | H176: 0 | I176: 0 | J176: 0 | K176: 0 | L176: 0 | M176: 22 | N176: 0 | O176: 20 | P176: 0 | Q176: 0 | R176: 0 | S176: 0 | T176: 43
A177: 959+50.00/1 | B177: 51 | C177: 939 | D177: 239 | E177: 926 | F177: 0 | G177: 71 | H177: 0 | I177: 0 | J177: 0 | K177: 0 | L177: 0 | M177: 22 | N177: 0 | O177: 20 | P177: 0 | Q177: 0 | R177: 0 | S177: 0 | T177: 43
A178: 959+75.00/1 | B178: 91 | C178: 774 | D178: 249 | E178: 793 | F178: 0 | G178: 70 | H178: 0 | I178: 0 | J178: 0 | K178: 0 | L178: 0 | M178: 22 | N178: 0 | O178: 20 | P178: 0 | Q178: 0 | R178: 0 | S178: 0 | T178: 43
A179: 960+00.00/1 | B179: 140 | C179: 605 | D179: 280 | E179: 638 | F179: 0 | G179: 70 | H179: 0 | I179: 0 | J179: 0 | K179: 0 | L179: 0 | M179: 22 | N179: 0 | O179: 20 | P179: 0 | Q179: 0 | R179: 0 | S179: 0 | T179: 43
A180: 960+25.00/1 | B180: 217 | C180: 439 | D180: 319 | E180: 483 | F180: 0 | G180: 69 | H180: 0 | I180: 0 | J180: 0 | K180: 0 | L180: 0 | M180: 22 | N180: 0 | O180: 20 | P180: 0 | Q180: 0 | R180: 0 | S180: 0 | T180: 43
A181: 960+50.00/1 | B181: 308 | C181: 302 | D181: 368 | E181: 343 | F181: 0 | G181: 69 | H181: 0 | I181: 1 | J181: 0 | K181: 0 | L181: 0 | M181: 22 | N181: 0 | O181: 20 | P181: 0 | Q181: 0 | R181: 0 | S181: 0 | T181: 43
A182: 960+75.00/1 | B182: 439 | C182: 326 | D182: 497 | E182: 291 | F182: 0 | G182: 66 | H182: 0 | I182: 6 | J182: 0 | K182: 0 | L182: 0 | M182: 22 | N182: 0 | O182: 20 | P182: 0 | Q182: 0 | R182: 0 | S182: 0 | T182: 43
A183: 961+00.00/1 | B183: 597 | C183: 236 | D183: 659 | E183: 260 | F183: 0 | G183: 57 | H183: 0 | I183: 17 | J183: 0 | K183: 0 | L183: 0 | M183: 22 | N183: 0 | O183: 20 | P183: 0 | Q183: 0 | R183: 0 | S183: 0 | T183: 43
A184: 961+25.00/1 | B184: 768 | C184: 158 | D184: 784 | E184: 182 | F184: 0 | G184: 47 | H184: 0 | I184: 31 | J184: 0 | K184: 0 | L184: 0 | M184: 22 | N184: 0 | O184: 20 | P184: 0 | Q184: 0 | R184: 0 | S184: 0 | T184: 43
A185: 961+50.00/1 | B185: 950 | C185: 96 | D185: 908 | E185: 117 | F185: 0 | G185: 42 | H185: 0 | I185: 43 | J185: 0 | K185: 0 | L185: 0 | M185: 22 | N185: 0 | O185: 20 | P185: 0 | Q185: 0 | R185: 0 | S185: 0 | T185: 43
A186: 961+75.00/1 | B186: 1135 | C186: 57 | D186: 1036 | E186: 71 | F186: 0 | G186: 40 | H186: 0 | I186: 57 | J186: 0 | K186: 0 | L186: 0 | M186: 22 | N186: 0 | O186: 20 | P186: 0 | Q186: 0 | R186: 0 | S186: 0 | T186: 43
A187: 962+00.00/1 | B187: 1345 | C187: 2 | D187: 1175 | E187: 27 | F187: 0 | G187: 37 | H187: 0 | I187: 86 | J187: 0 | K187: 0 | L187: 0 | M187: 22 | N187: 0 | O187: 20 | P187: 0 | Q187: 0 | R187: 0 | S187: 0 | T187: 43
A188: 962+20.00/1 | B188: 1477 | C188: 1 | D188: 1046 | E188: 1 | F188: 0 | G188: 28 | H188: 0 | I188: 88 | J188: 0 | K188: 0 | L188: 0 | M188: 17 | N188: 0 | O188: 16 | P188: 0 | Q188: 0 | R188: 0 | S188: 0 | T188: 34
A189: 962+25.00/1 | B189: 1523 | C189: 2 | D189: 278 | E189: 0 | F189: 0 | G189: 7 | H189: 0 | I189: 23 | J189: 0 | K189: 0 | L189: 0 | M189: 4 | N189: 0 | O189: 4 | P189: 0 | Q189: 0 | R189: 0 | S189: 0 | T189: 9
A190: 962+50.00/1 | B190: 1754 | C190: 0 | D190: 1518 | E190: 1 | F190: 0 | G190: 32 | H190: 0 | I190: 119 | J190: 0 | K190: 0 | L190: 0 | M190: 22 | N190: 0 | O190: 20 | P190: 0 | Q190: 0 | R190: 0 | S190: 0 | T190: 43
A191: 962+75.00/1 | B191: 1874 | C191: 0 | D191: 1680 | E191: 2 | F191: 0 | G191: 31 | H191: 2 | I191: 125 | J191: 0 | K191: 0 | L191: 0 | M191: 22 | N191: 0 | O191: 17 | P191: 0 | Q191: 0 | R191: 0 | S191: 0 | T191: 43
A192: 963+00.00/1 | B192: 1901 | C192: 0 | D192: 1748 | E192: 5 | F192: 0 | G192: 32 | H192: 5 | I192: 117 | J192: 0 | K192: 0 | L192: 0 | M192: 23 | N192: 0 | O192: 15 | P192: 0 | Q192: 0 | R192: 0 | S192: 0 | T192: 44
A193: 963+25.00/1 | B193: 2045 | C193: 168 | D193: 1905 | E193: 83 | F193: 0 | G193: 37 | H193: 5 | I193: 101 | J193: 0 | K193: 0 | L193: 0 | M193: 23 | N193: 0 | O193: 15 | P193: 0 | Q193: 0 | R193: 0 | S193: 0 | T193: 43
A194: 963+50.00/1 | B194: 2159 | C194: 132 | D194: 2086 | E194: 144 | F194: 0 | G194: 36 | H194: 5 | I194: 105 | J194: 0 | K194: 0 | L194: 0 | M194: 23 | N194: 0 | O194: 15 | P194: 0 | Q194: 0 | R194: 0 | S194: 0 | T194: 43
A195: 963+75.00/1 | B195: 2220 | C195: 103 | D195: 2136 | E195: 114 | F195: 0 | G195: 29 | H195: 5 | I195: 117 | J195: 0 | K195: 0 | L195: 0 | M195: 23 | N195: 0 | O195: 15 | P195: 0 | Q195: 0 | R195: 0 | S195: 0 | T195: 43
A196: 964+00.00/1 | B196: 2267 | C196: 98 | D196: 2170 | E196: 98 | F196: 0 | G196: 28 | H196: 5 | I196: 121 | J196: 0 | K196: 0 | L196: 0 | M196: 23 | N196: 0 | O196: 15 | P196: 0 | Q196: 0 | R196: 0 | S196: 0 | T196: 43
A197: 964+25.00/1 | B197: 2311 | C197: 70 | D197: 2197 | E197: 83 | F197: 0 | G197: 26 | H197: 5 | I197: 125 | J197: 0 | K197: 0 | L197: 0 | M197: 23 | N197: 0 | O197: 15 | P197: 0 | Q197: 0 | R197: 0 | S197: 0 | T197: 43
A198: 964+50.00/1 | B198: 2313 | C198: 39 | D198: 2191 | E198: 56 | F198: 0 | G198: 23 | H198: 5 | I198: 134 | J198: 0 | K198: 0 | L198: 0 | M198: 23 | N198: 0 | O198: 15 | P198: 0 | Q198: 0 | R198: 0 | S198: 0 | T198: 43
A199: 964+75.00/1 | B199: 2370 | C199: 0 | D199: 2186 | E199: 23 | F199: 0 | G199: 20 | H199: 5 | I199: 163 | J199: 0 | K199: 0 | L199: 0 | M199: 23 | N199: 0 | O199: 15 | P199: 0 | Q199: 0 | R199: 0 | S199: 0 | T199: 43
A200: 965+00.00/1 | B200: 2383 | C200: 0 | D200: 2201 | E200: 5 | F200: 0 | G200: 19 | H200: 5 | I200: 179 | J200: 0 | K200: 0 | L200: 0 | M200: 23 | N200: 0 | O200: 15 | P200: 0 | Q200: 0 | R200: 0 | S200: 0 | T200: 43
A201: 965+25.00/1 | B201: 2422 | C201: 0 | D201: 2225 | E201: 5 | F201: 0 | G201: 19 | H201: 5 | I201: 172 | J201: 0 | K201: 0 | L201: 0 | M201: 23 | N201: 0 | O201: 15 | P201: 0 | Q201: 0 | R201: 0 | S201: 0 | T201: 43
... 569 more rows

Sheet P&S Input
A2: STATION | B2: CLASS 10 | C2: SELECT | D2: SELECT | E2: TOPSOIL | F2: TOPSOIL | G2: TOPSOIL | H2: TOPSOIL | I2: UNSUITABLE | J2: UNSUITABLE | K2: UNSUITABLE | L2: ROCK | M2: BROKEN & | N2: BOULDERS | O2: WASTE | P2: SHALE | Q2: PLOWING &
C3: LOAM | D3: SAND | E3: CLASS 10 | F3: UNSUITABLE | G3: UNSUITABLE | H3: UNSUITABLE | I3: TYPE A | J3: TYPE B | K3: TYPE C | M3: WEATHERED | Q3: SHAPING
F4: TYPE A | G4: TYPE B | H4: TYPE C | M4: ROCK | Q4: CUT & FILL
B5: COLUMN 1 | C5: COLUMN 2 | D5: COLUMN 3 | E5: COLUMN 4 | F5: COLUMN 5 | G5: COLUMN 6 | H5: COLUMN 7 | I5: COLUMN 8 | J5: COLUMN 9 | K5: COLUMN 10 | L5: COLUMN 11 | M5: COLUMN 12 | N5: COLUMN 13 | O5: COLUMN 14 | P5: COLUMN 15 | Q5: COLUMN 16 | R5: COLUMN 17 | S5: COLUMN 18 | T5: COLUMN 19

Sheet M&D Input
A2: STATION | B2: CLASS 10 | C2: SELECT | D2: SELECT | E2: TOPSOIL | F2: TOPSOIL | G2: TOPSOIL | H2: TOPSOIL | I2: UNSUITABLE | J2: UNSUITABLE | K2: UNSUITABLE | L2: ROCK | M2: BROKEN & | N2: BOULDERS | O2: WASTE | P2: SHALE | Q2: MOISTURE
C3: LOAM | D3: SAND | E3: CLASS 10 | F3: UNSUITABLE | G3: UNSUITABLE | H3: UNSUITABLE | I3: TYPE A | J3: TYPE B | K3: TYPE C | M3: WEATHERED | Q3: & DENSITY
F4: TYPE A | G4: TYPE B | H4: TYPE C | M4: ROCK | Q4: CUT & FILL
B5: COLUMN 1 | C5: COLUMN 2 | D5: COLUMN 3 | E5: COLUMN 4 | F5: COLUMN 5 | G5: COLUMN 6 | H5: COLUMN 7 | I5: COLUMN 8 | J5: COLUMN 9 | K5: COLUMN 10 | L5: COLUMN 11 | M5: COLUMN 12 | N5: COLUMN 13 | O5: COLUMN 14 | P5: COLUMN 15 | Q5: COLUMN 16 | R5: COLUMN 17 | S5: COLUMN 18 | T5: COLUMN 19

Sheet GB Input
A2: STATION | B2: CLASS 10 | C2: SELECT | D2: SELECT | E2: TOPSOIL | F2: TOPSOIL | G2: TOPSOIL | H2: TOPSOIL | I2: UNSUITABLE | J2: UNSUITABLE | K2: UNSUITABLE | L2: ROCK | M2: BROKEN & | N2: BOULDERS | O2: WASTE | P2: SHALE | Q2: GRANULAR | R2: FILL CAUSED | S2: PREV FILL | T2: GRAN BLKT
C3: LOAM | D3: SAND | E3: CLASS 10 | F3: UNSUITABLE | G3: UNSUITABLE | H3: UNSUITABLE | I3: TYPE A | J3: TYPE B | K3: TYPE C | M3: WEATHERED | Q3: BLANKET | R3: BY GRAN | S3: REMOVED BY | T3: FILL
F4: TYPE A | G4: TYPE B | H4: TYPE C | M4: ROCK | Q4: TOTAL CUT | R4: BLANKET | S4: GRAN BLKT | T4: TAB 104-5
B5: COLUMN 1 | C5: COLUMN 2 | D5: COLUMN 3 | E5: COLUMN 4 | F5: COLUMN 5 | G5: COLUMN 6 | H5: COLUMN 7 | I5: COLUMN 8 | J5: COLUMN 9 | K5: COLUMN 10 | L5: COLUMN 11 | M5: COLUMN 12 | N5: COLUMN 13 | O5: COLUMN 14 | P5: COLUMN 15 | Q5: COLUMN 16 | R5: COLUMN 17 | S5: COLUMN 18 | T5: COLUMN 19

Sheet P To A Input
A2: STATION | B2: CUT | C2: CUT
B3: END AREA | C3: VOLUME
B5: COLUMN 1 | C5: COLUMN 2 | D5: COLUMN 3 | E5: COLUMN 4 | F5: COLUMN 5 | G5: COLUMN 6 | H5: COLUMN 7 | I5: COLUMN 8 | J5: COLUMN 9 | K5: COLUMN 10 | L5: COLUMN 11 | M5: COLUMN 12 | N5: COLUMN 13 | O5: COLUMN 14 | P5: COLUMN 15 | Q5: COLUMN 16 | R5: COLUMN 17 | S5: COLUMN 18 | T5: COLUMN 19

Sheet Misc Input
A2: STATION | B2: CLASS 10 | C2: SELECT | D2: SELECT | E2: TOPSOIL | F2: TOPSOIL | G2: TOPSOIL | H2: TOPSOIL | I2: UNSUITABLE | J2: UNSUITABLE | K2: UNSUITABLE | L2: ROCK | M2: BROKEN & | N2: BOULDERS | O2: WASTE | P2: SHALE | Q2: MISC
C3: LOAM | D3: SAND | E3: CLASS 10 | F3: UNSUITABLE | G3: UNSUITABLE | H3: UNSUITABLE | I3: TYPE A | J3: TYPE B | K3: TYPE C | M3: WEATHERED | Q3: CUT AND
F4: TYPE A | G4: TYPE B | H4: TYPE C | M4: ROCK | Q4: FILL
B5: COLUMN 1 | C5: COLUMN 2 | D5: COLUMN 3 | E5: COLUMN 4 | F5: COLUMN 5 | G5: COLUMN 6 | H5: COLUMN 7 | I5: COLUMN 8 | J5: COLUMN 9 | K5: COLUMN 10 | L5: COLUMN 11 | M5: COLUMN 12 | N5: COLUMN 13 | O5: COLUMN 14 | P5: COLUMN 15 | Q5: COLUMN 16 | R5: COLUMN 17 | S5: COLUMN 18 | T5: COLUMN 19
A12: 928+00.00/1 | B12: 0 | C12: 0 | D12: 0 | E12: 0 | F12: 0 | G12: 0 | H12: 0 | I12: 0 | J12: 0 | K12: 0 | L12: 0 | M12: 0 | N12: 0 | O12: 0 | P12: 0 | Q12: 0
A13: 928+25.00/1 | B13: 235 | C13: 0 | D13: 0 | E13: 0 | F13: 0 | G13: 0 | H13: 0 | I13: 0 | J13: 0 | K13: 0 | L13: 0 | M13: 0 | N13: 0 | O13: 0 | P13: 0 | Q13: 235
A14: 928+50.00/1 | B14: 244 | C14: 0 | D14: 0 | E14: 0 | F14: 0 | G14: 0 | H14: 0 | I14: 0 | J14: 0 | K14: 0 | L14: 0 | M14: 0 | N14: 0 | O14: 0 | P14: 0 | Q14: 244
A15: 928+75.00/1 | B15: 256 | C15: 0 | D15: 0 | E15: 0 | F15: 0 | G15: 0 | H15: 0 | I15: 0 | J15: 0 | K15: 0 | L15: 0 | M15: 0 | N15: 0 | O15: 0 | P15: 0 | Q15: 256
A16: 929+00.00/1 | B16: 261 | C16: 0 | D16: 0 | E16: 0 | F16: 0 | G16: 0 | H16: 0 | I16: 0 | J16: 0 | K16: 0 | L16: 0 | M16: 0 | N16: 0 | O16: 0 | P16: 0 | Q16: 261
A17: 929+25.00/1 | B17: 266 | C17: 0 | D17: 0 | E17: 0 | F17: 0 | G17: 0 | H17: 0 | I17: 0 | J17: 0 | K17: 0 | L17: 0 | M17: 0 | N17: 0 | O17: 0 | P17: 0 | Q17: 266
A18: 929+50.00/1 | B18: 253 | C18: 0 | D18: 0 | E18: 0 | F18: 0 | G18: 0 | H18: 0 | I18: 0 | J18: 0 | K18: 0 | L18: 0 | M18: 0 | N18: 0 | O18: 0 | P18: 0 | Q18: 253
A19: 929+75.00/1 | B19: 252 | C19: 0 | D19: 0 | E19: 0 | F19: 0 | G19: 0 | H19: 0 | I19: 0 | J19: 0 | K19: 0 | L19: 0 | M19: 0 | N19: 0 | O19: 0 | P19: 0 | Q19: 252
A20: 930+00.00/1 | B20: 284 | C20: 0 | D20: 0 | E20: 0 | F20: 0 | G20: 0 | H20: 0 | I20: 0 | J20: 0 | K20: 0 | L20: 0 | M20: 0 | N20: 0 | O20: 0 | P20: 0 | Q20: 284
A21: 930+25.00/1 | B21: 308 | C21: 0 | D21: 0 | E21: 0 | F21: 0 | G21: 0 | H21: 0 | I21: 0 | J21: 0 | K21: 0 | L21: 0 | M21: 0 | N21: 0 | O21: 0 | P21: 0 | Q21: 308
A22: 930+50.00/1 | B22: 319 | C22: 0 | D22: 0 | E22: 0 | F22: 0 | G22: 0 | H22: 0 | I22: 0 | J22: 0 | K22: 0 | L22: 0 | M22: 0 | N22: 0 | O22: 0 | P22: 0 | Q22: 319
A23: 930+75.00/1 | B23: 328 | C23: 0 | D23: 0 | E23: 0 | F23: 0 | G23: 0 | H23: 0 | I23: 0 | J23: 0 | K23: 0 | L23: 0 | M23: 0 | N23: 0 | O23: 0 | P23: 0 | Q23: 328
A24: 931+00.00/1 | B24: 330 | C24: 0 | D24: 0 | E24: 0 | F24: 0 | G24: 0 | H24: 0 | I24: 0 | J24: 0 | K24: 0 | L24: 0 | M24: 0 | N24: 0 | O24: 0 | P24: 0 | Q24: 330
A25: 931+25.00/1 | B25: 315 | C25: 0 | D25: 0 | E25: 0 | F25: 0 | G25: 0 | H25: 0 | I25: 0 | J25: 0 | K25: 0 | L25: 0 | M25: 0 | N25: 0 | O25: 0 | P25: 0 | Q25: 315
A26: 931+50.00/1 | B26: 283 | C26: 0 | D26: 0 | E26: 0 | F26: 0 | G26: 0 | H26: 0 | I26: 0 | J26: 0 | K26: 0 | L26: 0 | M26: 0 | N26: 0 | O26: 0 | P26: 0 | Q26: 283
A27: 931+75.00/1 | B27: 254 | C27: 0 | D27: 0 | E27: 0 | F27: 0 | G27: 0 | H27: 0 | I27: 0 | J27: 0 | K27: 0 | L27: 0 | M27: 0 | N27: 0 | O27: 0 | P27: 0 | Q27: 254
A28: 932+00.00/1 | B28: 257 | C28: 0 | D28: 0 | E28: 0 | F28: 0 | G28: 0 | H28: 0 | I28: 0 | J28: 0 | K28: 0 | L28: 0 | M28: 0 | N28: 0 | O28: 0 | P28: 0 | Q28: 257
A29: 932+25.00/1 | B29: 282 | C29: 0 | D29: 0 | E29: 0 | F29: 0 | G29: 0 | H29: 0 | I29: 0 | J29: 0 | K29: 0 | L29: 0 | M29: 0 | N29: 0 | O29: 0 | P29: 0 | Q29: 282
A30: 932+50.00/1 | B30: 309 | C30: 0 | D30: 0 | E30: 0 | F30: 0 | G30: 0 | H30: 0 | I30: 0 | J30: 0 | K30: 0 | L30: 0 | M30: 0 | N30: 0 | O30: 0 | P30: 0 | Q30: 309
A31: 932+75.00/1 | B31: 327 | C31: 0 | D31: 0 | E31: 0 | F31: 0 | G31: 0 | H31: 0 | I31: 0 | J31: 0 | K31: 0 | L31: 0 | M31: 0 | N31: 0 | O31: 0 | P31: 0 | Q31: 327
A32: 933+00.00/1 | B32: 331 | C32: 0 | D32: 0 | E32: 0 | F32: 0 | G32: 0 | H32: 0 | I32: 0 | J32: 0 | K32: 0 | L32: 0 | M32: 0 | N32: 0 | O32: 0 | P32: 0 | Q32: 331
A33: 933+25.00/1 | B33: 329 | C33: 0 | D33: 0 | E33: 0 | F33: 0 | G33: 0 | H33: 0 | I33: 0 | J33: 0 | K33: 0 | L33: 0 | M33: 0 | N33: 0 | O33: 0 | P33: 0 | Q33: 329
A34: 933+50.00/1 | B34: 357 | C34: 0 | D34: 0 | E34: 0 | F34: 0 | G34: 0 | H34: 0 | I34: 0 | J34: 0 | K34: 0 | L34: 0 | M34: 0 | N34: 0 | O34: 0 | P34: 0 | Q34: 357
A35: 933+75.00/1 | B35: 386 | C35: 0 | D35: 0 | E35: 0 | F35: 0 | G35: 0 | H35: 0 | I35: 0 | J35: 0 | K35: 0 | L35: 0 | M35: 0 | N35: 0 | O35: 0 | P35: 0 | Q35: 386
A36: 934+00.00/1 | B36: 396 | C36: 0 | D36: 0 | E36: 0 | F36: 0 | G36: 0 | H36: 0 | I36: 0 | J36: 0 | K36: 0 | L36: 0 | M36: 0 | N36: 0 | O36: 0 | P36: 0 | Q36: 396
A37: 934+25.00/1 | B37: 428 | C37: 0 | D37: 0 | E37: 0 | F37: 0 | G37: 0 | H37: 0 | I37: 0 | J37: 0 | K37: 0 | L37: 0 | M37: 0 | N37: 0 | O37: 0 | P37: 0 | Q37: 428
A38: 934+41.91/1 | B38: 313 | C38: 0 | D38: 0 | E38: 0 | F38: 0 | G38: 0 | H38: 0 | I38: 0 | J38: 0 | K38: 0 | L38: 0 | M38: 0 | N38: 0 | O38: 0 | P38: 0 | Q38: 313
A39: 934+50.00/1 | B39: 156 | C39: 0 | D39: 0 | E39: 0 | F39: 0 | G39: 0 | H39: 0 | I39: 0 | J39: 0 | K39: 0 | L39: 0 | M39: 0 | N39: 0 | O39: 0 | P39: 0 | Q39: 156
A40: 934+70.71/1 | B40: 414 | C40: 0 | D40: 0 | E40: 0 | F40: 0 | G40: 0 | H40: 0 | I40: 0 | J40: 0 | K40: 0 | L40: 0 | M40: 0 | N40: 0 | O40: 0 | P40: 0 | Q40: 414
A41: 934+75.00/1 | B41: 88 | C41: 0 | D41: 0 | E41: 0 | F41: 0 | G41: 0 | H41: 0 | I41: 0 | J41: 0 | K41: 0 | L41: 0 | M41: 0 | N41: 0 | O41: 0 | P41: 0 | Q41: 88
A42: 935+00.00/1 | B42: 507 | C42: 0 | D42: 0 | E42: 0 | F42: 0 | G42: 0 | H42: 0 | I42: 0 | J42: 0 | K42: 0 | L42: 0 | M42: 0 | N42: 0 | O42: 0 | P42: 0 | Q42: 507
A43: 935+25.00/1 | B43: 504 | C43: 0 | D43: 0 | E43: 0 | F43: 0 | G43: 0 | H43: 0 | I43: 0 | J43: 0 | K43: 0 | L43: 0 | M43: 0 | N43: 0 | O43: 0 | P43: 0 | Q43: 504
A44: 935+37.91/1 | B44: 261 | C44: 0 | D44: 0 | E44: 0 | F44: 0 | G44: 0 | H44: 0 | I44: 0 | J44: 0 | K44: 0 | L44: 0 | M44: 0 | N44: 0 | O44: 0 | P44: 0 | Q44: 261
A45: 935+50.00/1 | B45: 245 | C45: 0 | D45: 0 | E45: 0 | F45: 0 | G45: 0 | H45: 0 | I45: 0 | J45: 0 | K45: 0 | L45: 0 | M45: 0 | N45: 0 | O45: 0 | P45: 0 | Q45: 245
A46: 935+75.00/1 | B46: 504 | C46: 0 | D46: 0 | E46: 0 | F46: 0 | G46: 0 | H46: 0 | I46: 0 | J46: 0 | K46: 0 | L46: 0 | M46: 0 | N46: 0 | O46: 0 | P46: 0 | Q46: 504
A47: 936+00.00/1 | B47: 491 | C47: 0 | D47: 0 | E47: 0 | F47: 0 | G47: 0 | H47: 0 | I47: 0 | J47: 0 | K47: 0 | L47: 0 | M47: 0 | N47: 0 | O47: 0 | P47: 0 | Q47: 491
A48: 936+14.55/1 | B48: 276 | C48: 0 | D48: 0 | E48: 0 | F48: 0 | G48: 0 | H48: 0 | I48: 0 | J48: 0 | K48: 0 | L48: 0 | M48: 0 | N48: 0 | O48: 0 | P48: 0 | Q48: 276
A49: 936+25.00/1 | B49: 193 | C49: 0 | D49: 0 | E49: 0 | F49: 0 | G49: 0 | H49: 0 | I49: 0 | J49: 0 | K49: 0 | L49: 0 | M49: 0 | N49: 0 | O49: 0 | P49: 0 | Q49: 193
A50: 936+33.91/1 | B50: 161 | C50: 0 | D50: 0 | E50: 0 | F50: 0 | G50: 0 | H50: 0 | I50: 0 | J50: 0 | K50: 0 | L50: 0 | M50: 0 | N50: 0 | O50: 0 | P50: 0 | Q50: 161
A51: 936+34.55/1 | B51: 11 | C51: 0 | D51: 0 | E51: 0 | F51: 0 | G51: 0 | H51: 0 | I51: 0 | J51: 0 | K51: 0 | L51: 0 | M51: 0 | N51: 0 | O51: 0 | P51: 0 | Q51: 11
A52: 936+50.00/1 | B52: 273 | C52: 0 | D52: 0 | E52: 0 | F52: 0 | G52: 0 | H52: 0 | I52: 0 | J52: 0 | K52: 0 | L52: 0 | M52: 0 | N52: 0 | O52: 0 | P52: 0 | Q52: 273
A53: 936+75.00/1 | B53: 437 | C53: 0 | D53: 0 | E53: 0 | F53: 0 | G53: 0 | H53: 0 | I53: 0 | J53: 0 | K53: 0 | L53: 0 | M53: 0 | N53: 0 | O53: 0 | P53: 0 | Q53: 437
A54: 936+83.22/1 | B54: 145 | C54: 0 | D54: 0 | E54: 0 | F54: 0 | G54: 0 | H54: 0 | I54: 0 | J54: 0 | K54: 0 | L54: 0 | M54: 0 | N54: 0 | O54: 0 | P54: 0 | Q54: 145
A55: 937+00.00/1 | B55: 688 | C55: 0 | D55: 0 | E55: 0 | F55: 0 | G55: 0 | H55: 0 | I55: 0 | J55: 0 | K55: 0 | L55: 0 | M55: 0 | N55: 0 | O55: 0 | P55: 0 | Q55: 688
A56: 937+01.45/1 | B56: 97 | C56: 0 | D56: 0 | E56: 0 | F56: 0 | G56: 0 | H56: 0 | I56: 0 | J56: 0 | K56: 0 | L56: 0 | M56: 0 | N56: 0 | O56: 0 | P56: 0 | Q56: 97
A57: 937+12.00/1 | B57: 782 | C57: 0 | D57: 0 | E57: 0 | F57: 0 | G57: 0 | H57: 0 | I57: 0 | J57: 0 | K57: 0 | L57: 0 | M57: 0 | N57: 0 | O57: 0 | P57: 0 | Q57: 782
A58: 937+25.00/1 | B58: 997 | C58: 0 | D58: 0 | E58: 0 | F58: 0 | G58: 0 | H58: 0 | I58: 0 | J58: 0 | K58: 0 | L58: 0 | M58: 0 | N58: 0 | O58: 0 | P58: 0 | Q58: 997
A59: 937+25.52/1 | B59: 39 | C59: 0 | D59: 0 | E59: 0 | F59: 0 | G59: 0 | H59: 0 | I59: 0 | J59: 0 | K59: 0 | L59: 0 | M59: 0 | N59: 0 | O59: 0 | P59: 0 | Q59: 39
A60: 937+41.45/1 | B60: 1155 | C60: 0 | D60: 0 | E60: 0 | F60: 0 | G60: 0 | H60: 0 | I60: 0 | J60: 0 | K60: 0 | L60: 0 | M60: 0 | N60: 0 | O60: 0 | P60: 0 | Q60: 1155
A61: 937+46.00/1 | B61: 318 | C61: 0 | D61: 0 | E61: 0 | F61: 0 | G61: 0 | H61: 0 | I61: 0 | J61: 0 | K61: 0 | L61: 0 | M61: 0 | N61: 0 | O61: 0 | P61: 0 | Q61: 318
A62: 937+50.00/1 | B62: 275 | C62: 0 | D62: 0 | E62: 0 | F62: 0 | G62: 0 | H62: 0 | I62: 0 | J62: 0 | K62: 0 | L62: 0 | M62: 0 | N62: 0 | O62: 0 | P62: 0 | Q62: 275
A63: 937+71.79/1 | B63: 1456 | C63: 0 | D63: 0 | E63: 0 | F63: 0 | G63: 0 | H63: 0 | I63: 0 | J63: 0 | K63: 0 | L63: 0 | M63: 0 | N63: 0 | O63: 0 | P63: 0 | Q63: 1456
A64: 937+75.00/1 | B64: 213 | C64: 0 | D64: 0 | E64: 0 | F64: 0 | G64: 0 | H64: 0 | I64: 0 | J64: 0 | K64: 0 | L64: 0 | M64: 0 | N64: 0 | O64: 0 | P64: 0 | Q64: 213
A65: 937+99.31/1 | B65: 1564 | C65: 0 | D65: 0 | E65: 0 | F65: 0 | G65: 0 | H65: 0 | I65: 0 | J65: 0 | K65: 0 | L65: 0 | M65: 0 | N65: 0 | O65: 0 | P65: 0 | Q65: 1564
A66: 938+00.00/1 | B66: 43 | C66: 0 | D66: 0 | E66: 0 | F66: 0 | G66: 0 | H66: 0 | I66: 0 | J66: 0 | K66: 0 | L66: 0 | M66: 0 | N66: 0 | O66: 0 | P66: 0 | Q66: 43
A67: 938+00.21/1 | B67: 13 | C67: 0 | D67: 0 | E67: 0 | F67: 0 | G67: 0 | H67: 0 | I67: 0 | J67: 0 | K67: 0 | L67: 0 | M67: 0 | N67: 0 | O67: 0 | P67: 0 | Q67: 13
A68: 938+10.00/1 | B68: 624 | C68: 0 | D68: 0 | E68: 0 | F68: 0 | G68: 0 | H68: 0 | I68: 0 | J68: 0 | K68: 0 | L68: 0 | M68: 0 | N68: 0 | O68: 0 | P68: 0 | Q68: 624
A69: 938+25.00/1 | B69: 995 | C69: 0 | D69: 0 | E69: 0 | F69: 0 | G69: 0 | H69: 0 | I69: 0 | J69: 0 | K69: 0 | L69: 0 | M69: 0 | N69: 0 | O69: 0 | P69: 0 | Q69: 995
A70: 938+42.00/1 | B70: 1090 | C70: 0 | D70: 0 | E70: 0 | F70: 0 | G70: 0 | H70: 0 | I70: 0 | J70: 0 | K70: 0 | L70: 0 | M70: 0 | N70: 0 | O70: 0 | P70: 0 | Q70: 1090
A71: 938+50.00/1 | B71: 446 | C71: 0 | D71: 0 | E71: 0 | F71: 0 | G71: 0 | H71: 0 | I71: 0 | J71: 0 | K71: 0 | L71: 0 | M71: 0 | N71: 0 | O71: 0 | P71: 0 | Q71: 446
A72: 938+50.69/1 | B72: 34 | C72: 0 | D72: 0 | E72: 0 | F72: 0 | G72: 0 | H72: 0 | I72: 0 | J72: 0 | K72: 0 | L72: 0 | M72: 0 | N72: 0 | O72: 0 | P72: 0 | Q72: 34
A73: 938+61.78/1 | B73: 555 | C73: 0 | D73: 0 | E73: 0 | F73: 0 | G73: 0 | H73: 0 | I73: 0 | J73: 0 | K73: 0 | L73: 0 | M73: 0 | N73: 0 | O73: 0 | P73: 0 | Q73: 555
A74: 938+75.00/1 | B74: 580 | C74: 0 | D74: 0 | E74: 0 | F74: 0 | G74: 0 | H74: 0 | I74: 0 | J74: 0 | K74: 0 | L74: 0 | M74: 0 | N74: 0 | O74: 0 | P74: 0 | Q74: 580
A75: 938+94.27/1 | B75: 676 | C75: 0 | D75: 0 | E75: 0 | F75: 0 | G75: 0 | H75: 0 | I75: 0 | J75: 0 | K75: 0 | L75: 0 | M75: 0 | N75: 0 | O75: 0 | P75: 0 | Q75: 676
A76: 939+00.00/1 | B76: 212 | C76: 0 | D76: 0 | E76: 0 | F76: 0 | G76: 0 | H76: 0 | I76: 0 | J76: 0 | K76: 0 | L76: 0 | M76: 0 | N76: 0 | O76: 0 | P76: 0 | Q76: 212
A77: 939+25.00/1 | B77: 689 | C77: 0 | D77: 0 | E77: 0 | F77: 0 | G77: 0 | H77: 0 | I77: 0 | J77: 0 | K77: 0 | L77: 0 | M77: 0 | N77: 0 | O77: 0 | P77: 0 | Q77: 689

Sheet Total Cut & Fill Adj
A1: UNADJUSTED TOTAL CUT | Q1: UNADJUSTED TOTAL FILL
J2: TOTAL CUT ADJUSTMENTS | AA2: TOTAL FILL ADJUSTMENTS
A3: FROM | B3: EXCEL | C3: FROM | E3: FROM | F3: FROM | G3: FROM | H3: FROM | I3: USER | J3: USER | K3: USER | L3: USER | M3: USER | N3: USER | O3: EXCEL | Q3: FROM | R3: EXCEL | S3: FROM | U3: FROM | V3: FROM | W3: FROM | X3: FROM | Y3: EXCEL | Z3: USER | AA3: USER | AB3: USER | AC3: FROM | AD3: USER | AE3: USER | AF3: USER | AG3: EXCEL
A4: GEOPAK | B4: FORMULA | C4: GEOPAK | E4: GEOPAK | F4: GEOPAK | G4: GEOPAK | H4: GEOPAK | I4: DEFINED | J4: DEFINED | K4: DEFINED | L4: DEFINED | M4: DEFINED | N4: DEFINED | O4: FORMULA | Q4: GEOPAK | R4: FORMULA | S4: GEOPAK | U4: GEOPAK | V4: GEOPAK | W4: GEOPAK | X4: GEOPAK | Y4: FORMULA | Z4: DEFINED | AA4: DEFINED | AB4: DEFINED | AC4: GEOPAK | AD4: DEFINED | AE4: DEFINED | AF4: DEFINED | AG4: FORMULA
E5: =IF(SUM(E13:E780)=0,"EMPTY","USED") -> EMPTY | F5: EMPTY | G5: EMPTY | H5: USED | I5: USED | J5: EMPTY | K5: EMPTY | L5: EMPTY | M5: EMPTY | N5: EMPTY | O5: USED | U5: =IF(SUM(U13:U780)=0,"EMPTY","USED") -> EMPTY | V5: EMPTY | W5: EMPTY | X5: EMPTY | Y5: EMPTY | Z5: USED | AA5: EMPTY | AB5: EMPTY | AC5: EMPTY | AD5: EMPTY | AE5: EMPTY | AF5: EMPTY | AG5: USED
A6: Instructions | B6: Instructions | C6: Instructions | E6: Instructions | F6: Instructions | G6: Instructions | H6: Instructions | I6: Instructions | J6: Instructions | K6: Instructions | L6: Instructions | M6: Instructions | N6: Instructions | O6: Instructions | Q6: Instructions | R6: Instructions | S6: Instructions | U6: Instructions | V6: Instructions | W6: Instructions | X6: Instructions | Y6: Instructions | Z6: Instructions | AA6: Instructions | AB6: Instructions | AC6: Instructions | AD6: Instructions | AE6: Instructions | AF6: Instructions | AG6: Instructions
C7: Total | E7: Total | F7: Total | G7: Total | H7: Total | I7: Total | J7: Total | K7: Total | L7: Total | M7: Total | N7: Total | O7: Total | S7: Total | U7: Total | V7: Total | W7: Total | X7: Total | Y7: Total | Z7: Total | AA7: Total | AB7: Total | AC7: Total | AD7: Total | AE7: Total | AF7: Total | AG7: Total
C8: =SUM(C13:C780) -> 339442 | E8: =SUM(E13:E780) -> 0 | F8: 0 | G8: 0 | H8: 26110 | I8: 6726.552485 | J8: 0 | K8: 0 | L8: 0 | M8: 0 | N8: 0 | O8: 372280 | S8: =SUM(S13:S780) -> 675453 | U8: =SUM(U13:U780) -> 0 | V8: 0 | W8: 0 | X8: 0 | Y8: 0 | Z8: 5641 | AA8: 0 | AB8: 0 | AC8: 0 | AD8: 0 | AE8: 0 | AF8: 0 | AG8: 681094
E9: PLOW & | G9: GRAN | I9: MISC 1 | J9: MISC 2 | K9: MISC 3 | L9: MISC 1 | M9: MISC 2 | N9: MISC 3 | U9: PLOW & | W9: GRAN | Y9: EXISTING | Z9: MISC 1 | AA9: MISC 2 | AB9: MISC 3 | AC9: GRAN | AD9: MISC 1 | AE9: MISC 2 | AF9: MISC 3
B10: FORMULA | C10: TOTAL | E10: SHAPE | F10: M & D | G10: BLANKET | H10: MISC | I10: ON XS | J10: ON XS | K10: ON XS | L10: ON XS | M10: ON XS | N10: ON XS | O10: TOTAL | R10: FORMULA | S10: TOTAL | U10: SHAPE | V10: M & D | W10: BLANKET | X10: MISC | Y10: PAVEMENT | Z10: ON XS | AA10: ON XS | AB10: ON XS | AC10: BLANKET | AD10: ON XS | AE10: ON XS | AF10: ON XS | AG10: TOTAL
A11: STATION | B11: STATIONS | C11: CUT | E11: ADD TO | F11: ADD TO | G11: ADD TO | H11: ADD TO | I11: ADD TO | J11: ADD TO | K11: ADD TO | L11: MINUS | M11: MINUS | N11: MINUS | O11: CUT | Q11: STATION | R11: STATIONS | S11: FILL | U11: ADD TO | V11: ADD TO | W11: ADD TO | X11: ADD TO | Y11: OUTSIDE | Z11: ADD TO | AA11: ADD TO | AB11: ADD TO | AC11: MINUS | AD11: MINUS | AE11: MINUS | AF11: MINUS | AG11: FILL
E12: TOTAL CUT | F12: TOTAL CUT | G12: TOTAL CUT | H12: TOTAL CUT | I12: TOTAL CUT | J12: TOTAL CUT | K12: TOTAL CUT | L12: TOTAL CUT | M12: TOTAL CUT | N12: TOTAL CUT | O12: ADJUSTED | U12: TOTAL FILL | V12: TOTAL FILL | W12: TOTAL FILL | X12: TOTAL FILL | Y12: TEMPLATE | Z12: TOTAL FILL | AA12: TOTAL FILL | AB12: TOTAL FILL | AC12: TOTAL FILL | AD12: TOTAL FILL | AE12: TOTAL FILL | AF12: TOTAL FILL | AG12: ADJUSTED
A13: =IF(TYPE(1000000-REPLACE('Run1 Input'!$A6,SEARCH("+*",'Run1 Input'!$A6),1,""))=1,'Run1 Input'!$A6,IF('Run1 Input'!$A6=0,"0+00",IF(TYPE(1000000-REPLACE(REPLACE('Run1 Input'!$A6,SEARCH("+*",'Run1 Input'!$A6),1,""),SEARCH("/*",'Run1 Input'!$A6)-1,1,""))=1,REPLACE('Run1 Input'!$A6,SEARCH("/*",'Run1 Input'!$A6),3,""),'Run1 Input'!$A6))) -> 926+50.00 | B13: =IF(TYPE(1000000-REPLACE(A13,SEARCH("+*",A13),1,""))=1,REPLACE(A13,SEARCH("+*",A13),1,""),"000") -> 92650.00 | C13: =ROUND('Run2 Input'!D6,) -> 0 | E13: =ROUND('P&S Input'!Q6,) -> 0 | F13: =ROUND('M&D Input'!Q6,) -> 0 | G13: =ROUND('GB Input'!Q6,) -> 0 | H13: =ROUND('Misc Input'!Q6,) -> 0 | I13: 0 | J13: 0 | K13: 0 | L13: 0 | M13: 0 | N13: 0 | O13: =ROUND(SUM(C13+E13+F13+G13+H13+I13+J13+K13-L13-M13-N13),) -> 0 | Q13: =IF(TYPE(1000000-REPLACE('Run1 Input'!$A6,SEARCH("+*",'Run1 Input'!$A6),1,""))=1,'Run1 Input'!$A6,IF('Run1 Input'!$A6=0,"0+00",IF(TYPE(1000000-REPLACE(REPLACE('Run1 Input'!$A6,SEARCH("+*",'Run1 Input'!$A6),1,""),SEARCH("/*",'Run1 Input'!$A6)-1,1,""))=1,REPLACE('Run1 Input'!$A6,SEARCH("/*",'Run1 Input'!$A6),3,""),'Run1 Input'!$A6))) -> 926+50.00 | R13: =IF(TYPE(1000000-REPLACE(Q13,SEARCH("+*",Q13),1,""))=1,REPLACE(Q13,SEARCH("+*",Q13),1,""),"000") -> 92650.00 | S13: =ROUND('Run2 Input'!E6,) -> 0 | U13: =ROUND('P&S Input'!B6,) -> 0 | V13: =ROUND('M&D Input'!Q6,) -> 0 | W13: =ROUND('GB Input'!R6,) -> 0 | X13: 0 | Y13: =ROUND(SUM(Pavement!I13),) -> 0 | Z13: =+'Run2 Input'!I6 -> 0 | AA13: 0 | AB13: 0 | AC13: =ROUND('GB Input'!S6,) -> 0 | AD13: 0 | AE13: 0 | AF13: 0 | AG13: =ROUND(SUM(S13+U13+V13+W13+X13+Y13+Z13+AA13+AB13-AC13-AD13-AE13-AF13),) -> 0
A14: =IF(TYPE(1000000-REPLACE('Run1 Input'!A7,SEARCH("+*",'Run1 Input'!A7),1,""))=1,'Run1 Input'!A7,IF('Run1 Input'!A7=0,"0+00",IF(TYPE(1000000-REPLACE(REPLACE('Run1 Input'!A7,SEARCH("+*",'Run1 Input'!A7),1,""),SEARCH("/*",'Run1 Input'!A7)-1,1,""))=1,REPLACE('Run1 Input'!A7,SEARCH("/*",'Run1 Input'!A7),3,""),'Run1 Input'!A7))) -> 926+75.00 | B14: 92675.00 | C14: =ROUND('Run2 Input'!D7,) -> 315 | E14: =ROUND('P&S Input'!Q7,) -> 0 | F14: =ROUND('M&D Input'!Q7,) -> 0 | G14: =ROUND('GB Input'!Q7,) -> 0 | H14: =ROUND('Misc Input'!Q7,) -> 0 | O14: =ROUND(SUM(C14+E14+F14+G14+H14+I14+J14+K14-L14-M14-N14),) -> 315 | Q14: =IF(TYPE(1000000-REPLACE('Run1 Input'!$A7,SEARCH("+*",'Run1 Input'!$A7),1,""))=1,'Run1 Input'!$A7,IF('Run1 Input'!$A7=0,"0+00",IF(TYPE(1000000-REPLACE(REPLACE('Run1 Input'!$A7,SEARCH("+*",'Run1 Input'!$A7),1,""),SEARCH("/*",'Run1 Input'!$A7)-1,1,""))=1,REPLACE('Run1 Input'!$A7,SEARCH("/*",'Run1 Input'!$A7),3,""),'Run1 Input'!$A7))) -> 926+75.00 | R14: 92675.00 | S14: =ROUND('Run2 Input'!E7,) -> 3093 | U14: =ROUND('P&S Input'!B7,) -> 0 | V14: =ROUND('M&D Input'!Q7,) -> 0 | W14: =ROUND('GB Input'!R7,) -> 0 | X14: 0 | Y14: =ROUND(SUM(Pavement!I14),) -> 0 | Z14: =+'Run2 Input'!I7 -> 0 | AC14: =ROUND('GB Input'!S7,) -> 0 | AG14: 3093
A15: =IF(TYPE(1000000-REPLACE('Run1 Input'!A8,SEARCH("+*",'Run1 Input'!A8),1,""))=1,'Run1 Input'!A8,IF('Run1 Input'!A8=0,"0+00",IF(TYPE(1000000-REPLACE(REPLACE('Run1 Input'!A8,SEARCH("+*",'Run1 Input'!A8),1,""),SEARCH("/*",'Run1 Input'!A8)-1,1,""))=1,REPLACE('Run1 Input'!A8,SEARCH("/*",'Run1 Input'!A8),3,""),'Run1 Input'!A8))) -> 927+00.00 | B15: 92700.00 | C15: =ROUND('Run2 Input'!D8,) -> 317 | E15: =ROUND('P&S Input'!Q8,) -> 0 | F15: =ROUND('M&D Input'!Q8,) -> 0 | G15: =ROUND('GB Input'!Q8,) -> 0 | H15: =ROUND('Misc Input'!Q8,) -> 0 | O15: 317 | Q15: =IF(TYPE(1000000-REPLACE('Run1 Input'!$A8,SEARCH("+*",'Run1 Input'!$A8),1,""))=1,'Run1 Input'!$A8,IF('Run1 Input'!$A8=0,"0+00",IF(TYPE(1000000-REPLACE(REPLACE('Run1 Input'!$A8,SEARCH("+*",'Run1 Input'!$A8),1,""),SEARCH("/*",'Run1 Input'!$A8)-1,1,""))=1,REPLACE('Run1 Input'!$A8,SEARCH("/*",'Run1 Input'!$A8),3,""),'Run1 Input'!$A8))) -> 927+00.00 | R15: 92700.00 | S15: =ROUND('Run2 Input'!E8,) -> 3190 | U15: =ROUND('P&S Input'!B8,) -> 0 | V15: =ROUND('M&D Input'!Q8,) -> 0 | W15: =ROUND('GB Input'!R8,) -> 0 | X15: 0 | Y15: =ROUND(SUM(Pavement!I15),) -> 0 | Z15: =+'Run2 Input'!I8 -> 0 | AC15: =ROUND('GB Input'!S8,) -> 0 | AG15: 3190
A16: =IF(TYPE(1000000-REPLACE('Run1 Input'!A9,SEARCH("+*",'Run1 Input'!A9),1,""))=1,'Run1 Input'!A9,IF('Run1 Input'!A9=0,"0+00",IF(TYPE(1000000-REPLACE(REPLACE('Run1 Input'!A9,SEARCH("+*",'Run1 Input'!A9),1,""),SEARCH("/*",'Run1 Input'!A9)-1,1,""))=1,REPLACE('Run1 Input'!A9,SEARCH("/*",'Run1 Input'!A9),3,""),'Run1 Input'!A9))) -> 927+25.00 | B16: 92725.00 | C16: =ROUND('Run2 Input'!D9,) -> 316 | E16: =ROUND('P&S Input'!Q9,) -> 0 | F16: =ROUND('M&D Input'!Q9,) -> 0 | G16: =ROUND('GB Input'!Q9,) -> 0 | H16: =ROUND('Misc Input'!Q9,) -> 0 | O16: 316 | Q16: =IF(TYPE(1000000-REPLACE('Run1 Input'!$A9,SEARCH("+*",'Run1 Input'!$A9),1,""))=1,'Run1 Input'!$A9,IF('Run1 Input'!$A9=0,"0+00",IF(TYPE(1000000-REPLACE(REPLACE('Run1 Input'!$A9,SEARCH("+*",'Run1 Input'!$A9),1,""),SEARCH("/*",'Run1 Input'!$A9)-1,1,""))=1,REPLACE('Run1 Input'!$A9,SEARCH("/*",'Run1 Input'!$A9),3,""),'Run1 Input'!$A9))) -> 927+25.00 | R16: 92725.00 | S16: =ROUND('Run2 Input'!E9,) -> 3277 | U16: =ROUND('P&S Input'!B9,) -> 0 | V16: =ROUND('M&D Input'!Q9,) -> 0 | W16: =ROUND('GB Input'!R9,) -> 0 | X16: 0 | Y16: =ROUND(SUM(Pavement!I16),) -> 0 | Z16: =+'Run2 Input'!I9 -> 0 | AC16: =ROUND('GB Input'!S9,) -> 0 | AG16: 3277
A17: =IF(TYPE(1000000-REPLACE('Run1 Input'!A10,SEARCH("+*",'Run1 Input'!A10),1,""))=1,'Run1 Input'!A10,IF('Run1 Input'!A10=0,"0+00",IF(TYPE(1000000-REPLACE(REPLACE('Run1 Input'!A10,SEARCH("+*",'Run1 Input'!A10),1,""),SEARCH("/*",'Run1 Input'!A10)-1,1,""))=1,REPLACE('Run1 Input'!A10,SEARCH("/*",'Run1 Input'!A10),3,""),'Run1 Input'!A10))) -> 927+50.00 | B17: 92750.00 | C17: =ROUND('Run2 Input'!D10,) -> 309 | E17: =ROUND('P&S Input'!Q10,) -> 0 | F17: =ROUND('M&D Input'!Q10,) -> 0 | G17: =ROUND('GB Input'!Q10,) -> 0 | H17: =ROUND('Misc Input'!Q10,) -> 0 | O17: 309 | Q17: =IF(TYPE(1000000-REPLACE('Run1 Input'!$A10,SEARCH("+*",'Run1 Input'!$A10),1,""))=1,'Run1 Input'!$A10,IF('Run1 Input'!$A10=0,"0+00",IF(TYPE(1000000-REPLACE(REPLACE('Run1 Input'!$A10,SEARCH("+*",'Run1 Input'!$A10),1,""),SEARCH("/*",'Run1 Input'!$A10)-1,1,""))=1,REPLACE('Run1 Input'!$A10,SEARCH("/*",'Run1 Input'!$A10),3,""),'Run1 Input'!$A10))) -> 927+50.00 | R17: 92750.00 | S17: =ROUND('Run2 Input'!E10,) -> 3330 | U17: =ROUND('P&S Input'!B10,) -> 0 | V17: =ROUND('M&D Input'!Q10,) -> 0 | W17: =ROUND('GB Input'!R10,) -> 0 | X17: 0 | Y17: =ROUND(SUM(Pavement!I17),) -> 0 | Z17: =+'Run2 Input'!I10 -> 0 | AC17: =ROUND('GB Input'!S10,) -> 0 | AG17: 3330
A18: =IF(TYPE(1000000-REPLACE('Run1 Input'!A11,SEARCH("+*",'Run1 Input'!A11),1,""))=1,'Run1 Input'!A11,IF('Run1 Input'!A11=0,"0+00",IF(TYPE(1000000-REPLACE(REPLACE('Run1 Input'!A11,SEARCH("+*",'Run1 Input'!A11),1,""),SEARCH("/*",'Run1 Input'!A11)-1,1,""))=1,REPLACE('Run1 Input'!A11,SEARCH("/*",'Run1 Input'!A11),3,""),'Run1 Input'!A11))) -> 927+75.00 | B18: 92775.00 | C18: =ROUND('Run2 Input'!D11,) -> 306 | E18: =ROUND('P&S Input'!Q11,) -> 0 | F18: =ROUND('M&D Input'!Q11,) -> 0 | G18: =ROUND('GB Input'!Q11,) -> 0 | H18: =ROUND('Misc Input'!Q11,) -> 0 | O18: 306 | Q18: =IF(TYPE(1000000-REPLACE('Run1 Input'!$A11,SEARCH("+*",'Run1 Input'!$A11),1,""))=1,'Run1 Input'!$A11,IF('Run1 Input'!$A11=0,"0+00",IF(TYPE(1000000-REPLACE(REPLACE('Run1 Input'!$A11,SEARCH("+*",'Run1 Input'!$A11),1,""),SEARCH("/*",'Run1 Input'!$A11)-1,1,""))=1,REPLACE('Run1 Input'!$A11,SEARCH("/*",'Run1 Input'!$A11),3,""),'Run1 Input'!$A11))) -> 927+75.00 | R18: 92775.00 | S18: =ROUND('Run2 Input'!E11,) -> 3397 | U18: =ROUND('P&S Input'!B11,) -> 0 | V18: =ROUND('M&D Input'!Q11,) -> 0 | W18: =ROUND('GB Input'!R11,) -> 0 | X18: 0 | Y18: =ROUND(SUM(Pavement!I18),) -> 0 | Z18: =+'Run2 Input'!I11 -> 0 | AC18: =ROUND('GB Input'!S11,) -> 0 | AG18: 3397
A19: =IF(TYPE(1000000-REPLACE('Run1 Input'!A12,SEARCH("+*",'Run1 Input'!A12),1,""))=1,'Run1 Input'!A12,IF('Run1 Input'!A12=0,"0+00",IF(TYPE(1000000-REPLACE(REPLACE('Run1 Input'!A12,SEARCH("+*",'Run1 Input'!A12),1,""),SEARCH("/*",'Run1 Input'!A12)-1,1,""))=1,REPLACE('Run1 Input'!A12,SEARCH("/*",'Run1 Input'!A12),3,""),'Run1 Input'!A12))) -> 928+00.00 | B19: 92800.00 | C19: =ROUND('Run2 Input'!D12,) -> 299 | E19: =ROUND('P&S Input'!Q12,) -> 0 | F19: =ROUND('M&D Input'!Q12,) -> 0 | G19: =ROUND('GB Input'!Q12,) -> 0 | H19: =ROUND('Misc Input'!Q12,) -> 0 | O19: 299 | Q19: =IF(TYPE(1000000-REPLACE('Run1 Input'!$A12,SEARCH("+*",'Run1 Input'!$A12),1,""))=1,'Run1 Input'!$A12,IF('Run1 Input'!$A12=0,"0+00",IF(TYPE(1000000-REPLACE(REPLACE('Run1 Input'!$A12,SEARCH("+*",'Run1 Input'!$A12),1,""),SEARCH("/*",'Run1 Input'!$A12)-1,1,""))=1,REPLACE('Run1 Input'!$A12,SEARCH("/*",'Run1 Input'!$A12),3,""),'Run1 Input'!$A12))) -> 928+00.00 | R19: 92800.00 | S19: =ROUND('Run2 Input'!E12,) -> 3515 | U19: =ROUND('P&S Input'!B12,) -> 0 | V19: =ROUND('M&D Input'!Q12,) -> 0 | W19: =ROUND('GB Input'!R12,) -> 0 | X19: 0 | Y19: =ROUND(SUM(Pavement!I19),) -> 0 | Z19: =+'Run2 Input'!I12 -> 0 | AC19: =ROUND('GB Input'!S12,) -> 0 | AG19: 3515
A20: =IF(TYPE(1000000-REPLACE('Run1 Input'!A13,SEARCH("+*",'Run1 Input'!A13),1,""))=1,'Run1 Input'!A13,IF('Run1 Input'!A13=0,"0+00",IF(TYPE(1000000-REPLACE(REPLACE('Run1 Input'!A13,SEARCH("+*",'Run1 Input'!A13),1,""),SEARCH("/*",'Run1 Input'!A13)-1,1,""))=1,REPLACE('Run1 Input'!A13,SEARCH("/*",'Run1 Input'!A13),3,""),'Run1 Input'!A13))) -> 928+25.00 | B20: 92825.00 | C20: =ROUND('Run2 Input'!D13,) -> 285 | E20: =ROUND('P&S Input'!Q13,) -> 0 | F20: =ROUND('M&D Input'!Q13,) -> 0 | G20: =ROUND('GB Input'!Q13,) -> 0 | H20: =ROUND('Misc Input'!Q13,) -> 235 | O20: 520 | Q20: =IF(TYPE(1000000-REPLACE('Run1 Input'!$A13,SEARCH("+*",'Run1 Input'!$A13),1,""))=1,'Run1 Input'!$A13,IF('Run1 Input'!$A13=0,"0+00",IF(TYPE(1000000-REPLACE(REPLACE('Run1 Input'!$A13,SEARCH("+*",'Run1 Input'!$A13),1,""),SEARCH("/*",'Run1 Input'!$A13)-1,1,""))=1,REPLACE('Run1 Input'!$A13,SEARCH("/*",'Run1 Input'!$A13),3,""),'Run1 Input'!$A13))) -> 928+25.00 | R20: 92825.00 | S20: =ROUND('Run2 Input'!E13,) -> 3476 | U20: =ROUND('P&S Input'!B13,) -> 0 | V20: =ROUND('M&D Input'!Q13,) -> 0 | W20: =ROUND('GB Input'!R13,) -> 0 | X20: 0 | Y20: =ROUND(SUM(Pavement!I20),) -> 0 | Z20: =+'Run2 Input'!I13 -> 0 | AC20: =ROUND('GB Input'!S13,) -> 0 | AG20: 3476
A21: =IF(TYPE(1000000-REPLACE('Run1 Input'!A14,SEARCH("+*",'Run1 Input'!A14),1,""))=1,'Run1 Input'!A14,IF('Run1 Input'!A14=0,"0+00",IF(TYPE(1000000-REPLACE(REPLACE('Run1 Input'!A14,SEARCH("+*",'Run1 Input'!A14),1,""),SEARCH("/*",'Run1 Input'!A14)-1,1,""))=1,REPLACE('Run1 Input'!A14,SEARCH("/*",'Run1 Input'!A14),3,""),'Run1 Input'!A14))) -> 928+50.00 | B21: 92850.00 | C21: =ROUND('Run2 Input'!D14,) -> 287 | E21: =ROUND('P&S Input'!Q14,) -> 0 | F21: =ROUND('M&D Input'!Q14,) -> 0 | G21: =ROUND('GB Input'!Q14,) -> 0 | H21: =ROUND('Misc Input'!Q14,) -> 244 | O21: 531 | Q21: =IF(TYPE(1000000-REPLACE('Run1 Input'!$A14,SEARCH("+*",'Run1 Input'!$A14),1,""))=1,'Run1 Input'!$A14,IF('Run1 Input'!$A14=0,"0+00",IF(TYPE(1000000-REPLACE(REPLACE('Run1 Input'!$A14,SEARCH("+*",'Run1 Input'!$A14),1,""),SEARCH("/*",'Run1 Input'!$A14)-1,1,""))=1,REPLACE('Run1 Input'!$A14,SEARCH("/*",'Run1 Input'!$A14),3,""),'Run1 Input'!$A14))) -> 928+50.00 | R21: 92850.00 | S21: =ROUND('Run2 Input'!E14,) -> 3393 | U21: =ROUND('P&S Input'!B14,) -> 0 | V21: =ROUND('M&D Input'!Q14,) -> 0 | W21: =ROUND('GB Input'!R14,) -> 0 | X21: 0 | Y21: =ROUND(SUM(Pavement!I21),) -> 0 | Z21: =+'Run2 Input'!I14 -> 0 | AC21: =ROUND('GB Input'!S14,) -> 0 | AG21: 3393
A22: =IF(TYPE(1000000-REPLACE('Run1 Input'!A15,SEARCH("+*",'Run1 Input'!A15),1,""))=1,'Run1 Input'!A15,IF('Run1 Input'!A15=0,"0+00",IF(TYPE(1000000-REPLACE(REPLACE('Run1 Input'!A15,SEARCH("+*",'Run1 Input'!A15),1,""),SEARCH("/*",'Run1 Input'!A15)-1,1,""))=1,REPLACE('Run1 Input'!A15,SEARCH("/*",'Run1 Input'!A15),3,""),'Run1 Input'!A15))) -> 928+75.00 | B22: 92875.00 | C22: =ROUND('Run2 Input'!D15,) -> 312 | E22: =ROUND('P&S Input'!Q15,) -> 0 | F22: =ROUND('M&D Input'!Q15,) -> 0 | G22: =ROUND('GB Input'!Q15,) -> 0 | H22: =ROUND('Misc Input'!Q15,) -> 256 | O22: 568 | Q22: =IF(TYPE(1000000-REPLACE('Run1 Input'!$A15,SEARCH("+*",'Run1 Input'!$A15),1,""))=1,'Run1 Input'!$A15,IF('Run1 Input'!$A15=0,"0+00",IF(TYPE(1000000-REPLACE(REPLACE('Run1 Input'!$A15,SEARCH("+*",'Run1 Input'!$A15),1,""),SEARCH("/*",'Run1 Input'!$A15)-1,1,""))=1,REPLACE('Run1 Input'!$A15,SEARCH("/*",'Run1 Input'!$A15),3,""),'Run1 Input'!$A15))) -> 928+75.00 | R22: 92875.00 | S22: =ROUND('Run2 Input'!E15,) -> 3455 | U22: =ROUND('P&S Input'!B15,) -> 0 | V22: =ROUND('M&D Input'!Q15,) -> 0 | W22: =ROUND('GB Input'!R15,) -> 0 | X22: 0 | Y22: =ROUND(SUM(Pavement!I22),) -> 0 | Z22: =+'Run2 Input'!I15 -> 0 | AC22: =ROUND('GB Input'!S15,) -> 0 | AG22: 3455
A23: =IF(TYPE(1000000-REPLACE('Run1 Input'!A16,SEARCH("+*",'Run1 Input'!A16),1,""))=1,'Run1 Input'!A16,IF('Run1 Input'!A16=0,"0+00",IF(TYPE(1000000-REPLACE(REPLACE('Run1 Input'!A16,SEARCH("+*",'Run1 Input'!A16),1,""),SEARCH("/*",'Run1 Input'!A16)-1,1,""))=1,REPLACE('Run1 Input'!A16,SEARCH("/*",'Run1 Input'!A16),3,""),'Run1 Input'!A16))) -> 929+00.00 | B23: 92900.00 | C23: =ROUND('Run2 Input'!D16,) -> 338 | E23: =ROUND('P&S Input'!Q16,) -> 0 | F23: =ROUND('M&D Input'!Q16,) -> 0 | G23: =ROUND('GB Input'!Q16,) -> 0 | H23: =ROUND('Misc Input'!Q16,) -> 261 | O23: 599 | Q23: =IF(TYPE(1000000-REPLACE('Run1 Input'!$A16,SEARCH("+*",'Run1 Input'!$A16),1,""))=1,'Run1 Input'!$A16,IF('Run1 Input'!$A16=0,"0+00",IF(TYPE(1000000-REPLACE(REPLACE('Run1 Input'!$A16,SEARCH("+*",'Run1 Input'!$A16),1,""),SEARCH("/*",'Run1 Input'!$A16)-1,1,""))=1,REPLACE('Run1 Input'!$A16,SEARCH("/*",'Run1 Input'!$A16),3,""),'Run1 Input'!$A16))) -> 929+00.00 | R23: 92900.00 | S23: =ROUND('Run2 Input'!E16,) -> 3553 | U23: =ROUND('P&S Input'!B16,) -> 0 | V23: =ROUND('M&D Input'!Q16,) -> 0 | W23: =ROUND('GB Input'!R16,) -> 0 | X23: 0 | Y23: =ROUND(SUM(Pavement!I23),) -> 0 | Z23: =+'Run2 Input'!I16 -> 0 | AC23: =ROUND('GB Input'!S16,) -> 0 | AG23: 3553
A24: =IF(TYPE(1000000-REPLACE('Run1 Input'!A17,SEARCH("+*",'Run1 Input'!A17),1,""))=1,'Run1 Input'!A17,IF('Run1 Input'!A17=0,"0+00",IF(TYPE(1000000-REPLACE(REPLACE('Run1 Input'!A17,SEARCH("+*",'Run1 Input'!A17),1,""),SEARCH("/*",'Run1 Input'!A17)-1,1,""))=1,REPLACE('Run1 Input'!A17,SEARCH("/*",'Run1 Input'!A17),3,""),'Run1 Input'!A17))) -> 929+25.00 | B24: 92925.00 | C24: =ROUND('Run2 Input'!D17,) -> 347 | E24: =ROUND('P&S Input'!Q17,) -> 0 | F24: =ROUND('M&D Input'!Q17,) -> 0 | G24: =ROUND('GB Input'!Q17,) -> 0 | H24: =ROUND('Misc Input'!Q17,) -> 266 | O24: 613 | Q24: =IF(TYPE(1000000-REPLACE('Run1 Input'!$A17,SEARCH("+*",'Run1 Input'!$A17),1,""))=1,'Run1 Input'!$A17,IF('Run1 Input'!$A17=0,"0+00",IF(TYPE(1000000-REPLACE(REPLACE('Run1 Input'!$A17,SEARCH("+*",'Run1 Input'!$A17),1,""),SEARCH("/*",'Run1 Input'!$A17)-1,1,""))=1,REPLACE('Run1 Input'!$A17,SEARCH("/*",'Run1 Input'!$A17),3,""),'Run1 Input'!$A17))) -> 929+25.00 | R24: 92925.00 | S24: =ROUND('Run2 Input'!E17,) -> 3635 | U24: =ROUND('P&S Input'!B17,) -> 0 | V24: =ROUND('M&D Input'!Q17,) -> 0 | W24: =ROUND('GB Input'!R17,) -> 0 | X24: 0 | Y24: =ROUND(SUM(Pavement!I24),) -> 0 | Z24: =+'Run2 Input'!I17 -> 0 | AC24: =ROUND('GB Input'!S17,) -> 0 | AG24: 3635
A25: =IF(TYPE(1000000-REPLACE('Run1 Input'!A18,SEARCH("+*",'Run1 Input'!A18),1,""))=1,'Run1 Input'!A18,IF('Run1 Input'!A18=0,"0+00",IF(TYPE(1000000-REPLACE(REPLACE('Run1 Input'!A18,SEARCH("+*",'Run1 Input'!A18),1,""),SEARCH("/*",'Run1 Input'!A18)-1,1,""))=1,REPLACE('Run1 Input'!A18,SEARCH("/*",'Run1 Input'!A18),3,""),'Run1 Input'!A18))) -> 929+50.00 | B25: 92950.00 | C25: =ROUND('Run2 Input'!D18,) -> 375 | E25: =ROUND('P&S Input'!Q18,) -> 0 | F25: =ROUND('M&D Input'!Q18,) -> 0 | G25: =ROUND('GB Input'!Q18,) -> 0 | H25: =ROUND('Misc Input'!Q18,) -> 253 | O25: 628 | Q25: =IF(TYPE(1000000-REPLACE('Run1 Input'!$A18,SEARCH("+*",'Run1 Input'!$A18),1,""))=1,'Run1 Input'!$A18,IF('Run1 Input'!$A18=0,"0+00",IF(TYPE(1000000-REPLACE(REPLACE('Run1 Input'!$A18,SEARCH("+*",'Run1 Input'!$A18),1,""),SEARCH("/*",'Run1 Input'!$A18)-1,1,""))=1,REPLACE('Run1 Input'!$A18,SEARCH("/*",'Run1 Input'!$A18),3,""),'Run1 Input'!$A18))) -> 929+50.00 | R25: 92950.00 | S25: =ROUND('Run2 Input'!E18,) -> 3738 | U25: =ROUND('P&S Input'!B18,) -> 0 | V25: =ROUND('M&D Input'!Q18,) -> 0 | W25: =ROUND('GB Input'!R18,) -> 0 | X25: 0 | Y25: =ROUND(SUM(Pavement!I25),) -> 0 | Z25: =+'Run2 Input'!I18 -> 0 | AC25: =ROUND('GB Input'!S18,) -> 0 | AG25: 3738
A26: =IF(TYPE(1000000-REPLACE('Run1 Input'!A19,SEARCH("+*",'Run1 Input'!A19),1,""))=1,'Run1 Input'!A19,IF('Run1 Input'!A19=0,"0+00",IF(TYPE(1000000-REPLACE(REPLACE('Run1 Input'!A19,SEARCH("+*",'Run1 Input'!A19),1,""),SEARCH("/*",'Run1 Input'!A19)-1,1,""))=1,REPLACE('Run1 Input'!A19,SEARCH("/*",'Run1 Input'!A19),3,""),'Run1 Input'!A19))) -> 929+75.00 | B26: 92975.00 | C26: =ROUND('Run2 Input'!D19,) -> 401 | E26: =ROUND('P&S Input'!Q19,) -> 0 | F26: =ROUND('M&D Input'!Q19,) -> 0 | G26: =ROUND('GB Input'!Q19,) -> 0 | H26: =ROUND('Misc Input'!Q19,) -> 252 | O26: 653 | Q26: =IF(TYPE(1000000-REPLACE('Run1 Input'!$A19,SEARCH("+*",'Run1 Input'!$A19),1,""))=1,'Run1 Input'!$A19,IF('Run1 Input'!$A19=0,"0+00",IF(TYPE(1000000-REPLACE(REPLACE('Run1 Input'!$A19,SEARCH("+*",'Run1 Input'!$A19),1,""),SEARCH("/*",'Run1 Input'!$A19)-1,1,""))=1,REPLACE('Run1 Input'!$A19,SEARCH("/*",'Run1 Input'!$A19),3,""),'Run1 Input'!$A19))) -> 929+75.00 | R26: 92975.00 | S26: =ROUND('Run2 Input'!E19,) -> 3819 | U26: =ROUND('P&S Input'!B19,) -> 0 | V26: =ROUND('M&D Input'!Q19,) -> 0 | W26: =ROUND('GB Input'!R19,) -> 0 | X26: 0 | Y26: =ROUND(SUM(Pavement!I26),) -> 0 | Z26: =+'Run2 Input'!I19 -> 0 | AC26: =ROUND('GB Input'!S19,) -> 0 | AG26: 3819
A27: =IF(TYPE(1000000-REPLACE('Run1 Input'!A20,SEARCH("+*",'Run1 Input'!A20),1,""))=1,'Run1 Input'!A20,IF('Run1 Input'!A20=0,"0+00",IF(TYPE(1000000-REPLACE(REPLACE('Run1 Input'!A20,SEARCH("+*",'Run1 Input'!A20),1,""),SEARCH("/*",'Run1 Input'!A20)-1,1,""))=1,REPLACE('Run1 Input'!A20,SEARCH("/*",'Run1 Input'!A20),3,""),'Run1 Input'!A20))) -> 930+00.00 | B27: 93000.00 | C27: =ROUND('Run2 Input'!D20,) -> 397 | E27: =ROUND('P&S Input'!Q20,) -> 0 | F27: =ROUND('M&D Input'!Q20,) -> 0 | G27: =ROUND('GB Input'!Q20,) -> 0 | H27: =ROUND('Misc Input'!Q20,) -> 284 | O27: 681 | Q27: =IF(TYPE(1000000-REPLACE('Run1 Input'!$A20,SEARCH("+*",'Run1 Input'!$A20),1,""))=1,'Run1 Input'!$A20,IF('Run1 Input'!$A20=0,"0+00",IF(TYPE(1000000-REPLACE(REPLACE('Run1 Input'!$A20,SEARCH("+*",'Run1 Input'!$A20),1,""),SEARCH("/*",'Run1 Input'!$A20)-1,1,""))=1,REPLACE('Run1 Input'!$A20,SEARCH("/*",'Run1 Input'!$A20),3,""),'Run1 Input'!$A20))) -> 930+00.00 | R27: 93000.00 | S27: =ROUND('Run2 Input'!E20,) -> 3846 | U27: =ROUND('P&S Input'!B20,) -> 0 | V27: =ROUND('M&D Input'!Q20,) -> 0 | W27: =ROUND('GB Input'!R20,) -> 0 | X27: 0 | Y27: =ROUND(SUM(Pavement!I27),) -> 0 | Z27: =+'Run2 Input'!I20 -> 0 | AC27: =ROUND('GB Input'!S20,) -> 0 | AG27: 3846
A28: =IF(TYPE(1000000-REPLACE('Run1 Input'!A21,SEARCH("+*",'Run1 Input'!A21),1,""))=1,'Run1 Input'!A21,IF('Run1 Input'!A21=0,"0+00",IF(TYPE(1000000-REPLACE(REPLACE('Run1 Input'!A21,SEARCH("+*",'Run1 Input'!A21),1,""),SEARCH("/*",'Run1 Input'!A21)-1,1,""))=1,REPLACE('Run1 Input'!A21,SEARCH("/*",'Run1 Input'!A21),3,""),'Run1 Input'!A21))) -> 930+25.00 | B28: 93025.00 | C28: =ROUND('Run2 Input'!D21,) -> 423 | E28: =ROUND('P&S Input'!Q21,) -> 0 | F28: =ROUND('M&D Input'!Q21,) -> 0 | G28: =ROUND('GB Input'!Q21,) -> 0 | H28: =ROUND('Misc Input'!Q21,) -> 308 | O28: 731 | Q28: =IF(TYPE(1000000-REPLACE('Run1 Input'!$A21,SEARCH("+*",'Run1 Input'!$A21),1,""))=1,'Run1 Input'!$A21,IF('Run1 Input'!$A21=0,"0+00",IF(TYPE(1000000-REPLACE(REPLACE('Run1 Input'!$A21,SEARCH("+*",'Run1 Input'!$A21),1,""),SEARCH("/*",'Run1 Input'!$A21)-1,1,""))=1,REPLACE('Run1 Input'!$A21,SEARCH("/*",'Run1 Input'!$A21),3,""),'Run1 Input'!$A21))) -> 930+25.00 | R28: 93025.00 | S28: =ROUND('Run2 Input'!E21,) -> 3885 | U28: =ROUND('P&S Input'!B21,) -> 0 | V28: =ROUND('M&D Input'!Q21,) -> 0 | W28: =ROUND('GB Input'!R21,) -> 0 | X28: 0 | Y28: =ROUND(SUM(Pavement!I28),) -> 0 | Z28: =+'Run2 Input'!I21 -> 0 | AC28: =ROUND('GB Input'!S21,) -> 0 | AG28: 3885
A29: =IF(TYPE(1000000-REPLACE('Run1 Input'!A22,SEARCH("+*",'Run1 Input'!A22),1,""))=1,'Run1 Input'!A22,IF('Run1 Input'!A22=0,"0+00",IF(TYPE(1000000-REPLACE(REPLACE('Run1 Input'!A22,SEARCH("+*",'Run1 Input'!A22),1,""),SEARCH("/*",'Run1 Input'!A22)-1,1,""))=1,REPLACE('Run1 Input'!A22,SEARCH("/*",'Run1 Input'!A22),3,""),'Run1 Input'!A22))) -> 930+50.00 | B29: 93050.00 | C29: =ROUND('Run2 Input'!D22,) -> 466 | E29: =ROUND('P&S Input'!Q22,) -> 0 | F29: =ROUND('M&D Input'!Q22,) -> 0 | G29: =ROUND('GB Input'!Q22,) -> 0 | H29: =ROUND('Misc Input'!Q22,) -> 319 | O29: 785 | Q29: =IF(TYPE(1000000-REPLACE('Run1 Input'!$A22,SEARCH("+*",'Run1 Input'!$A22),1,""))=1,'Run1 Input'!$A22,IF('Run1 Input'!$A22=0,"0+00",IF(TYPE(1000000-REPLACE(REPLACE('Run1 Input'!$A22,SEARCH("+*",'Run1 Input'!$A22),1,""),SEARCH("/*",'Run1 Input'!$A22)-1,1,""))=1,REPLACE('Run1 Input'!$A22,SEARCH("/*",'Run1 Input'!$A22),3,""),'Run1 Input'!$A22))) -> 930+50.00 | R29: 93050.00 | S29: =ROUND('Run2 Input'!E22,) -> 3935 | U29: =ROUND('P&S Input'!B22,) -> 0 | V29: =ROUND('M&D Input'!Q22,) -> 0 | W29: =ROUND('GB Input'!R22,) -> 0 | X29: 0 | Y29: =ROUND(SUM(Pavement!I29),) -> 0 | Z29: =+'Run2 Input'!I22 -> 0 | AC29: =ROUND('GB Input'!S22,) -> 0 | AG29: 3935
A30: =IF(TYPE(1000000-REPLACE('Run1 Input'!A23,SEARCH("+*",'Run1 Input'!A23),1,""))=1,'Run1 Input'!A23,IF('Run1 Input'!A23=0,"0+00",IF(TYPE(1000000-REPLACE(REPLACE('Run1 Input'!A23,SEARCH("+*",'Run1 Input'!A23),1,""),SEARCH("/*",'Run1 Input'!A23)-1,1,""))=1,REPLACE('Run1 Input'!A23,SEARCH("/*",'Run1 Input'!A23),3,""),'Run1 Input'!A23))) -> 930+75.00 | B30: 93075.00 | C30: =ROUND('Run2 Input'!D23,) -> 476 | E30: =ROUND('P&S Input'!Q23,) -> 0 | F30: =ROUND('M&D Input'!Q23,) -> 0 | G30: =ROUND('GB Input'!Q23,) -> 0 | H30: =ROUND('Misc Input'!Q23,) -> 328 | O30: 804 | Q30: =IF(TYPE(1000000-REPLACE('Run1 Input'!$A23,SEARCH("+*",'Run1 Input'!$A23),1,""))=1,'Run1 Input'!$A23,IF('Run1 Input'!$A23=0,"0+00",IF(TYPE(1000000-REPLACE(REPLACE('Run1 Input'!$A23,SEARCH("+*",'Run1 Input'!$A23),1,""),SEARCH("/*",'Run1 Input'!$A23)-1,1,""))=1,REPLACE('Run1 Input'!$A23,SEARCH("/*",'Run1 Input'!$A23),3,""),'Run1 Input'!$A23))) -> 930+75.00 | R30: 93075.00 | S30: =ROUND('Run2 Input'!E23,) -> 3993 | U30: =ROUND('P&S Input'!B23,) -> 0 | V30: =ROUND('M&D Input'!Q23,) -> 0 | W30: =ROUND('GB Input'!R23,) -> 0 | X30: 0 | Y30: =ROUND(SUM(Pavement!I30),) -> 0 | Z30: =+'Run2 Input'!I23 -> 0 | AC30: =ROUND('GB Input'!S23,) -> 0 | AG30: 3993
A31: =IF(TYPE(1000000-REPLACE('Run1 Input'!A24,SEARCH("+*",'Run1 Input'!A24),1,""))=1,'Run1 Input'!A24,IF('Run1 Input'!A24=0,"0+00",IF(TYPE(1000000-REPLACE(REPLACE('Run1 Input'!A24,SEARCH("+*",'Run1 Input'!A24),1,""),SEARCH("/*",'Run1 Input'!A24)-1,1,""))=1,REPLACE('Run1 Input'!A24,SEARCH("/*",'Run1 Input'!A24),3,""),'Run1 Input'!A24))) -> 931+00.00 | B31: 93100.00 | C31: =ROUND('Run2 Input'!D24,) -> 463 | E31: =ROUND('P&S Input'!Q24,) -> 0 | F31: =ROUND('M&D Input'!Q24,) -> 0 | G31: =ROUND('GB Input'!Q24,) -> 0 | H31: =ROUND('Misc Input'!Q24,) -> 330 | O31: 793 | Q31: =IF(TYPE(1000000-REPLACE('Run1 Input'!$A24,SEARCH("+*",'Run1 Input'!$A24),1,""))=1,'Run1 Input'!$A24,IF('Run1 Input'!$A24=0,"0+00",IF(TYPE(1000000-REPLACE(REPLACE('Run1 Input'!$A24,SEARCH("+*",'Run1 Input'!$A24),1,""),SEARCH("/*",'Run1 Input'!$A24)-1,1,""))=1,REPLACE('Run1 Input'!$A24,SEARCH("/*",'Run1 Input'!$A24),3,""),'Run1 Input'!$A24))) -> 931+00.00 | R31: 93100.00 | S31: =ROUND('Run2 Input'!E24,) -> 4048 | U31: =ROUND('P&S Input'!B24,) -> 0 | V31: =ROUND('M&D Input'!Q24,) -> 0 | W31: =ROUND('GB Input'!R24,) -> 0 | X31: 0 | Y31: =ROUND(SUM(Pavement!I31),) -> 0 | Z31: =+'Run2 Input'!I24 -> 0 | AC31: =ROUND('GB Input'!S24,) -> 0 | AG31: 4048
A32: =IF(TYPE(1000000-REPLACE('Run1 Input'!A25,SEARCH("+*",'Run1 Input'!A25),1,""))=1,'Run1 Input'!A25,IF('Run1 Input'!A25=0,"0+00",IF(TYPE(1000000-REPLACE(REPLACE('Run1 Input'!A25,SEARCH("+*",'Run1 Input'!A25),1,""),SEARCH("/*",'Run1 Input'!A25)-1,1,""))=1,REPLACE('Run1 Input'!A25,SEARCH("/*",'Run1 Input'!A25),3,""),'Run1 Input'!A25))) -> 931+25.00 | B32: 93125.00 | C32: =ROUND('Run2 Input'!D25,) -> 466 | E32: =ROUND('P&S Input'!Q25,) -> 0 | F32: =ROUND('M&D Input'!Q25,) -> 0 | G32: =ROUND('GB Input'!Q25,) -> 0 | H32: =ROUND('Misc Input'!Q25,) -> 315 | O32: 781 | Q32: =IF(TYPE(1000000-REPLACE('Run1 Input'!$A25,SEARCH("+*",'Run1 Input'!$A25),1,""))=1,'Run1 Input'!$A25,IF('Run1 Input'!$A25=0,"0+00",IF(TYPE(1000000-REPLACE(REPLACE('Run1 Input'!$A25,SEARCH("+*",'Run1 Input'!$A25),1,""),SEARCH("/*",'Run1 Input'!$A25)-1,1,""))=1,REPLACE('Run1 Input'!$A25,SEARCH("/*",'Run1 Input'!$A25),3,""),'Run1 Input'!$A25))) -> 931+25.00 | R32: 93125.00 | S32: =ROUND('Run2 Input'!E25,) -> 4108 | U32: =ROUND('P&S Input'!B25,) -> 0 | V32: =ROUND('M&D Input'!Q25,) -> 0 | W32: =ROUND('GB Input'!R25,) -> 0 | X32: 0 | Y32: =ROUND(SUM(Pavement!I32),) -> 0 | Z32: =+'Run2 Input'!I25 -> 0 | AC32: =ROUND('GB Input'!S25,) -> 0 | AG32: 4108
A33: =IF(TYPE(1000000-REPLACE('Run1 Input'!A26,SEARCH("+*",'Run1 Input'!A26),1,""))=1,'Run1 Input'!A26,IF('Run1 Input'!A26=0,"0+00",IF(TYPE(1000000-REPLACE(REPLACE('Run1 Input'!A26,SEARCH("+*",'Run1 Input'!A26),1,""),SEARCH("/*",'Run1 Input'!A26)-1,1,""))=1,REPLACE('Run1 Input'!A26,SEARCH("/*",'Run1 Input'!A26),3,""),'Run1 Input'!A26))) -> 931+50.00 | B33: =IF(TYPE(1000000-REPLACE(A33,SEARCH("+*",A33),1,""))=1,REPLACE(A33,SEARCH("+*",A33),1,""),"000") -> 93150.00 | C33: =ROUND('Run2 Input'!D26,) -> 476 | E33: =ROUND('P&S Input'!Q26,) -> 0 | F33: =ROUND('M&D Input'!Q26,) -> 0 | G33: =ROUND('GB Input'!Q26,) -> 0 | H33: =ROUND('Misc Input'!Q26,) -> 283 | O33: =ROUND(SUM(C33+E33+F33+G33+H33+I33+J33+K33-L33-M33-N33),) -> 759 | Q33: =IF(TYPE(1000000-REPLACE('Run1 Input'!$A26,SEARCH("+*",'Run1 Input'!$A26),1,""))=1,'Run1 Input'!$A26,IF('Run1 Input'!$A26=0,"0+00",IF(TYPE(1000000-REPLACE(REPLACE('Run1 Input'!$A26,SEARCH("+*",'Run1 Input'!$A26),1,""),SEARCH("/*",'Run1 Input'!$A26)-1,1,""))=1,REPLACE('Run1 Input'!$A26,SEARCH("/*",'Run1 Input'!$A26),3,""),'Run1 Input'!$A26))) -> 931+50.00 | R33: =IF(TYPE(1000000-REPLACE(Q33,SEARCH("+*",Q33),1,""))=1,REPLACE(Q33,SEARCH("+*",Q33),1,""),"000") -> 93150.00 | S33: =ROUND('Run2 Input'!E26,) -> 4196 | U33: =ROUND('P&S Input'!B26,) -> 0 | V33: =ROUND('M&D Input'!Q26,) -> 0 | W33: =ROUND('GB Input'!R26,) -> 0 | X33: 0 | Y33: =ROUND(SUM(Pavement!I33),) -> 0 | Z33: =+'Run2 Input'!I26 -> 0 | AC33: =ROUND('GB Input'!S26,) -> 0 | AG33: =ROUND(SUM(S33+U33+V33+W33+X33+Y33+Z33+AA33+AB33-AC33-AD33-AE33-AF33),) -> 4196
A34: =IF(TYPE(1000000-REPLACE('Run1 Input'!A27,SEARCH("+*",'Run1 Input'!A27),1,""))=1,'Run1 Input'!A27,IF('Run1 Input'!A27=0,"0+00",IF(TYPE(1000000-REPLACE(REPLACE('Run1 Input'!A27,SEARCH("+*",'Run1 Input'!A27),1,""),SEARCH("/*",'Run1 Input'!A27)-1,1,""))=1,REPLACE('Run1 Input'!A27,SEARCH("/*",'Run1 Input'!A27),3,""),'Run1 Input'!A27))) -> 931+75.00 | B34: 93175.00 | C34: =ROUND('Run2 Input'!D27,) -> 458 | E34: =ROUND('P&S Input'!Q27,) -> 0 | F34: =ROUND('M&D Input'!Q27,) -> 0 | G34: =ROUND('GB Input'!Q27,) -> 0 | H34: =ROUND('Misc Input'!Q27,) -> 254 | O34: 712 | Q34: =IF(TYPE(1000000-REPLACE('Run1 Input'!$A27,SEARCH("+*",'Run1 Input'!$A27),1,""))=1,'Run1 Input'!$A27,IF('Run1 Input'!$A27=0,"0+00",IF(TYPE(1000000-REPLACE(REPLACE('Run1 Input'!$A27,SEARCH("+*",'Run1 Input'!$A27),1,""),SEARCH("/*",'Run1 Input'!$A27)-1,1,""))=1,REPLACE('Run1 Input'!$A27,SEARCH("/*",'Run1 Input'!$A27),3,""),'Run1 Input'!$A27))) -> 931+75.00 | R34: 93175.00 | S34: =ROUND('Run2 Input'!E27,) -> 4300 | U34: =ROUND('P&S Input'!B27,) -> 0 | V34: =ROUND('M&D Input'!Q27,) -> 0 | W34: =ROUND('GB Input'!R27,) -> 0 | X34: 0 | Y34: =ROUND(SUM(Pavement!I34),) -> 0 | Z34: =+'Run2 Input'!I27 -> 0 | AC34: =ROUND('GB Input'!S27,) -> 0 | AG34: 4300
A35: =IF(TYPE(1000000-REPLACE('Run1 Input'!A28,SEARCH("+*",'Run1 Input'!A28),1,""))=1,'Run1 Input'!A28,IF('Run1 Input'!A28=0,"0+00",IF(TYPE(1000000-REPLACE(REPLACE('Run1 Input'!A28,SEARCH("+*",'Run1 Input'!A28),1,""),SEARCH("/*",'Run1 Input'!A28)-1,1,""))=1,REPLACE('Run1 Input'!A28,SEARCH("/*",'Run1 Input'!A28),3,""),'Run1 Input'!A28))) -> 932+00.00 | B35: 93200.00 | C35: =ROUND('Run2 Input'!D28,) -> 416 | E35: =ROUND('P&S Input'!Q28,) -> 0 | F35: =ROUND('M&D Input'!Q28,) -> 0 | G35: =ROUND('GB Input'!Q28,) -> 0 | H35: =ROUND('Misc Input'!Q28,) -> 257 | O35: 673 | Q35: =IF(TYPE(1000000-REPLACE('Run1 Input'!$A28,SEARCH("+*",'Run1 Input'!$A28),1,""))=1,'Run1 Input'!$A28,IF('Run1 Input'!$A28=0,"0+00",IF(TYPE(1000000-REPLACE(REPLACE('Run1 Input'!$A28,SEARCH("+*",'Run1 Input'!$A28),1,""),SEARCH("/*",'Run1 Input'!$A28)-1,1,""))=1,REPLACE('Run1 Input'!$A28,SEARCH("/*",'Run1 Input'!$A28),3,""),'Run1 Input'!$A28))) -> 932+00.00 | R35: 93200.00 | S35: =ROUND('Run2 Input'!E28,) -> 4422 | U35: =ROUND('P&S Input'!B28,) -> 0 | V35: =ROUND('M&D Input'!Q28,) -> 0 | W35: =ROUND('GB Input'!R28,) -> 0 | X35: 0 | Y35: =ROUND(SUM(Pavement!I35),) -> 0 | Z35: =+'Run2 Input'!I28 -> 0 | AC35: =ROUND('GB Input'!S28,) -> 0 | AG35: 4422
A36: =IF(TYPE(1000000-REPLACE('Run1 Input'!A29,SEARCH("+*",'Run1 Input'!A29),1,""))=1,'Run1 Input'!A29,IF('Run1 Input'!A29=0,"0+00",IF(TYPE(1000000-REPLACE(REPLACE('Run1 Input'!A29,SEARCH("+*",'Run1 Input'!A29),1,""),SEARCH("/*",'Run1 Input'!A29)-1,1,""))=1,REPLACE('Run1 Input'!A29,SEARCH("/*",'Run1 Input'!A29),3,""),'Run1 Input'!A29))) -> 932+25.00 | B36: 93225.00 | C36: =ROUND('Run2 Input'!D29,) -> 378 | E36: =ROUND('P&S Input'!Q29,) -> 0 | F36: =ROUND('M&D Input'!Q29,) -> 0 | G36: =ROUND('GB Input'!Q29,) -> 0 | H36: =ROUND('Misc Input'!Q29,) -> 282 | O36: 660 | Q36: =IF(TYPE(1000000-REPLACE('Run1 Input'!$A29,SEARCH("+*",'Run1 Input'!$A29),1,""))=1,'Run1 Input'!$A29,IF('Run1 Input'!$A29=0,"0+00",IF(TYPE(1000000-REPLACE(REPLACE('Run1 Input'!$A29,SEARCH("+*",'Run1 Input'!$A29),1,""),SEARCH("/*",'Run1 Input'!$A29)-1,1,""))=1,REPLACE('Run1 Input'!$A29,SEARCH("/*",'Run1 Input'!$A29),3,""),'Run1 Input'!$A29))) -> 932+25.00 | R36: 93225.00 | S36: =ROUND('Run2 Input'!E29,) -> 4556 | U36: =ROUND('P&S Input'!B29,) -> 0 | V36: =ROUND('M&D Input'!Q29,) -> 0 | W36: =ROUND('GB Input'!R29,) -> 0 | X36: 0 | Y36: =ROUND(SUM(Pavement!I36),) -> 0 | Z36: =+'Run2 Input'!I29 -> 0 | AC36: =ROUND('GB Input'!S29,) -> 0 | AG36: 4556
A37: =IF(TYPE(1000000-REPLACE('Run1 Input'!A30,SEARCH("+*",'Run1 Input'!A30),1,""))=1,'Run1 Input'!A30,IF('Run1 Input'!A30=0,"0+00",IF(TYPE(1000000-REPLACE(REPLACE('Run1 Input'!A30,SEARCH("+*",'Run1 Input'!A30),1,""),SEARCH("/*",'Run1 Input'!A30)-1,1,""))=1,REPLACE('Run1 Input'!A30,SEARCH("/*",'Run1 Input'!A30),3,""),'Run1 Input'!A30))) -> 932+50.00 | B37: 93250.00 | C37: =ROUND('Run2 Input'!D30,) -> 359 | E37: =ROUND('P&S Input'!Q30,) -> 0 | F37: =ROUND('M&D Input'!Q30,) -> 0 | G37: =ROUND('GB Input'!Q30,) -> 0 | H37: =ROUND('Misc Input'!Q30,) -> 309 | O37: 668 | Q37: =IF(TYPE(1000000-REPLACE('Run1 Input'!$A30,SEARCH("+*",'Run1 Input'!$A30),1,""))=1,'Run1 Input'!$A30,IF('Run1 Input'!$A30=0,"0+00",IF(TYPE(1000000-REPLACE(REPLACE('Run1 Input'!$A30,SEARCH("+*",'Run1 Input'!$A30),1,""),SEARCH("/*",'Run1 Input'!$A30)-1,1,""))=1,REPLACE('Run1 Input'!$A30,SEARCH("/*",'Run1 Input'!$A30),3,""),'Run1 Input'!$A30))) -> 932+50.00 | R37: 93250.00 | S37: =ROUND('Run2 Input'!E30,) -> 4692 | U37: =ROUND('P&S Input'!B30,) -> 0 | V37: =ROUND('M&D Input'!Q30,) -> 0 | W37: =ROUND('GB Input'!R30,) -> 0 | X37: 0 | Y37: =ROUND(SUM(Pavement!I37),) -> 0 | Z37: =+'Run2 Input'!I30 -> 0 | AC37: =ROUND('GB Input'!S30,) -> 0 | AG37: 4692
A38: =IF(TYPE(1000000-REPLACE('Run1 Input'!A31,SEARCH("+*",'Run1 Input'!A31),1,""))=1,'Run1 Input'!A31,IF('Run1 Input'!A31=0,"0+00",IF(TYPE(1000000-REPLACE(REPLACE('Run1 Input'!A31,SEARCH("+*",'Run1 Input'!A31),1,""),SEARCH("/*",'Run1 Input'!A31)-1,1,""))=1,REPLACE('Run1 Input'!A31,SEARCH("/*",'Run1 Input'!A31),3,""),'Run1 Input'!A31))) -> 932+75.00 | B38: 93275.00 | C38: =ROUND('Run2 Input'!D31,) -> 337 | E38: =ROUND('P&S Input'!Q31,) -> 0 | F38: =ROUND('M&D Input'!Q31,) -> 0 | G38: =ROUND('GB Input'!Q31,) -> 0 | H38: =ROUND('Misc Input'!Q31,) -> 327 | O38: 664 | Q38: =IF(TYPE(1000000-REPLACE('Run1 Input'!$A31,SEARCH("+*",'Run1 Input'!$A31),1,""))=1,'Run1 Input'!$A31,IF('Run1 Input'!$A31=0,"0+00",IF(TYPE(1000000-REPLACE(REPLACE('Run1 Input'!$A31,SEARCH("+*",'Run1 Input'!$A31),1,""),SEARCH("/*",'Run1 Input'!$A31)-1,1,""))=1,REPLACE('Run1 Input'!$A31,SEARCH("/*",'Run1 Input'!$A31),3,""),'Run1 Input'!$A31))) -> 932+75.00 | R38: 93275.00 | S38: =ROUND('Run2 Input'!E31,) -> 4803 | U38: =ROUND('P&S Input'!B31,) -> 0 | V38: =ROUND('M&D Input'!Q31,) -> 0 | W38: =ROUND('GB Input'!R31,) -> 0 | X38: 0 | Y38: =ROUND(SUM(Pavement!I38),) -> 0 | Z38: =+'Run2 Input'!I31 -> 0 | AC38: =ROUND('GB Input'!S31,) -> 0 | AG38: 4803
A39: =IF(TYPE(1000000-REPLACE('Run1 Input'!A32,SEARCH("+*",'Run1 Input'!A32),1,""))=1,'Run1 Input'!A32,IF('Run1 Input'!A32=0,"0+00",IF(TYPE(1000000-REPLACE(REPLACE('Run1 Input'!A32,SEARCH("+*",'Run1 Input'!A32),1,""),SEARCH("/*",'Run1 Input'!A32)-1,1,""))=1,REPLACE('Run1 Input'!A32,SEARCH("/*",'Run1 Input'!A32),3,""),'Run1 Input'!A32))) -> 933+00.00 | B39: 93300.00 | C39: =ROUND('Run2 Input'!D32,) -> 308 | E39: =ROUND('P&S Input'!Q32,) -> 0 | F39: =ROUND('M&D Input'!Q32,) -> 0 | G39: =ROUND('GB Input'!Q32,) -> 0 | H39: =ROUND('Misc Input'!Q32,) -> 331 | O39: 639 | Q39: =IF(TYPE(1000000-REPLACE('Run1 Input'!$A32,SEARCH("+*",'Run1 Input'!$A32),1,""))=1,'Run1 Input'!$A32,IF('Run1 Input'!$A32=0,"0+00",IF(TYPE(1000000-REPLACE(REPLACE('Run1 Input'!$A32,SEARCH("+*",'Run1 Input'!$A32),1,""),SEARCH("/*",'Run1 Input'!$A32)-1,1,""))=1,REPLACE('Run1 Input'!$A32,SEARCH("/*",'Run1 Input'!$A32),3,""),'Run1 Input'!$A32))) -> 933+00.00 | R39: 93300.00 | S39: =ROUND('Run2 Input'!E32,) -> 4898 | U39: =ROUND('P&S Input'!B32,) -> 0 | V39: =ROUND('M&D Input'!Q32,) -> 0 | W39: =ROUND('GB Input'!R32,) -> 0 | X39: 0 | Y39: =ROUND(SUM(Pavement!I39),) -> 0 | Z39: =+'Run2 Input'!I32 -> 0 | AC39: =ROUND('GB Input'!S32,) -> 0 | AG39: 4898
A40: =IF(TYPE(1000000-REPLACE('Run1 Input'!A33,SEARCH("+*",'Run1 Input'!A33),1,""))=1,'Run1 Input'!A33,IF('Run1 Input'!A33=0,"0+00",IF(TYPE(1000000-REPLACE(REPLACE('Run1 Input'!A33,SEARCH("+*",'Run1 Input'!A33),1,""),SEARCH("/*",'Run1 Input'!A33)-1,1,""))=1,REPLACE('Run1 Input'!A33,SEARCH("/*",'Run1 Input'!A33),3,""),'Run1 Input'!A33))) -> 933+25.00 | B40: 93325.00 | C40: =ROUND('Run2 Input'!D33,) -> 284 | E40: =ROUND('P&S Input'!Q33,) -> 0 | F40: =ROUND('M&D Input'!Q33,) -> 0 | G40: =ROUND('GB Input'!Q33,) -> 0 | H40: =ROUND('Misc Input'!Q33,) -> 329 | O40: 613 | Q40: =IF(TYPE(1000000-REPLACE('Run1 Input'!$A33,SEARCH("+*",'Run1 Input'!$A33),1,""))=1,'Run1 Input'!$A33,IF('Run1 Input'!$A33=0,"0+00",IF(TYPE(1000000-REPLACE(REPLACE('Run1 Input'!$A33,SEARCH("+*",'Run1 Input'!$A33),1,""),SEARCH("/*",'Run1 Input'!$A33)-1,1,""))=1,REPLACE('Run1 Input'!$A33,SEARCH("/*",'Run1 Input'!$A33),3,""),'Run1 Input'!$A33))) -> 933+25.00 | R40: 93325.00 | S40: =ROUND('Run2 Input'!E33,) -> 4954 | U40: =ROUND('P&S Input'!B33,) -> 0 | V40: =ROUND('M&D Input'!Q33,) -> 0 | W40: =ROUND('GB Input'!R33,) -> 0 | X40: 0 | Y40: =ROUND(SUM(Pavement!I40),) -> 0 | Z40: =+'Run2 Input'!I33 -> 0 | AC40: =ROUND('GB Input'!S33,) -> 0 | AG40: 4954
A41: =IF(TYPE(1000000-REPLACE('Run1 Input'!A34,SEARCH("+*",'Run1 Input'!A34),1,""))=1,'Run1 Input'!A34,IF('Run1 Input'!A34=0,"0+00",IF(TYPE(1000000-REPLACE(REPLACE('Run1 Input'!A34,SEARCH("+*",'Run1 Input'!A34),1,""),SEARCH("/*",'Run1 Input'!A34)-1,1,""))=1,REPLACE('Run1 Input'!A34,SEARCH("/*",'Run1 Input'!A34),3,""),'Run1 Input'!A34))) -> 933+50.00 | B41: 93350.00 | C41: =ROUND('Run2 Input'!D34,) -> 264 | E41: =ROUND('P&S Input'!Q34,) -> 0 | F41: =ROUND('M&D Input'!Q34,) -> 0 | G41: =ROUND('GB Input'!Q34,) -> 0 | H41: =ROUND('Misc Input'!Q34,) -> 357 | O41: 621 | Q41: =IF(TYPE(1000000-REPLACE('Run1 Input'!$A34,SEARCH("+*",'Run1 Input'!$A34),1,""))=1,'Run1 Input'!$A34,IF('Run1 Input'!$A34=0,"0+00",IF(TYPE(1000000-REPLACE(REPLACE('Run1 Input'!$A34,SEARCH("+*",'Run1 Input'!$A34),1,""),SEARCH("/*",'Run1 Input'!$A34)-1,1,""))=1,REPLACE('Run1 Input'!$A34,SEARCH("/*",'Run1 Input'!$A34),3,""),'Run1 Input'!$A34))) -> 933+50.00 | R41: 93350.00 | S41: =ROUND('Run2 Input'!E34,) -> 4926 | U41: =ROUND('P&S Input'!B34,) -> 0 | V41: =ROUND('M&D Input'!Q34,) -> 0 | W41: =ROUND('GB Input'!R34,) -> 0 | X41: 0 | Y41: =ROUND(SUM(Pavement!I41),) -> 0 | Z41: =+'Run2 Input'!I34 -> 0 | AC41: =ROUND('GB Input'!S34,) -> 0 | AG41: 4926
A42: =IF(TYPE(1000000-REPLACE('Run1 Input'!A35,SEARCH("+*",'Run1 Input'!A35),1,""))=1,'Run1 Input'!A35,IF('Run1 Input'!A35=0,"0+00",IF(TYPE(1000000-REPLACE(REPLACE('Run1 Input'!A35,SEARCH("+*",'Run1 Input'!A35),1,""),SEARCH("/*",'Run1 Input'!A35)-1,1,""))=1,REPLACE('Run1 Input'!A35,SEARCH("/*",'Run1 Input'!A35),3,""),'Run1 Input'!A35))) -> 933+75.00 | B42: 93375.00 | C42: =ROUND('Run2 Input'!D35,) -> 247 | E42: =ROUND('P&S Input'!Q35,) -> 0 | F42: =ROUND('M&D Input'!Q35,) -> 0 | G42: =ROUND('GB Input'!Q35,) -> 0 | H42: =ROUND('Misc Input'!Q35,) -> 386 | O42: 633 | Q42: =IF(TYPE(1000000-REPLACE('Run1 Input'!$A35,SEARCH("+*",'Run1 Input'!$A35),1,""))=1,'Run1 Input'!$A35,IF('Run1 Input'!$A35=0,"0+00",IF(TYPE(1000000-REPLACE(REPLACE('Run1 Input'!$A35,SEARCH("+*",'Run1 Input'!$A35),1,""),SEARCH("/*",'Run1 Input'!$A35)-1,1,""))=1,REPLACE('Run1 Input'!$A35,SEARCH("/*",'Run1 Input'!$A35),3,""),'Run1 Input'!$A35))) -> 933+75.00 | R42: 93375.00 | S42: =ROUND('Run2 Input'!E35,) -> 4798 | U42: =ROUND('P&S Input'!B35,) -> 0 | V42: =ROUND('M&D Input'!Q35,) -> 0 | W42: =ROUND('GB Input'!R35,) -> 0 | X42: 0 | Y42: =ROUND(SUM(Pavement!I42),) -> 0 | Z42: =+'Run2 Input'!I35 -> 0 | AC42: =ROUND('GB Input'!S35,) -> 0 | AG42: 4798
A43: =IF(TYPE(1000000-REPLACE('Run1 Input'!A36,SEARCH("+*",'Run1 Input'!A36),1,""))=1,'Run1 Input'!A36,IF('Run1 Input'!A36=0,"0+00",IF(TYPE(1000000-REPLACE(REPLACE('Run1 Input'!A36,SEARCH("+*",'Run1 Input'!A36),1,""),SEARCH("/*",'Run1 Input'!A36)-1,1,""))=1,REPLACE('Run1 Input'!A36,SEARCH("/*",'Run1 Input'!A36),3,""),'Run1 Input'!A36))) -> 934+00.00 | B43: 93400.00 | C43: =ROUND('Run2 Input'!D36,) -> 241 | E43: =ROUND('P&S Input'!Q36,) -> 0 | F43: =ROUND('M&D Input'!Q36,) -> 0 | G43: =ROUND('GB Input'!Q36,) -> 0 | H43: =ROUND('Misc Input'!Q36,) -> 396 | O43: 637 | Q43: =IF(TYPE(1000000-REPLACE('Run1 Input'!$A36,SEARCH("+*",'Run1 Input'!$A36),1,""))=1,'Run1 Input'!$A36,IF('Run1 Input'!$A36=0,"0+00",IF(TYPE(1000000-REPLACE(REPLACE('Run1 Input'!$A36,SEARCH("+*",'Run1 Input'!$A36),1,""),SEARCH("/*",'Run1 Input'!$A36)-1,1,""))=1,REPLACE('Run1 Input'!$A36,SEARCH("/*",'Run1 Input'!$A36),3,""),'Run1 Input'!$A36))) -> 934+00.00 | R43: 93400.00 | S43: =ROUND('Run2 Input'!E36,) -> 4710 | U43: =ROUND('P&S Input'!B36,) -> 0 | V43: =ROUND('M&D Input'!Q36,) -> 0 | W43: =ROUND('GB Input'!R36,) -> 0 | X43: 0 | Y43: =ROUND(SUM(Pavement!I43),) -> 0 | Z43: =+'Run2 Input'!I36 -> 0 | AC43: =ROUND('GB Input'!S36,) -> 0 | AG43: 4710
A44: =IF(TYPE(1000000-REPLACE('Run1 Input'!A37,SEARCH("+*",'Run1 Input'!A37),1,""))=1,'Run1 Input'!A37,IF('Run1 Input'!A37=0,"0+00",IF(TYPE(1000000-REPLACE(REPLACE('Run1 Input'!A37,SEARCH("+*",'Run1 Input'!A37),1,""),SEARCH("/*",'Run1 Input'!A37)-1,1,""))=1,REPLACE('Run1 Input'!A37,SEARCH("/*",'Run1 Input'!A37),3,""),'Run1 Input'!A37))) -> 934+25.00 | B44: 93425.00 | C44: =ROUND('Run2 Input'!D37,) -> 245 | E44: =ROUND('P&S Input'!Q37,) -> 0 | F44: =ROUND('M&D Input'!Q37,) -> 0 | G44: =ROUND('GB Input'!Q37,) -> 0 | H44: =ROUND('Misc Input'!Q37,) -> 428 | O44: 673 | Q44: =IF(TYPE(1000000-REPLACE('Run1 Input'!$A37,SEARCH("+*",'Run1 Input'!$A37),1,""))=1,'Run1 Input'!$A37,IF('Run1 Input'!$A37=0,"0+00",IF(TYPE(1000000-REPLACE(REPLACE('Run1 Input'!$A37,SEARCH("+*",'Run1 Input'!$A37),1,""),SEARCH("/*",'Run1 Input'!$A37)-1,1,""))=1,REPLACE('Run1 Input'!$A37,SEARCH("/*",'Run1 Input'!$A37),3,""),'Run1 Input'!$A37))) -> 934+25.00 | R44: 93425.00 | S44: =ROUND('Run2 Input'!E37,) -> 4732 | U44: =ROUND('P&S Input'!B37,) -> 0 | V44: =ROUND('M&D Input'!Q37,) -> 0 | W44: =ROUND('GB Input'!R37,) -> 0 | X44: 0 | Y44: =ROUND(SUM(Pavement!I44),) -> 0 | Z44: =+'Run2 Input'!I37 -> 0 | AC44: =ROUND('GB Input'!S37,) -> 0 | AG44: 4732
A45: =IF(TYPE(1000000-REPLACE('Run1 Input'!A38,SEARCH("+*",'Run1 Input'!A38),1,""))=1,'Run1 Input'!A38,IF('Run1 Input'!A38=0,"0+00",IF(TYPE(1000000-REPLACE(REPLACE('Run1 Input'!A38,SEARCH("+*",'Run1 Input'!A38),1,""),SEARCH("/*",'Run1 Input'!A38)-1,1,""))=1,REPLACE('Run1 Input'!A38,SEARCH("/*",'Run1 Input'!A38),3,""),'Run1 Input'!A38))) -> 934+41.91 | B45: 93441.91 | C45: =ROUND('Run2 Input'!D38,) -> 168 | E45: =ROUND('P&S Input'!Q38,) -> 0 | F45: =ROUND('M&D Input'!Q38,) -> 0 | G45: =ROUND('GB Input'!Q38,) -> 0 | H45: =ROUND('Misc Input'!Q38,) -> 313 | O45: 481 | Q45: =IF(TYPE(1000000-REPLACE('Run1 Input'!$A38,SEARCH("+*",'Run1 Input'!$A38),1,""))=1,'Run1 Input'!$A38,IF('Run1 Input'!$A38=0,"0+00",IF(TYPE(1000000-REPLACE(REPLACE('Run1 Input'!$A38,SEARCH("+*",'Run1 Input'!$A38),1,""),SEARCH("/*",'Run1 Input'!$A38)-1,1,""))=1,REPLACE('Run1 Input'!$A38,SEARCH("/*",'Run1 Input'!$A38),3,""),'Run1 Input'!$A38))) -> 934+41.91 | R45: 93441.91 | S45: =ROUND('Run2 Input'!E38,) -> 3220 | U45: =ROUND('P&S Input'!B38,) -> 0 | V45: =ROUND('M&D Input'!Q38,) -> 0 | W45: =ROUND('GB Input'!R38,) -> 0 | X45: 0 | Y45: =ROUND(SUM(Pavement!I45),) -> 0 | Z45: =+'Run2 Input'!I38 -> 0 | AC45: =ROUND('GB Input'!S38,) -> 0 | AG45: 3220
A46: =IF(TYPE(1000000-REPLACE('Run1 Input'!A39,SEARCH("+*",'Run1 Input'!A39),1,""))=1,'Run1 Input'!A39,IF('Run1 Input'!A39=0,"0+00",IF(TYPE(1000000-REPLACE(REPLACE('Run1 Input'!A39,SEARCH("+*",'Run1 Input'!A39),1,""),SEARCH("/*",'Run1 Input'!A39)-1,1,""))=1,REPLACE('Run1 Input'!A39,SEARCH("/*",'Run1 Input'!A39),3,""),'Run1 Input'!A39))) -> 934+50.00 | B46: 93450.00 | C46: =ROUND('Run2 Input'!D39,) -> 81 | E46: =ROUND('P&S Input'!Q39,) -> 0 | F46: =ROUND('M&D Input'!Q39,) -> 0 | G46: =ROUND('GB Input'!Q39,) -> 0 | H46: =ROUND('Misc Input'!Q39,) -> 156 | O46: 237 | Q46: =IF(TYPE(1000000-REPLACE('Run1 Input'!$A39,SEARCH("+*",'Run1 Input'!$A39),1,""))=1,'Run1 Input'!$A39,IF('Run1 Input'!$A39=0,"0+00",IF(TYPE(1000000-REPLACE(REPLACE('Run1 Input'!$A39,SEARCH("+*",'Run1 Input'!$A39),1,""),SEARCH("/*",'Run1 Input'!$A39)-1,1,""))=1,REPLACE('Run1 Input'!$A39,SEARCH("/*",'Run1 Input'!$A39),3,""),'Run1 Input'!$A39))) -> 934+50.00 | R46: 93450.00 | S46: =ROUND('Run2 Input'!E39,) -> 1550 | U46: =ROUND('P&S Input'!B39,) -> 0 | V46: =ROUND('M&D Input'!Q39,) -> 0 | W46: =ROUND('GB Input'!R39,) -> 0 | X46: 0 | Y46: =ROUND(SUM(Pavement!I46),) -> 0 | Z46: =+'Run2 Input'!I39 -> 0 | AC46: =ROUND('GB Input'!S39,) -> 0 | AG46: 1550
A47: =IF(TYPE(1000000-REPLACE('Run1 Input'!A40,SEARCH("+*",'Run1 Input'!A40),1,""))=1,'Run1 Input'!A40,IF('Run1 Input'!A40=0,"0+00",IF(TYPE(1000000-REPLACE(REPLACE('Run1 Input'!A40,SEARCH("+*",'Run1 Input'!A40),1,""),SEARCH("/*",'Run1 Input'!A40)-1,1,""))=1,REPLACE('Run1 Input'!A40,SEARCH("/*",'Run1 Input'!A40),3,""),'Run1 Input'!A40))) -> 934+70.71 | B47: 93470.71 | C47: =ROUND('Run2 Input'!D40,) -> 209 | E47: =ROUND('P&S Input'!Q40,) -> 0 | F47: =ROUND('M&D Input'!Q40,) -> 0 | G47: =ROUND('GB Input'!Q40,) -> 0 | H47: =ROUND('Misc Input'!Q40,) -> 414 | O47: 623 | Q47: =IF(TYPE(1000000-REPLACE('Run1 Input'!$A40,SEARCH("+*",'Run1 Input'!$A40),1,""))=1,'Run1 Input'!$A40,IF('Run1 Input'!$A40=0,"0+00",IF(TYPE(1000000-REPLACE(REPLACE('Run1 Input'!$A40,SEARCH("+*",'Run1 Input'!$A40),1,""),SEARCH("/*",'Run1 Input'!$A40)-1,1,""))=1,REPLACE('Run1 Input'!$A40,SEARCH("/*",'Run1 Input'!$A40),3,""),'Run1 Input'!$A40))) -> 934+70.71 | R47: 93470.71 | S47: =ROUND('Run2 Input'!E40,) -> 4001 | U47: =ROUND('P&S Input'!B40,) -> 0 | V47: =ROUND('M&D Input'!Q40,) -> 0 | W47: =ROUND('GB Input'!R40,) -> 0 | X47: 0 | Y47: =ROUND(SUM(Pavement!I47),) -> 0 | Z47: =+'Run2 Input'!I40 -> 0 | AC47: =ROUND('GB Input'!S40,) -> 0 | AG47: 4001
A48: =IF(TYPE(1000000-REPLACE('Run1 Input'!A41,SEARCH("+*",'Run1 Input'!A41),1,""))=1,'Run1 Input'!A41,IF('Run1 Input'!A41=0,"0+00",IF(TYPE(1000000-REPLACE(REPLACE('Run1 Input'!A41,SEARCH("+*",'Run1 Input'!A41),1,""),SEARCH("/*",'Run1 Input'!A41)-1,1,""))=1,REPLACE('Run1 Input'!A41,SEARCH("/*",'Run1 Input'!A41),3,""),'Run1 Input'!A41))) -> 934+75.00 | B48: 93475.00 | C48: =ROUND('Run2 Input'!D41,) -> 44 | E48: =ROUND('P&S Input'!Q41,) -> 0 | F48: =ROUND('M&D Input'!Q41,) -> 0 | G48: =ROUND('GB Input'!Q41,) -> 0 | H48: =ROUND('Misc Input'!Q41,) -> 88 | O48: 132 | Q48: =IF(TYPE(1000000-REPLACE('Run1 Input'!$A41,SEARCH("+*",'Run1 Input'!$A41),1,""))=1,'Run1 Input'!$A41,IF('Run1 Input'!$A41=0,"0+00",IF(TYPE(1000000-REPLACE(REPLACE('Run1 Input'!$A41,SEARCH("+*",'Run1 Input'!$A41),1,""),SEARCH("/*",'Run1 Input'!$A41)-1,1,""))=1,REPLACE('Run1 Input'!$A41,SEARCH("/*",'Run1 Input'!$A41),3,""),'Run1 Input'!$A41))) -> 934+75.00 | R48: 93475.00 | S48: =ROUND('Run2 Input'!E41,) -> 836 | U48: =ROUND('P&S Input'!B41,) -> 0 | V48: =ROUND('M&D Input'!Q41,) -> 0 | W48: =ROUND('GB Input'!R41,) -> 0 | X48: 0 | Y48: =ROUND(SUM(Pavement!I48),) -> 0 | Z48: =+'Run2 Input'!I41 -> 0 | AC48: =ROUND('GB Input'!S41,) -> 0 | AG48: 836
A49: =IF(TYPE(1000000-REPLACE('Run1 Input'!A42,SEARCH("+*",'Run1 Input'!A42),1,""))=1,'Run1 Input'!A42,IF('Run1 Input'!A42=0,"0+00",IF(TYPE(1000000-REPLACE(REPLACE('Run1 Input'!A42,SEARCH("+*",'Run1 Input'!A42),1,""),SEARCH("/*",'Run1 Input'!A42)-1,1,""))=1,REPLACE('Run1 Input'!A42,SEARCH("/*",'Run1 Input'!A42),3,""),'Run1 Input'!A42))) -> 935+00.00 | B49: 93500.00 | C49: =ROUND('Run2 Input'!D42,) -> 257 | E49: =ROUND('P&S Input'!Q42,) -> 0 | F49: =ROUND('M&D Input'!Q42,) -> 0 | G49: =ROUND('GB Input'!Q42,) -> 0 | H49: =ROUND('Misc Input'!Q42,) -> 507 | O49: 764 | Q49: =IF(TYPE(1000000-REPLACE('Run1 Input'!$A42,SEARCH("+*",'Run1 Input'!$A42),1,""))=1,'Run1 Input'!$A42,IF('Run1 Input'!$A42=0,"0+00",IF(TYPE(1000000-REPLACE(REPLACE('Run1 Input'!$A42,SEARCH("+*",'Run1 Input'!$A42),1,""),SEARCH("/*",'Run1 Input'!$A42)-1,1,""))=1,REPLACE('Run1 Input'!$A42,SEARCH("/*",'Run1 Input'!$A42),3,""),'Run1 Input'!$A42))) -> 935+00.00 | R49: 93500.00 | S49: =ROUND('Run2 Input'!E42,) -> 4923 | U49: =ROUND('P&S Input'!B42,) -> 0 | V49: =ROUND('M&D Input'!Q42,) -> 0 | W49: =ROUND('GB Input'!R42,) -> 0 | X49: 0 | Y49: =ROUND(SUM(Pavement!I49),) -> 0 | Z49: =+'Run2 Input'!I42 -> 0 | AC49: =ROUND('GB Input'!S42,) -> 0 | AG49: 4923
A50: =IF(TYPE(1000000-REPLACE('Run1 Input'!A43,SEARCH("+*",'Run1 Input'!A43),1,""))=1,'Run1 Input'!A43,IF('Run1 Input'!A43=0,"0+00",IF(TYPE(1000000-REPLACE(REPLACE('Run1 Input'!A43,SEARCH("+*",'Run1 Input'!A43),1,""),SEARCH("/*",'Run1 Input'!A43)-1,1,""))=1,REPLACE('Run1 Input'!A43,SEARCH("/*",'Run1 Input'!A43),3,""),'Run1 Input'!A43))) -> 935+25.00 | B50: 93525.00 | C50: =ROUND('Run2 Input'!D43,) -> 260 | E50: =ROUND('P&S Input'!Q43,) -> 0 | F50: =ROUND('M&D Input'!Q43,) -> 0 | G50: =ROUND('GB Input'!Q43,) -> 0 | H50: =ROUND('Misc Input'!Q43,) -> 504 | O50: 764 | Q50: =IF(TYPE(1000000-REPLACE('Run1 Input'!$A43,SEARCH("+*",'Run1 Input'!$A43),1,""))=1,'Run1 Input'!$A43,IF('Run1 Input'!$A43=0,"0+00",IF(TYPE(1000000-REPLACE(REPLACE('Run1 Input'!$A43,SEARCH("+*",'Run1 Input'!$A43),1,""),SEARCH("/*",'Run1 Input'!$A43)-1,1,""))=1,REPLACE('Run1 Input'!$A43,SEARCH("/*",'Run1 Input'!$A43),3,""),'Run1 Input'!$A43))) -> 935+25.00 | R50: 93525.00 | S50: =ROUND('Run2 Input'!E43,) -> 5004 | U50: =ROUND('P&S Input'!B43,) -> 0 | V50: =ROUND('M&D Input'!Q43,) -> 0 | W50: =ROUND('GB Input'!R43,) -> 0 | X50: 0 | Y50: =ROUND(SUM(Pavement!I50),) -> 0 | Z50: =+'Run2 Input'!I43 -> 0 | AC50: =ROUND('GB Input'!S43,) -> 0 | AG50: 5004
A51: =IF(TYPE(1000000-REPLACE('Run1 Input'!A44,SEARCH("+*",'Run1 Input'!A44),1,""))=1,'Run1 Input'!A44,IF('Run1 Input'!A44=0,"0+00",IF(TYPE(1000000-REPLACE(REPLACE('Run1 Input'!A44,SEARCH("+*",'Run1 Input'!A44),1,""),SEARCH("/*",'Run1 Input'!A44)-1,1,""))=1,REPLACE('Run1 Input'!A44,SEARCH("/*",'Run1 Input'!A44),3,""),'Run1 Input'!A44))) -> 935+37.91 | B51: 93537.91 | C51: =ROUND('Run2 Input'!D44,) -> 135 | E51: =ROUND('P&S Input'!Q44,) -> 0 | F51: =ROUND('M&D Input'!Q44,) -> 0 | G51: =ROUND('GB Input'!Q44,) -> 0 | H51: =ROUND('Misc Input'!Q44,) -> 261 | O51: 396 | Q51: =IF(TYPE(1000000-REPLACE('Run1 Input'!$A44,SEARCH("+*",'Run1 Input'!$A44),1,""))=1,'Run1 Input'!$A44,IF('Run1 Input'!$A44=0,"0+00",IF(TYPE(1000000-REPLACE(REPLACE('Run1 Input'!$A44,SEARCH("+*",'Run1 Input'!$A44),1,""),SEARCH("/*",'Run1 Input'!$A44)-1,1,""))=1,REPLACE('Run1 Input'!$A44,SEARCH("/*",'Run1 Input'!$A44),3,""),'Run1 Input'!$A44))) -> 935+37.91 | R51: 93537.91 | S51: =ROUND('Run2 Input'!E44,) -> 2611 | U51: =ROUND('P&S Input'!B44,) -> 0 | V51: =ROUND('M&D Input'!Q44,) -> 0 | W51: =ROUND('GB Input'!R44,) -> 0 | X51: 0 | Y51: =ROUND(SUM(Pavement!I51),) -> 0 | Z51: =+'Run2 Input'!I44 -> 0 | AC51: =ROUND('GB Input'!S44,) -> 0 | AG51: 2611
A52: =IF(TYPE(1000000-REPLACE('Run1 Input'!A45,SEARCH("+*",'Run1 Input'!A45),1,""))=1,'Run1 Input'!A45,IF('Run1 Input'!A45=0,"0+00",IF(TYPE(1000000-REPLACE(REPLACE('Run1 Input'!A45,SEARCH("+*",'Run1 Input'!A45),1,""),SEARCH("/*",'Run1 Input'!A45)-1,1,""))=1,REPLACE('Run1 Input'!A45,SEARCH("/*",'Run1 Input'!A45),3,""),'Run1 Input'!A45))) -> 935+50.00 | B52: 93550.00 | C52: =ROUND('Run2 Input'!D45,) -> 127 | E52: =ROUND('P&S Input'!Q45,) -> 0 | F52: =ROUND('M&D Input'!Q45,) -> 0 | G52: =ROUND('GB Input'!Q45,) -> 0 | H52: =ROUND('Misc Input'!Q45,) -> 245 | O52: 372 | Q52: =IF(TYPE(1000000-REPLACE('Run1 Input'!$A45,SEARCH("+*",'Run1 Input'!$A45),1,""))=1,'Run1 Input'!$A45,IF('Run1 Input'!$A45=0,"0+00",IF(TYPE(1000000-REPLACE(REPLACE('Run1 Input'!$A45,SEARCH("+*",'Run1 Input'!$A45),1,""),SEARCH("/*",'Run1 Input'!$A45)-1,1,""))=1,REPLACE('Run1 Input'!$A45,SEARCH("/*",'Run1 Input'!$A45),3,""),'Run1 Input'!$A45))) -> 935+50.00 | R52: 93550.00 | S52: =ROUND('Run2 Input'!E45,) -> 2464 | U52: =ROUND('P&S Input'!B45,) -> 0 | V52: =ROUND('M&D Input'!Q45,) -> 0 | W52: =ROUND('GB Input'!R45,) -> 0 | X52: 0 | Y52: =ROUND(SUM(Pavement!I52),) -> 0 | Z52: =+'Run2 Input'!I45 -> 0 | AC52: =ROUND('GB Input'!S45,) -> 0 | AG52: 2464
A53: =IF(TYPE(1000000-REPLACE('Run1 Input'!A46,SEARCH("+*",'Run1 Input'!A46),1,""))=1,'Run1 Input'!A46,IF('Run1 Input'!A46=0,"0+00",IF(TYPE(1000000-REPLACE(REPLACE('Run1 Input'!A46,SEARCH("+*",'Run1 Input'!A46),1,""),SEARCH("/*",'Run1 Input'!A46)-1,1,""))=1,REPLACE('Run1 Input'!A46,SEARCH("/*",'Run1 Input'!A46),3,""),'Run1 Input'!A46))) -> 935+75.00 | B53: 93575.00 | C53: =ROUND('Run2 Input'!D46,) -> 266 | E53: =ROUND('P&S Input'!Q46,) -> 0 | F53: =ROUND('M&D Input'!Q46,) -> 0 | G53: =ROUND('GB Input'!Q46,) -> 0 | H53: =ROUND('Misc Input'!Q46,) -> 504 | O53: 770 | Q53: =IF(TYPE(1000000-REPLACE('Run1 Input'!$A46,SEARCH("+*",'Run1 Input'!$A46),1,""))=1,'Run1 Input'!$A46,IF('Run1 Input'!$A46=0,"0+00",IF(TYPE(1000000-REPLACE(REPLACE('Run1 Input'!$A46,SEARCH("+*",'Run1 Input'!$A46),1,""),SEARCH("/*",'Run1 Input'!$A46)-1,1,""))=1,REPLACE('Run1 Input'!$A46,SEARCH("/*",'Run1 Input'!$A46),3,""),'Run1 Input'!$A46))) -> 935+75.00 | R53: 93575.00 | S53: =ROUND('Run2 Input'!E46,) -> 5146 | U53: =ROUND('P&S Input'!B46,) -> 0 | V53: =ROUND('M&D Input'!Q46,) -> 0 | W53: =ROUND('GB Input'!R46,) -> 0 | X53: 0 | Y53: =ROUND(SUM(Pavement!I53),) -> 0 | Z53: =+'Run2 Input'!I46 -> 0 | AC53: =ROUND('GB Input'!S46,) -> 0 | AG53: 5146
A54: =IF(TYPE(1000000-REPLACE('Run1 Input'!A47,SEARCH("+*",'Run1 Input'!A47),1,""))=1,'Run1 Input'!A47,IF('Run1 Input'!A47=0,"0+00",IF(TYPE(1000000-REPLACE(REPLACE('Run1 Input'!A47,SEARCH("+*",'Run1 Input'!A47),1,""),SEARCH("/*",'Run1 Input'!A47)-1,1,""))=1,REPLACE('Run1 Input'!A47,SEARCH("/*",'Run1 Input'!A47),3,""),'Run1 Input'!A47))) -> 936+00.00 | B54: 93600.00 | C54: =ROUND('Run2 Input'!D47,) -> 268 | E54: =ROUND('P&S Input'!Q47,) -> 0 | F54: =ROUND('M&D Input'!Q47,) -> 0 | G54: =ROUND('GB Input'!Q47,) -> 0 | H54: =ROUND('Misc Input'!Q47,) -> 491 | O54: 759 | Q54: =IF(TYPE(1000000-REPLACE('Run1 Input'!$A47,SEARCH("+*",'Run1 Input'!$A47),1,""))=1,'Run1 Input'!$A47,IF('Run1 Input'!$A47=0,"0+00",IF(TYPE(1000000-REPLACE(REPLACE('Run1 Input'!$A47,SEARCH("+*",'Run1 Input'!$A47),1,""),SEARCH("/*",'Run1 Input'!$A47)-1,1,""))=1,REPLACE('Run1 Input'!$A47,SEARCH("/*",'Run1 Input'!$A47),3,""),'Run1 Input'!$A47))) -> 936+00.00 | R54: 93600.00 | S54: =ROUND('Run2 Input'!E47,) -> 5196 | U54: =ROUND('P&S Input'!B47,) -> 0 | V54: =ROUND('M&D Input'!Q47,) -> 0 | W54: =ROUND('GB Input'!R47,) -> 0 | X54: 0 | Y54: =ROUND(SUM(Pavement!I54),) -> 0 | Z54: =+'Run2 Input'!I47 -> 0 | AC54: =ROUND('GB Input'!S47,) -> 0 | AG54: 5196
A55: =IF(TYPE(1000000-REPLACE('Run1 Input'!A48,SEARCH("+*",'Run1 Input'!A48),1,""))=1,'Run1 Input'!A48,IF('Run1 Input'!A48=0,"0+00",IF(TYPE(1000000-REPLACE(REPLACE('Run1 Input'!A48,SEARCH("+*",'Run1 Input'!A48),1,""),SEARCH("/*",'Run1 Input'!A48)-1,1,""))=1,REPLACE('Run1 Input'!A48,SEARCH("/*",'Run1 Input'!A48),3,""),'Run1 Input'!A48))) -> 936+14.55 | B55: 93614.55 | C55: =ROUND('Run2 Input'!D48,) -> 155 | E55: =ROUND('P&S Input'!Q48,) -> 0 | F55: =ROUND('M&D Input'!Q48,) -> 0 | G55: =ROUND('GB Input'!Q48,) -> 0 | H55: =ROUND('Misc Input'!Q48,) -> 276 | O55: 431 | Q55: =IF(TYPE(1000000-REPLACE('Run1 Input'!$A48,SEARCH("+*",'Run1 Input'!$A48),1,""))=1,'Run1 Input'!$A48,IF('Run1 Input'!$A48=0,"0+00",IF(TYPE(1000000-REPLACE(REPLACE('Run1 Input'!$A48,SEARCH("+*",'Run1 Input'!$A48),1,""),SEARCH("/*",'Run1 Input'!$A48)-1,1,""))=1,REPLACE('Run1 Input'!$A48,SEARCH("/*",'Run1 Input'!$A48),3,""),'Run1 Input'!$A48))) -> 936+14.55 | R55: 93614.55 | S55: =ROUND('Run2 Input'!E48,) -> 3027 | U55: =ROUND('P&S Input'!B48,) -> 0 | V55: =ROUND('M&D Input'!Q48,) -> 0 | W55: =ROUND('GB Input'!R48,) -> 0 | X55: 0 | Y55: =ROUND(SUM(Pavement!I55),) -> 0 | Z55: =+'Run2 Input'!I48 -> 0 | AC55: =ROUND('GB Input'!S48,) -> 0 | AG55: 3027
A56: =IF(TYPE(1000000-REPLACE('Run1 Input'!A49,SEARCH("+*",'Run1 Input'!A49),1,""))=1,'Run1 Input'!A49,IF('Run1 Input'!A49=0,"0+00",IF(TYPE(1000000-REPLACE(REPLACE('Run1 Input'!A49,SEARCH("+*",'Run1 Input'!A49),1,""),SEARCH("/*",'Run1 Input'!A49)-1,1,""))=1,REPLACE('Run1 Input'!A49,SEARCH("/*",'Run1 Input'!A49),3,""),'Run1 Input'!A49))) -> 936+25.00 | B56: 93625.00 | C56: =ROUND('Run2 Input'!D49,) -> 109 | E56: =ROUND('P&S Input'!Q49,) -> 0 | F56: =ROUND('M&D Input'!Q49,) -> 0 | G56: =ROUND('GB Input'!Q49,) -> 0 | H56: =ROUND('Misc Input'!Q49,) -> 193 | O56: 302 | Q56: =IF(TYPE(1000000-REPLACE('Run1 Input'!$A49,SEARCH("+*",'Run1 Input'!$A49),1,""))=1,'Run1 Input'!$A49,IF('Run1 Input'!$A49=0,"0+00",IF(TYPE(1000000-REPLACE(REPLACE('Run1 Input'!$A49,SEARCH("+*",'Run1 Input'!$A49),1,""),SEARCH("/*",'Run1 Input'!$A49)-1,1,""))=1,REPLACE('Run1 Input'!$A49,SEARCH("/*",'Run1 Input'!$A49),3,""),'Run1 Input'!$A49))) -> 936+25.00 | R56: 93625.00 | S56: =ROUND('Run2 Input'!E49,) -> 2157 | U56: =ROUND('P&S Input'!B49,) -> 0 | V56: =ROUND('M&D Input'!Q49,) -> 0 | W56: =ROUND('GB Input'!R49,) -> 0 | X56: 0 | Y56: =ROUND(SUM(Pavement!I56),) -> 0 | Z56: =+'Run2 Input'!I49 -> 0 | AC56: =ROUND('GB Input'!S49,) -> 0 | AG56: 2157
A57: =IF(TYPE(1000000-REPLACE('Run1 Input'!A50,SEARCH("+*",'Run1 Input'!A50),1,""))=1,'Run1 Input'!A50,IF('Run1 Input'!A50=0,"0+00",IF(TYPE(1000000-REPLACE(REPLACE('Run1 Input'!A50,SEARCH("+*",'Run1 Input'!A50),1,""),SEARCH("/*",'Run1 Input'!A50)-1,1,""))=1,REPLACE('Run1 Input'!A50,SEARCH("/*",'Run1 Input'!A50),3,""),'Run1 Input'!A50))) -> 936+33.91 | B57: 93633.91 | C57: =ROUND('Run2 Input'!D50,) -> 91 | E57: =ROUND('P&S Input'!Q50,) -> 0 | F57: =ROUND('M&D Input'!Q50,) -> 0 | G57: =ROUND('GB Input'!Q50,) -> 0 | H57: =ROUND('Misc Input'!Q50,) -> 161 | O57: 252 | Q57: =IF(TYPE(1000000-REPLACE('Run1 Input'!$A50,SEARCH("+*",'Run1 Input'!$A50),1,""))=1,'Run1 Input'!$A50,IF('Run1 Input'!$A50=0,"0+00",IF(TYPE(1000000-REPLACE(REPLACE('Run1 Input'!$A50,SEARCH("+*",'Run1 Input'!$A50),1,""),SEARCH("/*",'Run1 Input'!$A50)-1,1,""))=1,REPLACE('Run1 Input'!$A50,SEARCH("/*",'Run1 Input'!$A50),3,""),'Run1 Input'!$A50))) -> 936+33.91 | R57: 93633.91 | S57: =ROUND('Run2 Input'!E50,) -> 1822 | U57: =ROUND('P&S Input'!B50,) -> 0 | V57: =ROUND('M&D Input'!Q50,) -> 0 | W57: =ROUND('GB Input'!R50,) -> 0 | X57: 0 | Y57: =ROUND(SUM(Pavement!I57),) -> 0 | Z57: =+'Run2 Input'!I50 -> 0 | AC57: =ROUND('GB Input'!S50,) -> 0 | AG57: 1822
A58: =IF(TYPE(1000000-REPLACE('Run1 Input'!A51,SEARCH("+*",'Run1 Input'!A51),1,""))=1,'Run1 Input'!A51,IF('Run1 Input'!A51=0,"0+00",IF(TYPE(1000000-REPLACE(REPLACE('Run1 Input'!A51,SEARCH("+*",'Run1 Input'!A51),1,""),SEARCH("/*",'Run1 Input'!A51)-1,1,""))=1,REPLACE('Run1 Input'!A51,SEARCH("/*",'Run1 Input'!A51),3,""),'Run1 Input'!A51))) -> 936+34.55 | B58: 93634.55 | C58: =ROUND('Run2 Input'!D51,) -> 7 | E58: =ROUND('P&S Input'!Q51,) -> 0 | F58: =ROUND('M&D Input'!Q51,) -> 0 | G58: =ROUND('GB Input'!Q51,) -> 0 | H58: =ROUND('Misc Input'!Q51,) -> 11 | O58: 18 | Q58: =IF(TYPE(1000000-REPLACE('Run1 Input'!$A51,SEARCH("+*",'Run1 Input'!$A51),1,""))=1,'Run1 Input'!$A51,IF('Run1 Input'!$A51=0,"0+00",IF(TYPE(1000000-REPLACE(REPLACE('Run1 Input'!$A51,SEARCH("+*",'Run1 Input'!$A51),1,""),SEARCH("/*",'Run1 Input'!$A51)-1,1,""))=1,REPLACE('Run1 Input'!$A51,SEARCH("/*",'Run1 Input'!$A51),3,""),'Run1 Input'!$A51))) -> 936+34.55 | R58: 93634.55 | S58: =ROUND('Run2 Input'!E51,) -> 130 | U58: =ROUND('P&S Input'!B51,) -> 0 | V58: =ROUND('M&D Input'!Q51,) -> 0 | W58: =ROUND('GB Input'!R51,) -> 0 | X58: 0 | Y58: =ROUND(SUM(Pavement!I58),) -> 0 | Z58: =+'Run2 Input'!I51 -> 0 | AC58: =ROUND('GB Input'!S51,) -> 0 | AG58: 130
A59: =IF(TYPE(1000000-REPLACE('Run1 Input'!A52,SEARCH("+*",'Run1 Input'!A52),1,""))=1,'Run1 Input'!A52,IF('Run1 Input'!A52=0,"0+00",IF(TYPE(1000000-REPLACE(REPLACE('Run1 Input'!A52,SEARCH("+*",'Run1 Input'!A52),1,""),SEARCH("/*",'Run1 Input'!A52)-1,1,""))=1,REPLACE('Run1 Input'!A52,SEARCH("/*",'Run1 Input'!A52),3,""),'Run1 Input'!A52))) -> 936+50.00 | B59: 93650.00 | C59: =ROUND('Run2 Input'!D52,) -> 154 | E59: =ROUND('P&S Input'!Q52,) -> 0 | F59: =ROUND('M&D Input'!Q52,) -> 0 | G59: =ROUND('GB Input'!Q52,) -> 0 | H59: =ROUND('Misc Input'!Q52,) -> 273 | O59: 427 | Q59: =IF(TYPE(1000000-REPLACE('Run1 Input'!$A52,SEARCH("+*",'Run1 Input'!$A52),1,""))=1,'Run1 Input'!$A52,IF('Run1 Input'!$A52=0,"0+00",IF(TYPE(1000000-REPLACE(REPLACE('Run1 Input'!$A52,SEARCH("+*",'Run1 Input'!$A52),1,""),SEARCH("/*",'Run1 Input'!$A52)-1,1,""))=1,REPLACE('Run1 Input'!$A52,SEARCH("/*",'Run1 Input'!$A52),3,""),'Run1 Input'!$A52))) -> 936+50.00 | R59: 93650.00 | S59: =ROUND('Run2 Input'!E52,) -> 3111 | U59: =ROUND('P&S Input'!B52,) -> 0 | V59: =ROUND('M&D Input'!Q52,) -> 0 | W59: =ROUND('GB Input'!R52,) -> 0 | X59: 0 | Y59: =ROUND(SUM(Pavement!I59),) -> 0 | Z59: =+'Run2 Input'!I52 -> 0 | AC59: =ROUND('GB Input'!S52,) -> 0 | AG59: 3111
A60: =IF(TYPE(1000000-REPLACE('Run1 Input'!A53,SEARCH("+*",'Run1 Input'!A53),1,""))=1,'Run1 Input'!A53,IF('Run1 Input'!A53=0,"0+00",IF(TYPE(1000000-REPLACE(REPLACE('Run1 Input'!A53,SEARCH("+*",'Run1 Input'!A53),1,""),SEARCH("/*",'Run1 Input'!A53)-1,1,""))=1,REPLACE('Run1 Input'!A53,SEARCH("/*",'Run1 Input'!A53),3,""),'Run1 Input'!A53))) -> 936+75.00 | B60: 93675.00 | C60: =ROUND('Run2 Input'!D53,) -> 237 | E60: =ROUND('P&S Input'!Q53,) -> 0 | F60: =ROUND('M&D Input'!Q53,) -> 0 | G60: =ROUND('GB Input'!Q53,) -> 0 | H60: =ROUND('Misc Input'!Q53,) -> 437 | O60: 674 | Q60: =IF(TYPE(1000000-REPLACE('Run1 Input'!$A53,SEARCH("+*",'Run1 Input'!$A53),1,""))=1,'Run1 Input'!$A53,IF('Run1 Input'!$A53=0,"0+00",IF(TYPE(1000000-REPLACE(REPLACE('Run1 Input'!$A53,SEARCH("+*",'Run1 Input'!$A53),1,""),SEARCH("/*",'Run1 Input'!$A53)-1,1,""))=1,REPLACE('Run1 Input'!$A53,SEARCH("/*",'Run1 Input'!$A53),3,""),'Run1 Input'!$A53))) -> 936+75.00 | R60: 93675.00 | S60: =ROUND('Run2 Input'!E53,) -> 4857 | U60: =ROUND('P&S Input'!B53,) -> 0 | V60: =ROUND('M&D Input'!Q53,) -> 0 | W60: =ROUND('GB Input'!R53,) -> 0 | X60: 0 | Y60: =ROUND(SUM(Pavement!I60),) -> 0 | Z60: =+'Run2 Input'!I53 -> 0 | AC60: =ROUND('GB Input'!S53,) -> 0 | AG60: 4857
A61: =IF(TYPE(1000000-REPLACE('Run1 Input'!A54,SEARCH("+*",'Run1 Input'!A54),1,""))=1,'Run1 Input'!A54,IF('Run1 Input'!A54=0,"0+00",IF(TYPE(1000000-REPLACE(REPLACE('Run1 Input'!A54,SEARCH("+*",'Run1 Input'!A54),1,""),SEARCH("/*",'Run1 Input'!A54)-1,1,""))=1,REPLACE('Run1 Input'!A54,SEARCH("/*",'Run1 Input'!A54),3,""),'Run1 Input'!A54))) -> 936+83.22 | B61: 93683.22 | C61: =ROUND('Run2 Input'!D54,) -> 75 | E61: =ROUND('P&S Input'!Q54,) -> 0 | F61: =ROUND('M&D Input'!Q54,) -> 0 | G61: =ROUND('GB Input'!Q54,) -> 0 | H61: =ROUND('Misc Input'!Q54,) -> 145 | O61: 220 | Q61: =IF(TYPE(1000000-REPLACE('Run1 Input'!$A54,SEARCH("+*",'Run1 Input'!$A54),1,""))=1,'Run1 Input'!$A54,IF('Run1 Input'!$A54=0,"0+00",IF(TYPE(1000000-REPLACE(REPLACE('Run1 Input'!$A54,SEARCH("+*",'Run1 Input'!$A54),1,""),SEARCH("/*",'Run1 Input'!$A54)-1,1,""))=1,REPLACE('Run1 Input'!$A54,SEARCH("/*",'Run1 Input'!$A54),3,""),'Run1 Input'!$A54))) -> 936+83.22 | R61: 93683.22 | S61: =ROUND('Run2 Input'!E54,) -> 1540 | U61: =ROUND('P&S Input'!B54,) -> 0 | V61: =ROUND('M&D Input'!Q54,) -> 0 | W61: =ROUND('GB Input'!R54,) -> 0 | X61: 0 | Y61: =ROUND(SUM(Pavement!I61),) -> 0 | Z61: =+'Run2 Input'!I54 -> 0 | AC61: =ROUND('GB Input'!S54,) -> 0 | AG61: 1540
A62: =IF(TYPE(1000000-REPLACE('Run1 Input'!A55,SEARCH("+*",'Run1 Input'!A55),1,""))=1,'Run1 Input'!A55,IF('Run1 Input'!A55=0,"0+00",IF(TYPE(1000000-REPLACE(REPLACE('Run1 Input'!A55,SEARCH("+*",'Run1 Input'!A55),1,""),SEARCH("/*",'Run1 Input'!A55)-1,1,""))=1,REPLACE('Run1 Input'!A55,SEARCH("/*",'Run1 Input'!A55),3,""),'Run1 Input'!A55))) -> 937+00.00 | B62: 93700.00 | C62: =ROUND('Run2 Input'!D55,) -> 147 | E62: =ROUND('P&S Input'!Q55,) -> 0 | F62: =ROUND('M&D Input'!Q55,) -> 0 | G62: =ROUND('GB Input'!Q55,) -> 0 | H62: =ROUND('Misc Input'!Q55,) -> 688 | O62: 835 | Q62: =IF(TYPE(1000000-REPLACE('Run1 Input'!$A55,SEARCH("+*",'Run1 Input'!$A55),1,""))=1,'Run1 Input'!$A55,IF('Run1 Input'!$A55=0,"0+00",IF(TYPE(1000000-REPLACE(REPLACE('Run1 Input'!$A55,SEARCH("+*",'Run1 Input'!$A55),1,""),SEARCH("/*",'Run1 Input'!$A55)-1,1,""))=1,REPLACE('Run1 Input'!$A55,SEARCH("/*",'Run1 Input'!$A55),3,""),'Run1 Input'!$A55))) -> 937+00.00 | R62: 93700.00 | S62: =ROUND('Run2 Input'!E55,) -> 3008 | U62: =ROUND('P&S Input'!B55,) -> 0 | V62: =ROUND('M&D Input'!Q55,) -> 0 | W62: =ROUND('GB Input'!R55,) -> 0 | X62: 0 | Y62: =ROUND(SUM(Pavement!I62),) -> 0 | Z62: =+'Run2 Input'!I55 -> 0 | AC62: =ROUND('GB Input'!S55,) -> 0 | AG62: 3008
A63: =IF(TYPE(1000000-REPLACE('Run1 Input'!A56,SEARCH("+*",'Run1 Input'!A56),1,""))=1,'Run1 Input'!A56,IF('Run1 Input'!A56=0,"0+00",IF(TYPE(1000000-REPLACE(REPLACE('Run1 Input'!A56,SEARCH("+*",'Run1 Input'!A56),1,""),SEARCH("/*",'Run1 Input'!A56)-1,1,""))=1,REPLACE('Run1 Input'!A56,SEARCH("/*",'Run1 Input'!A56),3,""),'Run1 Input'!A56))) -> 937+01.45 | B63: 93701.45 | C63: =ROUND('Run2 Input'!D56,) -> 12 | E63: =ROUND('P&S Input'!Q56,) -> 0 | F63: =ROUND('M&D Input'!Q56,) -> 0 | G63: =ROUND('GB Input'!Q56,) -> 0 | H63: =ROUND('Misc Input'!Q56,) -> 97 | O63: 109 | Q63: =IF(TYPE(1000000-REPLACE('Run1 Input'!$A56,SEARCH("+*",'Run1 Input'!$A56),1,""))=1,'Run1 Input'!$A56,IF('Run1 Input'!$A56=0,"0+00",IF(TYPE(1000000-REPLACE(REPLACE('Run1 Input'!$A56,SEARCH("+*",'Run1 Input'!$A56),1,""),SEARCH("/*",'Run1 Input'!$A56)-1,1,""))=1,REPLACE('Run1 Input'!$A56,SEARCH("/*",'Run1 Input'!$A56),3,""),'Run1 Input'!$A56))) -> 937+01.45 | R63: 93701.45 | S63: =ROUND('Run2 Input'!E56,) -> 250 | U63: =ROUND('P&S Input'!B56,) -> 0 | V63: =ROUND('M&D Input'!Q56,) -> 0 | W63: =ROUND('GB Input'!R56,) -> 0 | X63: 0 | Y63: =ROUND(SUM(Pavement!I63),) -> 0 | Z63: =+'Run2 Input'!I56 -> 0 | AC63: =ROUND('GB Input'!S56,) -> 0 | AG63: 250
A64: =IF(TYPE(1000000-REPLACE('Run1 Input'!A57,SEARCH("+*",'Run1 Input'!A57),1,""))=1,'Run1 Input'!A57,IF('Run1 Input'!A57=0,"0+00",IF(TYPE(1000000-REPLACE(REPLACE('Run1 Input'!A57,SEARCH("+*",'Run1 Input'!A57),1,""),SEARCH("/*",'Run1 Input'!A57)-1,1,""))=1,REPLACE('Run1 Input'!A57,SEARCH("/*",'Run1 Input'!A57),3,""),'Run1 Input'!A57))) -> 937+12.00 | B64: 93712.00 | C64: =ROUND('Run2 Input'!D57,) -> 88 | E64: =ROUND('P&S Input'!Q57,) -> 0 | F64: =ROUND('M&D Input'!Q57,) -> 0 | G64: =ROUND('GB Input'!Q57,) -> 0 | H64: =ROUND('Misc Input'!Q57,) -> 782 | O64: 870 | Q64: =IF(TYPE(1000000-REPLACE('Run1 Input'!$A57,SEARCH("+*",'Run1 Input'!$A57),1,""))=1,'Run1 Input'!$A57,IF('Run1 Input'!$A57=0,"0+00",IF(TYPE(1000000-REPLACE(REPLACE('Run1 Input'!$A57,SEARCH("+*",'Run1 Input'!$A57),1,""),SEARCH("/*",'Run1 Input'!$A57)-1,1,""))=1,REPLACE('Run1 Input'!$A57,SEARCH("/*",'Run1 Input'!$A57),3,""),'Run1 Input'!$A57))) -> 937+12.00 | R64: 93712.00 | S64: =ROUND('Run2 Input'!E57,) -> 1643 | U64: =ROUND('P&S Input'!B57,) -> 0 | V64: =ROUND('M&D Input'!Q57,) -> 0 | W64: =ROUND('GB Input'!R57,) -> 0 | X64: 0 | Y64: =ROUND(SUM(Pavement!I64),) -> 0 | Z64: =+'Run2 Input'!I57 -> 0 | AC64: =ROUND('GB Input'!S57,) -> 0 | AG64: 1643
A65: =IF(TYPE(1000000-REPLACE('Run1 Input'!A58,SEARCH("+*",'Run1 Input'!A58),1,""))=1,'Run1 Input'!A58,IF('Run1 Input'!A58=0,"0+00",IF(TYPE(1000000-REPLACE(REPLACE('Run1 Input'!A58,SEARCH("+*",'Run1 Input'!A58),1,""),SEARCH("/*",'Run1 Input'!A58)-1,1,""))=1,REPLACE('Run1 Input'!A58,SEARCH("/*",'Run1 Input'!A58),3,""),'Run1 Input'!A58))) -> 937+25.00 | B65: 93725.00 | C65: =ROUND('Run2 Input'!D58,) -> 106 | E65: =ROUND('P&S Input'!Q58,) -> 0 | F65: =ROUND('M&D Input'!Q58,) -> 0 | G65: =ROUND('GB Input'!Q58,) -> 0 | H65: =ROUND('Misc Input'!Q58,) -> 997 | O65: 1103 | Q65: =IF(TYPE(1000000-REPLACE('Run1 Input'!$A58,SEARCH("+*",'Run1 Input'!$A58),1,""))=1,'Run1 Input'!$A58,IF('Run1 Input'!$A58=0,"0+00",IF(TYPE(1000000-REPLACE(REPLACE('Run1 Input'!$A58,SEARCH("+*",'Run1 Input'!$A58),1,""),SEARCH("/*",'Run1 Input'!$A58)-1,1,""))=1,REPLACE('Run1 Input'!$A58,SEARCH("/*",'Run1 Input'!$A58),3,""),'Run1 Input'!$A58))) -> 937+25.00 | R65: 93725.00 | S65: =ROUND('Run2 Input'!E58,) -> 1717 | U65: =ROUND('P&S Input'!B58,) -> 0 | V65: =ROUND('M&D Input'!Q58,) -> 0 | W65: =ROUND('GB Input'!R58,) -> 0 | X65: 0 | Y65: =ROUND(SUM(Pavement!I65),) -> 0 | Z65: =+'Run2 Input'!I58 -> 0 | AC65: =ROUND('GB Input'!S58,) -> 0 | AG65: 1717
A66: =IF(TYPE(1000000-REPLACE('Run1 Input'!A59,SEARCH("+*",'Run1 Input'!A59),1,""))=1,'Run1 Input'!A59,IF('Run1 Input'!A59=0,"0+00",IF(TYPE(1000000-REPLACE(REPLACE('Run1 Input'!A59,SEARCH("+*",'Run1 Input'!A59),1,""),SEARCH("/*",'Run1 Input'!A59)-1,1,""))=1,REPLACE('Run1 Input'!A59,SEARCH("/*",'Run1 Input'!A59),3,""),'Run1 Input'!A59))) -> 937+25.52 | B66: 93725.52 | C66: =ROUND('Run2 Input'!D59,) -> 4 | E66: =ROUND('P&S Input'!Q59,) -> 0 | F66: =ROUND('M&D Input'!Q59,) -> 0 | G66: =ROUND('GB Input'!Q59,) -> 0 | H66: =ROUND('Misc Input'!Q59,) -> 39 | O66: 43 | Q66: =IF(TYPE(1000000-REPLACE('Run1 Input'!$A59,SEARCH("+*",'Run1 Input'!$A59),1,""))=1,'Run1 Input'!$A59,IF('Run1 Input'!$A59=0,"0+00",IF(TYPE(1000000-REPLACE(REPLACE('Run1 Input'!$A59,SEARCH("+*",'Run1 Input'!$A59),1,""),SEARCH("/*",'Run1 Input'!$A59)-1,1,""))=1,REPLACE('Run1 Input'!$A59,SEARCH("/*",'Run1 Input'!$A59),3,""),'Run1 Input'!$A59))) -> 937+25.52 | R66: 93725.52 | S66: =ROUND('Run2 Input'!E59,) -> 64 | U66: =ROUND('P&S Input'!B59,) -> 0 | V66: =ROUND('M&D Input'!Q59,) -> 0 | W66: =ROUND('GB Input'!R59,) -> 0 | X66: 0 | Y66: =ROUND(SUM(Pavement!I66),) -> 0 | Z66: =+'Run2 Input'!I59 -> 0 | AC66: =ROUND('GB Input'!S59,) -> 0 | AG66: 64
A67: =IF(TYPE(1000000-REPLACE('Run1 Input'!A60,SEARCH("+*",'Run1 Input'!A60),1,""))=1,'Run1 Input'!A60,IF('Run1 Input'!A60=0,"0+00",IF(TYPE(1000000-REPLACE(REPLACE('Run1 Input'!A60,SEARCH("+*",'Run1 Input'!A60),1,""),SEARCH("/*",'Run1 Input'!A60)-1,1,""))=1,REPLACE('Run1 Input'!A60,SEARCH("/*",'Run1 Input'!A60),3,""),'Run1 Input'!A60))) -> 937+41.45 | B67: 93741.45 | C67: =ROUND('Run2 Input'!D60,) -> 126 | E67: =ROUND('P&S Input'!Q60,) -> 0 | F67: =ROUND('M&D Input'!Q60,) -> 0 | G67: =ROUND('GB Input'!Q60,) -> 0 | H67: =ROUND('Misc Input'!Q60,) -> 1155 | O67: 1281 | Q67: =IF(TYPE(1000000-REPLACE('Run1 Input'!$A60,SEARCH("+*",'Run1 Input'!$A60),1,""))=1,'Run1 Input'!$A60,IF('Run1 Input'!$A60=0,"0+00",IF(TYPE(1000000-REPLACE(REPLACE('Run1 Input'!$A60,SEARCH("+*",'Run1 Input'!$A60),1,""),SEARCH("/*",'Run1 Input'!$A60)-1,1,""))=1,REPLACE('Run1 Input'!$A60,SEARCH("/*",'Run1 Input'!$A60),3,""),'Run1 Input'!$A60))) -> 937+41.45 | R67: 93741.45 | S67: =ROUND('Run2 Input'!E60,) -> 1815 | U67: =ROUND('P&S Input'!B60,) -> 0 | V67: =ROUND('M&D Input'!Q60,) -> 0 | W67: =ROUND('GB Input'!R60,) -> 0 | X67: 0 | Y67: =ROUND(SUM(Pavement!I67),) -> 0 | Z67: =+'Run2 Input'!I60 -> 0 | AC67: =ROUND('GB Input'!S60,) -> 0 | AG67: 1815
A68: =IF(TYPE(1000000-REPLACE('Run1 Input'!A61,SEARCH("+*",'Run1 Input'!A61),1,""))=1,'Run1 Input'!A61,IF('Run1 Input'!A61=0,"0+00",IF(TYPE(1000000-REPLACE(REPLACE('Run1 Input'!A61,SEARCH("+*",'Run1 Input'!A61),1,""),SEARCH("/*",'Run1 Input'!A61)-1,1,""))=1,REPLACE('Run1 Input'!A61,SEARCH("/*",'Run1 Input'!A61),3,""),'Run1 Input'!A61))) -> 937+46.00 | B68: 93746.00 | C68: =ROUND('Run2 Input'!D61,) -> 35 | E68: =ROUND('P&S Input'!Q61,) -> 0 | F68: =ROUND('M&D Input'!Q61,) -> 0 | G68: =ROUND('GB Input'!Q61,) -> 0 | H68: =ROUND('Misc Input'!Q61,) -> 318 | O68: 353 | Q68: =IF(TYPE(1000000-REPLACE('Run1 Input'!$A61,SEARCH("+*",'Run1 Input'!$A61),1,""))=1,'Run1 Input'!$A61,IF('Run1 Input'!$A61=0,"0+00",IF(TYPE(1000000-REPLACE(REPLACE('Run1 Input'!$A61,SEARCH("+*",'Run1 Input'!$A61),1,""),SEARCH("/*",'Run1 Input'!$A61)-1,1,""))=1,REPLACE('Run1 Input'!$A61,SEARCH("/*",'Run1 Input'!$A61),3,""),'Run1 Input'!$A61))) -> 937+46.00 | R68: 93746.00 | S68: =ROUND('Run2 Input'!E61,) -> 463 | U68: =ROUND('P&S Input'!B61,) -> 0 | V68: =ROUND('M&D Input'!Q61,) -> 0 | W68: =ROUND('GB Input'!R61,) -> 0 | X68: 0 | Y68: =ROUND(SUM(Pavement!I68),) -> 0 | Z68: =+'Run2 Input'!I61 -> 0 | AC68: =ROUND('GB Input'!S61,) -> 0 | AG68: 463
A69: =IF(TYPE(1000000-REPLACE('Run1 Input'!A62,SEARCH("+*",'Run1 Input'!A62),1,""))=1,'Run1 Input'!A62,IF('Run1 Input'!A62=0,"0+00",IF(TYPE(1000000-REPLACE(REPLACE('Run1 Input'!A62,SEARCH("+*",'Run1 Input'!A62),1,""),SEARCH("/*",'Run1 Input'!A62)-1,1,""))=1,REPLACE('Run1 Input'!A62,SEARCH("/*",'Run1 Input'!A62),3,""),'Run1 Input'!A62))) -> 937+50.00 | B69: 93750.00 | C69: =ROUND('Run2 Input'!D62,) -> 31 | E69: =ROUND('P&S Input'!Q62,) -> 0 | F69: =ROUND('M&D Input'!Q62,) -> 0 | G69: =ROUND('GB Input'!Q62,) -> 0 | H69: =ROUND('Misc Input'!Q62,) -> 275 | O69: 306 | Q69: =IF(TYPE(1000000-REPLACE('Run1 Input'!$A62,SEARCH("+*",'Run1 Input'!$A62),1,""))=1,'Run1 Input'!$A62,IF('Run1 Input'!$A62=0,"0+00",IF(TYPE(1000000-REPLACE(REPLACE('Run1 Input'!$A62,SEARCH("+*",'Run1 Input'!$A62),1,""),SEARCH("/*",'Run1 Input'!$A62)-1,1,""))=1,REPLACE('Run1 Input'!$A62,SEARCH("/*",'Run1 Input'!$A62),3,""),'Run1 Input'!$A62))) -> 937+50.00 | R69: 93750.00 | S69: =ROUND('Run2 Input'!E62,) -> 388 | U69: =ROUND('P&S Input'!B62,) -> 0 | V69: =ROUND('M&D Input'!Q62,) -> 0 | W69: =ROUND('GB Input'!R62,) -> 0 | X69: 0 | Y69: =ROUND(SUM(Pavement!I69),) -> 0 | Z69: =+'Run2 Input'!I62 -> 0 | AC69: =ROUND('GB Input'!S62,) -> 0 | AG69: 388
A70: =IF(TYPE(1000000-REPLACE('Run1 Input'!A63,SEARCH("+*",'Run1 Input'!A63),1,""))=1,'Run1 Input'!A63,IF('Run1 Input'!A63=0,"0+00",IF(TYPE(1000000-REPLACE(REPLACE('Run1 Input'!A63,SEARCH("+*",'Run1 Input'!A63),1,""),SEARCH("/*",'Run1 Input'!A63)-1,1,""))=1,REPLACE('Run1 Input'!A63,SEARCH("/*",'Run1 Input'!A63),3,""),'Run1 Input'!A63))) -> 937+71.79 | B70: 93771.79 | C70: =ROUND('Run2 Input'!D63,) -> 165 | E70: =ROUND('P&S Input'!Q63,) -> 0 | F70: =ROUND('M&D Input'!Q63,) -> 0 | G70: =ROUND('GB Input'!Q63,) -> 0 | H70: =ROUND('Misc Input'!Q63,) -> 1456 | O70: 1621 | Q70: =IF(TYPE(1000000-REPLACE('Run1 Input'!$A63,SEARCH("+*",'Run1 Input'!$A63),1,""))=1,'Run1 Input'!$A63,IF('Run1 Input'!$A63=0,"0+00",IF(TYPE(1000000-REPLACE(REPLACE('Run1 Input'!$A63,SEARCH("+*",'Run1 Input'!$A63),1,""),SEARCH("/*",'Run1 Input'!$A63)-1,1,""))=1,REPLACE('Run1 Input'!$A63,SEARCH("/*",'Run1 Input'!$A63),3,""),'Run1 Input'!$A63))) -> 937+71.79 | R70: 93771.79 | S70: =ROUND('Run2 Input'!E63,) -> 1785 | U70: =ROUND('P&S Input'!B63,) -> 0 | V70: =ROUND('M&D Input'!Q63,) -> 0 | W70: =ROUND('GB Input'!R63,) -> 0 | X70: 0 | Y70: =ROUND(SUM(Pavement!I70),) -> 0 | Z70: =+'Run2 Input'!I63 -> 0 | AC70: =ROUND('GB Input'!S63,) -> 0 | AG70: 1785
A71: =IF(TYPE(1000000-REPLACE('Run1 Input'!A64,SEARCH("+*",'Run1 Input'!A64),1,""))=1,'Run1 Input'!A64,IF('Run1 Input'!A64=0,"0+00",IF(TYPE(1000000-REPLACE(REPLACE('Run1 Input'!A64,SEARCH("+*",'Run1 Input'!A64),1,""),SEARCH("/*",'Run1 Input'!A64)-1,1,""))=1,REPLACE('Run1 Input'!A64,SEARCH("/*",'Run1 Input'!A64),3,""),'Run1 Input'!A64))) -> 937+75.00 | B71: 93775.00 | C71: =ROUND('Run2 Input'!D64,) -> 23 | E71: =ROUND('P&S Input'!Q64,) -> 0 | F71: =ROUND('M&D Input'!Q64,) -> 0 | G71: =ROUND('GB Input'!Q64,) -> 0 | H71: =ROUND('Misc Input'!Q64,) -> 213 | O71: 236 | Q71: =IF(TYPE(1000000-REPLACE('Run1 Input'!$A64,SEARCH("+*",'Run1 Input'!$A64),1,""))=1,'Run1 Input'!$A64,IF('Run1 Input'!$A64=0,"0+00",IF(TYPE(1000000-REPLACE(REPLACE('Run1 Input'!$A64,SEARCH("+*",'Run1 Input'!$A64),1,""),SEARCH("/*",'Run1 Input'!$A64)-1,1,""))=1,REPLACE('Run1 Input'!$A64,SEARCH("/*",'Run1 Input'!$A64),3,""),'Run1 Input'!$A64))) -> 937+75.00 | R71: 93775.00 | S71: =ROUND('Run2 Input'!E64,) -> 216 | U71: =ROUND('P&S Input'!B64,) -> 0 | V71: =ROUND('M&D Input'!Q64,) -> 0 | W71: =ROUND('GB Input'!R64,) -> 0 | X71: 0 | Y71: =ROUND(SUM(Pavement!I71),) -> 0 | Z71: =+'Run2 Input'!I64 -> 0 | AC71: =ROUND('GB Input'!S64,) -> 0 | AG71: 216
A72: =IF(TYPE(1000000-REPLACE('Run1 Input'!A65,SEARCH("+*",'Run1 Input'!A65),1,""))=1,'Run1 Input'!A65,IF('Run1 Input'!A65=0,"0+00",IF(TYPE(1000000-REPLACE(REPLACE('Run1 Input'!A65,SEARCH("+*",'Run1 Input'!A65),1,""),SEARCH("/*",'Run1 Input'!A65)-1,1,""))=1,REPLACE('Run1 Input'!A65,SEARCH("/*",'Run1 Input'!A65),3,""),'Run1 Input'!A65))) -> 937+99.31 | B72: 93799.31 | C72: =ROUND('Run2 Input'!D65,) -> 176 | E72: =ROUND('P&S Input'!Q65,) -> 0 | F72: =ROUND('M&D Input'!Q65,) -> 0 | G72: =ROUND('GB Input'!Q65,) -> 0 | H72: =ROUND('Misc Input'!Q65,) -> 1564 | O72: 1740 | Q72: =IF(TYPE(1000000-REPLACE('Run1 Input'!$A65,SEARCH("+*",'Run1 Input'!$A65),1,""))=1,'Run1 Input'!$A65,IF('Run1 Input'!$A65=0,"0+00",IF(TYPE(1000000-REPLACE(REPLACE('Run1 Input'!$A65,SEARCH("+*",'Run1 Input'!$A65),1,""),SEARCH("/*",'Run1 Input'!$A65)-1,1,""))=1,REPLACE('Run1 Input'!$A65,SEARCH("/*",'Run1 Input'!$A65),3,""),'Run1 Input'!$A65))) -> 937+99.31 | R72: 93799.31 | S72: =ROUND('Run2 Input'!E65,) -> 1313 | U72: =ROUND('P&S Input'!B65,) -> 0 | V72: =ROUND('M&D Input'!Q65,) -> 0 | W72: =ROUND('GB Input'!R65,) -> 0 | X72: 0 | Y72: =ROUND(SUM(Pavement!I72),) -> 0 | Z72: =+'Run2 Input'!I65 -> 0 | AC72: =ROUND('GB Input'!S65,) -> 0 | AG72: 1313
A73: =IF(TYPE(1000000-REPLACE('Run1 Input'!A66,SEARCH("+*",'Run1 Input'!A66),1,""))=1,'Run1 Input'!A66,IF('Run1 Input'!A66=0,"0+00",IF(TYPE(1000000-REPLACE(REPLACE('Run1 Input'!A66,SEARCH("+*",'Run1 Input'!A66),1,""),SEARCH("/*",'Run1 Input'!A66)-1,1,""))=1,REPLACE('Run1 Input'!A66,SEARCH("/*",'Run1 Input'!A66),3,""),'Run1 Input'!A66))) -> 938+00.00 | B73: 93800.00 | C73: =ROUND('Run2 Input'!D66,) -> 5 | E73: =ROUND('P&S Input'!Q66,) -> 0 | F73: =ROUND('M&D Input'!Q66,) -> 0 | G73: =ROUND('GB Input'!Q66,) -> 0 | H73: =ROUND('Misc Input'!Q66,) -> 43 | O73: 48 | Q73: =IF(TYPE(1000000-REPLACE('Run1 Input'!$A66,SEARCH("+*",'Run1 Input'!$A66),1,""))=1,'Run1 Input'!$A66,IF('Run1 Input'!$A66=0,"0+00",IF(TYPE(1000000-REPLACE(REPLACE('Run1 Input'!$A66,SEARCH("+*",'Run1 Input'!$A66),1,""),SEARCH("/*",'Run1 Input'!$A66)-1,1,""))=1,REPLACE('Run1 Input'!$A66,SEARCH("/*",'Run1 Input'!$A66),3,""),'Run1 Input'!$A66))) -> 938+00.00 | R73: 93800.00 | S73: =ROUND('Run2 Input'!E66,) -> 29 | U73: =ROUND('P&S Input'!B66,) -> 0 | V73: =ROUND('M&D Input'!Q66,) -> 0 | W73: =ROUND('GB Input'!R66,) -> 0 | X73: 0 | Y73: =ROUND(SUM(Pavement!I73),) -> 0 | Z73: =+'Run2 Input'!I66 -> 0 | AC73: =ROUND('GB Input'!S66,) -> 0 | AG73: 29
A74: =IF(TYPE(1000000-REPLACE('Run1 Input'!A67,SEARCH("+*",'Run1 Input'!A67),1,""))=1,'Run1 Input'!A67,IF('Run1 Input'!A67=0,"0+00",IF(TYPE(1000000-REPLACE(REPLACE('Run1 Input'!A67,SEARCH("+*",'Run1 Input'!A67),1,""),SEARCH("/*",'Run1 Input'!A67)-1,1,""))=1,REPLACE('Run1 Input'!A67,SEARCH("/*",'Run1 Input'!A67),3,""),'Run1 Input'!A67))) -> 938+00.21 | B74: 93800.21 | C74: =ROUND('Run2 Input'!D67,) -> 2 | E74: =ROUND('P&S Input'!Q67,) -> 0 | F74: =ROUND('M&D Input'!Q67,) -> 0 | G74: =ROUND('GB Input'!Q67,) -> 0 | H74: =ROUND('Misc Input'!Q67,) -> 13 | O74: 15 | Q74: =IF(TYPE(1000000-REPLACE('Run1 Input'!$A67,SEARCH("+*",'Run1 Input'!$A67),1,""))=1,'Run1 Input'!$A67,IF('Run1 Input'!$A67=0,"0+00",IF(TYPE(1000000-REPLACE(REPLACE('Run1 Input'!$A67,SEARCH("+*",'Run1 Input'!$A67),1,""),SEARCH("/*",'Run1 Input'!$A67)-1,1,""))=1,REPLACE('Run1 Input'!$A67,SEARCH("/*",'Run1 Input'!$A67),3,""),'Run1 Input'!$A67))) -> 938+00.21 | R74: 93800.21 | S74: =ROUND('Run2 Input'!E67,) -> 9 | U74: =ROUND('P&S Input'!B67,) -> 0 | V74: =ROUND('M&D Input'!Q67,) -> 0 | W74: =ROUND('GB Input'!R67,) -> 0 | X74: 0 | Y74: =ROUND(SUM(Pavement!I74),) -> 0 | Z74: =+'Run2 Input'!I67 -> 0 | AC74: =ROUND('GB Input'!S67,) -> 0 | AG74: 9
A75: =IF(TYPE(1000000-REPLACE('Run1 Input'!A68,SEARCH("+*",'Run1 Input'!A68),1,""))=1,'Run1 Input'!A68,IF('Run1 Input'!A68=0,"0+00",IF(TYPE(1000000-REPLACE(REPLACE('Run1 Input'!A68,SEARCH("+*",'Run1 Input'!A68),1,""),SEARCH("/*",'Run1 Input'!A68)-1,1,""))=1,REPLACE('Run1 Input'!A68,SEARCH("/*",'Run1 Input'!A68),3,""),'Run1 Input'!A68))) -> 938+10.00 | B75: 93810.00 | C75: =ROUND('Run2 Input'!D68,) -> 70 | E75: =ROUND('P&S Input'!Q68,) -> 0 | F75: =ROUND('M&D Input'!Q68,) -> 0 | G75: =ROUND('GB Input'!Q68,) -> 0 | H75: =ROUND('Misc Input'!Q68,) -> 624 | O75: 694 | Q75: =IF(TYPE(1000000-REPLACE('Run1 Input'!$A68,SEARCH("+*",'Run1 Input'!$A68),1,""))=1,'Run1 Input'!$A68,IF('Run1 Input'!$A68=0,"0+00",IF(TYPE(1000000-REPLACE(REPLACE('Run1 Input'!$A68,SEARCH("+*",'Run1 Input'!$A68),1,""),SEARCH("/*",'Run1 Input'!$A68)-1,1,""))=1,REPLACE('Run1 Input'!$A68,SEARCH("/*",'Run1 Input'!$A68),3,""),'Run1 Input'!$A68))) -> 938+10.00 | R75: 93810.00 | S75: =ROUND('Run2 Input'!E68,) -> 371 | U75: =ROUND('P&S Input'!B68,) -> 0 | V75: =ROUND('M&D Input'!Q68,) -> 0 | W75: =ROUND('GB Input'!R68,) -> 0 | X75: 0 | Y75: =ROUND(SUM(Pavement!I75),) -> 0 | Z75: =+'Run2 Input'!I68 -> 0 | AC75: =ROUND('GB Input'!S68,) -> 0 | AG75: 371
A76: =IF(TYPE(1000000-REPLACE('Run1 Input'!A69,SEARCH("+*",'Run1 Input'!A69),1,""))=1,'Run1 Input'!A69,IF('Run1 Input'!A69=0,"0+00",IF(TYPE(1000000-REPLACE(REPLACE('Run1 Input'!A69,SEARCH("+*",'Run1 Input'!A69),1,""),SEARCH("/*",'Run1 Input'!A69)-1,1,""))=1,REPLACE('Run1 Input'!A69,SEARCH("/*",'Run1 Input'!A69),3,""),'Run1 Input'!A69))) -> 938+25.00 | B76: 93825.00 | C76: =ROUND('Run2 Input'!D69,) -> 105 | E76: =ROUND('P&S Input'!Q69,) -> 0 | F76: =ROUND('M&D Input'!Q69,) -> 0 | G76: =ROUND('GB Input'!Q69,) -> 0 | H76: =ROUND('Misc Input'!Q69,) -> 995 | O76: 1100 | Q76: =IF(TYPE(1000000-REPLACE('Run1 Input'!$A69,SEARCH("+*",'Run1 Input'!$A69),1,""))=1,'Run1 Input'!$A69,IF('Run1 Input'!$A69=0,"0+00",IF(TYPE(1000000-REPLACE(REPLACE('Run1 Input'!$A69,SEARCH("+*",'Run1 Input'!$A69),1,""),SEARCH("/*",'Run1 Input'!$A69)-1,1,""))=1,REPLACE('Run1 Input'!$A69,SEARCH("/*",'Run1 Input'!$A69),3,""),'Run1 Input'!$A69))) -> 938+25.00 | R76: 93825.00 | S76: =ROUND('Run2 Input'!E69,) -> 471 | U76: =ROUND('P&S Input'!B69,) -> 0 | V76: =ROUND('M&D Input'!Q69,) -> 0 | W76: =ROUND('GB Input'!R69,) -> 0 | X76: 0 | Y76: =ROUND(SUM(Pavement!I76),) -> 0 | Z76: =+'Run2 Input'!I69 -> 0 | AC76: =ROUND('GB Input'!S69,) -> 0 | AG76: 471
A77: =IF(TYPE(1000000-REPLACE('Run1 Input'!A70,SEARCH("+*",'Run1 Input'!A70),1,""))=1,'Run1 Input'!A70,IF('Run1 Input'!A70=0,"0+00",IF(TYPE(1000000-REPLACE(REPLACE('Run1 Input'!A70,SEARCH("+*",'Run1 Input'!A70),1,""),SEARCH("/*",'Run1 Input'!A70)-1,1,""))=1,REPLACE('Run1 Input'!A70,SEARCH("/*",'Run1 Input'!A70),3,""),'Run1 Input'!A70))) -> 938+42.00 | B77: 93842.00 | C77: =ROUND('Run2 Input'!D70,) -> 110 | E77: =ROUND('P&S Input'!Q70,) -> 0 | F77: =ROUND('M&D Input'!Q70,) -> 0 | G77: =ROUND('GB Input'!Q70,) -> 0 | H77: =ROUND('Misc Input'!Q70,) -> 1090 | O77: 1200 | Q77: =IF(TYPE(1000000-REPLACE('Run1 Input'!$A70,SEARCH("+*",'Run1 Input'!$A70),1,""))=1,'Run1 Input'!$A70,IF('Run1 Input'!$A70=0,"0+00",IF(TYPE(1000000-REPLACE(REPLACE('Run1 Input'!$A70,SEARCH("+*",'Run1 Input'!$A70),1,""),SEARCH("/*",'Run1 Input'!$A70)-1,1,""))=1,REPLACE('Run1 Input'!$A70,SEARCH("/*",'Run1 Input'!$A70),3,""),'Run1 Input'!$A70))) -> 938+42.00 | R77: 93842.00 | S77: =ROUND('Run2 Input'!E70,) -> 420 | U77: =ROUND('P&S Input'!B70,) -> 0 | V77: =ROUND('M&D Input'!Q70,) -> 0 | W77: =ROUND('GB Input'!R70,) -> 0 | X77: 0 | Y77: =ROUND(SUM(Pavement!I77),) -> 0 | Z77: =+'Run2 Input'!I70 -> 0 | AC77: =ROUND('GB Input'!S70,) -> 0 | AG77: 420
A78: =IF(TYPE(1000000-REPLACE('Run1 Input'!A71,SEARCH("+*",'Run1 Input'!A71),1,""))=1,'Run1 Input'!A71,IF('Run1 Input'!A71=0,"0+00",IF(TYPE(1000000-REPLACE(REPLACE('Run1 Input'!A71,SEARCH("+*",'Run1 Input'!A71),1,""),SEARCH("/*",'Run1 Input'!A71)-1,1,""))=1,REPLACE('Run1 Input'!A71,SEARCH("/*",'Run1 Input'!A71),3,""),'Run1 Input'!A71))) -> 938+50.00 | B78: 93850.00 | C78: =ROUND('Run2 Input'!D71,) -> 46 | E78: =ROUND('P&S Input'!Q71,) -> 0 | F78: =ROUND('M&D Input'!Q71,) -> 0 | G78: =ROUND('GB Input'!Q71,) -> 0 | H78: =ROUND('Misc Input'!Q71,) -> 446 | O78: 492 | Q78: =IF(TYPE(1000000-REPLACE('Run1 Input'!$A71,SEARCH("+*",'Run1 Input'!$A71),1,""))=1,'Run1 Input'!$A71,IF('Run1 Input'!$A71=0,"0+00",IF(TYPE(1000000-REPLACE(REPLACE('Run1 Input'!$A71,SEARCH("+*",'Run1 Input'!$A71),1,""),SEARCH("/*",'Run1 Input'!$A71)-1,1,""))=1,REPLACE('Run1 Input'!$A71,SEARCH("/*",'Run1 Input'!$A71),3,""),'Run1 Input'!$A71))) -> 938+50.00 | R78: 93850.00 | S78: =ROUND('Run2 Input'!E71,) -> 153 | U78: =ROUND('P&S Input'!B71,) -> 0 | V78: =ROUND('M&D Input'!Q71,) -> 0 | W78: =ROUND('GB Input'!R71,) -> 0 | X78: 0 | Y78: =ROUND(SUM(Pavement!I78),) -> 0 | Z78: =+'Run2 Input'!I71 -> 0 | AC78: =ROUND('GB Input'!S71,) -> 0 | AG78: 153
A79: =IF(TYPE(1000000-REPLACE('Run1 Input'!A72,SEARCH("+*",'Run1 Input'!A72),1,""))=1,'Run1 Input'!A72,IF('Run1 Input'!A72=0,"0+00",IF(TYPE(1000000-REPLACE(REPLACE('Run1 Input'!A72,SEARCH("+*",'Run1 Input'!A72),1,""),SEARCH("/*",'Run1 Input'!A72)-1,1,""))=1,REPLACE('Run1 Input'!A72,SEARCH("/*",'Run1 Input'!A72),3,""),'Run1 Input'!A72))) -> 938+50.69 | B79: 93850.69 | C79: =ROUND('Run2 Input'!D72,) -> 4 | E79: =ROUND('P&S Input'!Q72,) -> 0 | F79: =ROUND('M&D Input'!Q72,) -> 0 | G79: =ROUND('GB Input'!Q72,) -> 0 | H79: =ROUND('Misc Input'!Q72,) -> 34 | O79: 38 | Q79: =IF(TYPE(1000000-REPLACE('Run1 Input'!$A72,SEARCH("+*",'Run1 Input'!$A72),1,""))=1,'Run1 Input'!$A72,IF('Run1 Input'!$A72=0,"0+00",IF(TYPE(1000000-REPLACE(REPLACE('Run1 Input'!$A72,SEARCH("+*",'Run1 Input'!$A72),1,""),SEARCH("/*",'Run1 Input'!$A72)-1,1,""))=1,REPLACE('Run1 Input'!$A72,SEARCH("/*",'Run1 Input'!$A72),3,""),'Run1 Input'!$A72))) -> 938+50.69 | R79: 93850.69 | S79: =ROUND('Run2 Input'!E72,) -> 12 | U79: =ROUND('P&S Input'!B72,) -> 0 | V79: =ROUND('M&D Input'!Q72,) -> 0 | W79: =ROUND('GB Input'!R72,) -> 0 | X79: 0 | Y79: =ROUND(SUM(Pavement!I79),) -> 0 | Z79: =+'Run2 Input'!I72 -> 0 | AC79: =ROUND('GB Input'!S72,) -> 0 | AG79: 12
A80: =IF(TYPE(1000000-REPLACE('Run1 Input'!A73,SEARCH("+*",'Run1 Input'!A73),1,""))=1,'Run1 Input'!A73,IF('Run1 Input'!A73=0,"0+00",IF(TYPE(1000000-REPLACE(REPLACE('Run1 Input'!A73,SEARCH("+*",'Run1 Input'!A73),1,""),SEARCH("/*",'Run1 Input'!A73)-1,1,""))=1,REPLACE('Run1 Input'!A73,SEARCH("/*",'Run1 Input'!A73),3,""),'Run1 Input'!A73))) -> 938+61.78 | B80: 93861.78 | C80: =ROUND('Run2 Input'!D73,) -> 52 | E80: =ROUND('P&S Input'!Q73,) -> 0 | F80: =ROUND('M&D Input'!Q73,) -> 0 | G80: =ROUND('GB Input'!Q73,) -> 0 | H80: =ROUND('Misc Input'!Q73,) -> 555 | O80: 607 | Q80: =IF(TYPE(1000000-REPLACE('Run1 Input'!$A73,SEARCH("+*",'Run1 Input'!$A73),1,""))=1,'Run1 Input'!$A73,IF('Run1 Input'!$A73=0,"0+00",IF(TYPE(1000000-REPLACE(REPLACE('Run1 Input'!$A73,SEARCH("+*",'Run1 Input'!$A73),1,""),SEARCH("/*",'Run1 Input'!$A73)-1,1,""))=1,REPLACE('Run1 Input'!$A73,SEARCH("/*",'Run1 Input'!$A73),3,""),'Run1 Input'!$A73))) -> 938+61.78 | R80: 93861.78 | S80: =ROUND('Run2 Input'!E73,) -> 185 | U80: =ROUND('P&S Input'!B73,) -> 0 | V80: =ROUND('M&D Input'!Q73,) -> 0 | W80: =ROUND('GB Input'!R73,) -> 0 | X80: 0 | Y80: =ROUND(SUM(Pavement!I80),) -> 0 | Z80: =+'Run2 Input'!I73 -> 0 | AC80: =ROUND('GB Input'!S73,) -> 0 | AG80: 185
A81: =IF(TYPE(1000000-REPLACE('Run1 Input'!A74,SEARCH("+*",'Run1 Input'!A74),1,""))=1,'Run1 Input'!A74,IF('Run1 Input'!A74=0,"0+00",IF(TYPE(1000000-REPLACE(REPLACE('Run1 Input'!A74,SEARCH("+*",'Run1 Input'!A74),1,""),SEARCH("/*",'Run1 Input'!A74)-1,1,""))=1,REPLACE('Run1 Input'!A74,SEARCH("/*",'Run1 Input'!A74),3,""),'Run1 Input'!A74))) -> 938+75.00 | B81: 93875.00 | C81: =ROUND('Run2 Input'!D74,) -> 73 | E81: =ROUND('P&S Input'!Q74,) -> 0 | F81: =ROUND('M&D Input'!Q74,) -> 0 | G81: =ROUND('GB Input'!Q74,) -> 0 | H81: =ROUND('Misc Input'!Q74,) -> 580 | O81: 653 | Q81: =IF(TYPE(1000000-REPLACE('Run1 Input'!$A74,SEARCH("+*",'Run1 Input'!$A74),1,""))=1,'Run1 Input'!$A74,IF('Run1 Input'!$A74=0,"0+00",IF(TYPE(1000000-REPLACE(REPLACE('Run1 Input'!$A74,SEARCH("+*",'Run1 Input'!$A74),1,""),SEARCH("/*",'Run1 Input'!$A74)-1,1,""))=1,REPLACE('Run1 Input'!$A74,SEARCH("/*",'Run1 Input'!$A74),3,""),'Run1 Input'!$A74))) -> 938+75.00 | R81: 93875.00 | S81: =ROUND('Run2 Input'!E74,) -> 200 | U81: =ROUND('P&S Input'!B74,) -> 0 | V81: =ROUND('M&D Input'!Q74,) -> 0 | W81: =ROUND('GB Input'!R74,) -> 0 | X81: 0 | Y81: =ROUND(SUM(Pavement!I81),) -> 0 | Z81: =+'Run2 Input'!I74 -> 0 | AC81: =ROUND('GB Input'!S74,) -> 0 | AG81: 200
A82: =IF(TYPE(1000000-REPLACE('Run1 Input'!A75,SEARCH("+*",'Run1 Input'!A75),1,""))=1,'Run1 Input'!A75,IF('Run1 Input'!A75=0,"0+00",IF(TYPE(1000000-REPLACE(REPLACE('Run1 Input'!A75,SEARCH("+*",'Run1 Input'!A75),1,""),SEARCH("/*",'Run1 Input'!A75)-1,1,""))=1,REPLACE('Run1 Input'!A75,SEARCH("/*",'Run1 Input'!A75),3,""),'Run1 Input'!A75))) -> 938+94.27 | B82: 93894.27 | C82: =ROUND('Run2 Input'!D75,) -> 165 | E82: =ROUND('P&S Input'!Q75,) -> 0 | F82: =ROUND('M&D Input'!Q75,) -> 0 | G82: =ROUND('GB Input'!Q75,) -> 0 | H82: =ROUND('Misc Input'!Q75,) -> 676 | O82: 841 | Q82: =IF(TYPE(1000000-REPLACE('Run1 Input'!$A75,SEARCH("+*",'Run1 Input'!$A75),1,""))=1,'Run1 Input'!$A75,IF('Run1 Input'!$A75=0,"0+00",IF(TYPE(1000000-REPLACE(REPLACE('Run1 Input'!$A75,SEARCH("+*",'Run1 Input'!$A75),1,""),SEARCH("/*",'Run1 Input'!$A75)-1,1,""))=1,REPLACE('Run1 Input'!$A75,SEARCH("/*",'Run1 Input'!$A75),3,""),'Run1 Input'!$A75))) -> 938+94.27 | R82: 93894.27 | S82: =ROUND('Run2 Input'!E75,) -> 334 | U82: =ROUND('P&S Input'!B75,) -> 0 | V82: =ROUND('M&D Input'!Q75,) -> 0 | W82: =ROUND('GB Input'!R75,) -> 0 | X82: 0 | Y82: =ROUND(SUM(Pavement!I82),) -> 0 | Z82: =+'Run2 Input'!I75 -> 0 | AC82: =ROUND('GB Input'!S75,) -> 0 | AG82: 334
A83: =IF(TYPE(1000000-REPLACE('Run1 Input'!A76,SEARCH("+*",'Run1 Input'!A76),1,""))=1,'Run1 Input'!A76,IF('Run1 Input'!A76=0,"0+00",IF(TYPE(1000000-REPLACE(REPLACE('Run1 Input'!A76,SEARCH("+*",'Run1 Input'!A76),1,""),SEARCH("/*",'Run1 Input'!A76)-1,1,""))=1,REPLACE('Run1 Input'!A76,SEARCH("/*",'Run1 Input'!A76),3,""),'Run1 Input'!A76))) -> 939+00.00 | B83: 93900.00 | C83: =ROUND('Run2 Input'!D76,) -> 63 | E83: =ROUND('P&S Input'!Q76,) -> 0 | F83: =ROUND('M&D Input'!Q76,) -> 0 | G83: =ROUND('GB Input'!Q76,) -> 0 | H83: =ROUND('Misc Input'!Q76,) -> 212 | O83: 275 | Q83: =IF(TYPE(1000000-REPLACE('Run1 Input'!$A76,SEARCH("+*",'Run1 Input'!$A76),1,""))=1,'Run1 Input'!$A76,IF('Run1 Input'!$A76=0,"0+00",IF(TYPE(1000000-REPLACE(REPLACE('Run1 Input'!$A76,SEARCH("+*",'Run1 Input'!$A76),1,""),SEARCH("/*",'Run1 Input'!$A76)-1,1,""))=1,REPLACE('Run1 Input'!$A76,SEARCH("/*",'Run1 Input'!$A76),3,""),'Run1 Input'!$A76))) -> 939+00.00 | R83: 93900.00 | S83: =ROUND('Run2 Input'!E76,) -> 123 | U83: =ROUND('P&S Input'!B76,) -> 0 | V83: =ROUND('M&D Input'!Q76,) -> 0 | W83: =ROUND('GB Input'!R76,) -> 0 | X83: 0 | Y83: =ROUND(SUM(Pavement!I83),) -> 0 | Z83: =+'Run2 Input'!I76 -> 0 | AC83: =ROUND('GB Input'!S76,) -> 0 | AG83: 123
A84: =IF(TYPE(1000000-REPLACE('Run1 Input'!A77,SEARCH("+*",'Run1 Input'!A77),1,""))=1,'Run1 Input'!A77,IF('Run1 Input'!A77=0,"0+00",IF(TYPE(1000000-REPLACE(REPLACE('Run1 Input'!A77,SEARCH("+*",'Run1 Input'!A77),1,""),SEARCH("/*",'Run1 Input'!A77)-1,1,""))=1,REPLACE('Run1 Input'!A77,SEARCH("/*",'Run1 Input'!A77),3,""),'Run1 Input'!A77))) -> 939+25.00 | B84: 93925.00 | C84: =ROUND('Run2 Input'!D77,) -> 320 | E84: =ROUND('P&S Input'!Q77,) -> 0 | F84: =ROUND('M&D Input'!Q77,) -> 0 | G84: =ROUND('GB Input'!Q77,) -> 0 | H84: =ROUND('Misc Input'!Q77,) -> 689 | O84: 1009 | Q84: =IF(TYPE(1000000-REPLACE('Run1 Input'!$A77,SEARCH("+*",'Run1 Input'!$A77),1,""))=1,'Run1 Input'!$A77,IF('Run1 Input'!$A77=0,"0+00",IF(TYPE(1000000-REPLACE(REPLACE('Run1 Input'!$A77,SEARCH("+*",'Run1 Input'!$A77),1,""),SEARCH("/*",'Run1 Input'!$A77)-1,1,""))=1,REPLACE('Run1 Input'!$A77,SEARCH("/*",'Run1 Input'!$A77),3,""),'Run1 Input'!$A77))) -> 939+25.00 | R84: 93925.00 | S84: =ROUND('Run2 Input'!E77,) -> 580 | U84: =ROUND('P&S Input'!B77,) -> 0 | V84: =ROUND('M&D Input'!Q77,) -> 0 | W84: =ROUND('GB Input'!R77,) -> 0 | X84: 0 | Y84: =ROUND(SUM(Pavement!I84),) -> 0 | Z84: =+'Run2 Input'!I77 -> 0 | AC84: =ROUND('GB Input'!S77,) -> 0 | AG84: 580
A85: =IF(TYPE(1000000-REPLACE('Run1 Input'!A78,SEARCH("+*",'Run1 Input'!A78),1,""))=1,'Run1 Input'!A78,IF('Run1 Input'!A78=0,"0+00",IF(TYPE(1000000-REPLACE(REPLACE('Run1 Input'!A78,SEARCH("+*",'Run1 Input'!A78),1,""),SEARCH("/*",'Run1 Input'!A78)-1,1,""))=1,REPLACE('Run1 Input'!A78,SEARCH("/*",'Run1 Input'!A78),3,""),'Run1 Input'!A78))) -> 939+31.81 | B85: 93931.81 | C85: =ROUND('Run2 Input'!D78,) -> 79 | E85: =ROUND('P&S Input'!Q78,) -> 0 | F85: =ROUND('M&D Input'!Q78,) -> 0 | G85: =ROUND('GB Input'!Q78,) -> 0 | H85: =ROUND('Misc Input'!Q78,) -> 0 | O85: 79 | Q85: =IF(TYPE(1000000-REPLACE('Run1 Input'!$A78,SEARCH("+*",'Run1 Input'!$A78),1,""))=1,'Run1 Input'!$A78,IF('Run1 Input'!$A78=0,"0+00",IF(TYPE(1000000-REPLACE(REPLACE('Run1 Input'!$A78,SEARCH("+*",'Run1 Input'!$A78),1,""),SEARCH("/*",'Run1 Input'!$A78)-1,1,""))=1,REPLACE('Run1 Input'!$A78,SEARCH("/*",'Run1 Input'!$A78),3,""),'Run1 Input'!$A78))) -> 939+31.81 | R85: 93931.81 | S85: =ROUND('Run2 Input'!E78,) -> 166 | U85: =ROUND('P&S Input'!B78,) -> 0 | V85: =ROUND('M&D Input'!Q78,) -> 0 | W85: =ROUND('GB Input'!R78,) -> 0 | X85: 0 | Y85: =ROUND(SUM(Pavement!I85),) -> 0 | Z85: =+'Run2 Input'!I78 -> 0 | AC85: =ROUND('GB Input'!S78,) -> 0 | AG85: 166
A86: =IF(TYPE(1000000-REPLACE('Run1 Input'!A79,SEARCH("+*",'Run1 Input'!A79),1,""))=1,'Run1 Input'!A79,IF('Run1 Input'!A79=0,"0+00",IF(TYPE(1000000-REPLACE(REPLACE('Run1 Input'!A79,SEARCH("+*",'Run1 Input'!A79),1,""),SEARCH("/*",'Run1 Input'!A79)-1,1,""))=1,REPLACE('Run1 Input'!A79,SEARCH("/*",'Run1 Input'!A79),3,""),'Run1 Input'!A79))) -> 939+50.00 | B86: 93950.00 | C86: =ROUND('Run2 Input'!D79,) -> 192 | E86: =ROUND('P&S Input'!Q79,) -> 0 | F86: =ROUND('M&D Input'!Q79,) -> 0 | G86: =ROUND('GB Input'!Q79,) -> 0 | H86: =ROUND('Misc Input'!Q79,) -> 0 | O86: 192 | Q86: =IF(TYPE(1000000-REPLACE('Run1 Input'!$A79,SEARCH("+*",'Run1 Input'!$A79),1,""))=1,'Run1 Input'!$A79,IF('Run1 Input'!$A79=0,"0+00",IF(TYPE(1000000-REPLACE(REPLACE('Run1 Input'!$A79,SEARCH("+*",'Run1 Input'!$A79),1,""),SEARCH("/*",'Run1 Input'!$A79)-1,1,""))=1,REPLACE('Run1 Input'!$A79,SEARCH("/*",'Run1 Input'!$A79),3,""),'Run1 Input'!$A79))) -> 939+50.00 | R86: 93950.00 | S86: =ROUND('Run2 Input'!E79,) -> 478 | U86: =ROUND('P&S Input'!B79,) -> 0 | V86: =ROUND('M&D Input'!Q79,) -> 0 | W86: =ROUND('GB Input'!R79,) -> 0 | X86: 0 | Y86: =ROUND(SUM(Pavement!I86),) -> 0 | Z86: =+'Run2 Input'!I79 -> 0 | AC86: =ROUND('GB Input'!S79,) -> 0 | AG86: 478
A87: =IF(TYPE(1000000-REPLACE('Run1 Input'!A80,SEARCH("+*",'Run1 Input'!A80),1,""))=1,'Run1 Input'!A80,IF('Run1 Input'!A80=0,"0+00",IF(TYPE(1000000-REPLACE(REPLACE('Run1 Input'!A80,SEARCH("+*",'Run1 Input'!A80),1,""),SEARCH("/*",'Run1 Input'!A80)-1,1,""))=1,REPLACE('Run1 Input'!A80,SEARCH("/*",'Run1 Input'!A80),3,""),'Run1 Input'!A80))) -> 939+51.73 | B87: 93951.73 | C87: =ROUND('Run2 Input'!D80,) -> 20 | E87: =ROUND('P&S Input'!Q80,) -> 0 | F87: =ROUND('M&D Input'!Q80,) -> 0 | G87: =ROUND('GB Input'!Q80,) -> 0 | H87: =ROUND('Misc Input'!Q80,) -> 0 | O87: 20 | Q87: =IF(TYPE(1000000-REPLACE('Run1 Input'!$A80,SEARCH("+*",'Run1 Input'!$A80),1,""))=1,'Run1 Input'!$A80,IF('Run1 Input'!$A80=0,"0+00",IF(TYPE(1000000-REPLACE(REPLACE('Run1 Input'!$A80,SEARCH("+*",'Run1 Input'!$A80),1,""),SEARCH("/*",'Run1 Input'!$A80)-1,1,""))=1,REPLACE('Run1 Input'!$A80,SEARCH("/*",'Run1 Input'!$A80),3,""),'Run1 Input'!$A80))) -> 939+51.73 | R87: 93951.73 | S87: =ROUND('Run2 Input'!E80,) -> 49 | U87: =ROUND('P&S Input'!B80,) -> 0 | V87: =ROUND('M&D Input'!Q80,) -> 0 | W87: =ROUND('GB Input'!R80,) -> 0 | X87: 0 | Y87: =ROUND(SUM(Pavement!I87),) -> 0 | Z87: =+'Run2 Input'!I80 -> 0 | AC87: =ROUND('GB Input'!S80,) -> 0 | AG87: 49
A88: =IF(TYPE(1000000-REPLACE('Run1 Input'!A81,SEARCH("+*",'Run1 Input'!A81),1,""))=1,'Run1 Input'!A81,IF('Run1 Input'!A81=0,"0+00",IF(TYPE(1000000-REPLACE(REPLACE('Run1 Input'!A81,SEARCH("+*",'Run1 Input'!A81),1,""),SEARCH("/*",'Run1 Input'!A81)-1,1,""))=1,REPLACE('Run1 Input'!A81,SEARCH("/*",'Run1 Input'!A81),3,""),'Run1 Input'!A81))) -> 939+60.00 | B88: 93960.00 | C88: =ROUND('Run2 Input'!D81,) -> 113 | E88: =ROUND('P&S Input'!Q81,) -> 0 | F88: =ROUND('M&D Input'!Q81,) -> 0 | G88: =ROUND('GB Input'!Q81,) -> 0 | H88: =ROUND('Misc Input'!Q81,) -> 0 | O88: 113 | Q88: =IF(TYPE(1000000-REPLACE('Run1 Input'!$A81,SEARCH("+*",'Run1 Input'!$A81),1,""))=1,'Run1 Input'!$A81,IF('Run1 Input'!$A81=0,"0+00",IF(TYPE(1000000-REPLACE(REPLACE('Run1 Input'!$A81,SEARCH("+*",'Run1 Input'!$A81),1,""),SEARCH("/*",'Run1 Input'!$A81)-1,1,""))=1,REPLACE('Run1 Input'!$A81,SEARCH("/*",'Run1 Input'!$A81),3,""),'Run1 Input'!$A81))) -> 939+60.00 | R88: 93960.00 | S88: =ROUND('Run2 Input'!E81,) -> 245 | U88: =ROUND('P&S Input'!B81,) -> 0 | V88: =ROUND('M&D Input'!Q81,) -> 0 | W88: =ROUND('GB Input'!R81,) -> 0 | X88: 0 | Y88: =ROUND(SUM(Pavement!I88),) -> 0 | Z88: =+'Run2 Input'!I81 -> 0 | AC88: =ROUND('GB Input'!S81,) -> 0 | AG88: 245
A89: =IF(TYPE(1000000-REPLACE('Run1 Input'!A82,SEARCH("+*",'Run1 Input'!A82),1,""))=1,'Run1 Input'!A82,IF('Run1 Input'!A82=0,"0+00",IF(TYPE(1000000-REPLACE(REPLACE('Run1 Input'!A82,SEARCH("+*",'Run1 Input'!A82),1,""),SEARCH("/*",'Run1 Input'!A82)-1,1,""))=1,REPLACE('Run1 Input'!A82,SEARCH("/*",'Run1 Input'!A82),3,""),'Run1 Input'!A82))) -> 939+63.10 | B89: 93963.10 | C89: =ROUND('Run2 Input'!D82,) -> 51 | E89: =ROUND('P&S Input'!Q82,) -> 0 | F89: =ROUND('M&D Input'!Q82,) -> 0 | G89: =ROUND('GB Input'!Q82,) -> 0 | H89: =ROUND('Misc Input'!Q82,) -> 0 | O89: 51 | Q89: =IF(TYPE(1000000-REPLACE('Run1 Input'!$A82,SEARCH("+*",'Run1 Input'!$A82),1,""))=1,'Run1 Input'!$A82,IF('Run1 Input'!$A82=0,"0+00",IF(TYPE(1000000-REPLACE(REPLACE('Run1 Input'!$A82,SEARCH("+*",'Run1 Input'!$A82),1,""),SEARCH("/*",'Run1 Input'!$A82)-1,1,""))=1,REPLACE('Run1 Input'!$A82,SEARCH("/*",'Run1 Input'!$A82),3,""),'Run1 Input'!$A82))) -> 939+63.10 | R89: 93963.10 | S89: =ROUND('Run2 Input'!E82,) -> 96 | U89: =ROUND('P&S Input'!B82,) -> 0 | V89: =ROUND('M&D Input'!Q82,) -> 0 | W89: =ROUND('GB Input'!R82,) -> 0 | X89: 0 | Y89: =ROUND(SUM(Pavement!I89),) -> 0 | Z89: =+'Run2 Input'!I82 -> 0 | AC89: =ROUND('GB Input'!S82,) -> 0 | AG89: 96
A90: =IF(TYPE(1000000-REPLACE('Run1 Input'!A83,SEARCH("+*",'Run1 Input'!A83),1,""))=1,'Run1 Input'!A83,IF('Run1 Input'!A83=0,"0+00",IF(TYPE(1000000-REPLACE(REPLACE('Run1 Input'!A83,SEARCH("+*",'Run1 Input'!A83),1,""),SEARCH("/*",'Run1 Input'!A83)-1,1,""))=1,REPLACE('Run1 Input'!A83,SEARCH("/*",'Run1 Input'!A83),3,""),'Run1 Input'!A83))) -> 939+63.12 | B90: 93963.12 | C90: =ROUND('Run2 Input'!D83,) -> 0 | E90: =ROUND('P&S Input'!Q83,) -> 0 | F90: =ROUND('M&D Input'!Q83,) -> 0 | G90: =ROUND('GB Input'!Q83,) -> 0 | H90: =ROUND('Misc Input'!Q83,) -> 0 | O90: 0 | Q90: =IF(TYPE(1000000-REPLACE('Run1 Input'!$A83,SEARCH("+*",'Run1 Input'!$A83),1,""))=1,'Run1 Input'!$A83,IF('Run1 Input'!$A83=0,"0+00",IF(TYPE(1000000-REPLACE(REPLACE('Run1 Input'!$A83,SEARCH("+*",'Run1 Input'!$A83),1,""),SEARCH("/*",'Run1 Input'!$A83)-1,1,""))=1,REPLACE('Run1 Input'!$A83,SEARCH("/*",'Run1 Input'!$A83),3,""),'Run1 Input'!$A83))) -> 939+63.12 | R90: 93963.12 | S90: =ROUND('Run2 Input'!E83,) -> 1 | U90: =ROUND('P&S Input'!B83,) -> 0 | V90: =ROUND('M&D Input'!Q83,) -> 0 | W90: =ROUND('GB Input'!R83,) -> 0 | X90: 0 | Y90: =ROUND(SUM(Pavement!I90),) -> 0 | Z90: =+'Run2 Input'!I83 -> 0 | AC90: =ROUND('GB Input'!S83,) -> 0 | AG90: 1
A91: =IF(TYPE(1000000-REPLACE('Run1 Input'!A84,SEARCH("+*",'Run1 Input'!A84),1,""))=1,'Run1 Input'!A84,IF('Run1 Input'!A84=0,"0+00",IF(TYPE(1000000-REPLACE(REPLACE('Run1 Input'!A84,SEARCH("+*",'Run1 Input'!A84),1,""),SEARCH("/*",'Run1 Input'!A84)-1,1,""))=1,REPLACE('Run1 Input'!A84,SEARCH("/*",'Run1 Input'!A84),3,""),'Run1 Input'!A84))) -> 939+75.00 | B91: 93975.00 | C91: =ROUND('Run2 Input'!D84,) -> 248 | E91: =ROUND('P&S Input'!Q84,) -> 0 | F91: =ROUND('M&D Input'!Q84,) -> 0 | G91: =ROUND('GB Input'!Q84,) -> 0 | H91: =ROUND('Misc Input'!Q84,) -> 0 | O91: 248 | Q91: =IF(TYPE(1000000-REPLACE('Run1 Input'!$A84,SEARCH("+*",'Run1 Input'!$A84),1,""))=1,'Run1 Input'!$A84,IF('Run1 Input'!$A84=0,"0+00",IF(TYPE(1000000-REPLACE(REPLACE('Run1 Input'!$A84,SEARCH("+*",'Run1 Input'!$A84),1,""),SEARCH("/*",'Run1 Input'!$A84)-1,1,""))=1,REPLACE('Run1 Input'!$A84,SEARCH("/*",'Run1 Input'!$A84),3,""),'Run1 Input'!$A84))) -> 939+75.00 | R91: 93975.00 | S91: =ROUND('Run2 Input'!E84,) -> 370 | U91: =ROUND('P&S Input'!B84,) -> 0 | V91: =ROUND('M&D Input'!Q84,) -> 0 | W91: =ROUND('GB Input'!R84,) -> 0 | X91: 0 | Y91: =ROUND(SUM(Pavement!I91),) -> 0 | Z91: =+'Run2 Input'!I84 -> 0 | AC91: =ROUND('GB Input'!S84,) -> 0 | AG91: 370
A92: =IF(TYPE(1000000-REPLACE('Run1 Input'!A85,SEARCH("+*",'Run1 Input'!A85),1,""))=1,'Run1 Input'!A85,IF('Run1 Input'!A85=0,"0+00",IF(TYPE(1000000-REPLACE(REPLACE('Run1 Input'!A85,SEARCH("+*",'Run1 Input'!A85),1,""),SEARCH("/*",'Run1 Input'!A85)-1,1,""))=1,REPLACE('Run1 Input'!A85,SEARCH("/*",'Run1 Input'!A85),3,""),'Run1 Input'!A85))) -> 939+91.74 | B92: 93991.74 | C92: =ROUND('Run2 Input'!D85,) -> 414 | E92: =ROUND('P&S Input'!Q85,) -> 0 | F92: =ROUND('M&D Input'!Q85,) -> 0 | G92: =ROUND('GB Input'!Q85,) -> 0 | H92: =ROUND('Misc Input'!Q85,) -> 0 | O92: 414 | Q92: =IF(TYPE(1000000-REPLACE('Run1 Input'!$A85,SEARCH("+*",'Run1 Input'!$A85),1,""))=1,'Run1 Input'!$A85,IF('Run1 Input'!$A85=0,"0+00",IF(TYPE(1000000-REPLACE(REPLACE('Run1 Input'!$A85,SEARCH("+*",'Run1 Input'!$A85),1,""),SEARCH("/*",'Run1 Input'!$A85)-1,1,""))=1,REPLACE('Run1 Input'!$A85,SEARCH("/*",'Run1 Input'!$A85),3,""),'Run1 Input'!$A85))) -> 939+91.74 | R92: 93991.74 | S92: =ROUND('Run2 Input'!E85,) -> 500 | U92: =ROUND('P&S Input'!B85,) -> 0 | V92: =ROUND('M&D Input'!Q85,) -> 0 | W92: =ROUND('GB Input'!R85,) -> 0 | X92: 0 | Y92: =ROUND(SUM(Pavement!I92),) -> 0 | Z92: =+'Run2 Input'!I85 -> 0 | AC92: =ROUND('GB Input'!S85,) -> 0 | AG92: 500
A93: =IF(TYPE(1000000-REPLACE('Run1 Input'!A86,SEARCH("+*",'Run1 Input'!A86),1,""))=1,'Run1 Input'!A86,IF('Run1 Input'!A86=0,"0+00",IF(TYPE(1000000-REPLACE(REPLACE('Run1 Input'!A86,SEARCH("+*",'Run1 Input'!A86),1,""),SEARCH("/*",'Run1 Input'!A86)-1,1,""))=1,REPLACE('Run1 Input'!A86,SEARCH("/*",'Run1 Input'!A86),3,""),'Run1 Input'!A86))) -> 939+92.00 | B93: 93992.00 | C93: =ROUND('Run2 Input'!D86,) -> 7 | E93: =ROUND('P&S Input'!Q86,) -> 0 | F93: =ROUND('M&D Input'!Q86,) -> 0 | G93: =ROUND('GB Input'!Q86,) -> 0 | H93: =ROUND('Misc Input'!Q86,) -> 0 | O93: 7 | Q93: =IF(TYPE(1000000-REPLACE('Run1 Input'!$A86,SEARCH("+*",'Run1 Input'!$A86),1,""))=1,'Run1 Input'!$A86,IF('Run1 Input'!$A86=0,"0+00",IF(TYPE(1000000-REPLACE(REPLACE('Run1 Input'!$A86,SEARCH("+*",'Run1 Input'!$A86),1,""),SEARCH("/*",'Run1 Input'!$A86)-1,1,""))=1,REPLACE('Run1 Input'!$A86,SEARCH("/*",'Run1 Input'!$A86),3,""),'Run1 Input'!$A86))) -> 939+92.00 | R93: 93992.00 | S93: =ROUND('Run2 Input'!E86,) -> 8 | U93: =ROUND('P&S Input'!B86,) -> 0 | V93: =ROUND('M&D Input'!Q86,) -> 0 | W93: =ROUND('GB Input'!R86,) -> 0 | X93: 0 | Y93: =ROUND(SUM(Pavement!I93),) -> 0 | Z93: =+'Run2 Input'!I86 -> 0 | AC93: =ROUND('GB Input'!S86,) -> 0 | AG93: 8
A94: =IF(TYPE(1000000-REPLACE('Run1 Input'!A87,SEARCH("+*",'Run1 Input'!A87),1,""))=1,'Run1 Input'!A87,IF('Run1 Input'!A87=0,"0+00",IF(TYPE(1000000-REPLACE(REPLACE('Run1 Input'!A87,SEARCH("+*",'Run1 Input'!A87),1,""),SEARCH("/*",'Run1 Input'!A87)-1,1,""))=1,REPLACE('Run1 Input'!A87,SEARCH("/*",'Run1 Input'!A87),3,""),'Run1 Input'!A87))) -> 940+00.00 | B94: 94000.00 | C94: =ROUND('Run2 Input'!D87,) -> 197 | E94: =ROUND('P&S Input'!Q87,) -> 0 | F94: =ROUND('M&D Input'!Q87,) -> 0 | G94: =ROUND('GB Input'!Q87,) -> 0 | H94: =ROUND('Misc Input'!Q87,) -> 0 | O94: 197 | Q94: =IF(TYPE(1000000-REPLACE('Run1 Input'!$A87,SEARCH("+*",'Run1 Input'!$A87),1,""))=1,'Run1 Input'!$A87,IF('Run1 Input'!$A87=0,"0+00",IF(TYPE(1000000-REPLACE(REPLACE('Run1 Input'!$A87,SEARCH("+*",'Run1 Input'!$A87),1,""),SEARCH("/*",'Run1 Input'!$A87)-1,1,""))=1,REPLACE('Run1 Input'!$A87,SEARCH("/*",'Run1 Input'!$A87),3,""),'Run1 Input'!$A87))) -> 940+00.00 | R94: 94000.00 | S94: =ROUND('Run2 Input'!E87,) -> 232 | U94: =ROUND('P&S Input'!B87,) -> 0 | V94: =ROUND('M&D Input'!Q87,) -> 0 | W94: =ROUND('GB Input'!R87,) -> 0 | X94: 0 | Y94: =ROUND(SUM(Pavement!I94),) -> 0 | Z94: =+'Run2 Input'!I87 -> 0 | AC94: =ROUND('GB Input'!S87,) -> 0 | AG94: 232
A95: =IF(TYPE(1000000-REPLACE('Run1 Input'!A88,SEARCH("+*",'Run1 Input'!A88),1,""))=1,'Run1 Input'!A88,IF('Run1 Input'!A88=0,"0+00",IF(TYPE(1000000-REPLACE(REPLACE('Run1 Input'!A88,SEARCH("+*",'Run1 Input'!A88),1,""),SEARCH("/*",'Run1 Input'!A88)-1,1,""))=1,REPLACE('Run1 Input'!A88,SEARCH("/*",'Run1 Input'!A88),3,""),'Run1 Input'!A88))) -> 940+03.12 | B95: 94003.12 | C95: =ROUND('Run2 Input'!D88,) -> 75 | E95: =ROUND('P&S Input'!Q88,) -> 0 | F95: =ROUND('M&D Input'!Q88,) -> 0 | G95: =ROUND('GB Input'!Q88,) -> 0 | H95: =ROUND('Misc Input'!Q88,) -> 0 | O95: 75 | Q95: =IF(TYPE(1000000-REPLACE('Run1 Input'!$A88,SEARCH("+*",'Run1 Input'!$A88),1,""))=1,'Run1 Input'!$A88,IF('Run1 Input'!$A88=0,"0+00",IF(TYPE(1000000-REPLACE(REPLACE('Run1 Input'!$A88,SEARCH("+*",'Run1 Input'!$A88),1,""),SEARCH("/*",'Run1 Input'!$A88)-1,1,""))=1,REPLACE('Run1 Input'!$A88,SEARCH("/*",'Run1 Input'!$A88),3,""),'Run1 Input'!$A88))) -> 940+03.12 | R95: 94003.12 | S95: =ROUND('Run2 Input'!E88,) -> 89 | U95: =ROUND('P&S Input'!B88,) -> 0 | V95: =ROUND('M&D Input'!Q88,) -> 0 | W95: =ROUND('GB Input'!R88,) -> 0 | X95: 0 | Y95: =ROUND(SUM(Pavement!I95),) -> 0 | Z95: =+'Run2 Input'!I88 -> 0 | AC95: =ROUND('GB Input'!S88,) -> 0 | AG95: 89
A96: =IF(TYPE(1000000-REPLACE('Run1 Input'!A89,SEARCH("+*",'Run1 Input'!A89),1,""))=1,'Run1 Input'!A89,IF('Run1 Input'!A89=0,"0+00",IF(TYPE(1000000-REPLACE(REPLACE('Run1 Input'!A89,SEARCH("+*",'Run1 Input'!A89),1,""),SEARCH("/*",'Run1 Input'!A89)-1,1,""))=1,REPLACE('Run1 Input'!A89,SEARCH("/*",'Run1 Input'!A89),3,""),'Run1 Input'!A89))) -> 940+25.00 | B96: 94025.00 | C96: =ROUND('Run2 Input'!D89,) -> 357 | E96: =ROUND('P&S Input'!Q89,) -> 0 | F96: =ROUND('M&D Input'!Q89,) -> 0 | G96: =ROUND('GB Input'!Q89,) -> 0 | H96: =ROUND('Misc Input'!Q89,) -> 0 | O96: 357 | Q96: =IF(TYPE(1000000-REPLACE('Run1 Input'!$A89,SEARCH("+*",'Run1 Input'!$A89),1,""))=1,'Run1 Input'!$A89,IF('Run1 Input'!$A89=0,"0+00",IF(TYPE(1000000-REPLACE(REPLACE('Run1 Input'!$A89,SEARCH("+*",'Run1 Input'!$A89),1,""),SEARCH("/*",'Run1 Input'!$A89)-1,1,""))=1,REPLACE('Run1 Input'!$A89,SEARCH("/*",'Run1 Input'!$A89),3,""),'Run1 Input'!$A89))) -> 940+25.00 | R96: 94025.00 | S96: =ROUND('Run2 Input'!E89,) -> 983 | U96: =ROUND('P&S Input'!B89,) -> 0 | V96: =ROUND('M&D Input'!Q89,) -> 0 | W96: =ROUND('GB Input'!R89,) -> 0 | X96: 0 | Y96: =ROUND(SUM(Pavement!I96),) -> 0 | Z96: =+'Run2 Input'!I89 -> 0 | AC96: =ROUND('GB Input'!S89,) -> 0 | AG96: 983
A97: =IF(TYPE(1000000-REPLACE('Run1 Input'!A90,SEARCH("+*",'Run1 Input'!A90),1,""))=1,'Run1 Input'!A90,IF('Run1 Input'!A90=0,"0+00",IF(TYPE(1000000-REPLACE(REPLACE('Run1 Input'!A90,SEARCH("+*",'Run1 Input'!A90),1,""),SEARCH("/*",'Run1 Input'!A90)-1,1,""))=1,REPLACE('Run1 Input'!A90,SEARCH("/*",'Run1 Input'!A90),3,""),'Run1 Input'!A90))) -> 940+50.00 | B97: =IF(TYPE(1000000-REPLACE(A97,SEARCH("+*",A97),1,""))=1,REPLACE(A97,SEARCH("+*",A97),1,""),"000") -> 94050.00 | C97: =ROUND('Run2 Input'!D90,) -> 231 | E97: =ROUND('P&S Input'!Q90,) -> 0 | F97: =ROUND('M&D Input'!Q90,) -> 0 | G97: =ROUND('GB Input'!Q90,) -> 0 | H97: =ROUND('Misc Input'!Q90,) -> 0 | O97: =ROUND(SUM(C97+E97+F97+G97+H97+I97+J97+K97-L97-M97-N97),) -> 231 | Q97: =IF(TYPE(1000000-REPLACE('Run1 Input'!$A90,SEARCH("+*",'Run1 Input'!$A90),1,""))=1,'Run1 Input'!$A90,IF('Run1 Input'!$A90=0,"0+00",IF(TYPE(1000000-REPLACE(REPLACE('Run1 Input'!$A90,SEARCH("+*",'Run1 Input'!$A90),1,""),SEARCH("/*",'Run1 Input'!$A90)-1,1,""))=1,REPLACE('Run1 Input'!$A90,SEARCH("/*",'Run1 Input'!$A90),3,""),'Run1 Input'!$A90))) -> 940+50.00 | R97: =IF(TYPE(1000000-REPLACE(Q97,SEARCH("+*",Q97),1,""))=1,REPLACE(Q97,SEARCH("+*",Q97),1,""),"000") -> 94050.00 | S97: =ROUND('Run2 Input'!E90,) -> 2180 | U97: =ROUND('P&S Input'!B90,) -> 0 | V97: =ROUND('M&D Input'!Q90,) -> 0 | W97: =ROUND('GB Input'!R90,) -> 0 | X97: 0 | Y97: =ROUND(SUM(Pavement!I97),) -> 0 | Z97: =+'Run2 Input'!I90 -> 0 | AC97: =ROUND('GB Input'!S90,) -> 0 | AG97: =ROUND(SUM(S97+U97+V97+W97+X97+Y97+Z97+AA97+AB97-AC97-AD97-AE97-AF97),) -> 2180
A98: =IF(TYPE(1000000-REPLACE('Run1 Input'!A91,SEARCH("+*",'Run1 Input'!A91),1,""))=1,'Run1 Input'!A91,IF('Run1 Input'!A91=0,"0+00",IF(TYPE(1000000-REPLACE(REPLACE('Run1 Input'!A91,SEARCH("+*",'Run1 Input'!A91),1,""),SEARCH("/*",'Run1 Input'!A91)-1,1,""))=1,REPLACE('Run1 Input'!A91,SEARCH("/*",'Run1 Input'!A91),3,""),'Run1 Input'!A91))) -> 940+56.00 | B98: 94056.00 | C98: =ROUND('Run2 Input'!D91,) -> 58 | E98: =ROUND('P&S Input'!Q91,) -> 0 | F98: =ROUND('M&D Input'!Q91,) -> 0 | G98: =ROUND('GB Input'!Q91,) -> 0 | H98: =ROUND('Misc Input'!Q91,) -> 0 | O98: 58 | Q98: =IF(TYPE(1000000-REPLACE('Run1 Input'!$A91,SEARCH("+*",'Run1 Input'!$A91),1,""))=1,'Run1 Input'!$A91,IF('Run1 Input'!$A91=0,"0+00",IF(TYPE(1000000-REPLACE(REPLACE('Run1 Input'!$A91,SEARCH("+*",'Run1 Input'!$A91),1,""),SEARCH("/*",'Run1 Input'!$A91)-1,1,""))=1,REPLACE('Run1 Input'!$A91,SEARCH("/*",'Run1 Input'!$A91),3,""),'Run1 Input'!$A91))) -> 940+56.00 | R98: 94056.00 | S98: =ROUND('Run2 Input'!E91,) -> 711 | U98: =ROUND('P&S Input'!B91,) -> 0 | V98: =ROUND('M&D Input'!Q91,) -> 0 | W98: =ROUND('GB Input'!R91,) -> 0 | X98: 0 | Y98: =ROUND(SUM(Pavement!I98),) -> 0 | Z98: =+'Run2 Input'!I91 -> 0 | AC98: =ROUND('GB Input'!S91,) -> 0 | AG98: 711
A99: =IF(TYPE(1000000-REPLACE('Run1 Input'!A92,SEARCH("+*",'Run1 Input'!A92),1,""))=1,'Run1 Input'!A92,IF('Run1 Input'!A92=0,"0+00",IF(TYPE(1000000-REPLACE(REPLACE('Run1 Input'!A92,SEARCH("+*",'Run1 Input'!A92),1,""),SEARCH("/*",'Run1 Input'!A92)-1,1,""))=1,REPLACE('Run1 Input'!A92,SEARCH("/*",'Run1 Input'!A92),3,""),'Run1 Input'!A92))) -> 940+60.00 | B99: 94060.00 | C99: =ROUND('Run2 Input'!D92,) -> 40 | E99: =ROUND('P&S Input'!Q92,) -> 0 | F99: =ROUND('M&D Input'!Q92,) -> 0 | G99: =ROUND('GB Input'!Q92,) -> 0 | H99: =ROUND('Misc Input'!Q92,) -> 0 | O99: 40 | Q99: =IF(TYPE(1000000-REPLACE('Run1 Input'!$A92,SEARCH("+*",'Run1 Input'!$A92),1,""))=1,'Run1 Input'!$A92,IF('Run1 Input'!$A92=0,"0+00",IF(TYPE(1000000-REPLACE(REPLACE('Run1 Input'!$A92,SEARCH("+*",'Run1 Input'!$A92),1,""),SEARCH("/*",'Run1 Input'!$A92)-1,1,""))=1,REPLACE('Run1 Input'!$A92,SEARCH("/*",'Run1 Input'!$A92),3,""),'Run1 Input'!$A92))) -> 940+60.00 | R99: 94060.00 | S99: =ROUND('Run2 Input'!E92,) -> 510 | U99: =ROUND('P&S Input'!B92,) -> 0 | V99: =ROUND('M&D Input'!Q92,) -> 0 | W99: =ROUND('GB Input'!R92,) -> 0 | X99: 0 | Y99: =ROUND(SUM(Pavement!I99),) -> 0 | Z99: =+'Run2 Input'!I92 -> 0 | AC99: =ROUND('GB Input'!S92,) -> 0 | AG99: 510
A100: =IF(TYPE(1000000-REPLACE('Run1 Input'!A93,SEARCH("+*",'Run1 Input'!A93),1,""))=1,'Run1 Input'!A93,IF('Run1 Input'!A93=0,"0+00",IF(TYPE(1000000-REPLACE(REPLACE('Run1 Input'!A93,SEARCH("+*",'Run1 Input'!A93),1,""),SEARCH("/*",'Run1 Input'!A93)-1,1,""))=1,REPLACE('Run1 Input'!A93,SEARCH("/*",'Run1 Input'!A93),3,""),'Run1 Input'!A93))) -> 940+60.98 | B100: 94060.98 | C100: =ROUND('Run2 Input'!D93,) -> 10 | E100: =ROUND('P&S Input'!Q93,) -> 0 | F100: =ROUND('M&D Input'!Q93,) -> 0 | G100: =ROUND('GB Input'!Q93,) -> 0 | H100: =ROUND('Misc Input'!Q93,) -> 0 | O100: 10 | Q100: =IF(TYPE(1000000-REPLACE('Run1 Input'!$A93,SEARCH("+*",'Run1 Input'!$A93),1,""))=1,'Run1 Input'!$A93,IF('Run1 Input'!$A93=0,"0+00",IF(TYPE(1000000-REPLACE(REPLACE('Run1 Input'!$A93,SEARCH("+*",'Run1 Input'!$A93),1,""),SEARCH("/*",'Run1 Input'!$A93)-1,1,""))=1,REPLACE('Run1 Input'!$A93,SEARCH("/*",'Run1 Input'!$A93),3,""),'Run1 Input'!$A93))) -> 940+60.98 | R100: 94060.98 | S100: =ROUND('Run2 Input'!E93,) -> 129 | U100: =ROUND('P&S Input'!B93,) -> 0 | V100: =ROUND('M&D Input'!Q93,) -> 0 | W100: =ROUND('GB Input'!R93,) -> 0 | X100: 0 | Y100: =ROUND(SUM(Pavement!I100),) -> 0 | Z100: =+'Run2 Input'!I93 -> 0 | AC100: =ROUND('GB Input'!S93,) -> 0 | AG100: 129
A101: =IF(TYPE(1000000-REPLACE('Run1 Input'!A94,SEARCH("+*",'Run1 Input'!A94),1,""))=1,'Run1 Input'!A94,IF('Run1 Input'!A94=0,"0+00",IF(TYPE(1000000-REPLACE(REPLACE('Run1 Input'!A94,SEARCH("+*",'Run1 Input'!A94),1,""),SEARCH("/*",'Run1 Input'!A94)-1,1,""))=1,REPLACE('Run1 Input'!A94,SEARCH("/*",'Run1 Input'!A94),3,""),'Run1 Input'!A94))) -> 940+75.00 | B101: 94075.00 | C101: =ROUND('Run2 Input'!D94,) -> 145 | E101: =ROUND('P&S Input'!Q94,) -> 0 | F101: =ROUND('M&D Input'!Q94,) -> 0 | G101: =ROUND('GB Input'!Q94,) -> 0 | H101: =ROUND('Misc Input'!Q94,) -> 0 | O101: 145 | Q101: =IF(TYPE(1000000-REPLACE('Run1 Input'!$A94,SEARCH("+*",'Run1 Input'!$A94),1,""))=1,'Run1 Input'!$A94,IF('Run1 Input'!$A94=0,"0+00",IF(TYPE(1000000-REPLACE(REPLACE('Run1 Input'!$A94,SEARCH("+*",'Run1 Input'!$A94),1,""),SEARCH("/*",'Run1 Input'!$A94)-1,1,""))=1,REPLACE('Run1 Input'!$A94,SEARCH("/*",'Run1 Input'!$A94),3,""),'Run1 Input'!$A94))) -> 940+75.00 | R101: 94075.00 | S101: =ROUND('Run2 Input'!E94,) -> 2028 | U101: =ROUND('P&S Input'!B94,) -> 0 | V101: =ROUND('M&D Input'!Q94,) -> 0 | W101: =ROUND('GB Input'!R94,) -> 0 | X101: 0 | Y101: =ROUND(SUM(Pavement!I101),) -> 0 | Z101: =+'Run2 Input'!I94 -> 0 | AC101: =ROUND('GB Input'!S94,) -> 0 | AG101: 2028
A102: =IF(TYPE(1000000-REPLACE('Run1 Input'!A95,SEARCH("+*",'Run1 Input'!A95),1,""))=1,'Run1 Input'!A95,IF('Run1 Input'!A95=0,"0+00",IF(TYPE(1000000-REPLACE(REPLACE('Run1 Input'!A95,SEARCH("+*",'Run1 Input'!A95),1,""),SEARCH("/*",'Run1 Input'!A95)-1,1,""))=1,REPLACE('Run1 Input'!A95,SEARCH("/*",'Run1 Input'!A95),3,""),'Run1 Input'!A95))) -> 940+89.60 | B102: 94089.60 | C102: =ROUND('Run2 Input'!D95,) -> 157 | E102: =ROUND('P&S Input'!Q95,) -> 0 | F102: =ROUND('M&D Input'!Q95,) -> 0 | G102: =ROUND('GB Input'!Q95,) -> 0 | H102: =ROUND('Misc Input'!Q95,) -> 0 | O102: 157 | Q102: =IF(TYPE(1000000-REPLACE('Run1 Input'!$A95,SEARCH("+*",'Run1 Input'!$A95),1,""))=1,'Run1 Input'!$A95,IF('Run1 Input'!$A95=0,"0+00",IF(TYPE(1000000-REPLACE(REPLACE('Run1 Input'!$A95,SEARCH("+*",'Run1 Input'!$A95),1,""),SEARCH("/*",'Run1 Input'!$A95)-1,1,""))=1,REPLACE('Run1 Input'!$A95,SEARCH("/*",'Run1 Input'!$A95),3,""),'Run1 Input'!$A95))) -> 940+89.60 | R102: 94089.60 | S102: =ROUND('Run2 Input'!E95,) -> 2444 | U102: =ROUND('P&S Input'!B95,) -> 0 | V102: =ROUND('M&D Input'!Q95,) -> 0 | W102: =ROUND('GB Input'!R95,) -> 0 | X102: 0 | Y102: =ROUND(SUM(Pavement!I102),) -> 0 | Z102: =+'Run2 Input'!I95 -> 0 | AC102: =ROUND('GB Input'!S95,) -> 0 | AG102: 2444
A103: =IF(TYPE(1000000-REPLACE('Run1 Input'!A96,SEARCH("+*",'Run1 Input'!A96),1,""))=1,'Run1 Input'!A96,IF('Run1 Input'!A96=0,"0+00",IF(TYPE(1000000-REPLACE(REPLACE('Run1 Input'!A96,SEARCH("+*",'Run1 Input'!A96),1,""),SEARCH("/*",'Run1 Input'!A96)-1,1,""))=1,REPLACE('Run1 Input'!A96,SEARCH("/*",'Run1 Input'!A96),3,""),'Run1 Input'!A96))) -> 940+90.00 | B103: 94090.00 | C103: =ROUND('Run2 Input'!D96,) -> 4 | E103: =ROUND('P&S Input'!Q96,) -> 0 | F103: =ROUND('M&D Input'!Q96,) -> 0 | G103: =ROUND('GB Input'!Q96,) -> 0 | H103: =ROUND('Misc Input'!Q96,) -> 0 | O103: 4 | Q103: =IF(TYPE(1000000-REPLACE('Run1 Input'!$A96,SEARCH("+*",'Run1 Input'!$A96),1,""))=1,'Run1 Input'!$A96,IF('Run1 Input'!$A96=0,"0+00",IF(TYPE(1000000-REPLACE(REPLACE('Run1 Input'!$A96,SEARCH("+*",'Run1 Input'!$A96),1,""),SEARCH("/*",'Run1 Input'!$A96)-1,1,""))=1,REPLACE('Run1 Input'!$A96,SEARCH("/*",'Run1 Input'!$A96),3,""),'Run1 Input'!$A96))) -> 940+90.00 | R103: 94090.00 | S103: =ROUND('Run2 Input'!E96,) -> 71 | U103: =ROUND('P&S Input'!B96,) -> 0 | V103: =ROUND('M&D Input'!Q96,) -> 0 | W103: =ROUND('GB Input'!R96,) -> 0 | X103: 0 | Y103: =ROUND(SUM(Pavement!I103),) -> 0 | Z103: =+'Run2 Input'!I96 -> 0 | AC103: =ROUND('GB Input'!S96,) -> 0 | AG103: 71
A104: =IF(TYPE(1000000-REPLACE('Run1 Input'!A97,SEARCH("+*",'Run1 Input'!A97),1,""))=1,'Run1 Input'!A97,IF('Run1 Input'!A97=0,"0+00",IF(TYPE(1000000-REPLACE(REPLACE('Run1 Input'!A97,SEARCH("+*",'Run1 Input'!A97),1,""),SEARCH("/*",'Run1 Input'!A97)-1,1,""))=1,REPLACE('Run1 Input'!A97,SEARCH("/*",'Run1 Input'!A97),3,""),'Run1 Input'!A97))) -> 941+00.00 | B104: 94100.00 | C104: =ROUND('Run2 Input'!D97,) -> 109 | E104: =ROUND('P&S Input'!Q97,) -> 0 | F104: =ROUND('M&D Input'!Q97,) -> 0 | G104: =ROUND('GB Input'!Q97,) -> 0 | H104: =ROUND('Misc Input'!Q97,) -> 0 | O104: 109 | Q104: =IF(TYPE(1000000-REPLACE('Run1 Input'!$A97,SEARCH("+*",'Run1 Input'!$A97),1,""))=1,'Run1 Input'!$A97,IF('Run1 Input'!$A97=0,"0+00",IF(TYPE(1000000-REPLACE(REPLACE('Run1 Input'!$A97,SEARCH("+*",'Run1 Input'!$A97),1,""),SEARCH("/*",'Run1 Input'!$A97)-1,1,""))=1,REPLACE('Run1 Input'!$A97,SEARCH("/*",'Run1 Input'!$A97),3,""),'Run1 Input'!$A97))) -> 941+00.00 | R104: 94100.00 | S104: =ROUND('Run2 Input'!E97,) -> 1833 | U104: =ROUND('P&S Input'!B97,) -> 0 | V104: =ROUND('M&D Input'!Q97,) -> 0 | W104: =ROUND('GB Input'!R97,) -> 0 | X104: 0 | Y104: =ROUND(SUM(Pavement!I104),) -> 0 | Z104: =+'Run2 Input'!I97 -> 0 | AC104: =ROUND('GB Input'!S97,) -> 0 | AG104: 1833
A105: =IF(TYPE(1000000-REPLACE('Run1 Input'!A98,SEARCH("+*",'Run1 Input'!A98),1,""))=1,'Run1 Input'!A98,IF('Run1 Input'!A98=0,"0+00",IF(TYPE(1000000-REPLACE(REPLACE('Run1 Input'!A98,SEARCH("+*",'Run1 Input'!A98),1,""),SEARCH("/*",'Run1 Input'!A98)-1,1,""))=1,REPLACE('Run1 Input'!A98,SEARCH("/*",'Run1 Input'!A98),3,""),'Run1 Input'!A98))) -> 941+00.98 | B105: 94100.98 | C105: =ROUND('Run2 Input'!D98,) -> 11 | E105: =ROUND('P&S Input'!Q98,) -> 0 | F105: =ROUND('M&D Input'!Q98,) -> 0 | G105: =ROUND('GB Input'!Q98,) -> 0 | H105: =ROUND('Misc Input'!Q98,) -> 0 | O105: 11 | Q105: =IF(TYPE(1000000-REPLACE('Run1 Input'!$A98,SEARCH("+*",'Run1 Input'!$A98),1,""))=1,'Run1 Input'!$A98,IF('Run1 Input'!$A98=0,"0+00",IF(TYPE(1000000-REPLACE(REPLACE('Run1 Input'!$A98,SEARCH("+*",'Run1 Input'!$A98),1,""),SEARCH("/*",'Run1 Input'!$A98)-1,1,""))=1,REPLACE('Run1 Input'!$A98,SEARCH("/*",'Run1 Input'!$A98),3,""),'Run1 Input'!$A98))) -> 941+00.98 | R105: 94100.98 | S105: =ROUND('Run2 Input'!E98,) -> 194 | U105: =ROUND('P&S Input'!B98,) -> 0 | V105: =ROUND('M&D Input'!Q98,) -> 0 | W105: =ROUND('GB Input'!R98,) -> 0 | X105: 0 | Y105: =ROUND(SUM(Pavement!I105),) -> 0 | Z105: =+'Run2 Input'!I98 -> 0 | AC105: =ROUND('GB Input'!S98,) -> 0 | AG105: 194
A106: =IF(TYPE(1000000-REPLACE('Run1 Input'!A99,SEARCH("+*",'Run1 Input'!A99),1,""))=1,'Run1 Input'!A99,IF('Run1 Input'!A99=0,"0+00",IF(TYPE(1000000-REPLACE(REPLACE('Run1 Input'!A99,SEARCH("+*",'Run1 Input'!A99),1,""),SEARCH("/*",'Run1 Input'!A99)-1,1,""))=1,REPLACE('Run1 Input'!A99,SEARCH("/*",'Run1 Input'!A99),3,""),'Run1 Input'!A99))) -> 941+25.00 | B106: 94125.00 | C106: =ROUND('Run2 Input'!D99,) -> 265 | E106: =ROUND('P&S Input'!Q99,) -> 0 | F106: =ROUND('M&D Input'!Q99,) -> 0 | G106: =ROUND('GB Input'!Q99,) -> 0 | H106: =ROUND('Misc Input'!Q99,) -> 0 | O106: 265 | Q106: =IF(TYPE(1000000-REPLACE('Run1 Input'!$A99,SEARCH("+*",'Run1 Input'!$A99),1,""))=1,'Run1 Input'!$A99,IF('Run1 Input'!$A99=0,"0+00",IF(TYPE(1000000-REPLACE(REPLACE('Run1 Input'!$A99,SEARCH("+*",'Run1 Input'!$A99),1,""),SEARCH("/*",'Run1 Input'!$A99)-1,1,""))=1,REPLACE('Run1 Input'!$A99,SEARCH("/*",'Run1 Input'!$A99),3,""),'Run1 Input'!$A99))) -> 941+25.00 | R106: 94125.00 | S106: =ROUND('Run2 Input'!E99,) -> 5045 | U106: =ROUND('P&S Input'!B99,) -> 0 | V106: =ROUND('M&D Input'!Q99,) -> 0 | W106: =ROUND('GB Input'!R99,) -> 0 | X106: 0 | Y106: =ROUND(SUM(Pavement!I106),) -> 0 | Z106: =+'Run2 Input'!I99 -> 0 | AC106: =ROUND('GB Input'!S99,) -> 0 | AG106: 5045
A107: =IF(TYPE(1000000-REPLACE('Run1 Input'!A100,SEARCH("+*",'Run1 Input'!A100),1,""))=1,'Run1 Input'!A100,IF('Run1 Input'!A100=0,"0+00",IF(TYPE(1000000-REPLACE(REPLACE('Run1 Input'!A100,SEARCH("+*",'Run1 Input'!A100),1,""),SEARCH("/*",'Run1 Input'!A100)-1,1,""))=1,REPLACE('Run1 Input'!A100,SEARCH("/*",'Run1 Input'!A100),3,""),'Run1 Input'!A100))) -> 941+50.00 | B107: 94150.00 | C107: =ROUND('Run2 Input'!D100,) -> 281 | E107: =ROUND('P&S Input'!Q100,) -> 0 | F107: =ROUND('M&D Input'!Q100,) -> 0 | G107: =ROUND('GB Input'!Q100,) -> 0 | H107: =ROUND('Misc Input'!Q100,) -> 0 | O107: 281 | Q107: =IF(TYPE(1000000-REPLACE('Run1 Input'!$A100,SEARCH("+*",'Run1 Input'!$A100),1,""))=1,'Run1 Input'!$A100,IF('Run1 Input'!$A100=0,"0+00",IF(TYPE(1000000-REPLACE(REPLACE('Run1 Input'!$A100,SEARCH("+*",'Run1 Input'!$A100),1,""),SEARCH("/*",'Run1 Input'!$A100)-1,1,""))=1,REPLACE('Run1 Input'!$A100,SEARCH("/*",'Run1 Input'!$A100),3,""),'Run1 Input'!$A100))) -> 941+50.00 | R107: 94150.00 | S107: =ROUND('Run2 Input'!E100,) -> 5389 | U107: =ROUND('P&S Input'!B100,) -> 0 | V107: =ROUND('M&D Input'!Q100,) -> 0 | W107: =ROUND('GB Input'!R100,) -> 0 | X107: 0 | Y107: =ROUND(SUM(Pavement!I107),) -> 0 | Z107: =+'Run2 Input'!I100 -> 0 | AC107: =ROUND('GB Input'!S100,) -> 0 | AG107: 5389
A108: =IF(TYPE(1000000-REPLACE('Run1 Input'!A101,SEARCH("+*",'Run1 Input'!A101),1,""))=1,'Run1 Input'!A101,IF('Run1 Input'!A101=0,"0+00",IF(TYPE(1000000-REPLACE(REPLACE('Run1 Input'!A101,SEARCH("+*",'Run1 Input'!A101),1,""),SEARCH("/*",'Run1 Input'!A101)-1,1,""))=1,REPLACE('Run1 Input'!A101,SEARCH("/*",'Run1 Input'!A101),3,""),'Run1 Input'!A101))) -> 941+75.00 | B108: 94175.00 | C108: =ROUND('Run2 Input'!D101,) -> 281 | E108: =ROUND('P&S Input'!Q101,) -> 0 | F108: =ROUND('M&D Input'!Q101,) -> 0 | G108: =ROUND('GB Input'!Q101,) -> 0 | H108: =ROUND('Misc Input'!Q101,) -> 0 | O108: 281 | Q108: =IF(TYPE(1000000-REPLACE('Run1 Input'!$A101,SEARCH("+*",'Run1 Input'!$A101),1,""))=1,'Run1 Input'!$A101,IF('Run1 Input'!$A101=0,"0+00",IF(TYPE(1000000-REPLACE(REPLACE('Run1 Input'!$A101,SEARCH("+*",'Run1 Input'!$A101),1,""),SEARCH("/*",'Run1 Input'!$A101)-1,1,""))=1,REPLACE('Run1 Input'!$A101,SEARCH("/*",'Run1 Input'!$A101),3,""),'Run1 Input'!$A101))) -> 941+75.00 | R108: 94175.00 | S108: =ROUND('Run2 Input'!E101,) -> 5442 | U108: =ROUND('P&S Input'!B101,) -> 0 | V108: =ROUND('M&D Input'!Q101,) -> 0 | W108: =ROUND('GB Input'!R101,) -> 0 | X108: 0 | Y108: =ROUND(SUM(Pavement!I108),) -> 0 | Z108: =+'Run2 Input'!I101 -> 0 | AC108: =ROUND('GB Input'!S101,) -> 0 | AG108: 5442
A109: =IF(TYPE(1000000-REPLACE('Run1 Input'!A102,SEARCH("+*",'Run1 Input'!A102),1,""))=1,'Run1 Input'!A102,IF('Run1 Input'!A102=0,"0+00",IF(TYPE(1000000-REPLACE(REPLACE('Run1 Input'!A102,SEARCH("+*",'Run1 Input'!A102),1,""),SEARCH("/*",'Run1 Input'!A102)-1,1,""))=1,REPLACE('Run1 Input'!A102,SEARCH("/*",'Run1 Input'!A102),3,""),'Run1 Input'!A102))) -> 942+00.00 | B109: 94200.00 | C109: =ROUND('Run2 Input'!D102,) -> 275 | E109: =ROUND('P&S Input'!Q102,) -> 0 | F109: =ROUND('M&D Input'!Q102,) -> 0 | G109: =ROUND('GB Input'!Q102,) -> 0 | H109: =ROUND('Misc Input'!Q102,) -> 0 | O109: 275 | Q109: =IF(TYPE(1000000-REPLACE('Run1 Input'!$A102,SEARCH("+*",'Run1 Input'!$A102),1,""))=1,'Run1 Input'!$A102,IF('Run1 Input'!$A102=0,"0+00",IF(TYPE(1000000-REPLACE(REPLACE('Run1 Input'!$A102,SEARCH("+*",'Run1 Input'!$A102),1,""),SEARCH("/*",'Run1 Input'!$A102)-1,1,""))=1,REPLACE('Run1 Input'!$A102,SEARCH("/*",'Run1 Input'!$A102),3,""),'Run1 Input'!$A102))) -> 942+00.00 | R109: 94200.00 | S109: =ROUND('Run2 Input'!E102,) -> 5356 | U109: =ROUND('P&S Input'!B102,) -> 0 | V109: =ROUND('M&D Input'!Q102,) -> 0 | W109: =ROUND('GB Input'!R102,) -> 0 | X109: 0 | Y109: =ROUND(SUM(Pavement!I109),) -> 0 | Z109: =+'Run2 Input'!I102 -> 0 | AC109: =ROUND('GB Input'!S102,) -> 0 | AG109: 5356
A110: =IF(TYPE(1000000-REPLACE('Run1 Input'!A103,SEARCH("+*",'Run1 Input'!A103),1,""))=1,'Run1 Input'!A103,IF('Run1 Input'!A103=0,"0+00",IF(TYPE(1000000-REPLACE(REPLACE('Run1 Input'!A103,SEARCH("+*",'Run1 Input'!A103),1,""),SEARCH("/*",'Run1 Input'!A103)-1,1,""))=1,REPLACE('Run1 Input'!A103,SEARCH("/*",'Run1 Input'!A103),3,""),'Run1 Input'!A103))) -> 942+25.00 | B110: 94225.00 | C110: =ROUND('Run2 Input'!D103,) -> 267 | E110: =ROUND('P&S Input'!Q103,) -> 0 | F110: =ROUND('M&D Input'!Q103,) -> 0 | G110: =ROUND('GB Input'!Q103,) -> 0 | H110: =ROUND('Misc Input'!Q103,) -> 0 | O110: 267 | Q110: =IF(TYPE(1000000-REPLACE('Run1 Input'!$A103,SEARCH("+*",'Run1 Input'!$A103),1,""))=1,'Run1 Input'!$A103,IF('Run1 Input'!$A103=0,"0+00",IF(TYPE(1000000-REPLACE(REPLACE('Run1 Input'!$A103,SEARCH("+*",'Run1 Input'!$A103),1,""),SEARCH("/*",'Run1 Input'!$A103)-1,1,""))=1,REPLACE('Run1 Input'!$A103,SEARCH("/*",'Run1 Input'!$A103),3,""),'Run1 Input'!$A103))) -> 942+25.00 | R110: 94225.00 | S110: =ROUND('Run2 Input'!E103,) -> 5232 | U110: =ROUND('P&S Input'!B103,) -> 0 | V110: =ROUND('M&D Input'!Q103,) -> 0 | W110: =ROUND('GB Input'!R103,) -> 0 | X110: 0 | Y110: =ROUND(SUM(Pavement!I110),) -> 0 | Z110: =+'Run2 Input'!I103 -> 0 | AC110: =ROUND('GB Input'!S103,) -> 0 | AG110: 5232
A111: =IF(TYPE(1000000-REPLACE('Run1 Input'!A104,SEARCH("+*",'Run1 Input'!A104),1,""))=1,'Run1 Input'!A104,IF('Run1 Input'!A104=0,"0+00",IF(TYPE(1000000-REPLACE(REPLACE('Run1 Input'!A104,SEARCH("+*",'Run1 Input'!A104),1,""),SEARCH("/*",'Run1 Input'!A104)-1,1,""))=1,REPLACE('Run1 Input'!A104,SEARCH("/*",'Run1 Input'!A104),3,""),'Run1 Input'!A104))) -> 942+50.00 | B111: 94250.00 | C111: =ROUND('Run2 Input'!D104,) -> 262 | E111: =ROUND('P&S Input'!Q104,) -> 0 | F111: =ROUND('M&D Input'!Q104,) -> 0 | G111: =ROUND('GB Input'!Q104,) -> 0 | H111: =ROUND('Misc Input'!Q104,) -> 0 | O111: 262 | Q111: =IF(TYPE(1000000-REPLACE('Run1 Input'!$A104,SEARCH("+*",'Run1 Input'!$A104),1,""))=1,'Run1 Input'!$A104,IF('Run1 Input'!$A104=0,"0+00",IF(TYPE(1000000-REPLACE(REPLACE('Run1 Input'!$A104,SEARCH("+*",'Run1 Input'!$A104),1,""),SEARCH("/*",'Run1 Input'!$A104)-1,1,""))=1,REPLACE('Run1 Input'!$A104,SEARCH("/*",'Run1 Input'!$A104),3,""),'Run1 Input'!$A104))) -> 942+50.00 | R111: 94250.00 | S111: =ROUND('Run2 Input'!E104,) -> 5034 | U111: =ROUND('P&S Input'!B104,) -> 0 | V111: =ROUND('M&D Input'!Q104,) -> 0 | W111: =ROUND('GB Input'!R104,) -> 0 | X111: 0 | Y111: =ROUND(SUM(Pavement!I111),) -> 0 | Z111: =+'Run2 Input'!I104 -> 0 | AC111: =ROUND('GB Input'!S104,) -> 0 | AG111: 5034
A112: =IF(TYPE(1000000-REPLACE('Run1 Input'!A105,SEARCH("+*",'Run1 Input'!A105),1,""))=1,'Run1 Input'!A105,IF('Run1 Input'!A105=0,"0+00",IF(TYPE(1000000-REPLACE(REPLACE('Run1 Input'!A105,SEARCH("+*",'Run1 Input'!A105),1,""),SEARCH("/*",'Run1 Input'!A105)-1,1,""))=1,REPLACE('Run1 Input'!A105,SEARCH("/*",'Run1 Input'!A105),3,""),'Run1 Input'!A105))) -> 942+70.00 | B112: 94270.00 | C112: =ROUND('Run2 Input'!D105,) -> 207 | E112: =ROUND('P&S Input'!Q105,) -> 0 | F112: =ROUND('M&D Input'!Q105,) -> 0 | G112: =ROUND('GB Input'!Q105,) -> 0 | H112: =ROUND('Misc Input'!Q105,) -> 0 | O112: 207 | Q112: =IF(TYPE(1000000-REPLACE('Run1 Input'!$A105,SEARCH("+*",'Run1 Input'!$A105),1,""))=1,'Run1 Input'!$A105,IF('Run1 Input'!$A105=0,"0+00",IF(TYPE(1000000-REPLACE(REPLACE('Run1 Input'!$A105,SEARCH("+*",'Run1 Input'!$A105),1,""),SEARCH("/*",'Run1 Input'!$A105)-1,1,""))=1,REPLACE('Run1 Input'!$A105,SEARCH("/*",'Run1 Input'!$A105),3,""),'Run1 Input'!$A105))) -> 942+70.00 | R112: 94270.00 | S112: =ROUND('Run2 Input'!E105,) -> 3830 | U112: =ROUND('P&S Input'!B105,) -> 0 | V112: =ROUND('M&D Input'!Q105,) -> 0 | W112: =ROUND('GB Input'!R105,) -> 0 | X112: 0 | Y112: =ROUND(SUM(Pavement!I112),) -> 0 | Z112: =+'Run2 Input'!I105 -> 0 | AC112: =ROUND('GB Input'!S105,) -> 0 | AG112: 3830
A113: =IF(TYPE(1000000-REPLACE('Run1 Input'!A106,SEARCH("+*",'Run1 Input'!A106),1,""))=1,'Run1 Input'!A106,IF('Run1 Input'!A106=0,"0+00",IF(TYPE(1000000-REPLACE(REPLACE('Run1 Input'!A106,SEARCH("+*",'Run1 Input'!A106),1,""),SEARCH("/*",'Run1 Input'!A106)-1,1,""))=1,REPLACE('Run1 Input'!A106,SEARCH("/*",'Run1 Input'!A106),3,""),'Run1 Input'!A106))) -> 942+75.00 | B113: 94275.00 | C113: =ROUND('Run2 Input'!D106,) -> 52 | E113: =ROUND('P&S Input'!Q106,) -> 0 | F113: =ROUND('M&D Input'!Q106,) -> 0 | G113: =ROUND('GB Input'!Q106,) -> 0 | H113: =ROUND('Misc Input'!Q106,) -> 0 | O113: 52 | Q113: =IF(TYPE(1000000-REPLACE('Run1 Input'!$A106,SEARCH("+*",'Run1 Input'!$A106),1,""))=1,'Run1 Input'!$A106,IF('Run1 Input'!$A106=0,"0+00",IF(TYPE(1000000-REPLACE(REPLACE('Run1 Input'!$A106,SEARCH("+*",'Run1 Input'!$A106),1,""),SEARCH("/*",'Run1 Input'!$A106)-1,1,""))=1,REPLACE('Run1 Input'!$A106,SEARCH("/*",'Run1 Input'!$A106),3,""),'Run1 Input'!$A106))) -> 942+75.00 | R113: 94275.00 | S113: =ROUND('Run2 Input'!E106,) -> 932 | U113: =ROUND('P&S Input'!B106,) -> 0 | V113: =ROUND('M&D Input'!Q106,) -> 0 | W113: =ROUND('GB Input'!R106,) -> 0 | X113: 0 | Y113: =ROUND(SUM(Pavement!I113),) -> 0 | Z113: =+'Run2 Input'!I106 -> 0 | AC113: =ROUND('GB Input'!S106,) -> 0 | AG113: 932
A114: =IF(TYPE(1000000-REPLACE('Run1 Input'!A107,SEARCH("+*",'Run1 Input'!A107),1,""))=1,'Run1 Input'!A107,IF('Run1 Input'!A107=0,"0+00",IF(TYPE(1000000-REPLACE(REPLACE('Run1 Input'!A107,SEARCH("+*",'Run1 Input'!A107),1,""),SEARCH("/*",'Run1 Input'!A107)-1,1,""))=1,REPLACE('Run1 Input'!A107,SEARCH("/*",'Run1 Input'!A107),3,""),'Run1 Input'!A107))) -> 943+00.00 | B114: 94300.00 | C114: =ROUND('Run2 Input'!D107,) -> 256 | E114: =ROUND('P&S Input'!Q107,) -> 0 | F114: =ROUND('M&D Input'!Q107,) -> 0 | G114: =ROUND('GB Input'!Q107,) -> 0 | H114: =ROUND('Misc Input'!Q107,) -> 0 | O114: 256 | Q114: =IF(TYPE(1000000-REPLACE('Run1 Input'!$A107,SEARCH("+*",'Run1 Input'!$A107),1,""))=1,'Run1 Input'!$A107,IF('Run1 Input'!$A107=0,"0+00",IF(TYPE(1000000-REPLACE(REPLACE('Run1 Input'!$A107,SEARCH("+*",'Run1 Input'!$A107),1,""),SEARCH("/*",'Run1 Input'!$A107)-1,1,""))=1,REPLACE('Run1 Input'!$A107,SEARCH("/*",'Run1 Input'!$A107),3,""),'Run1 Input'!$A107))) -> 943+00.00 | R114: 94300.00 | S114: =ROUND('Run2 Input'!E107,) -> 4445 | U114: =ROUND('P&S Input'!B107,) -> 0 | V114: =ROUND('M&D Input'!Q107,) -> 0 | W114: =ROUND('GB Input'!R107,) -> 0 | X114: 0 | Y114: =ROUND(SUM(Pavement!I114),) -> 0 | Z114: =+'Run2 Input'!I107 -> 0 | AC114: =ROUND('GB Input'!S107,) -> 0 | AG114: 4445
A115: =IF(TYPE(1000000-REPLACE('Run1 Input'!A108,SEARCH("+*",'Run1 Input'!A108),1,""))=1,'Run1 Input'!A108,IF('Run1 Input'!A108=0,"0+00",IF(TYPE(1000000-REPLACE(REPLACE('Run1 Input'!A108,SEARCH("+*",'Run1 Input'!A108),1,""),SEARCH("/*",'Run1 Input'!A108)-1,1,""))=1,REPLACE('Run1 Input'!A108,SEARCH("/*",'Run1 Input'!A108),3,""),'Run1 Input'!A108))) -> 943+25.00 | B115: 94325.00 | C115: =ROUND('Run2 Input'!D108,) -> 248 | E115: =ROUND('P&S Input'!Q108,) -> 0 | F115: =ROUND('M&D Input'!Q108,) -> 0 | G115: =ROUND('GB Input'!Q108,) -> 0 | H115: =ROUND('Misc Input'!Q108,) -> 0 | O115: 248 | Q115: =IF(TYPE(1000000-REPLACE('Run1 Input'!$A108,SEARCH("+*",'Run1 Input'!$A108),1,""))=1,'Run1 Input'!$A108,IF('Run1 Input'!$A108=0,"0+00",IF(TYPE(1000000-REPLACE(REPLACE('Run1 Input'!$A108,SEARCH("+*",'Run1 Input'!$A108),1,""),SEARCH("/*",'Run1 Input'!$A108)-1,1,""))=1,REPLACE('Run1 Input'!$A108,SEARCH("/*",'Run1 Input'!$A108),3,""),'Run1 Input'!$A108))) -> 943+25.00 | R115: 94325.00 | S115: =ROUND('Run2 Input'!E108,) -> 4101 | U115: =ROUND('P&S Input'!B108,) -> 0 | V115: =ROUND('M&D Input'!Q108,) -> 0 | W115: =ROUND('GB Input'!R108,) -> 0 | X115: 0 | Y115: =ROUND(SUM(Pavement!I115),) -> 0 | Z115: =+'Run2 Input'!I108 -> 0 | AC115: =ROUND('GB Input'!S108,) -> 0 | AG115: 4101
A116: =IF(TYPE(1000000-REPLACE('Run1 Input'!A109,SEARCH("+*",'Run1 Input'!A109),1,""))=1,'Run1 Input'!A109,IF('Run1 Input'!A109=0,"0+00",IF(TYPE(1000000-REPLACE(REPLACE('Run1 Input'!A109,SEARCH("+*",'Run1 Input'!A109),1,""),SEARCH("/*",'Run1 Input'!A109)-1,1,""))=1,REPLACE('Run1 Input'!A109,SEARCH("/*",'Run1 Input'!A109),3,""),'Run1 Input'!A109))) -> 943+50.00 | B116: 94350.00 | C116: =ROUND('Run2 Input'!D109,) -> 242 | E116: =ROUND('P&S Input'!Q109,) -> 0 | F116: =ROUND('M&D Input'!Q109,) -> 0 | G116: =ROUND('GB Input'!Q109,) -> 0 | H116: =ROUND('Misc Input'!Q109,) -> 0 | O116: 242 | Q116: =IF(TYPE(1000000-REPLACE('Run1 Input'!$A109,SEARCH("+*",'Run1 Input'!$A109),1,""))=1,'Run1 Input'!$A109,IF('Run1 Input'!$A109=0,"0+00",IF(TYPE(1000000-REPLACE(REPLACE('Run1 Input'!$A109,SEARCH("+*",'Run1 Input'!$A109),1,""),SEARCH("/*",'Run1 Input'!$A109)-1,1,""))=1,REPLACE('Run1 Input'!$A109,SEARCH("/*",'Run1 Input'!$A109),3,""),'Run1 Input'!$A109))) -> 943+50.00 | R116: 94350.00 | S116: =ROUND('Run2 Input'!E109,) -> 3782 | U116: =ROUND('P&S Input'!B109,) -> 0 | V116: =ROUND('M&D Input'!Q109,) -> 0 | W116: =ROUND('GB Input'!R109,) -> 0 | X116: 0 | Y116: =ROUND(SUM(Pavement!I116),) -> 0 | Z116: =+'Run2 Input'!I109 -> 0 | AC116: =ROUND('GB Input'!S109,) -> 0 | AG116: 3782
A117: =IF(TYPE(1000000-REPLACE('Run1 Input'!A110,SEARCH("+*",'Run1 Input'!A110),1,""))=1,'Run1 Input'!A110,IF('Run1 Input'!A110=0,"0+00",IF(TYPE(1000000-REPLACE(REPLACE('Run1 Input'!A110,SEARCH("+*",'Run1 Input'!A110),1,""),SEARCH("/*",'Run1 Input'!A110)-1,1,""))=1,REPLACE('Run1 Input'!A110,SEARCH("/*",'Run1 Input'!A110),3,""),'Run1 Input'!A110))) -> 943+75.00 | B117: 94375.00 | C117: =ROUND('Run2 Input'!D110,) -> 258 | E117: =ROUND('P&S Input'!Q110,) -> 0 | F117: =ROUND('M&D Input'!Q110,) -> 0 | G117: =ROUND('GB Input'!Q110,) -> 0 | H117: =ROUND('Misc Input'!Q110,) -> 0 | O117: 258 | Q117: =IF(TYPE(1000000-REPLACE('Run1 Input'!$A110,SEARCH("+*",'Run1 Input'!$A110),1,""))=1,'Run1 Input'!$A110,IF('Run1 Input'!$A110=0,"0+00",IF(TYPE(1000000-REPLACE(REPLACE('Run1 Input'!$A110,SEARCH("+*",'Run1 Input'!$A110),1,""),SEARCH("/*",'Run1 Input'!$A110)-1,1,""))=1,REPLACE('Run1 Input'!$A110,SEARCH("/*",'Run1 Input'!$A110),3,""),'Run1 Input'!$A110))) -> 943+75.00 | R117: 94375.00 | S117: =ROUND('Run2 Input'!E110,) -> 3516 | U117: =ROUND('P&S Input'!B110,) -> 0 | V117: =ROUND('M&D Input'!Q110,) -> 0 | W117: =ROUND('GB Input'!R110,) -> 0 | X117: 0 | Y117: =ROUND(SUM(Pavement!I117),) -> 0 | Z117: =+'Run2 Input'!I110 -> 0 | AC117: =ROUND('GB Input'!S110,) -> 0 | AG117: 3516
A118: =IF(TYPE(1000000-REPLACE('Run1 Input'!A111,SEARCH("+*",'Run1 Input'!A111),1,""))=1,'Run1 Input'!A111,IF('Run1 Input'!A111=0,"0+00",IF(TYPE(1000000-REPLACE(REPLACE('Run1 Input'!A111,SEARCH("+*",'Run1 Input'!A111),1,""),SEARCH("/*",'Run1 Input'!A111)-1,1,""))=1,REPLACE('Run1 Input'!A111,SEARCH("/*",'Run1 Input'!A111),3,""),'Run1 Input'!A111))) -> 944+00.00 | B118: 94400.00 | C118: =ROUND('Run2 Input'!D111,) -> 289 | E118: =ROUND('P&S Input'!Q111,) -> 0 | F118: =ROUND('M&D Input'!Q111,) -> 0 | G118: =ROUND('GB Input'!Q111,) -> 0 | H118: =ROUND('Misc Input'!Q111,) -> 0 | O118: 289 | Q118: =IF(TYPE(1000000-REPLACE('Run1 Input'!$A111,SEARCH("+*",'Run1 Input'!$A111),1,""))=1,'Run1 Input'!$A111,IF('Run1 Input'!$A111=0,"0+00",IF(TYPE(1000000-REPLACE(REPLACE('Run1 Input'!$A111,SEARCH("+*",'Run1 Input'!$A111),1,""),SEARCH("/*",'Run1 Input'!$A111)-1,1,""))=1,REPLACE('Run1 Input'!$A111,SEARCH("/*",'Run1 Input'!$A111),3,""),'Run1 Input'!$A111))) -> 944+00.00 | R118: 94400.00 | S118: =ROUND('Run2 Input'!E111,) -> 3312 | U118: =ROUND('P&S Input'!B111,) -> 0 | V118: =ROUND('M&D Input'!Q111,) -> 0 | W118: =ROUND('GB Input'!R111,) -> 0 | X118: 0 | Y118: =ROUND(SUM(Pavement!I118),) -> 0 | Z118: =+'Run2 Input'!I111 -> 0 | AC118: =ROUND('GB Input'!S111,) -> 0 | AG118: 3312
A119: =IF(TYPE(1000000-REPLACE('Run1 Input'!A112,SEARCH("+*",'Run1 Input'!A112),1,""))=1,'Run1 Input'!A112,IF('Run1 Input'!A112=0,"0+00",IF(TYPE(1000000-REPLACE(REPLACE('Run1 Input'!A112,SEARCH("+*",'Run1 Input'!A112),1,""),SEARCH("/*",'Run1 Input'!A112)-1,1,""))=1,REPLACE('Run1 Input'!A112,SEARCH("/*",'Run1 Input'!A112),3,""),'Run1 Input'!A112))) -> 944+20.00 | B119: 94420.00 | C119: =ROUND('Run2 Input'!D112,) -> 248 | E119: =ROUND('P&S Input'!Q112,) -> 0 | F119: =ROUND('M&D Input'!Q112,) -> 0 | G119: =ROUND('GB Input'!Q112,) -> 0 | H119: =ROUND('Misc Input'!Q112,) -> 0 | O119: 248 | Q119: =IF(TYPE(1000000-REPLACE('Run1 Input'!$A112,SEARCH("+*",'Run1 Input'!$A112),1,""))=1,'Run1 Input'!$A112,IF('Run1 Input'!$A112=0,"0+00",IF(TYPE(1000000-REPLACE(REPLACE('Run1 Input'!$A112,SEARCH("+*",'Run1 Input'!$A112),1,""),SEARCH("/*",'Run1 Input'!$A112)-1,1,""))=1,REPLACE('Run1 Input'!$A112,SEARCH("/*",'Run1 Input'!$A112),3,""),'Run1 Input'!$A112))) -> 944+20.00 | R119: 94420.00 | S119: =ROUND('Run2 Input'!E112,) -> 2568 | U119: =ROUND('P&S Input'!B112,) -> 0 | V119: =ROUND('M&D Input'!Q112,) -> 0 | W119: =ROUND('GB Input'!R112,) -> 0 | X119: 0 | Y119: =ROUND(SUM(Pavement!I119),) -> 0 | Z119: =+'Run2 Input'!I112 -> 0 | AC119: =ROUND('GB Input'!S112,) -> 0 | AG119: 2568
A120: =IF(TYPE(1000000-REPLACE('Run1 Input'!A113,SEARCH("+*",'Run1 Input'!A113),1,""))=1,'Run1 Input'!A113,IF('Run1 Input'!A113=0,"0+00",IF(TYPE(1000000-REPLACE(REPLACE('Run1 Input'!A113,SEARCH("+*",'Run1 Input'!A113),1,""),SEARCH("/*",'Run1 Input'!A113)-1,1,""))=1,REPLACE('Run1 Input'!A113,SEARCH("/*",'Run1 Input'!A113),3,""),'Run1 Input'!A113))) -> 944+25.00 | B120: 94425.00 | C120: =ROUND('Run2 Input'!D113,) -> 64 | E120: =ROUND('P&S Input'!Q113,) -> 0 | F120: =ROUND('M&D Input'!Q113,) -> 0 | G120: =ROUND('GB Input'!Q113,) -> 0 | H120: =ROUND('Misc Input'!Q113,) -> 0 | O120: 64 | Q120: =IF(TYPE(1000000-REPLACE('Run1 Input'!$A113,SEARCH("+*",'Run1 Input'!$A113),1,""))=1,'Run1 Input'!$A113,IF('Run1 Input'!$A113=0,"0+00",IF(TYPE(1000000-REPLACE(REPLACE('Run1 Input'!$A113,SEARCH("+*",'Run1 Input'!$A113),1,""),SEARCH("/*",'Run1 Input'!$A113)-1,1,""))=1,REPLACE('Run1 Input'!$A113,SEARCH("/*",'Run1 Input'!$A113),3,""),'Run1 Input'!$A113))) -> 944+25.00 | R120: 94425.00 | S120: =ROUND('Run2 Input'!E113,) -> 641 | U120: =ROUND('P&S Input'!B113,) -> 0 | V120: =ROUND('M&D Input'!Q113,) -> 0 | W120: =ROUND('GB Input'!R113,) -> 0 | X120: 0 | Y120: =ROUND(SUM(Pavement!I120),) -> 0 | Z120: =+'Run2 Input'!I113 -> 0 | AC120: =ROUND('GB Input'!S113,) -> 0 | AG120: 641
A121: =IF(TYPE(1000000-REPLACE('Run1 Input'!A114,SEARCH("+*",'Run1 Input'!A114),1,""))=1,'Run1 Input'!A114,IF('Run1 Input'!A114=0,"0+00",IF(TYPE(1000000-REPLACE(REPLACE('Run1 Input'!A114,SEARCH("+*",'Run1 Input'!A114),1,""),SEARCH("/*",'Run1 Input'!A114)-1,1,""))=1,REPLACE('Run1 Input'!A114,SEARCH("/*",'Run1 Input'!A114),3,""),'Run1 Input'!A114))) -> 944+50.00 | B121: 94450.00 | C121: =ROUND('Run2 Input'!D114,) -> 310 | E121: =ROUND('P&S Input'!Q114,) -> 0 | F121: =ROUND('M&D Input'!Q114,) -> 0 | G121: =ROUND('GB Input'!Q114,) -> 0 | H121: =ROUND('Misc Input'!Q114,) -> 0 | O121: 310 | Q121: =IF(TYPE(1000000-REPLACE('Run1 Input'!$A114,SEARCH("+*",'Run1 Input'!$A114),1,""))=1,'Run1 Input'!$A114,IF('Run1 Input'!$A114=0,"0+00",IF(TYPE(1000000-REPLACE(REPLACE('Run1 Input'!$A114,SEARCH("+*",'Run1 Input'!$A114),1,""),SEARCH("/*",'Run1 Input'!$A114)-1,1,""))=1,REPLACE('Run1 Input'!$A114,SEARCH("/*",'Run1 Input'!$A114),3,""),'Run1 Input'!$A114))) -> 944+50.00 | R121: 94450.00 | S121: =ROUND('Run2 Input'!E114,) -> 3243 | U121: =ROUND('P&S Input'!B114,) -> 0 | V121: =ROUND('M&D Input'!Q114,) -> 0 | W121: =ROUND('GB Input'!R114,) -> 0 | X121: 0 | Y121: =ROUND(SUM(Pavement!I121),) -> 0 | Z121: =+'Run2 Input'!I114 -> 0 | AC121: =ROUND('GB Input'!S114,) -> 0 | AG121: 3243
A122: =IF(TYPE(1000000-REPLACE('Run1 Input'!A115,SEARCH("+*",'Run1 Input'!A115),1,""))=1,'Run1 Input'!A115,IF('Run1 Input'!A115=0,"0+00",IF(TYPE(1000000-REPLACE(REPLACE('Run1 Input'!A115,SEARCH("+*",'Run1 Input'!A115),1,""),SEARCH("/*",'Run1 Input'!A115)-1,1,""))=1,REPLACE('Run1 Input'!A115,SEARCH("/*",'Run1 Input'!A115),3,""),'Run1 Input'!A115))) -> 944+75.00 | B122: 94475.00 | C122: =ROUND('Run2 Input'!D115,) -> 299 | E122: =ROUND('P&S Input'!Q115,) -> 0 | F122: =ROUND('M&D Input'!Q115,) -> 0 | G122: =ROUND('GB Input'!Q115,) -> 0 | H122: =ROUND('Misc Input'!Q115,) -> 0 | O122: 299 | Q122: =IF(TYPE(1000000-REPLACE('Run1 Input'!$A115,SEARCH("+*",'Run1 Input'!$A115),1,""))=1,'Run1 Input'!$A115,IF('Run1 Input'!$A115=0,"0+00",IF(TYPE(1000000-REPLACE(REPLACE('Run1 Input'!$A115,SEARCH("+*",'Run1 Input'!$A115),1,""),SEARCH("/*",'Run1 Input'!$A115)-1,1,""))=1,REPLACE('Run1 Input'!$A115,SEARCH("/*",'Run1 Input'!$A115),3,""),'Run1 Input'!$A115))) -> 944+75.00 | R122: 94475.00 | S122: =ROUND('Run2 Input'!E115,) -> 3278 | U122: =ROUND('P&S Input'!B115,) -> 0 | V122: =ROUND('M&D Input'!Q115,) -> 0 | W122: =ROUND('GB Input'!R115,) -> 0 | X122: 0 | Y122: =ROUND(SUM(Pavement!I122),) -> 0 | Z122: =+'Run2 Input'!I115 -> 0 | AC122: =ROUND('GB Input'!S115,) -> 0 | AG122: 3278
A123: =IF(TYPE(1000000-REPLACE('Run1 Input'!A116,SEARCH("+*",'Run1 Input'!A116),1,""))=1,'Run1 Input'!A116,IF('Run1 Input'!A116=0,"0+00",IF(TYPE(1000000-REPLACE(REPLACE('Run1 Input'!A116,SEARCH("+*",'Run1 Input'!A116),1,""),SEARCH("/*",'Run1 Input'!A116)-1,1,""))=1,REPLACE('Run1 Input'!A116,SEARCH("/*",'Run1 Input'!A116),3,""),'Run1 Input'!A116))) -> 945+00.00 | B123: 94500.00 | C123: =ROUND('Run2 Input'!D116,) -> 287 | E123: =ROUND('P&S Input'!Q116,) -> 0 | F123: =ROUND('M&D Input'!Q116,) -> 0 | G123: =ROUND('GB Input'!Q116,) -> 0 | H123: =ROUND('Misc Input'!Q116,) -> 0 | O123: 287 | Q123: =IF(TYPE(1000000-REPLACE('Run1 Input'!$A116,SEARCH("+*",'Run1 Input'!$A116),1,""))=1,'Run1 Input'!$A116,IF('Run1 Input'!$A116=0,"0+00",IF(TYPE(1000000-REPLACE(REPLACE('Run1 Input'!$A116,SEARCH("+*",'Run1 Input'!$A116),1,""),SEARCH("/*",'Run1 Input'!$A116)-1,1,""))=1,REPLACE('Run1 Input'!$A116,SEARCH("/*",'Run1 Input'!$A116),3,""),'Run1 Input'!$A116))) -> 945+00.00 | R123: 94500.00 | S123: =ROUND('Run2 Input'!E116,) -> 3281 | U123: =ROUND('P&S Input'!B116,) -> 0 | V123: =ROUND('M&D Input'!Q116,) -> 0 | W123: =ROUND('GB Input'!R116,) -> 0 | X123: 0 | Y123: =ROUND(SUM(Pavement!I123),) -> 0 | Z123: =+'Run2 Input'!I116 -> 0 | AC123: =ROUND('GB Input'!S116,) -> 0 | AG123: 3281
A124: =IF(TYPE(1000000-REPLACE('Run1 Input'!A117,SEARCH("+*",'Run1 Input'!A117),1,""))=1,'Run1 Input'!A117,IF('Run1 Input'!A117=0,"0+00",IF(TYPE(1000000-REPLACE(REPLACE('Run1 Input'!A117,SEARCH("+*",'Run1 Input'!A117),1,""),SEARCH("/*",'Run1 Input'!A117)-1,1,""))=1,REPLACE('Run1 Input'!A117,SEARCH("/*",'Run1 Input'!A117),3,""),'Run1 Input'!A117))) -> 945+25.00 | B124: 94525.00 | C124: =ROUND('Run2 Input'!D117,) -> 278 | E124: =ROUND('P&S Input'!Q117,) -> 0 | F124: =ROUND('M&D Input'!Q117,) -> 0 | G124: =ROUND('GB Input'!Q117,) -> 0 | H124: =ROUND('Misc Input'!Q117,) -> 0 | O124: 278 | Q124: =IF(TYPE(1000000-REPLACE('Run1 Input'!$A117,SEARCH("+*",'Run1 Input'!$A117),1,""))=1,'Run1 Input'!$A117,IF('Run1 Input'!$A117=0,"0+00",IF(TYPE(1000000-REPLACE(REPLACE('Run1 Input'!$A117,SEARCH("+*",'Run1 Input'!$A117),1,""),SEARCH("/*",'Run1 Input'!$A117)-1,1,""))=1,REPLACE('Run1 Input'!$A117,SEARCH("/*",'Run1 Input'!$A117),3,""),'Run1 Input'!$A117))) -> 945+25.00 | R124: 94525.00 | S124: =ROUND('Run2 Input'!E117,) -> 3303 | U124: =ROUND('P&S Input'!B117,) -> 0 | V124: =ROUND('M&D Input'!Q117,) -> 0 | W124: =ROUND('GB Input'!R117,) -> 0 | X124: 0 | Y124: =ROUND(SUM(Pavement!I124),) -> 0 | Z124: =+'Run2 Input'!I117 -> 0 | AC124: =ROUND('GB Input'!S117,) -> 0 | AG124: 3303
A125: =IF(TYPE(1000000-REPLACE('Run1 Input'!A118,SEARCH("+*",'Run1 Input'!A118),1,""))=1,'Run1 Input'!A118,IF('Run1 Input'!A118=0,"0+00",IF(TYPE(1000000-REPLACE(REPLACE('Run1 Input'!A118,SEARCH("+*",'Run1 Input'!A118),1,""),SEARCH("/*",'Run1 Input'!A118)-1,1,""))=1,REPLACE('Run1 Input'!A118,SEARCH("/*",'Run1 Input'!A118),3,""),'Run1 Input'!A118))) -> 945+28.52 | B125: 94528.52 | C125: =ROUND('Run2 Input'!D118,) -> 39 | E125: =ROUND('P&S Input'!Q118,) -> 0 | F125: =ROUND('M&D Input'!Q118,) -> 0 | G125: =ROUND('GB Input'!Q118,) -> 0 | H125: =ROUND('Misc Input'!Q118,) -> 0 | O125: 39 | Q125: =IF(TYPE(1000000-REPLACE('Run1 Input'!$A118,SEARCH("+*",'Run1 Input'!$A118),1,""))=1,'Run1 Input'!$A118,IF('Run1 Input'!$A118=0,"0+00",IF(TYPE(1000000-REPLACE(REPLACE('Run1 Input'!$A118,SEARCH("+*",'Run1 Input'!$A118),1,""),SEARCH("/*",'Run1 Input'!$A118)-1,1,""))=1,REPLACE('Run1 Input'!$A118,SEARCH("/*",'Run1 Input'!$A118),3,""),'Run1 Input'!$A118))) -> 945+28.52 | R125: 94528.52 | S125: =ROUND('Run2 Input'!E118,) -> 468 | U125: =ROUND('P&S Input'!B118,) -> 0 | V125: =ROUND('M&D Input'!Q118,) -> 0 | W125: =ROUND('GB Input'!R118,) -> 0 | X125: 0 | Y125: =ROUND(SUM(Pavement!I125),) -> 0 | Z125: =+'Run2 Input'!I118 -> 0 | AC125: =ROUND('GB Input'!S118,) -> 0 | AG125: 468
A126: =IF(TYPE(1000000-REPLACE('Run1 Input'!A119,SEARCH("+*",'Run1 Input'!A119),1,""))=1,'Run1 Input'!A119,IF('Run1 Input'!A119=0,"0+00",IF(TYPE(1000000-REPLACE(REPLACE('Run1 Input'!A119,SEARCH("+*",'Run1 Input'!A119),1,""),SEARCH("/*",'Run1 Input'!A119)-1,1,""))=1,REPLACE('Run1 Input'!A119,SEARCH("/*",'Run1 Input'!A119),3,""),'Run1 Input'!A119))) -> 945+50.00 | B126: 94550.00 | C126: =ROUND('Run2 Input'!D119,) -> 236 | E126: =ROUND('P&S Input'!Q119,) -> 0 | F126: =ROUND('M&D Input'!Q119,) -> 0 | G126: =ROUND('GB Input'!Q119,) -> 0 | H126: =ROUND('Misc Input'!Q119,) -> 0 | O126: 236 | Q126: =IF(TYPE(1000000-REPLACE('Run1 Input'!$A119,SEARCH("+*",'Run1 Input'!$A119),1,""))=1,'Run1 Input'!$A119,IF('Run1 Input'!$A119=0,"0+00",IF(TYPE(1000000-REPLACE(REPLACE('Run1 Input'!$A119,SEARCH("+*",'Run1 Input'!$A119),1,""),SEARCH("/*",'Run1 Input'!$A119)-1,1,""))=1,REPLACE('Run1 Input'!$A119,SEARCH("/*",'Run1 Input'!$A119),3,""),'Run1 Input'!$A119))) -> 945+50.00 | R126: 94550.00 | S126: =ROUND('Run2 Input'!E119,) -> 2854 | U126: =ROUND('P&S Input'!B119,) -> 0 | V126: =ROUND('M&D Input'!Q119,) -> 0 | W126: =ROUND('GB Input'!R119,) -> 0 | X126: 0 | Y126: =ROUND(SUM(Pavement!I126),) -> 0 | Z126: =+'Run2 Input'!I119 -> 0 | AC126: =ROUND('GB Input'!S119,) -> 0 | AG126: 2854
A127: =IF(TYPE(1000000-REPLACE('Run1 Input'!A120,SEARCH("+*",'Run1 Input'!A120),1,""))=1,'Run1 Input'!A120,IF('Run1 Input'!A120=0,"0+00",IF(TYPE(1000000-REPLACE(REPLACE('Run1 Input'!A120,SEARCH("+*",'Run1 Input'!A120),1,""),SEARCH("/*",'Run1 Input'!A120)-1,1,""))=1,REPLACE('Run1 Input'!A120,SEARCH("/*",'Run1 Input'!A120),3,""),'Run1 Input'!A120))) -> 945+75.00 | B127: 94575.00 | C127: =ROUND('Run2 Input'!D120,) -> 272 | E127: =ROUND('P&S Input'!Q120,) -> 0 | F127: =ROUND('M&D Input'!Q120,) -> 0 | G127: =ROUND('GB Input'!Q120,) -> 0 | H127: =ROUND('Misc Input'!Q120,) -> 0 | O127: 272 | Q127: =IF(TYPE(1000000-REPLACE('Run1 Input'!$A120,SEARCH("+*",'Run1 Input'!$A120),1,""))=1,'Run1 Input'!$A120,IF('Run1 Input'!$A120=0,"0+00",IF(TYPE(1000000-REPLACE(REPLACE('Run1 Input'!$A120,SEARCH("+*",'Run1 Input'!$A120),1,""),SEARCH("/*",'Run1 Input'!$A120)-1,1,""))=1,REPLACE('Run1 Input'!$A120,SEARCH("/*",'Run1 Input'!$A120),3,""),'Run1 Input'!$A120))) -> 945+75.00 | R127: 94575.00 | S127: =ROUND('Run2 Input'!E120,) -> 3318 | U127: =ROUND('P&S Input'!B120,) -> 0 | V127: =ROUND('M&D Input'!Q120,) -> 0 | W127: =ROUND('GB Input'!R120,) -> 0 | X127: 0 | Y127: =ROUND(SUM(Pavement!I127),) -> 0 | Z127: =+'Run2 Input'!I120 -> 0 | AC127: =ROUND('GB Input'!S120,) -> 0 | AG127: 3318
A128: =IF(TYPE(1000000-REPLACE('Run1 Input'!A121,SEARCH("+*",'Run1 Input'!A121),1,""))=1,'Run1 Input'!A121,IF('Run1 Input'!A121=0,"0+00",IF(TYPE(1000000-REPLACE(REPLACE('Run1 Input'!A121,SEARCH("+*",'Run1 Input'!A121),1,""),SEARCH("/*",'Run1 Input'!A121)-1,1,""))=1,REPLACE('Run1 Input'!A121,SEARCH("/*",'Run1 Input'!A121),3,""),'Run1 Input'!A121))) -> 946+00.00 | B128: 94600.00 | C128: =ROUND('Run2 Input'!D121,) -> 267 | E128: =ROUND('P&S Input'!Q121,) -> 0 | F128: =ROUND('M&D Input'!Q121,) -> 0 | G128: =ROUND('GB Input'!Q121,) -> 0 | H128: =ROUND('Misc Input'!Q121,) -> 0 | O128: 267 | Q128: =IF(TYPE(1000000-REPLACE('Run1 Input'!$A121,SEARCH("+*",'Run1 Input'!$A121),1,""))=1,'Run1 Input'!$A121,IF('Run1 Input'!$A121=0,"0+00",IF(TYPE(1000000-REPLACE(REPLACE('Run1 Input'!$A121,SEARCH("+*",'Run1 Input'!$A121),1,""),SEARCH("/*",'Run1 Input'!$A121)-1,1,""))=1,REPLACE('Run1 Input'!$A121,SEARCH("/*",'Run1 Input'!$A121),3,""),'Run1 Input'!$A121))) -> 946+00.00 | R128: 94600.00 | S128: =ROUND('Run2 Input'!E121,) -> 3324 | U128: =ROUND('P&S Input'!B121,) -> 0 | V128: =ROUND('M&D Input'!Q121,) -> 0 | W128: =ROUND('GB Input'!R121,) -> 0 | X128: 0 | Y128: =ROUND(SUM(Pavement!I128),) -> 0 | Z128: =+'Run2 Input'!I121 -> 0 | AC128: =ROUND('GB Input'!S121,) -> 0 | AG128: 3324
A129: =IF(TYPE(1000000-REPLACE('Run1 Input'!A122,SEARCH("+*",'Run1 Input'!A122),1,""))=1,'Run1 Input'!A122,IF('Run1 Input'!A122=0,"0+00",IF(TYPE(1000000-REPLACE(REPLACE('Run1 Input'!A122,SEARCH("+*",'Run1 Input'!A122),1,""),SEARCH("/*",'Run1 Input'!A122)-1,1,""))=1,REPLACE('Run1 Input'!A122,SEARCH("/*",'Run1 Input'!A122),3,""),'Run1 Input'!A122))) -> 946+25.00 | B129: 94625.00 | C129: =ROUND('Run2 Input'!D122,) -> 262 | E129: =ROUND('P&S Input'!Q122,) -> 0 | F129: =ROUND('M&D Input'!Q122,) -> 0 | G129: =ROUND('GB Input'!Q122,) -> 0 | H129: =ROUND('Misc Input'!Q122,) -> 0 | O129: 262 | Q129: =IF(TYPE(1000000-REPLACE('Run1 Input'!$A122,SEARCH("+*",'Run1 Input'!$A122),1,""))=1,'Run1 Input'!$A122,IF('Run1 Input'!$A122=0,"0+00",IF(TYPE(1000000-REPLACE(REPLACE('Run1 Input'!$A122,SEARCH("+*",'Run1 Input'!$A122),1,""),SEARCH("/*",'Run1 Input'!$A122)-1,1,""))=1,REPLACE('Run1 Input'!$A122,SEARCH("/*",'Run1 Input'!$A122),3,""),'Run1 Input'!$A122))) -> 946+25.00 | R129: 94625.00 | S129: =ROUND('Run2 Input'!E122,) -> 3367 | U129: =ROUND('P&S Input'!B122,) -> 0 | V129: =ROUND('M&D Input'!Q122,) -> 0 | W129: =ROUND('GB Input'!R122,) -> 0 | X129: 0 | Y129: =ROUND(SUM(Pavement!I129),) -> 0 | Z129: =+'Run2 Input'!I122 -> 0 | AC129: =ROUND('GB Input'!S122,) -> 0 | AG129: 3367
A130: =IF(TYPE(1000000-REPLACE('Run1 Input'!A123,SEARCH("+*",'Run1 Input'!A123),1,""))=1,'Run1 Input'!A123,IF('Run1 Input'!A123=0,"0+00",IF(TYPE(1000000-REPLACE(REPLACE('Run1 Input'!A123,SEARCH("+*",'Run1 Input'!A123),1,""),SEARCH("/*",'Run1 Input'!A123)-1,1,""))=1,REPLACE('Run1 Input'!A123,SEARCH("/*",'Run1 Input'!A123),3,""),'Run1 Input'!A123))) -> 946+50.00 | B130: 94650.00 | C130: =ROUND('Run2 Input'!D123,) -> 257 | E130: =ROUND('P&S Input'!Q123,) -> 0 | F130: =ROUND('M&D Input'!Q123,) -> 0 | G130: =ROUND('GB Input'!Q123,) -> 0 | H130: =ROUND('Misc Input'!Q123,) -> 0 | O130: 257 | Q130: =IF(TYPE(1000000-REPLACE('Run1 Input'!$A123,SEARCH("+*",'Run1 Input'!$A123),1,""))=1,'Run1 Input'!$A123,IF('Run1 Input'!$A123=0,"0+00",IF(TYPE(1000000-REPLACE(REPLACE('Run1 Input'!$A123,SEARCH("+*",'Run1 Input'!$A123),1,""),SEARCH("/*",'Run1 Input'!$A123)-1,1,""))=1,REPLACE('Run1 Input'!$A123,SEARCH("/*",'Run1 Input'!$A123),3,""),'Run1 Input'!$A123))) -> 946+50.00 | R130: 94650.00 | S130: =ROUND('Run2 Input'!E123,) -> 3420 | U130: =ROUND('P&S Input'!B123,) -> 0 | V130: =ROUND('M&D Input'!Q123,) -> 0 | W130: =ROUND('GB Input'!R123,) -> 0 | X130: 0 | Y130: =ROUND(SUM(Pavement!I130),) -> 0 | Z130: =+'Run2 Input'!I123 -> 0 | AC130: =ROUND('GB Input'!S123,) -> 0 | AG130: 3420
A131: =IF(TYPE(1000000-REPLACE('Run1 Input'!A124,SEARCH("+*",'Run1 Input'!A124),1,""))=1,'Run1 Input'!A124,IF('Run1 Input'!A124=0,"0+00",IF(TYPE(1000000-REPLACE(REPLACE('Run1 Input'!A124,SEARCH("+*",'Run1 Input'!A124),1,""),SEARCH("/*",'Run1 Input'!A124)-1,1,""))=1,REPLACE('Run1 Input'!A124,SEARCH("/*",'Run1 Input'!A124),3,""),'Run1 Input'!A124))) -> 946+75.00 | B131: 94675.00 | C131: =ROUND('Run2 Input'!D124,) -> 252 | E131: =ROUND('P&S Input'!Q124,) -> 0 | F131: =ROUND('M&D Input'!Q124,) -> 0 | G131: =ROUND('GB Input'!Q124,) -> 0 | H131: =ROUND('Misc Input'!Q124,) -> 0 | O131: 252 | Q131: =IF(TYPE(1000000-REPLACE('Run1 Input'!$A124,SEARCH("+*",'Run1 Input'!$A124),1,""))=1,'Run1 Input'!$A124,IF('Run1 Input'!$A124=0,"0+00",IF(TYPE(1000000-REPLACE(REPLACE('Run1 Input'!$A124,SEARCH("+*",'Run1 Input'!$A124),1,""),SEARCH("/*",'Run1 Input'!$A124)-1,1,""))=1,REPLACE('Run1 Input'!$A124,SEARCH("/*",'Run1 Input'!$A124),3,""),'Run1 Input'!$A124))) -> 946+75.00 | R131: 94675.00 | S131: =ROUND('Run2 Input'!E124,) -> 3453 | U131: =ROUND('P&S Input'!B124,) -> 0 | V131: =ROUND('M&D Input'!Q124,) -> 0 | W131: =ROUND('GB Input'!R124,) -> 0 | X131: 0 | Y131: =ROUND(SUM(Pavement!I131),) -> 0 | Z131: =+'Run2 Input'!I124 -> 0 | AC131: =ROUND('GB Input'!S124,) -> 0 | AG131: 3453
A132: =IF(TYPE(1000000-REPLACE('Run1 Input'!A125,SEARCH("+*",'Run1 Input'!A125),1,""))=1,'Run1 Input'!A125,IF('Run1 Input'!A125=0,"0+00",IF(TYPE(1000000-REPLACE(REPLACE('Run1 Input'!A125,SEARCH("+*",'Run1 Input'!A125),1,""),SEARCH("/*",'Run1 Input'!A125)-1,1,""))=1,REPLACE('Run1 Input'!A125,SEARCH("/*",'Run1 Input'!A125),3,""),'Run1 Input'!A125))) -> 947+00.00 | B132: 94700.00 | C132: =ROUND('Run2 Input'!D125,) -> 248 | E132: =ROUND('P&S Input'!Q125,) -> 0 | F132: =ROUND('M&D Input'!Q125,) -> 0 | G132: =ROUND('GB Input'!Q125,) -> 0 | H132: =ROUND('Misc Input'!Q125,) -> 0 | O132: 248 | Q132: =IF(TYPE(1000000-REPLACE('Run1 Input'!$A125,SEARCH("+*",'Run1 Input'!$A125),1,""))=1,'Run1 Input'!$A125,IF('Run1 Input'!$A125=0,"0+00",IF(TYPE(1000000-REPLACE(REPLACE('Run1 Input'!$A125,SEARCH("+*",'Run1 Input'!$A125),1,""),SEARCH("/*",'Run1 Input'!$A125)-1,1,""))=1,REPLACE('Run1 Input'!$A125,SEARCH("/*",'Run1 Input'!$A125),3,""),'Run1 Input'!$A125))) -> 947+00.00 | R132: 94700.00 | S132: =ROUND('Run2 Input'!E125,) -> 3429 | U132: =ROUND('P&S Input'!B125,) -> 0 | V132: =ROUND('M&D Input'!Q125,) -> 0 | W132: =ROUND('GB Input'!R125,) -> 0 | X132: 0 | Y132: =ROUND(SUM(Pavement!I132),) -> 0 | Z132: =+'Run2 Input'!I125 -> 0 | AC132: =ROUND('GB Input'!S125,) -> 0 | AG132: 3429
A133: =IF(TYPE(1000000-REPLACE('Run1 Input'!A126,SEARCH("+*",'Run1 Input'!A126),1,""))=1,'Run1 Input'!A126,IF('Run1 Input'!A126=0,"0+00",IF(TYPE(1000000-REPLACE(REPLACE('Run1 Input'!A126,SEARCH("+*",'Run1 Input'!A126),1,""),SEARCH("/*",'Run1 Input'!A126)-1,1,""))=1,REPLACE('Run1 Input'!A126,SEARCH("/*",'Run1 Input'!A126),3,""),'Run1 Input'!A126))) -> 947+25.00 | B133: 94725.00 | C133: =ROUND('Run2 Input'!D126,) -> 247 | E133: =ROUND('P&S Input'!Q126,) -> 0 | F133: =ROUND('M&D Input'!Q126,) -> 0 | G133: =ROUND('GB Input'!Q126,) -> 0 | H133: =ROUND('Misc Input'!Q126,) -> 0 | O133: 247 | Q133: =IF(TYPE(1000000-REPLACE('Run1 Input'!$A126,SEARCH("+*",'Run1 Input'!$A126),1,""))=1,'Run1 Input'!$A126,IF('Run1 Input'!$A126=0,"0+00",IF(TYPE(1000000-REPLACE(REPLACE('Run1 Input'!$A126,SEARCH("+*",'Run1 Input'!$A126),1,""),SEARCH("/*",'Run1 Input'!$A126)-1,1,""))=1,REPLACE('Run1 Input'!$A126,SEARCH("/*",'Run1 Input'!$A126),3,""),'Run1 Input'!$A126))) -> 947+25.00 | R133: 94725.00 | S133: =ROUND('Run2 Input'!E126,) -> 3317 | U133: =ROUND('P&S Input'!B126,) -> 0 | V133: =ROUND('M&D Input'!Q126,) -> 0 | W133: =ROUND('GB Input'!R126,) -> 0 | X133: 0 | Y133: =ROUND(SUM(Pavement!I133),) -> 0 | Z133: =+'Run2 Input'!I126 -> 0 | AC133: =ROUND('GB Input'!S126,) -> 0 | AG133: 3317
A134: =IF(TYPE(1000000-REPLACE('Run1 Input'!A127,SEARCH("+*",'Run1 Input'!A127),1,""))=1,'Run1 Input'!A127,IF('Run1 Input'!A127=0,"0+00",IF(TYPE(1000000-REPLACE(REPLACE('Run1 Input'!A127,SEARCH("+*",'Run1 Input'!A127),1,""),SEARCH("/*",'Run1 Input'!A127)-1,1,""))=1,REPLACE('Run1 Input'!A127,SEARCH("/*",'Run1 Input'!A127),3,""),'Run1 Input'!A127))) -> 947+50.00 | B134: 94750.00 | C134: =ROUND('Run2 Input'!D127,) -> 248 | E134: =ROUND('P&S Input'!Q127,) -> 0 | F134: =ROUND('M&D Input'!Q127,) -> 0 | G134: =ROUND('GB Input'!Q127,) -> 0 | H134: =ROUND('Misc Input'!Q127,) -> 0 | O134: 248 | Q134: =IF(TYPE(1000000-REPLACE('Run1 Input'!$A127,SEARCH("+*",'Run1 Input'!$A127),1,""))=1,'Run1 Input'!$A127,IF('Run1 Input'!$A127=0,"0+00",IF(TYPE(1000000-REPLACE(REPLACE('Run1 Input'!$A127,SEARCH("+*",'Run1 Input'!$A127),1,""),SEARCH("/*",'Run1 Input'!$A127)-1,1,""))=1,REPLACE('Run1 Input'!$A127,SEARCH("/*",'Run1 Input'!$A127),3,""),'Run1 Input'!$A127))) -> 947+50.00 | R134: 94750.00 | S134: =ROUND('Run2 Input'!E127,) -> 3044 | U134: =ROUND('P&S Input'!B127,) -> 0 | V134: =ROUND('M&D Input'!Q127,) -> 0 | W134: =ROUND('GB Input'!R127,) -> 0 | X134: 0 | Y134: =ROUND(SUM(Pavement!I134),) -> 0 | Z134: =+'Run2 Input'!I127 -> 0 | AC134: =ROUND('GB Input'!S127,) -> 0 | AG134: 3044
A135: =IF(TYPE(1000000-REPLACE('Run1 Input'!A128,SEARCH("+*",'Run1 Input'!A128),1,""))=1,'Run1 Input'!A128,IF('Run1 Input'!A128=0,"0+00",IF(TYPE(1000000-REPLACE(REPLACE('Run1 Input'!A128,SEARCH("+*",'Run1 Input'!A128),1,""),SEARCH("/*",'Run1 Input'!A128)-1,1,""))=1,REPLACE('Run1 Input'!A128,SEARCH("/*",'Run1 Input'!A128),3,""),'Run1 Input'!A128))) -> 947+75.00 | B135: 94775.00 | C135: =ROUND('Run2 Input'!D128,) -> 245 | E135: =ROUND('P&S Input'!Q128,) -> 0 | F135: =ROUND('M&D Input'!Q128,) -> 0 | G135: =ROUND('GB Input'!Q128,) -> 0 | H135: =ROUND('Misc Input'!Q128,) -> 0 | O135: 245 | Q135: =IF(TYPE(1000000-REPLACE('Run1 Input'!$A128,SEARCH("+*",'Run1 Input'!$A128),1,""))=1,'Run1 Input'!$A128,IF('Run1 Input'!$A128=0,"0+00",IF(TYPE(1000000-REPLACE(REPLACE('Run1 Input'!$A128,SEARCH("+*",'Run1 Input'!$A128),1,""),SEARCH("/*",'Run1 Input'!$A128)-1,1,""))=1,REPLACE('Run1 Input'!$A128,SEARCH("/*",'Run1 Input'!$A128),3,""),'Run1 Input'!$A128))) -> 947+75.00 | R135: 94775.00 | S135: =ROUND('Run2 Input'!E128,) -> 2649 | U135: =ROUND('P&S Input'!B128,) -> 0 | V135: =ROUND('M&D Input'!Q128,) -> 0 | W135: =ROUND('GB Input'!R128,) -> 0 | X135: 0 | Y135: =ROUND(SUM(Pavement!I135),) -> 0 | Z135: =+'Run2 Input'!I128 -> 0 | AC135: =ROUND('GB Input'!S128,) -> 0 | AG135: 2649
A136: =IF(TYPE(1000000-REPLACE('Run1 Input'!A129,SEARCH("+*",'Run1 Input'!A129),1,""))=1,'Run1 Input'!A129,IF('Run1 Input'!A129=0,"0+00",IF(TYPE(1000000-REPLACE(REPLACE('Run1 Input'!A129,SEARCH("+*",'Run1 Input'!A129),1,""),SEARCH("/*",'Run1 Input'!A129)-1,1,""))=1,REPLACE('Run1 Input'!A129,SEARCH("/*",'Run1 Input'!A129),3,""),'Run1 Input'!A129))) -> 948+00.00 | B136: 94800.00 | C136: =ROUND('Run2 Input'!D129,) -> 238 | E136: =ROUND('P&S Input'!Q129,) -> 0 | F136: =ROUND('M&D Input'!Q129,) -> 0 | G136: =ROUND('GB Input'!Q129,) -> 0 | H136: =ROUND('Misc Input'!Q129,) -> 0 | O136: 238 | Q136: =IF(TYPE(1000000-REPLACE('Run1 Input'!$A129,SEARCH("+*",'Run1 Input'!$A129),1,""))=1,'Run1 Input'!$A129,IF('Run1 Input'!$A129=0,"0+00",IF(TYPE(1000000-REPLACE(REPLACE('Run1 Input'!$A129,SEARCH("+*",'Run1 Input'!$A129),1,""),SEARCH("/*",'Run1 Input'!$A129)-1,1,""))=1,REPLACE('Run1 Input'!$A129,SEARCH("/*",'Run1 Input'!$A129),3,""),'Run1 Input'!$A129))) -> 948+00.00 | R136: 94800.00 | S136: =ROUND('Run2 Input'!E129,) -> 2191 | U136: =ROUND('P&S Input'!B129,) -> 0 | V136: =ROUND('M&D Input'!Q129,) -> 0 | W136: =ROUND('GB Input'!R129,) -> 0 | X136: 0 | Y136: =ROUND(SUM(Pavement!I136),) -> 0 | Z136: =+'Run2 Input'!I129 -> 0 | AC136: =ROUND('GB Input'!S129,) -> 0 | AG136: 2191
A137: =IF(TYPE(1000000-REPLACE('Run1 Input'!A130,SEARCH("+*",'Run1 Input'!A130),1,""))=1,'Run1 Input'!A130,IF('Run1 Input'!A130=0,"0+00",IF(TYPE(1000000-REPLACE(REPLACE('Run1 Input'!A130,SEARCH("+*",'Run1 Input'!A130),1,""),SEARCH("/*",'Run1 Input'!A130)-1,1,""))=1,REPLACE('Run1 Input'!A130,SEARCH("/*",'Run1 Input'!A130),3,""),'Run1 Input'!A130))) -> 948+25.00 | B137: 94825.00 | C137: =ROUND('Run2 Input'!D130,) -> 233 | E137: =ROUND('P&S Input'!Q130,) -> 0 | F137: =ROUND('M&D Input'!Q130,) -> 0 | G137: =ROUND('GB Input'!Q130,) -> 0 | H137: =ROUND('Misc Input'!Q130,) -> 0 | O137: 233 | Q137: =IF(TYPE(1000000-REPLACE('Run1 Input'!$A130,SEARCH("+*",'Run1 Input'!$A130),1,""))=1,'Run1 Input'!$A130,IF('Run1 Input'!$A130=0,"0+00",IF(TYPE(1000000-REPLACE(REPLACE('Run1 Input'!$A130,SEARCH("+*",'Run1 Input'!$A130),1,""),SEARCH("/*",'Run1 Input'!$A130)-1,1,""))=1,REPLACE('Run1 Input'!$A130,SEARCH("/*",'Run1 Input'!$A130),3,""),'Run1 Input'!$A130))) -> 948+25.00 | R137: 94825.00 | S137: =ROUND('Run2 Input'!E130,) -> 1658 | U137: =ROUND('P&S Input'!B130,) -> 0 | V137: =ROUND('M&D Input'!Q130,) -> 0 | W137: =ROUND('GB Input'!R130,) -> 0 | X137: 0 | Y137: =ROUND(SUM(Pavement!I137),) -> 0 | Z137: =+'Run2 Input'!I130 -> 0 | AC137: =ROUND('GB Input'!S130,) -> 0 | AG137: 1658
A138: =IF(TYPE(1000000-REPLACE('Run1 Input'!A131,SEARCH("+*",'Run1 Input'!A131),1,""))=1,'Run1 Input'!A131,IF('Run1 Input'!A131=0,"0+00",IF(TYPE(1000000-REPLACE(REPLACE('Run1 Input'!A131,SEARCH("+*",'Run1 Input'!A131),1,""),SEARCH("/*",'Run1 Input'!A131)-1,1,""))=1,REPLACE('Run1 Input'!A131,SEARCH("/*",'Run1 Input'!A131),3,""),'Run1 Input'!A131))) -> 948+50.00 | B138: 94850.00 | C138: =ROUND('Run2 Input'!D131,) -> 295 | E138: =ROUND('P&S Input'!Q131,) -> 0 | F138: =ROUND('M&D Input'!Q131,) -> 0 | G138: =ROUND('GB Input'!Q131,) -> 0 | H138: =ROUND('Misc Input'!Q131,) -> 0 | O138: 295 | Q138: =IF(TYPE(1000000-REPLACE('Run1 Input'!$A131,SEARCH("+*",'Run1 Input'!$A131),1,""))=1,'Run1 Input'!$A131,IF('Run1 Input'!$A131=0,"0+00",IF(TYPE(1000000-REPLACE(REPLACE('Run1 Input'!$A131,SEARCH("+*",'Run1 Input'!$A131),1,""),SEARCH("/*",'Run1 Input'!$A131)-1,1,""))=1,REPLACE('Run1 Input'!$A131,SEARCH("/*",'Run1 Input'!$A131),3,""),'Run1 Input'!$A131))) -> 948+50.00 | R138: 94850.00 | S138: =ROUND('Run2 Input'!E131,) -> 1191 | U138: =ROUND('P&S Input'!B131,) -> 0 | V138: =ROUND('M&D Input'!Q131,) -> 0 | W138: =ROUND('GB Input'!R131,) -> 0 | X138: 0 | Y138: =ROUND(SUM(Pavement!I138),) -> 0 | Z138: =+'Run2 Input'!I131 -> 0 | AC138: =ROUND('GB Input'!S131,) -> 0 | AG138: 1191
A139: =IF(TYPE(1000000-REPLACE('Run1 Input'!A132,SEARCH("+*",'Run1 Input'!A132),1,""))=1,'Run1 Input'!A132,IF('Run1 Input'!A132=0,"0+00",IF(TYPE(1000000-REPLACE(REPLACE('Run1 Input'!A132,SEARCH("+*",'Run1 Input'!A132),1,""),SEARCH("/*",'Run1 Input'!A132)-1,1,""))=1,REPLACE('Run1 Input'!A132,SEARCH("/*",'Run1 Input'!A132),3,""),'Run1 Input'!A132))) -> 948+75.00 | B139: 94875.00 | C139: =ROUND('Run2 Input'!D132,) -> 509 | E139: =ROUND('P&S Input'!Q132,) -> 0 | F139: =ROUND('M&D Input'!Q132,) -> 0 | G139: =ROUND('GB Input'!Q132,) -> 0 | H139: =ROUND('Misc Input'!Q132,) -> 0 | O139: 509 | Q139: =IF(TYPE(1000000-REPLACE('Run1 Input'!$A132,SEARCH("+*",'Run1 Input'!$A132),1,""))=1,'Run1 Input'!$A132,IF('Run1 Input'!$A132=0,"0+00",IF(TYPE(1000000-REPLACE(REPLACE('Run1 Input'!$A132,SEARCH("+*",'Run1 Input'!$A132),1,""),SEARCH("/*",'Run1 Input'!$A132)-1,1,""))=1,REPLACE('Run1 Input'!$A132,SEARCH("/*",'Run1 Input'!$A132),3,""),'Run1 Input'!$A132))) -> 948+75.00 | R139: 94875.00 | S139: =ROUND('Run2 Input'!E132,) -> 835 | U139: =ROUND('P&S Input'!B132,) -> 0 | V139: =ROUND('M&D Input'!Q132,) -> 0 | W139: =ROUND('GB Input'!R132,) -> 0 | X139: 0 | Y139: =ROUND(SUM(Pavement!I139),) -> 0 | Z139: =+'Run2 Input'!I132 -> 0 | AC139: =ROUND('GB Input'!S132,) -> 0 | AG139: 835
A140: =IF(TYPE(1000000-REPLACE('Run1 Input'!A133,SEARCH("+*",'Run1 Input'!A133),1,""))=1,'Run1 Input'!A133,IF('Run1 Input'!A133=0,"0+00",IF(TYPE(1000000-REPLACE(REPLACE('Run1 Input'!A133,SEARCH("+*",'Run1 Input'!A133),1,""),SEARCH("/*",'Run1 Input'!A133)-1,1,""))=1,REPLACE('Run1 Input'!A133,SEARCH("/*",'Run1 Input'!A133),3,""),'Run1 Input'!A133))) -> 949+00.00 | B140: 94900.00 | C140: =ROUND('Run2 Input'!D133,) -> 848 | E140: =ROUND('P&S Input'!Q133,) -> 0 | F140: =ROUND('M&D Input'!Q133,) -> 0 | G140: =ROUND('GB Input'!Q133,) -> 0 | H140: =ROUND('Misc Input'!Q133,) -> 0 | O140: 848 | Q140: =IF(TYPE(1000000-REPLACE('Run1 Input'!$A133,SEARCH("+*",'Run1 Input'!$A133),1,""))=1,'Run1 Input'!$A133,IF('Run1 Input'!$A133=0,"0+00",IF(TYPE(1000000-REPLACE(REPLACE('Run1 Input'!$A133,SEARCH("+*",'Run1 Input'!$A133),1,""),SEARCH("/*",'Run1 Input'!$A133)-1,1,""))=1,REPLACE('Run1 Input'!$A133,SEARCH("/*",'Run1 Input'!$A133),3,""),'Run1 Input'!$A133))) -> 949+00.00 | R140: 94900.00 | S140: =ROUND('Run2 Input'!E133,) -> 592 | U140: =ROUND('P&S Input'!B133,) -> 0 | V140: =ROUND('M&D Input'!Q133,) -> 0 | W140: =ROUND('GB Input'!R133,) -> 0 | X140: 0 | Y140: =ROUND(SUM(Pavement!I140),) -> 0 | Z140: =+'Run2 Input'!I133 -> 0 | AC140: =ROUND('GB Input'!S133,) -> 0 | AG140: 592
A141: =IF(TYPE(1000000-REPLACE('Run1 Input'!A134,SEARCH("+*",'Run1 Input'!A134),1,""))=1,'Run1 Input'!A134,IF('Run1 Input'!A134=0,"0+00",IF(TYPE(1000000-REPLACE(REPLACE('Run1 Input'!A134,SEARCH("+*",'Run1 Input'!A134),1,""),SEARCH("/*",'Run1 Input'!A134)-1,1,""))=1,REPLACE('Run1 Input'!A134,SEARCH("/*",'Run1 Input'!A134),3,""),'Run1 Input'!A134))) -> 949+25.00 | B141: 94925.00 | C141: =ROUND('Run2 Input'!D134,) -> 1175 | E141: =ROUND('P&S Input'!Q134,) -> 0 | F141: =ROUND('M&D Input'!Q134,) -> 0 | G141: =ROUND('GB Input'!Q134,) -> 0 | H141: =ROUND('Misc Input'!Q134,) -> 0 | O141: 1175 | Q141: =IF(TYPE(1000000-REPLACE('Run1 Input'!$A134,SEARCH("+*",'Run1 Input'!$A134),1,""))=1,'Run1 Input'!$A134,IF('Run1 Input'!$A134=0,"0+00",IF(TYPE(1000000-REPLACE(REPLACE('Run1 Input'!$A134,SEARCH("+*",'Run1 Input'!$A134),1,""),SEARCH("/*",'Run1 Input'!$A134)-1,1,""))=1,REPLACE('Run1 Input'!$A134,SEARCH("/*",'Run1 Input'!$A134),3,""),'Run1 Input'!$A134))) -> 949+25.00 | R141: 94925.00 | S141: =ROUND('Run2 Input'!E134,) -> 411 | U141: =ROUND('P&S Input'!B134,) -> 0 | V141: =ROUND('M&D Input'!Q134,) -> 0 | W141: =ROUND('GB Input'!R134,) -> 0 | X141: 0 | Y141: =ROUND(SUM(Pavement!I141),) -> 0 | Z141: =+'Run2 Input'!I134 -> 0 | AC141: =ROUND('GB Input'!S134,) -> 0 | AG141: 411
A142: =IF(TYPE(1000000-REPLACE('Run1 Input'!A135,SEARCH("+*",'Run1 Input'!A135),1,""))=1,'Run1 Input'!A135,IF('Run1 Input'!A135=0,"0+00",IF(TYPE(1000000-REPLACE(REPLACE('Run1 Input'!A135,SEARCH("+*",'Run1 Input'!A135),1,""),SEARCH("/*",'Run1 Input'!A135)-1,1,""))=1,REPLACE('Run1 Input'!A135,SEARCH("/*",'Run1 Input'!A135),3,""),'Run1 Input'!A135))) -> 949+50.00 | B142: 94950.00 | C142: =ROUND('Run2 Input'!D135,) -> 1488 | E142: =ROUND('P&S Input'!Q135,) -> 0 | F142: =ROUND('M&D Input'!Q135,) -> 0 | G142: =ROUND('GB Input'!Q135,) -> 0 | H142: =ROUND('Misc Input'!Q135,) -> 0 | O142: 1488 | Q142: =IF(TYPE(1000000-REPLACE('Run1 Input'!$A135,SEARCH("+*",'Run1 Input'!$A135),1,""))=1,'Run1 Input'!$A135,IF('Run1 Input'!$A135=0,"0+00",IF(TYPE(1000000-REPLACE(REPLACE('Run1 Input'!$A135,SEARCH("+*",'Run1 Input'!$A135),1,""),SEARCH("/*",'Run1 Input'!$A135)-1,1,""))=1,REPLACE('Run1 Input'!$A135,SEARCH("/*",'Run1 Input'!$A135),3,""),'Run1 Input'!$A135))) -> 949+50.00 | R142: 94950.00 | S142: =ROUND('Run2 Input'!E135,) -> 233 | U142: =ROUND('P&S Input'!B135,) -> 0 | V142: =ROUND('M&D Input'!Q135,) -> 0 | W142: =ROUND('GB Input'!R135,) -> 0 | X142: 0 | Y142: =ROUND(SUM(Pavement!I142),) -> 0 | Z142: =+'Run2 Input'!I135 -> 0 | AC142: =ROUND('GB Input'!S135,) -> 0 | AG142: 233
A143: =IF(TYPE(1000000-REPLACE('Run1 Input'!A136,SEARCH("+*",'Run1 Input'!A136),1,""))=1,'Run1 Input'!A136,IF('Run1 Input'!A136=0,"0+00",IF(TYPE(1000000-REPLACE(REPLACE('Run1 Input'!A136,SEARCH("+*",'Run1 Input'!A136),1,""),SEARCH("/*",'Run1 Input'!A136)-1,1,""))=1,REPLACE('Run1 Input'!A136,SEARCH("/*",'Run1 Input'!A136),3,""),'Run1 Input'!A136))) -> 949+75.00 | B143: 94975.00 | C143: =ROUND('Run2 Input'!D136,) -> 1817 | E143: =ROUND('P&S Input'!Q136,) -> 0 | F143: =ROUND('M&D Input'!Q136,) -> 0 | G143: =ROUND('GB Input'!Q136,) -> 0 | H143: =ROUND('Misc Input'!Q136,) -> 0 | O143: 1817 | Q143: =IF(TYPE(1000000-REPLACE('Run1 Input'!$A136,SEARCH("+*",'Run1 Input'!$A136),1,""))=1,'Run1 Input'!$A136,IF('Run1 Input'!$A136=0,"0+00",IF(TYPE(1000000-REPLACE(REPLACE('Run1 Input'!$A136,SEARCH("+*",'Run1 Input'!$A136),1,""),SEARCH("/*",'Run1 Input'!$A136)-1,1,""))=1,REPLACE('Run1 Input'!$A136,SEARCH("/*",'Run1 Input'!$A136),3,""),'Run1 Input'!$A136))) -> 949+75.00 | R143: 94975.00 | S143: =ROUND('Run2 Input'!E136,) -> 109 | U143: =ROUND('P&S Input'!B136,) -> 0 | V143: =ROUND('M&D Input'!Q136,) -> 0 | W143: =ROUND('GB Input'!R136,) -> 0 | X143: 0 | Y143: =ROUND(SUM(Pavement!I143),) -> 0 | Z143: =+'Run2 Input'!I136 -> 0 | AC143: =ROUND('GB Input'!S136,) -> 0 | AG143: 109
A144: =IF(TYPE(1000000-REPLACE('Run1 Input'!A137,SEARCH("+*",'Run1 Input'!A137),1,""))=1,'Run1 Input'!A137,IF('Run1 Input'!A137=0,"0+00",IF(TYPE(1000000-REPLACE(REPLACE('Run1 Input'!A137,SEARCH("+*",'Run1 Input'!A137),1,""),SEARCH("/*",'Run1 Input'!A137)-1,1,""))=1,REPLACE('Run1 Input'!A137,SEARCH("/*",'Run1 Input'!A137),3,""),'Run1 Input'!A137))) -> 950+00.00 | B144: 95000.00 | C144: =ROUND('Run2 Input'!D137,) -> 2026 | E144: =ROUND('P&S Input'!Q137,) -> 0 | F144: =ROUND('M&D Input'!Q137,) -> 0 | G144: =ROUND('GB Input'!Q137,) -> 0 | H144: =ROUND('Misc Input'!Q137,) -> 0 | O144: 2026 | Q144: =IF(TYPE(1000000-REPLACE('Run1 Input'!$A137,SEARCH("+*",'Run1 Input'!$A137),1,""))=1,'Run1 Input'!$A137,IF('Run1 Input'!$A137=0,"0+00",IF(TYPE(1000000-REPLACE(REPLACE('Run1 Input'!$A137,SEARCH("+*",'Run1 Input'!$A137),1,""),SEARCH("/*",'Run1 Input'!$A137)-1,1,""))=1,REPLACE('Run1 Input'!$A137,SEARCH("/*",'Run1 Input'!$A137),3,""),'Run1 Input'!$A137))) -> 950+00.00 | R144: 95000.00 | S144: =ROUND('Run2 Input'!E137,) -> 44 | U144: =ROUND('P&S Input'!B137,) -> 0 | V144: =ROUND('M&D Input'!Q137,) -> 0 | W144: =ROUND('GB Input'!R137,) -> 0 | X144: 0 | Y144: =ROUND(SUM(Pavement!I144),) -> 0 | Z144: =+'Run2 Input'!I137 -> 0 | AC144: =ROUND('GB Input'!S137,) -> 0 | AG144: 44
A145: =IF(TYPE(1000000-REPLACE('Run1 Input'!A138,SEARCH("+*",'Run1 Input'!A138),1,""))=1,'Run1 Input'!A138,IF('Run1 Input'!A138=0,"0+00",IF(TYPE(1000000-REPLACE(REPLACE('Run1 Input'!A138,SEARCH("+*",'Run1 Input'!A138),1,""),SEARCH("/*",'Run1 Input'!A138)-1,1,""))=1,REPLACE('Run1 Input'!A138,SEARCH("/*",'Run1 Input'!A138),3,""),'Run1 Input'!A138))) -> 950+25.00 | B145: 95025.00 | C145: =ROUND('Run2 Input'!D138,) -> 2035 | E145: =ROUND('P&S Input'!Q138,) -> 0 | F145: =ROUND('M&D Input'!Q138,) -> 0 | G145: =ROUND('GB Input'!Q138,) -> 0 | H145: =ROUND('Misc Input'!Q138,) -> 0 | O145: 2035 | Q145: =IF(TYPE(1000000-REPLACE('Run1 Input'!$A138,SEARCH("+*",'Run1 Input'!$A138),1,""))=1,'Run1 Input'!$A138,IF('Run1 Input'!$A138=0,"0+00",IF(TYPE(1000000-REPLACE(REPLACE('Run1 Input'!$A138,SEARCH("+*",'Run1 Input'!$A138),1,""),SEARCH("/*",'Run1 Input'!$A138)-1,1,""))=1,REPLACE('Run1 Input'!$A138,SEARCH("/*",'Run1 Input'!$A138),3,""),'Run1 Input'!$A138))) -> 950+25.00 | R145: 95025.00 | S145: =ROUND('Run2 Input'!E138,) -> 19 | U145: =ROUND('P&S Input'!B138,) -> 0 | V145: =ROUND('M&D Input'!Q138,) -> 0 | W145: =ROUND('GB Input'!R138,) -> 0 | X145: 0 | Y145: =ROUND(SUM(Pavement!I145),) -> 0 | Z145: =+'Run2 Input'!I138 -> 0 | AC145: =ROUND('GB Input'!S138,) -> 0 | AG145: 19
A146: =IF(TYPE(1000000-REPLACE('Run1 Input'!A139,SEARCH("+*",'Run1 Input'!A139),1,""))=1,'Run1 Input'!A139,IF('Run1 Input'!A139=0,"0+00",IF(TYPE(1000000-REPLACE(REPLACE('Run1 Input'!A139,SEARCH("+*",'Run1 Input'!A139),1,""),SEARCH("/*",'Run1 Input'!A139)-1,1,""))=1,REPLACE('Run1 Input'!A139,SEARCH("/*",'Run1 Input'!A139),3,""),'Run1 Input'!A139))) -> 950+50.00 | B146: 95050.00 | C146: =ROUND('Run2 Input'!D139,) -> 1851 | E146: =ROUND('P&S Input'!Q139,) -> 0 | F146: =ROUND('M&D Input'!Q139,) -> 0 | G146: =ROUND('GB Input'!Q139,) -> 0 | H146: =ROUND('Misc Input'!Q139,) -> 0 | O146: 1851 | Q146: =IF(TYPE(1000000-REPLACE('Run1 Input'!$A139,SEARCH("+*",'Run1 Input'!$A139),1,""))=1,'Run1 Input'!$A139,IF('Run1 Input'!$A139=0,"0+00",IF(TYPE(1000000-REPLACE(REPLACE('Run1 Input'!$A139,SEARCH("+*",'Run1 Input'!$A139),1,""),SEARCH("/*",'Run1 Input'!$A139)-1,1,""))=1,REPLACE('Run1 Input'!$A139,SEARCH("/*",'Run1 Input'!$A139),3,""),'Run1 Input'!$A139))) -> 950+50.00 | R146: 95050.00 | S146: =ROUND('Run2 Input'!E139,) -> 12 | U146: =ROUND('P&S Input'!B139,) -> 0 | V146: =ROUND('M&D Input'!Q139,) -> 0 | W146: =ROUND('GB Input'!R139,) -> 0 | X146: 0 | Y146: =ROUND(SUM(Pavement!I146),) -> 0 | Z146: =+'Run2 Input'!I139 -> 0 | AC146: =ROUND('GB Input'!S139,) -> 0 | AG146: 12
A147: =IF(TYPE(1000000-REPLACE('Run1 Input'!A140,SEARCH("+*",'Run1 Input'!A140),1,""))=1,'Run1 Input'!A140,IF('Run1 Input'!A140=0,"0+00",IF(TYPE(1000000-REPLACE(REPLACE('Run1 Input'!A140,SEARCH("+*",'Run1 Input'!A140),1,""),SEARCH("/*",'Run1 Input'!A140)-1,1,""))=1,REPLACE('Run1 Input'!A140,SEARCH("/*",'Run1 Input'!A140),3,""),'Run1 Input'!A140))) -> 950+75.00 | B147: 95075.00 | C147: =ROUND('Run2 Input'!D140,) -> 1533 | E147: =ROUND('P&S Input'!Q140,) -> 0 | F147: =ROUND('M&D Input'!Q140,) -> 0 | G147: =ROUND('GB Input'!Q140,) -> 0 | H147: =ROUND('Misc Input'!Q140,) -> 0 | O147: 1533 | Q147: =IF(TYPE(1000000-REPLACE('Run1 Input'!$A140,SEARCH("+*",'Run1 Input'!$A140),1,""))=1,'Run1 Input'!$A140,IF('Run1 Input'!$A140=0,"0+00",IF(TYPE(1000000-REPLACE(REPLACE('Run1 Input'!$A140,SEARCH("+*",'Run1 Input'!$A140),1,""),SEARCH("/*",'Run1 Input'!$A140)-1,1,""))=1,REPLACE('Run1 Input'!$A140,SEARCH("/*",'Run1 Input'!$A140),3,""),'Run1 Input'!$A140))) -> 950+75.00 | R147: 95075.00 | S147: =ROUND('Run2 Input'!E140,) -> 13 | U147: =ROUND('P&S Input'!B140,) -> 0 | V147: =ROUND('M&D Input'!Q140,) -> 0 | W147: =ROUND('GB Input'!R140,) -> 0 | X147: 0 | Y147: =ROUND(SUM(Pavement!I147),) -> 0 | Z147: =+'Run2 Input'!I140 -> 0 | AC147: =ROUND('GB Input'!S140,) -> 0 | AG147: 13
A148: =IF(TYPE(1000000-REPLACE('Run1 Input'!A141,SEARCH("+*",'Run1 Input'!A141),1,""))=1,'Run1 Input'!A141,IF('Run1 Input'!A141=0,"0+00",IF(TYPE(1000000-REPLACE(REPLACE('Run1 Input'!A141,SEARCH("+*",'Run1 Input'!A141),1,""),SEARCH("/*",'Run1 Input'!A141)-1,1,""))=1,REPLACE('Run1 Input'!A141,SEARCH("/*",'Run1 Input'!A141),3,""),'Run1 Input'!A141))) -> 951+00.00 | B148: 95100.00 | C148: =ROUND('Run2 Input'!D141,) -> 1155 | E148: =ROUND('P&S Input'!Q141,) -> 0 | F148: =ROUND('M&D Input'!Q141,) -> 0 | G148: =ROUND('GB Input'!Q141,) -> 0 | H148: =ROUND('Misc Input'!Q141,) -> 0 | O148: 1155 | Q148: =IF(TYPE(1000000-REPLACE('Run1 Input'!$A141,SEARCH("+*",'Run1 Input'!$A141),1,""))=1,'Run1 Input'!$A141,IF('Run1 Input'!$A141=0,"0+00",IF(TYPE(1000000-REPLACE(REPLACE('Run1 Input'!$A141,SEARCH("+*",'Run1 Input'!$A141),1,""),SEARCH("/*",'Run1 Input'!$A141)-1,1,""))=1,REPLACE('Run1 Input'!$A141,SEARCH("/*",'Run1 Input'!$A141),3,""),'Run1 Input'!$A141))) -> 951+00.00 | R148: 95100.00 | S148: =ROUND('Run2 Input'!E141,) -> 27 | U148: =ROUND('P&S Input'!B141,) -> 0 | V148: =ROUND('M&D Input'!Q141,) -> 0 | W148: =ROUND('GB Input'!R141,) -> 0 | X148: 0 | Y148: =ROUND(SUM(Pavement!I148),) -> 0 | Z148: =+'Run2 Input'!I141 -> 0 | AC148: =ROUND('GB Input'!S141,) -> 0 | AG148: 27
A149: =IF(TYPE(1000000-REPLACE('Run1 Input'!A142,SEARCH("+*",'Run1 Input'!A142),1,""))=1,'Run1 Input'!A142,IF('Run1 Input'!A142=0,"0+00",IF(TYPE(1000000-REPLACE(REPLACE('Run1 Input'!A142,SEARCH("+*",'Run1 Input'!A142),1,""),SEARCH("/*",'Run1 Input'!A142)-1,1,""))=1,REPLACE('Run1 Input'!A142,SEARCH("/*",'Run1 Input'!A142),3,""),'Run1 Input'!A142))) -> 951+25.00 | B149: 95125.00 | C149: =ROUND('Run2 Input'!D142,) -> 755 | E149: =ROUND('P&S Input'!Q142,) -> 0 | F149: =ROUND('M&D Input'!Q142,) -> 0 | G149: =ROUND('GB Input'!Q142,) -> 0 | H149: =ROUND('Misc Input'!Q142,) -> 0 | O149: 755 | Q149: =IF(TYPE(1000000-REPLACE('Run1 Input'!$A142,SEARCH("+*",'Run1 Input'!$A142),1,""))=1,'Run1 Input'!$A142,IF('Run1 Input'!$A142=0,"0+00",IF(TYPE(1000000-REPLACE(REPLACE('Run1 Input'!$A142,SEARCH("+*",'Run1 Input'!$A142),1,""),SEARCH("/*",'Run1 Input'!$A142)-1,1,""))=1,REPLACE('Run1 Input'!$A142,SEARCH("/*",'Run1 Input'!$A142),3,""),'Run1 Input'!$A142))) -> 951+25.00 | R149: 95125.00 | S149: =ROUND('Run2 Input'!E142,) -> 95 | U149: =ROUND('P&S Input'!B142,) -> 0 | V149: =ROUND('M&D Input'!Q142,) -> 0 | W149: =ROUND('GB Input'!R142,) -> 0 | X149: 0 | Y149: =ROUND(SUM(Pavement!I149),) -> 0 | Z149: =+'Run2 Input'!I142 -> 0 | AC149: =ROUND('GB Input'!S142,) -> 0 | AG149: 95
A150: =IF(TYPE(1000000-REPLACE('Run1 Input'!A143,SEARCH("+*",'Run1 Input'!A143),1,""))=1,'Run1 Input'!A143,IF('Run1 Input'!A143=0,"0+00",IF(TYPE(1000000-REPLACE(REPLACE('Run1 Input'!A143,SEARCH("+*",'Run1 Input'!A143),1,""),SEARCH("/*",'Run1 Input'!A143)-1,1,""))=1,REPLACE('Run1 Input'!A143,SEARCH("/*",'Run1 Input'!A143),3,""),'Run1 Input'!A143))) -> 951+50.00 | B150: 95150.00 | C150: =ROUND('Run2 Input'!D143,) -> 395 | E150: =ROUND('P&S Input'!Q143,) -> 0 | F150: =ROUND('M&D Input'!Q143,) -> 0 | G150: =ROUND('GB Input'!Q143,) -> 0 | H150: =ROUND('Misc Input'!Q143,) -> 0 | O150: 395 | Q150: =IF(TYPE(1000000-REPLACE('Run1 Input'!$A143,SEARCH("+*",'Run1 Input'!$A143),1,""))=1,'Run1 Input'!$A143,IF('Run1 Input'!$A143=0,"0+00",IF(TYPE(1000000-REPLACE(REPLACE('Run1 Input'!$A143,SEARCH("+*",'Run1 Input'!$A143),1,""),SEARCH("/*",'Run1 Input'!$A143)-1,1,""))=1,REPLACE('Run1 Input'!$A143,SEARCH("/*",'Run1 Input'!$A143),3,""),'Run1 Input'!$A143))) -> 951+50.00 | R150: 95150.00 | S150: =ROUND('Run2 Input'!E143,) -> 285 | U150: =ROUND('P&S Input'!B143,) -> 0 | V150: =ROUND('M&D Input'!Q143,) -> 0 | W150: =ROUND('GB Input'!R143,) -> 0 | X150: 0 | Y150: =ROUND(SUM(Pavement!I150),) -> 0 | Z150: =+'Run2 Input'!I143 -> 0 | AC150: =ROUND('GB Input'!S143,) -> 0 | AG150: 285
A151: =IF(TYPE(1000000-REPLACE('Run1 Input'!A144,SEARCH("+*",'Run1 Input'!A144),1,""))=1,'Run1 Input'!A144,IF('Run1 Input'!A144=0,"0+00",IF(TYPE(1000000-REPLACE(REPLACE('Run1 Input'!A144,SEARCH("+*",'Run1 Input'!A144),1,""),SEARCH("/*",'Run1 Input'!A144)-1,1,""))=1,REPLACE('Run1 Input'!A144,SEARCH("/*",'Run1 Input'!A144),3,""),'Run1 Input'!A144))) -> 951+75.00 | B151: 95175.00 | C151: =ROUND('Run2 Input'!D144,) -> 212 | E151: =ROUND('P&S Input'!Q144,) -> 0 | F151: =ROUND('M&D Input'!Q144,) -> 0 | G151: =ROUND('GB Input'!Q144,) -> 0 | H151: =ROUND('Misc Input'!Q144,) -> 0 | O151: 212 | Q151: =IF(TYPE(1000000-REPLACE('Run1 Input'!$A144,SEARCH("+*",'Run1 Input'!$A144),1,""))=1,'Run1 Input'!$A144,IF('Run1 Input'!$A144=0,"0+00",IF(TYPE(1000000-REPLACE(REPLACE('Run1 Input'!$A144,SEARCH("+*",'Run1 Input'!$A144),1,""),SEARCH("/*",'Run1 Input'!$A144)-1,1,""))=1,REPLACE('Run1 Input'!$A144,SEARCH("/*",'Run1 Input'!$A144),3,""),'Run1 Input'!$A144))) -> 951+75.00 | R151: 95175.00 | S151: =ROUND('Run2 Input'!E144,) -> 632 | U151: =ROUND('P&S Input'!B144,) -> 0 | V151: =ROUND('M&D Input'!Q144,) -> 0 | W151: =ROUND('GB Input'!R144,) -> 0 | X151: 0 | Y151: =ROUND(SUM(Pavement!I151),) -> 0 | Z151: =+'Run2 Input'!I144 -> 0 | AC151: =ROUND('GB Input'!S144,) -> 0 | AG151: 632
A152: =IF(TYPE(1000000-REPLACE('Run1 Input'!A145,SEARCH("+*",'Run1 Input'!A145),1,""))=1,'Run1 Input'!A145,IF('Run1 Input'!A145=0,"0+00",IF(TYPE(1000000-REPLACE(REPLACE('Run1 Input'!A145,SEARCH("+*",'Run1 Input'!A145),1,""),SEARCH("/*",'Run1 Input'!A145)-1,1,""))=1,REPLACE('Run1 Input'!A145,SEARCH("/*",'Run1 Input'!A145),3,""),'Run1 Input'!A145))) -> 952+00.00 | B152: 95200.00 | C152: =ROUND('Run2 Input'!D145,) -> 219 | E152: =ROUND('P&S Input'!Q145,) -> 0 | F152: =ROUND('M&D Input'!Q145,) -> 0 | G152: =ROUND('GB Input'!Q145,) -> 0 | H152: =ROUND('Misc Input'!Q145,) -> 0 | O152: 219 | Q152: =IF(TYPE(1000000-REPLACE('Run1 Input'!$A145,SEARCH("+*",'Run1 Input'!$A145),1,""))=1,'Run1 Input'!$A145,IF('Run1 Input'!$A145=0,"0+00",IF(TYPE(1000000-REPLACE(REPLACE('Run1 Input'!$A145,SEARCH("+*",'Run1 Input'!$A145),1,""),SEARCH("/*",'Run1 Input'!$A145)-1,1,""))=1,REPLACE('Run1 Input'!$A145,SEARCH("/*",'Run1 Input'!$A145),3,""),'Run1 Input'!$A145))) -> 952+00.00 | R152: 95200.00 | S152: =ROUND('Run2 Input'!E145,) -> 1062 | U152: =ROUND('P&S Input'!B145,) -> 0 | V152: =ROUND('M&D Input'!Q145,) -> 0 | W152: =ROUND('GB Input'!R145,) -> 0 | X152: 0 | Y152: =ROUND(SUM(Pavement!I152),) -> 0 | Z152: =+'Run2 Input'!I145 -> 0 | AC152: =ROUND('GB Input'!S145,) -> 0 | AG152: 1062
A153: =IF(TYPE(1000000-REPLACE('Run1 Input'!A146,SEARCH("+*",'Run1 Input'!A146),1,""))=1,'Run1 Input'!A146,IF('Run1 Input'!A146=0,"0+00",IF(TYPE(1000000-REPLACE(REPLACE('Run1 Input'!A146,SEARCH("+*",'Run1 Input'!A146),1,""),SEARCH("/*",'Run1 Input'!A146)-1,1,""))=1,REPLACE('Run1 Input'!A146,SEARCH("/*",'Run1 Input'!A146),3,""),'Run1 Input'!A146))) -> 952+25.00 | B153: 95225.00 | C153: =ROUND('Run2 Input'!D146,) -> 239 | E153: =ROUND('P&S Input'!Q146,) -> 0 | F153: =ROUND('M&D Input'!Q146,) -> 0 | G153: =ROUND('GB Input'!Q146,) -> 0 | H153: =ROUND('Misc Input'!Q146,) -> 0 | O153: 239 | Q153: =IF(TYPE(1000000-REPLACE('Run1 Input'!$A146,SEARCH("+*",'Run1 Input'!$A146),1,""))=1,'Run1 Input'!$A146,IF('Run1 Input'!$A146=0,"0+00",IF(TYPE(1000000-REPLACE(REPLACE('Run1 Input'!$A146,SEARCH("+*",'Run1 Input'!$A146),1,""),SEARCH("/*",'Run1 Input'!$A146)-1,1,""))=1,REPLACE('Run1 Input'!$A146,SEARCH("/*",'Run1 Input'!$A146),3,""),'Run1 Input'!$A146))) -> 952+25.00 | R153: 95225.00 | S153: =ROUND('Run2 Input'!E146,) -> 1483 | U153: =ROUND('P&S Input'!B146,) -> 0 | V153: =ROUND('M&D Input'!Q146,) -> 0 | W153: =ROUND('GB Input'!R146,) -> 0 | X153: 0 | Y153: =ROUND(SUM(Pavement!I153),) -> 0 | Z153: =+'Run2 Input'!I146 -> 0 | AC153: =ROUND('GB Input'!S146,) -> 0 | AG153: 1483
A154: =IF(TYPE(1000000-REPLACE('Run1 Input'!A147,SEARCH("+*",'Run1 Input'!A147),1,""))=1,'Run1 Input'!A147,IF('Run1 Input'!A147=0,"0+00",IF(TYPE(1000000-REPLACE(REPLACE('Run1 Input'!A147,SEARCH("+*",'Run1 Input'!A147),1,""),SEARCH("/*",'Run1 Input'!A147)-1,1,""))=1,REPLACE('Run1 Input'!A147,SEARCH("/*",'Run1 Input'!A147),3,""),'Run1 Input'!A147))) -> 952+50.00 | B154: 95250.00 | C154: =ROUND('Run2 Input'!D147,) -> 223 | E154: =ROUND('P&S Input'!Q147,) -> 0 | F154: =ROUND('M&D Input'!Q147,) -> 0 | G154: =ROUND('GB Input'!Q147,) -> 0 | H154: =ROUND('Misc Input'!Q147,) -> 0 | O154: 223 | Q154: =IF(TYPE(1000000-REPLACE('Run1 Input'!$A147,SEARCH("+*",'Run1 Input'!$A147),1,""))=1,'Run1 Input'!$A147,IF('Run1 Input'!$A147=0,"0+00",IF(TYPE(1000000-REPLACE(REPLACE('Run1 Input'!$A147,SEARCH("+*",'Run1 Input'!$A147),1,""),SEARCH("/*",'Run1 Input'!$A147)-1,1,""))=1,REPLACE('Run1 Input'!$A147,SEARCH("/*",'Run1 Input'!$A147),3,""),'Run1 Input'!$A147))) -> 952+50.00 | R154: 95250.00 | S154: =ROUND('Run2 Input'!E147,) -> 1836 | U154: =ROUND('P&S Input'!B147,) -> 0 | V154: =ROUND('M&D Input'!Q147,) -> 0 | W154: =ROUND('GB Input'!R147,) -> 0 | X154: 0 | Y154: =ROUND(SUM(Pavement!I154),) -> 0 | Z154: =+'Run2 Input'!I147 -> 0 | AC154: =ROUND('GB Input'!S147,) -> 0 | AG154: 1836
A155: =IF(TYPE(1000000-REPLACE('Run1 Input'!A148,SEARCH("+*",'Run1 Input'!A148),1,""))=1,'Run1 Input'!A148,IF('Run1 Input'!A148=0,"0+00",IF(TYPE(1000000-REPLACE(REPLACE('Run1 Input'!A148,SEARCH("+*",'Run1 Input'!A148),1,""),SEARCH("/*",'Run1 Input'!A148)-1,1,""))=1,REPLACE('Run1 Input'!A148,SEARCH("/*",'Run1 Input'!A148),3,""),'Run1 Input'!A148))) -> 952+75.00 | B155: 95275.00 | C155: =ROUND('Run2 Input'!D148,) -> 221 | E155: =ROUND('P&S Input'!Q148,) -> 0 | F155: =ROUND('M&D Input'!Q148,) -> 0 | G155: =ROUND('GB Input'!Q148,) -> 0 | H155: =ROUND('Misc Input'!Q148,) -> 0 | O155: 221 | Q155: =IF(TYPE(1000000-REPLACE('Run1 Input'!$A148,SEARCH("+*",'Run1 Input'!$A148),1,""))=1,'Run1 Input'!$A148,IF('Run1 Input'!$A148=0,"0+00",IF(TYPE(1000000-REPLACE(REPLACE('Run1 Input'!$A148,SEARCH("+*",'Run1 Input'!$A148),1,""),SEARCH("/*",'Run1 Input'!$A148)-1,1,""))=1,REPLACE('Run1 Input'!$A148,SEARCH("/*",'Run1 Input'!$A148),3,""),'Run1 Input'!$A148))) -> 952+75.00 | R155: 95275.00 | S155: =ROUND('Run2 Input'!E148,) -> 2107 | U155: =ROUND('P&S Input'!B148,) -> 0 | V155: =ROUND('M&D Input'!Q148,) -> 0 | W155: =ROUND('GB Input'!R148,) -> 0 | X155: 0 | Y155: =ROUND(SUM(Pavement!I155),) -> 0 | Z155: =+'Run2 Input'!I148 -> 0 | AC155: =ROUND('GB Input'!S148,) -> 0 | AG155: 2107
A156: =IF(TYPE(1000000-REPLACE('Run1 Input'!A149,SEARCH("+*",'Run1 Input'!A149),1,""))=1,'Run1 Input'!A149,IF('Run1 Input'!A149=0,"0+00",IF(TYPE(1000000-REPLACE(REPLACE('Run1 Input'!A149,SEARCH("+*",'Run1 Input'!A149),1,""),SEARCH("/*",'Run1 Input'!A149)-1,1,""))=1,REPLACE('Run1 Input'!A149,SEARCH("/*",'Run1 Input'!A149),3,""),'Run1 Input'!A149))) -> 953+00.00 | B156: 95300.00 | C156: =ROUND('Run2 Input'!D149,) -> 222 | E156: =ROUND('P&S Input'!Q149,) -> 0 | F156: =ROUND('M&D Input'!Q149,) -> 0 | G156: =ROUND('GB Input'!Q149,) -> 0 | H156: =ROUND('Misc Input'!Q149,) -> 0 | O156: 222 | Q156: =IF(TYPE(1000000-REPLACE('Run1 Input'!$A149,SEARCH("+*",'Run1 Input'!$A149),1,""))=1,'Run1 Input'!$A149,IF('Run1 Input'!$A149=0,"0+00",IF(TYPE(1000000-REPLACE(REPLACE('Run1 Input'!$A149,SEARCH("+*",'Run1 Input'!$A149),1,""),SEARCH("/*",'Run1 Input'!$A149)-1,1,""))=1,REPLACE('Run1 Input'!$A149,SEARCH("/*",'Run1 Input'!$A149),3,""),'Run1 Input'!$A149))) -> 953+00.00 | R156: 95300.00 | S156: =ROUND('Run2 Input'!E149,) -> 2322 | U156: =ROUND('P&S Input'!B149,) -> 0 | V156: =ROUND('M&D Input'!Q149,) -> 0 | W156: =ROUND('GB Input'!R149,) -> 0 | X156: 0 | Y156: =ROUND(SUM(Pavement!I156),) -> 0 | Z156: =+'Run2 Input'!I149 -> 0 | AC156: =ROUND('GB Input'!S149,) -> 0 | AG156: 2322
A157: =IF(TYPE(1000000-REPLACE('Run1 Input'!A150,SEARCH("+*",'Run1 Input'!A150),1,""))=1,'Run1 Input'!A150,IF('Run1 Input'!A150=0,"0+00",IF(TYPE(1000000-REPLACE(REPLACE('Run1 Input'!A150,SEARCH("+*",'Run1 Input'!A150),1,""),SEARCH("/*",'Run1 Input'!A150)-1,1,""))=1,REPLACE('Run1 Input'!A150,SEARCH("/*",'Run1 Input'!A150),3,""),'Run1 Input'!A150))) -> 953+25.00 | B157: 95325.00 | C157: =ROUND('Run2 Input'!D150,) -> 226 | E157: =ROUND('P&S Input'!Q150,) -> 0 | F157: =ROUND('M&D Input'!Q150,) -> 0 | G157: =ROUND('GB Input'!Q150,) -> 0 | H157: =ROUND('Misc Input'!Q150,) -> 0 | O157: 226 | Q157: =IF(TYPE(1000000-REPLACE('Run1 Input'!$A150,SEARCH("+*",'Run1 Input'!$A150),1,""))=1,'Run1 Input'!$A150,IF('Run1 Input'!$A150=0,"0+00",IF(TYPE(1000000-REPLACE(REPLACE('Run1 Input'!$A150,SEARCH("+*",'Run1 Input'!$A150),1,""),SEARCH("/*",'Run1 Input'!$A150)-1,1,""))=1,REPLACE('Run1 Input'!$A150,SEARCH("/*",'Run1 Input'!$A150),3,""),'Run1 Input'!$A150))) -> 953+25.00 | R157: 95325.00 | S157: =ROUND('Run2 Input'!E150,) -> 2443 | U157: =ROUND('P&S Input'!B150,) -> 0 | V157: =ROUND('M&D Input'!Q150,) -> 0 | W157: =ROUND('GB Input'!R150,) -> 0 | X157: 0 | Y157: =ROUND(SUM(Pavement!I157),) -> 0 | Z157: =+'Run2 Input'!I150 -> 0 | AC157: =ROUND('GB Input'!S150,) -> 0 | AG157: 2443
A158: =IF(TYPE(1000000-REPLACE('Run1 Input'!A151,SEARCH("+*",'Run1 Input'!A151),1,""))=1,'Run1 Input'!A151,IF('Run1 Input'!A151=0,"0+00",IF(TYPE(1000000-REPLACE(REPLACE('Run1 Input'!A151,SEARCH("+*",'Run1 Input'!A151),1,""),SEARCH("/*",'Run1 Input'!A151)-1,1,""))=1,REPLACE('Run1 Input'!A151,SEARCH("/*",'Run1 Input'!A151),3,""),'Run1 Input'!A151))) -> 953+50.00 | B158: 95350.00 | C158: =ROUND('Run2 Input'!D151,) -> 232 | E158: =ROUND('P&S Input'!Q151,) -> 0 | F158: =ROUND('M&D Input'!Q151,) -> 0 | G158: =ROUND('GB Input'!Q151,) -> 0 | H158: =ROUND('Misc Input'!Q151,) -> 0 | O158: 232 | Q158: =IF(TYPE(1000000-REPLACE('Run1 Input'!$A151,SEARCH("+*",'Run1 Input'!$A151),1,""))=1,'Run1 Input'!$A151,IF('Run1 Input'!$A151=0,"0+00",IF(TYPE(1000000-REPLACE(REPLACE('Run1 Input'!$A151,SEARCH("+*",'Run1 Input'!$A151),1,""),SEARCH("/*",'Run1 Input'!$A151)-1,1,""))=1,REPLACE('Run1 Input'!$A151,SEARCH("/*",'Run1 Input'!$A151),3,""),'Run1 Input'!$A151))) -> 953+50.00 | R158: 95350.00 | S158: =ROUND('Run2 Input'!E151,) -> 2493 | U158: =ROUND('P&S Input'!B151,) -> 0 | V158: =ROUND('M&D Input'!Q151,) -> 0 | W158: =ROUND('GB Input'!R151,) -> 0 | X158: 0 | Y158: =ROUND(SUM(Pavement!I158),) -> 0 | Z158: =+'Run2 Input'!I151 -> 0 | AC158: =ROUND('GB Input'!S151,) -> 0 | AG158: 2493
A159: =IF(TYPE(1000000-REPLACE('Run1 Input'!A152,SEARCH("+*",'Run1 Input'!A152),1,""))=1,'Run1 Input'!A152,IF('Run1 Input'!A152=0,"0+00",IF(TYPE(1000000-REPLACE(REPLACE('Run1 Input'!A152,SEARCH("+*",'Run1 Input'!A152),1,""),SEARCH("/*",'Run1 Input'!A152)-1,1,""))=1,REPLACE('Run1 Input'!A152,SEARCH("/*",'Run1 Input'!A152),3,""),'Run1 Input'!A152))) -> 953+75.00 | B159: 95375.00 | C159: =ROUND('Run2 Input'!D152,) -> 236 | E159: =ROUND('P&S Input'!Q152,) -> 0 | F159: =ROUND('M&D Input'!Q152,) -> 0 | G159: =ROUND('GB Input'!Q152,) -> 0 | H159: =ROUND('Misc Input'!Q152,) -> 0 | O159: 236 | Q159: =IF(TYPE(1000000-REPLACE('Run1 Input'!$A152,SEARCH("+*",'Run1 Input'!$A152),1,""))=1,'Run1 Input'!$A152,IF('Run1 Input'!$A152=0,"0+00",IF(TYPE(1000000-REPLACE(REPLACE('Run1 Input'!$A152,SEARCH("+*",'Run1 Input'!$A152),1,""),SEARCH("/*",'Run1 Input'!$A152)-1,1,""))=1,REPLACE('Run1 Input'!$A152,SEARCH("/*",'Run1 Input'!$A152),3,""),'Run1 Input'!$A152))) -> 953+75.00 | R159: 95375.00 | S159: =ROUND('Run2 Input'!E152,) -> 2526 | U159: =ROUND('P&S Input'!B152,) -> 0 | V159: =ROUND('M&D Input'!Q152,) -> 0 | W159: =ROUND('GB Input'!R152,) -> 0 | X159: 0 | Y159: =ROUND(SUM(Pavement!I159),) -> 0 | Z159: =+'Run2 Input'!I152 -> 0 | AC159: =ROUND('GB Input'!S152,) -> 0 | AG159: 2526
A160: =IF(TYPE(1000000-REPLACE('Run1 Input'!A153,SEARCH("+*",'Run1 Input'!A153),1,""))=1,'Run1 Input'!A153,IF('Run1 Input'!A153=0,"0+00",IF(TYPE(1000000-REPLACE(REPLACE('Run1 Input'!A153,SEARCH("+*",'Run1 Input'!A153),1,""),SEARCH("/*",'Run1 Input'!A153)-1,1,""))=1,REPLACE('Run1 Input'!A153,SEARCH("/*",'Run1 Input'!A153),3,""),'Run1 Input'!A153))) -> 954+00.00 | B160: 95400.00 | C160: =ROUND('Run2 Input'!D153,) -> 238 | E160: =ROUND('P&S Input'!Q153,) -> 0 | F160: =ROUND('M&D Input'!Q153,) -> 0 | G160: =ROUND('GB Input'!Q153,) -> 0 | H160: =ROUND('Misc Input'!Q153,) -> 0 | O160: 238 | Q160: =IF(TYPE(1000000-REPLACE('Run1 Input'!$A153,SEARCH("+*",'Run1 Input'!$A153),1,""))=1,'Run1 Input'!$A153,IF('Run1 Input'!$A153=0,"0+00",IF(TYPE(1000000-REPLACE(REPLACE('Run1 Input'!$A153,SEARCH("+*",'Run1 Input'!$A153),1,""),SEARCH("/*",'Run1 Input'!$A153)-1,1,""))=1,REPLACE('Run1 Input'!$A153,SEARCH("/*",'Run1 Input'!$A153),3,""),'Run1 Input'!$A153))) -> 954+00.00 | R160: 95400.00 | S160: =ROUND('Run2 Input'!E153,) -> 2516 | U160: =ROUND('P&S Input'!B153,) -> 0 | V160: =ROUND('M&D Input'!Q153,) -> 0 | W160: =ROUND('GB Input'!R153,) -> 0 | X160: 0 | Y160: =ROUND(SUM(Pavement!I160),) -> 0 | Z160: =+'Run2 Input'!I153 -> 0 | AC160: =ROUND('GB Input'!S153,) -> 0 | AG160: 2516
A161: =IF(TYPE(1000000-REPLACE('Run1 Input'!A154,SEARCH("+*",'Run1 Input'!A154),1,""))=1,'Run1 Input'!A154,IF('Run1 Input'!A154=0,"0+00",IF(TYPE(1000000-REPLACE(REPLACE('Run1 Input'!A154,SEARCH("+*",'Run1 Input'!A154),1,""),SEARCH("/*",'Run1 Input'!A154)-1,1,""))=1,REPLACE('Run1 Input'!A154,SEARCH("/*",'Run1 Input'!A154),3,""),'Run1 Input'!A154))) -> 954+20.00 | B161: =IF(TYPE(1000000-REPLACE(A161,SEARCH("+*",A161),1,""))=1,REPLACE(A161,SEARCH("+*",A161),1,""),"000") -> 95420.00 | C161: =ROUND('Run2 Input'!D154,) -> 189 | E161: =ROUND('P&S Input'!Q154,) -> 0 | F161: =ROUND('M&D Input'!Q154,) -> 0 | G161: =ROUND('GB Input'!Q154,) -> 0 | H161: =ROUND('Misc Input'!Q154,) -> 0 | O161: =ROUND(SUM(C161+E161+F161+G161+H161+I161+J161+K161-L161-M161-N161),) -> 189 | Q161: =IF(TYPE(1000000-REPLACE('Run1 Input'!$A154,SEARCH("+*",'Run1 Input'!$A154),1,""))=1,'Run1 Input'!$A154,IF('Run1 Input'!$A154=0,"0+00",IF(TYPE(1000000-REPLACE(REPLACE('Run1 Input'!$A154,SEARCH("+*",'Run1 Input'!$A154),1,""),SEARCH("/*",'Run1 Input'!$A154)-1,1,""))=1,REPLACE('Run1 Input'!$A154,SEARCH("/*",'Run1 Input'!$A154),3,""),'Run1 Input'!$A154))) -> 954+20.00 | R161: =IF(TYPE(1000000-REPLACE(Q161,SEARCH("+*",Q161),1,""))=1,REPLACE(Q161,SEARCH("+*",Q161),1,""),"000") -> 95420.00 | S161: =ROUND('Run2 Input'!E154,) -> 1978 | U161: =ROUND('P&S Input'!B154,) -> 0 | V161: =ROUND('M&D Input'!Q154,) -> 0 | W161: =ROUND('GB Input'!R154,) -> 0 | X161: 0 | Y161: =ROUND(SUM(Pavement!I161),) -> 0 | Z161: =+'Run2 Input'!I154 -> 0 | AC161: =ROUND('GB Input'!S154,) -> 0 | AG161: =ROUND(SUM(S161+U161+V161+W161+X161+Y161+Z161+AA161+AB161-AC161-AD161-AE161-AF161),) -> 1978
A162: =IF(TYPE(1000000-REPLACE('Run1 Input'!A155,SEARCH("+*",'Run1 Input'!A155),1,""))=1,'Run1 Input'!A155,IF('Run1 Input'!A155=0,"0+00",IF(TYPE(1000000-REPLACE(REPLACE('Run1 Input'!A155,SEARCH("+*",'Run1 Input'!A155),1,""),SEARCH("/*",'Run1 Input'!A155)-1,1,""))=1,REPLACE('Run1 Input'!A155,SEARCH("/*",'Run1 Input'!A155),3,""),'Run1 Input'!A155))) -> 954+25.00 | B162: 95425.00 | C162: =ROUND('Run2 Input'!D155,) -> 47 | E162: =ROUND('P&S Input'!Q155,) -> 0 | F162: =ROUND('M&D Input'!Q155,) -> 0 | G162: =ROUND('GB Input'!Q155,) -> 0 | H162: =ROUND('Misc Input'!Q155,) -> 0 | O162: 47 | Q162: =IF(TYPE(1000000-REPLACE('Run1 Input'!$A155,SEARCH("+*",'Run1 Input'!$A155),1,""))=1,'Run1 Input'!$A155,IF('Run1 Input'!$A155=0,"0+00",IF(TYPE(1000000-REPLACE(REPLACE('Run1 Input'!$A155,SEARCH("+*",'Run1 Input'!$A155),1,""),SEARCH("/*",'Run1 Input'!$A155)-1,1,""))=1,REPLACE('Run1 Input'!$A155,SEARCH("/*",'Run1 Input'!$A155),3,""),'Run1 Input'!$A155))) -> 954+25.00 | R162: 95425.00 | S162: =ROUND('Run2 Input'!E155,) -> 485 | U162: =ROUND('P&S Input'!B155,) -> 0 | V162: =ROUND('M&D Input'!Q155,) -> 0 | W162: =ROUND('GB Input'!R155,) -> 0 | X162: 0 | Y162: =ROUND(SUM(Pavement!I162),) -> 0 | Z162: =+'Run2 Input'!I155 -> 0 | AC162: =ROUND('GB Input'!S155,) -> 0 | AG162: 485
A163: =IF(TYPE(1000000-REPLACE('Run1 Input'!A156,SEARCH("+*",'Run1 Input'!A156),1,""))=1,'Run1 Input'!A156,IF('Run1 Input'!A156=0,"0+00",IF(TYPE(1000000-REPLACE(REPLACE('Run1 Input'!A156,SEARCH("+*",'Run1 Input'!A156),1,""),SEARCH("/*",'Run1 Input'!A156)-1,1,""))=1,REPLACE('Run1 Input'!A156,SEARCH("/*",'Run1 Input'!A156),3,""),'Run1 Input'!A156))) -> 954+50.00 | B163: 95450.00 | C163: =ROUND('Run2 Input'!D156,) -> 249 | E163: =ROUND('P&S Input'!Q156,) -> 0 | F163: =ROUND('M&D Input'!Q156,) -> 0 | G163: =ROUND('GB Input'!Q156,) -> 0 | H163: =ROUND('Misc Input'!Q156,) -> 0 | O163: 249 | Q163: =IF(TYPE(1000000-REPLACE('Run1 Input'!$A156,SEARCH("+*",'Run1 Input'!$A156),1,""))=1,'Run1 Input'!$A156,IF('Run1 Input'!$A156=0,"0+00",IF(TYPE(1000000-REPLACE(REPLACE('Run1 Input'!$A156,SEARCH("+*",'Run1 Input'!$A156),1,""),SEARCH("/*",'Run1 Input'!$A156)-1,1,""))=1,REPLACE('Run1 Input'!$A156,SEARCH("/*",'Run1 Input'!$A156),3,""),'Run1 Input'!$A156))) -> 954+50.00 | R163: 95450.00 | S163: =ROUND('Run2 Input'!E156,) -> 2374 | U163: =ROUND('P&S Input'!B156,) -> 0 | V163: =ROUND('M&D Input'!Q156,) -> 0 | W163: =ROUND('GB Input'!R156,) -> 0 | X163: 0 | Y163: =ROUND(SUM(Pavement!I163),) -> 0 | Z163: =+'Run2 Input'!I156 -> 0 | AC163: =ROUND('GB Input'!S156,) -> 0 | AG163: 2374
A164: =IF(TYPE(1000000-REPLACE('Run1 Input'!A157,SEARCH("+*",'Run1 Input'!A157),1,""))=1,'Run1 Input'!A157,IF('Run1 Input'!A157=0,"0+00",IF(TYPE(1000000-REPLACE(REPLACE('Run1 Input'!A157,SEARCH("+*",'Run1 Input'!A157),1,""),SEARCH("/*",'Run1 Input'!A157)-1,1,""))=1,REPLACE('Run1 Input'!A157,SEARCH("/*",'Run1 Input'!A157),3,""),'Run1 Input'!A157))) -> 954+75.00 | B164: 95475.00 | C164: =ROUND('Run2 Input'!D157,) -> 275 | E164: =ROUND('P&S Input'!Q157,) -> 0 | F164: =ROUND('M&D Input'!Q157,) -> 0 | G164: =ROUND('GB Input'!Q157,) -> 0 | H164: =ROUND('Misc Input'!Q157,) -> 0 | O164: 275 | Q164: =IF(TYPE(1000000-REPLACE('Run1 Input'!$A157,SEARCH("+*",'Run1 Input'!$A157),1,""))=1,'Run1 Input'!$A157,IF('Run1 Input'!$A157=0,"0+00",IF(TYPE(1000000-REPLACE(REPLACE('Run1 Input'!$A157,SEARCH("+*",'Run1 Input'!$A157),1,""),SEARCH("/*",'Run1 Input'!$A157)-1,1,""))=1,REPLACE('Run1 Input'!$A157,SEARCH("/*",'Run1 Input'!$A157),3,""),'Run1 Input'!$A157))) -> 954+75.00 | R164: 95475.00 | S164: =ROUND('Run2 Input'!E157,) -> 2328 | U164: =ROUND('P&S Input'!B157,) -> 0 | V164: =ROUND('M&D Input'!Q157,) -> 0 | W164: =ROUND('GB Input'!R157,) -> 0 | X164: 0 | Y164: =ROUND(SUM(Pavement!I164),) -> 0 | Z164: =+'Run2 Input'!I157 -> 0 | AC164: =ROUND('GB Input'!S157,) -> 0 | AG164: 2328
A165: =IF(TYPE(1000000-REPLACE('Run1 Input'!A158,SEARCH("+*",'Run1 Input'!A158),1,""))=1,'Run1 Input'!A158,IF('Run1 Input'!A158=0,"0+00",IF(TYPE(1000000-REPLACE(REPLACE('Run1 Input'!A158,SEARCH("+*",'Run1 Input'!A158),1,""),SEARCH("/*",'Run1 Input'!A158)-1,1,""))=1,REPLACE('Run1 Input'!A158,SEARCH("/*",'Run1 Input'!A158),3,""),'Run1 Input'!A158))) -> 955+00.00 | B165: 95500.00 | C165: =ROUND('Run2 Input'!D158,) -> 282 | E165: =ROUND('P&S Input'!Q158,) -> 0 | F165: =ROUND('M&D Input'!Q158,) -> 0 | G165: =ROUND('GB Input'!Q158,) -> 0 | H165: =ROUND('Misc Input'!Q158,) -> 0 | O165: 282 | Q165: =IF(TYPE(1000000-REPLACE('Run1 Input'!$A158,SEARCH("+*",'Run1 Input'!$A158),1,""))=1,'Run1 Input'!$A158,IF('Run1 Input'!$A158=0,"0+00",IF(TYPE(1000000-REPLACE(REPLACE('Run1 Input'!$A158,SEARCH("+*",'Run1 Input'!$A158),1,""),SEARCH("/*",'Run1 Input'!$A158)-1,1,""))=1,REPLACE('Run1 Input'!$A158,SEARCH("/*",'Run1 Input'!$A158),3,""),'Run1 Input'!$A158))) -> 955+00.00 | R165: 95500.00 | S165: =ROUND('Run2 Input'!E158,) -> 2285 | U165: =ROUND('P&S Input'!B158,) -> 0 | V165: =ROUND('M&D Input'!Q158,) -> 0 | W165: =ROUND('GB Input'!R158,) -> 0 | X165: 0 | Y165: =ROUND(SUM(Pavement!I165),) -> 0 | Z165: =+'Run2 Input'!I158 -> 0 | AC165: =ROUND('GB Input'!S158,) -> 0 | AG165: 2285
A166: =IF(TYPE(1000000-REPLACE('Run1 Input'!A159,SEARCH("+*",'Run1 Input'!A159),1,""))=1,'Run1 Input'!A159,IF('Run1 Input'!A159=0,"0+00",IF(TYPE(1000000-REPLACE(REPLACE('Run1 Input'!A159,SEARCH("+*",'Run1 Input'!A159),1,""),SEARCH("/*",'Run1 Input'!A159)-1,1,""))=1,REPLACE('Run1 Input'!A159,SEARCH("/*",'Run1 Input'!A159),3,""),'Run1 Input'!A159))) -> 955+25.00 | B166: 95525.00 | C166: =ROUND('Run2 Input'!D159,) -> 281 | E166: =ROUND('P&S Input'!Q159,) -> 0 | F166: =ROUND('M&D Input'!Q159,) -> 0 | G166: =ROUND('GB Input'!Q159,) -> 0 | H166: =ROUND('Misc Input'!Q159,) -> 0 | O166: 281 | Q166: =IF(TYPE(1000000-REPLACE('Run1 Input'!$A159,SEARCH("+*",'Run1 Input'!$A159),1,""))=1,'Run1 Input'!$A159,IF('Run1 Input'!$A159=0,"0+00",IF(TYPE(1000000-REPLACE(REPLACE('Run1 Input'!$A159,SEARCH("+*",'Run1 Input'!$A159),1,""),SEARCH("/*",'Run1 Input'!$A159)-1,1,""))=1,REPLACE('Run1 Input'!$A159,SEARCH("/*",'Run1 Input'!$A159),3,""),'Run1 Input'!$A159))) -> 955+25.00 | R166: 95525.00 | S166: =ROUND('Run2 Input'!E159,) -> 2235 | U166: =ROUND('P&S Input'!B159,) -> 0 | V166: =ROUND('M&D Input'!Q159,) -> 0 | W166: =ROUND('GB Input'!R159,) -> 0 | X166: 0 | Y166: =ROUND(SUM(Pavement!I166),) -> 0 | Z166: =+'Run2 Input'!I159 -> 0 | AC166: =ROUND('GB Input'!S159,) -> 0 | AG166: 2235
A167: =IF(TYPE(1000000-REPLACE('Run1 Input'!A160,SEARCH("+*",'Run1 Input'!A160),1,""))=1,'Run1 Input'!A160,IF('Run1 Input'!A160=0,"0+00",IF(TYPE(1000000-REPLACE(REPLACE('Run1 Input'!A160,SEARCH("+*",'Run1 Input'!A160),1,""),SEARCH("/*",'Run1 Input'!A160)-1,1,""))=1,REPLACE('Run1 Input'!A160,SEARCH("/*",'Run1 Input'!A160),3,""),'Run1 Input'!A160))) -> 955+50.00 | B167: 95550.00 | C167: =ROUND('Run2 Input'!D160,) -> 281 | E167: =ROUND('P&S Input'!Q160,) -> 0 | F167: =ROUND('M&D Input'!Q160,) -> 0 | G167: =ROUND('GB Input'!Q160,) -> 0 | H167: =ROUND('Misc Input'!Q160,) -> 0 | O167: 281 | Q167: =IF(TYPE(1000000-REPLACE('Run1 Input'!$A160,SEARCH("+*",'Run1 Input'!$A160),1,""))=1,'Run1 Input'!$A160,IF('Run1 Input'!$A160=0,"0+00",IF(TYPE(1000000-REPLACE(REPLACE('Run1 Input'!$A160,SEARCH("+*",'Run1 Input'!$A160),1,""),SEARCH("/*",'Run1 Input'!$A160)-1,1,""))=1,REPLACE('Run1 Input'!$A160,SEARCH("/*",'Run1 Input'!$A160),3,""),'Run1 Input'!$A160))) -> 955+50.00 | R167: 95550.00 | S167: =ROUND('Run2 Input'!E160,) -> 2197 | U167: =ROUND('P&S Input'!B160,) -> 0 | V167: =ROUND('M&D Input'!Q160,) -> 0 | W167: =ROUND('GB Input'!R160,) -> 0 | X167: 0 | Y167: =ROUND(SUM(Pavement!I167),) -> 0 | Z167: =+'Run2 Input'!I160 -> 0 | AC167: =ROUND('GB Input'!S160,) -> 0 | AG167: 2197
A168: =IF(TYPE(1000000-REPLACE('Run1 Input'!A161,SEARCH("+*",'Run1 Input'!A161),1,""))=1,'Run1 Input'!A161,IF('Run1 Input'!A161=0,"0+00",IF(TYPE(1000000-REPLACE(REPLACE('Run1 Input'!A161,SEARCH("+*",'Run1 Input'!A161),1,""),SEARCH("/*",'Run1 Input'!A161)-1,1,""))=1,REPLACE('Run1 Input'!A161,SEARCH("/*",'Run1 Input'!A161),3,""),'Run1 Input'!A161))) -> 955+75.00 | B168: 95575.00 | C168: =ROUND('Run2 Input'!D161,) -> 279 | E168: =ROUND('P&S Input'!Q161,) -> 0 | F168: =ROUND('M&D Input'!Q161,) -> 0 | G168: =ROUND('GB Input'!Q161,) -> 0 | H168: =ROUND('Misc Input'!Q161,) -> 0 | O168: 279 | Q168: =IF(TYPE(1000000-REPLACE('Run1 Input'!$A161,SEARCH("+*",'Run1 Input'!$A161),1,""))=1,'Run1 Input'!$A161,IF('Run1 Input'!$A161=0,"0+00",IF(TYPE(1000000-REPLACE(REPLACE('Run1 Input'!$A161,SEARCH("+*",'Run1 Input'!$A161),1,""),SEARCH("/*",'Run1 Input'!$A161)-1,1,""))=1,REPLACE('Run1 Input'!$A161,SEARCH("/*",'Run1 Input'!$A161),3,""),'Run1 Input'!$A161))) -> 955+75.00 | R168: 95575.00 | S168: =ROUND('Run2 Input'!E161,) -> 2161 | U168: =ROUND('P&S Input'!B161,) -> 0 | V168: =ROUND('M&D Input'!Q161,) -> 0 | W168: =ROUND('GB Input'!R161,) -> 0 | X168: 0 | Y168: =ROUND(SUM(Pavement!I168),) -> 0 | Z168: =+'Run2 Input'!I161 -> 0 | AC168: =ROUND('GB Input'!S161,) -> 0 | AG168: 2161
A169: =IF(TYPE(1000000-REPLACE('Run1 Input'!A162,SEARCH("+*",'Run1 Input'!A162),1,""))=1,'Run1 Input'!A162,IF('Run1 Input'!A162=0,"0+00",IF(TYPE(1000000-REPLACE(REPLACE('Run1 Input'!A162,SEARCH("+*",'Run1 Input'!A162),1,""),SEARCH("/*",'Run1 Input'!A162)-1,1,""))=1,REPLACE('Run1 Input'!A162,SEARCH("/*",'Run1 Input'!A162),3,""),'Run1 Input'!A162))) -> 956+00.00 | B169: 95600.00 | C169: =ROUND('Run2 Input'!D162,) -> 276 | E169: =ROUND('P&S Input'!Q162,) -> 0 | F169: =ROUND('M&D Input'!Q162,) -> 0 | G169: =ROUND('GB Input'!Q162,) -> 0 | H169: =ROUND('Misc Input'!Q162,) -> 0 | O169: 276 | Q169: =IF(TYPE(1000000-REPLACE('Run1 Input'!$A162,SEARCH("+*",'Run1 Input'!$A162),1,""))=1,'Run1 Input'!$A162,IF('Run1 Input'!$A162=0,"0+00",IF(TYPE(1000000-REPLACE(REPLACE('Run1 Input'!$A162,SEARCH("+*",'Run1 Input'!$A162),1,""),SEARCH("/*",'Run1 Input'!$A162)-1,1,""))=1,REPLACE('Run1 Input'!$A162,SEARCH("/*",'Run1 Input'!$A162),3,""),'Run1 Input'!$A162))) -> 956+00.00 | R169: 95600.00 | S169: =ROUND('Run2 Input'!E162,) -> 2111 | U169: =ROUND('P&S Input'!B162,) -> 0 | V169: =ROUND('M&D Input'!Q162,) -> 0 | W169: =ROUND('GB Input'!R162,) -> 0 | X169: 0 | Y169: =ROUND(SUM(Pavement!I169),) -> 0 | Z169: =+'Run2 Input'!I162 -> 0 | AC169: =ROUND('GB Input'!S162,) -> 0 | AG169: 2111
A170: =IF(TYPE(1000000-REPLACE('Run1 Input'!A163,SEARCH("+*",'Run1 Input'!A163),1,""))=1,'Run1 Input'!A163,IF('Run1 Input'!A163=0,"0+00",IF(TYPE(1000000-REPLACE(REPLACE('Run1 Input'!A163,SEARCH("+*",'Run1 Input'!A163),1,""),SEARCH("/*",'Run1 Input'!A163)-1,1,""))=1,REPLACE('Run1 Input'!A163,SEARCH("/*",'Run1 Input'!A163),3,""),'Run1 Input'!A163))) -> 956+25.00 | B170: 95625.00 | C170: =ROUND('Run2 Input'!D163,) -> 274 | E170: =ROUND('P&S Input'!Q163,) -> 0 | F170: =ROUND('M&D Input'!Q163,) -> 0 | G170: =ROUND('GB Input'!Q163,) -> 0 | H170: =ROUND('Misc Input'!Q163,) -> 0 | O170: 274 | Q170: =IF(TYPE(1000000-REPLACE('Run1 Input'!$A163,SEARCH("+*",'Run1 Input'!$A163),1,""))=1,'Run1 Input'!$A163,IF('Run1 Input'!$A163=0,"0+00",IF(TYPE(1000000-REPLACE(REPLACE('Run1 Input'!$A163,SEARCH("+*",'Run1 Input'!$A163),1,""),SEARCH("/*",'Run1 Input'!$A163)-1,1,""))=1,REPLACE('Run1 Input'!$A163,SEARCH("/*",'Run1 Input'!$A163),3,""),'Run1 Input'!$A163))) -> 956+25.00 | R170: 95625.00 | S170: =ROUND('Run2 Input'!E163,) -> 2055 | U170: =ROUND('P&S Input'!B163,) -> 0 | V170: =ROUND('M&D Input'!Q163,) -> 0 | W170: =ROUND('GB Input'!R163,) -> 0 | X170: 0 | Y170: =ROUND(SUM(Pavement!I170),) -> 0 | Z170: =+'Run2 Input'!I163 -> 0 | AC170: =ROUND('GB Input'!S163,) -> 0 | AG170: 2055
A171: =IF(TYPE(1000000-REPLACE('Run1 Input'!A164,SEARCH("+*",'Run1 Input'!A164),1,""))=1,'Run1 Input'!A164,IF('Run1 Input'!A164=0,"0+00",IF(TYPE(1000000-REPLACE(REPLACE('Run1 Input'!A164,SEARCH("+*",'Run1 Input'!A164),1,""),SEARCH("/*",'Run1 Input'!A164)-1,1,""))=1,REPLACE('Run1 Input'!A164,SEARCH("/*",'Run1 Input'!A164),3,""),'Run1 Input'!A164))) -> 956+50.00 | B171: 95650.00 | C171: =ROUND('Run2 Input'!D164,) -> 267 | E171: =ROUND('P&S Input'!Q164,) -> 0 | F171: =ROUND('M&D Input'!Q164,) -> 0 | G171: =ROUND('GB Input'!Q164,) -> 0 | H171: =ROUND('Misc Input'!Q164,) -> 0 | O171: 267 | Q171: =IF(TYPE(1000000-REPLACE('Run1 Input'!$A164,SEARCH("+*",'Run1 Input'!$A164),1,""))=1,'Run1 Input'!$A164,IF('Run1 Input'!$A164=0,"0+00",IF(TYPE(1000000-REPLACE(REPLACE('Run1 Input'!$A164,SEARCH("+*",'Run1 Input'!$A164),1,""),SEARCH("/*",'Run1 Input'!$A164)-1,1,""))=1,REPLACE('Run1 Input'!$A164,SEARCH("/*",'Run1 Input'!$A164),3,""),'Run1 Input'!$A164))) -> 956+50.00 | R171: 95650.00 | S171: =ROUND('Run2 Input'!E164,) -> 2004 | U171: =ROUND('P&S Input'!B164,) -> 0 | V171: =ROUND('M&D Input'!Q164,) -> 0 | W171: =ROUND('GB Input'!R164,) -> 0 | X171: 0 | Y171: =ROUND(SUM(Pavement!I171),) -> 0 | Z171: =+'Run2 Input'!I164 -> 0 | AC171: =ROUND('GB Input'!S164,) -> 0 | AG171: 2004
A172: =IF(TYPE(1000000-REPLACE('Run1 Input'!A165,SEARCH("+*",'Run1 Input'!A165),1,""))=1,'Run1 Input'!A165,IF('Run1 Input'!A165=0,"0+00",IF(TYPE(1000000-REPLACE(REPLACE('Run1 Input'!A165,SEARCH("+*",'Run1 Input'!A165),1,""),SEARCH("/*",'Run1 Input'!A165)-1,1,""))=1,REPLACE('Run1 Input'!A165,SEARCH("/*",'Run1 Input'!A165),3,""),'Run1 Input'!A165))) -> 956+75.00 | B172: 95675.00 | C172: =ROUND('Run2 Input'!D165,) -> 249 | E172: =ROUND('P&S Input'!Q165,) -> 0 | F172: =ROUND('M&D Input'!Q165,) -> 0 | G172: =ROUND('GB Input'!Q165,) -> 0 | H172: =ROUND('Misc Input'!Q165,) -> 0 | O172: 249 | Q172: =IF(TYPE(1000000-REPLACE('Run1 Input'!$A165,SEARCH("+*",'Run1 Input'!$A165),1,""))=1,'Run1 Input'!$A165,IF('Run1 Input'!$A165=0,"0+00",IF(TYPE(1000000-REPLACE(REPLACE('Run1 Input'!$A165,SEARCH("+*",'Run1 Input'!$A165),1,""),SEARCH("/*",'Run1 Input'!$A165)-1,1,""))=1,REPLACE('Run1 Input'!$A165,SEARCH("/*",'Run1 Input'!$A165),3,""),'Run1 Input'!$A165))) -> 956+75.00 | R172: 95675.00 | S172: =ROUND('Run2 Input'!E165,) -> 1970 | U172: =ROUND('P&S Input'!B165,) -> 0 | V172: =ROUND('M&D Input'!Q165,) -> 0 | W172: =ROUND('GB Input'!R165,) -> 0 | X172: 0 | Y172: =ROUND(SUM(Pavement!I172),) -> 0 | Z172: =+'Run2 Input'!I165 -> 0 | AC172: =ROUND('GB Input'!S165,) -> 0 | AG172: 1970
